Workbook

Sheet Consulta
A1: 1 Xicotepec | B1: 2 Huauchinango | C1: 3 Zacatlán | D1: 4 Huehuetla | E1: 5 Zacapoaxtla | F1: 6 Teziutlán | G1: 7 Chignahuapan | H1: 8 Libres | I1: 9 Quimixtlán | J1: 10 Acatzingo | K1: 11 Ciudad Serdán | L1: 12 Tecamachalco | M1: 13 Tehuacán | N1: 14 Sierra Negra | O1: 15 Izúcar de Matamoros | P1: 16 Chiautla | Q1: 17 Acatlán | R1: 18 Tepexi de Rodríguez | S1: 19 Atlixco | T1: 20 San Martín Texmelucan | U1: 21-31 Área Metropolitana de la Ciudad de Puebla | V1: 32 Tepeaca
A2: Honey | B2: Ahuazotepec | C2: Ahuacatlán | D2: Caxhuacan | E2: Cuetzalan del Progreso | F2: Acateno | G2: Aquixtla | H2: Cuyoaco | I2: Chichiquila | J2: Acatzingo | K2: Aljojuca | L2: Tecamachalco | M2: Altepexi | N2: Ajalpan | O2: Ahuatlán | P2: Albino Zertuche | Q2: Acatlán | R2: Atexcal | S2: Acteopan | T2: Calpan | U2: Amozoc | V2: Acajete
A3: Francisco Z. Mena | B3: Chiconcuautla | C3: Amixtlán | D3: Huehuetla | E3: Jonotla | F3: Atempan | G3: Cuautempan | H3: Libres | I3: Chilchotla | J3: Cuapiaxtla de Madero | K3: Atzitzintla | L3: Tlacotepec de Benito Juárez | M3: Caltepec | N3: Coyomeapan | O3: Atzala | P3: Cohetzala | Q3: Ahuehuetitla | R3: Coatzingo | S3: Atlixco | T3: Chiautzingo | U3: Coronango | V3: Atoyatempan
A4: Jalpan | B4: Huauchinango | C4: Camocuautla | D4: Hueytlalpan | E4: Nauzontla | F4: Ayotoxco de Guerrero | G4: Chignahuapan | H4: Mazapiltepec de Juárez | I4: Guadalupe Victoria | J4: General Felipe Ángeles | K4: Chalchicomula de Sesma | L4: Tochtepec | M4: Coxcatlán | N4: Eloxochitlán | O4: Chietla | P4: Chiautla | Q4: Axutla | R4: Coyotepec | S4: Atzitzihuacán | T4: Domingo Arenas | U4: Cuautlancingo | V4: Cuautinchán
A5: Naupan | B5: Jopala | C5: Coatepec | D5: Huitzilan de Serdán | E5: Tuzamapan de Galeana | F5: Chignautla | G5: Ixtacamaxtitlán | H5: Nopalucan | I5: Lafragua | J5: Quecholac | K5: Esperanza | L5: Xochitlán Todos Santos | M5: Chapulco | N5: San Sebastián Tlacotepec | O5: Epatlán | P5: Chila de la Sal | Q5: Chila | R5: Cuayuca de Andrade | S5: Cohuecan | T5: Huejotzingo | U5: Juan C. Bonilla | V5: Huitziltepec
A6: Pahuatlán | B6: Juan Galindo | C6: Hermenegildo Galeana | D6: Atlequizayan | E6: Xochiapulco | F6: Hueyapan | G6: Tetela de Ocampo | H6: Ocotepec | I6: Quimixtlán | J6: Los Reyes de Juárez | K6: Cañada Morelos | L6: Yehualtepec | M6: Nicolás Bravo | N6: Vicente Guerrero | O6: Izúcar de Matamoros | P6: Huehuetlán el Chico | Q6: Chinantla | R6: Chigmecatitlán | S6: Huaquechula | T6: Nealtican | U6: Ocoyucan | V6: Mixtla
A7: Pantepec | B7: Tlaola | C7: San Felipe Tepatlán | D7: Ixtepec | E7: Zacapoaxtla | F7: Hueytamalco | H7: Oriental | I7: San Nicolás Buenos Aires | J7: San Salvador Huixcolotla | K7: Palmar de Bravo | M7: San Antonio Cañada | N7: Zoquitlán | O7: San Diego la Mesa Tochimiltzingo | P7: Ixcamilpa de Guerrero | Q7: Guadalupe | R7: Huatlatlauca | S7: Santa Isabel Cholula | T7: San Felipe Teotlalcingo | U7: Puebla | V7: Santo Tomás Hueyotlipan
A8: Tlacuilotepec | B8: Tlapacoya | C8: Tepango de Rodríguez | D8: Olintla | E8: Zaragoza | F8: Tenampulco | H8: Rafael Lara Grajales | I8: Tlachichuca | K8: San Juan Atenco | M8: San Gabriel Chilac | O8: San Martín Totoltepec | P8: Jolalpan | Q8: Petlalcingo | R8: Ixcaquixtla | S8: Tepemaxalco | T8: San Martín Texmelucan | U8: San Andrés Cholula | V8: Tecali de Herrera
A9: Tlaxco | C9: Tepetzintla | D9: Xochitlán de Vicente Suárez | E9: Zautla | F9: Teteles de Avila Castillo | H9: San José Chiapa | M9: San José Miahuatlán | O9: Teopantlán | P9: Teotlalco | Q9: Piaxtla | R9: Juan N. Méndez | S9: Tianguismanalco | T9: San Matías Tlalancaleca | U9: San Gregorio Atzompa | V9: Tepatlaxco de Hidalgo
A10: Venustiano Carranza | C10: Zacatlán | D10: Zapotitlán de Méndez | E10: Zoquiapan | F10: Teziutlán | H10: San Salvador el Seco | M10: Santiago Miahuatlán | O10: Tepeojuma | P10: Xicotlán | Q10: San Jerónimo Xayacatlán | R10: La Magdalena Tlatlauquitepec | S10: Tochimilco | T10: San Nicolás de los Ranchos | U10: San Jerónimo Tecuanipan | V10: Tepeaca
A11: Xicotepec | D11: Zongozotla | F11: Tlatlauquitepec | H11: Soltepec | M11: Tehuacán | O11: Tepexco | Q11: San Miguel Ixitlán | R11: Molcaxac | T11: San Salvador el Verde | U11: San Miguel Xoxtla | V11: Tepeyahualco de Cuauhtémoc
A12: Zihuateutla | F12: Xiutetelco | H12: Tepeyahualco | M12: Tepanco de López | O12: Tilapa | Q12: San Pablo Anicano | R12: San Juan Atzompa | T12: Tlahuapan | U12: San Pedro Cholula | V12: Tlanepantla
F13: Yaonáhuac | M13: Zapotitlán | O13: Tlapanalá | Q13: San Pedro Yeloixtlahuaca | R13: Santa Catarina Tlaltempan | U13: Tlaltenango | V13: Tzicatlacoyan
M14: Zinacatepec | O14: Xochiltepec | Q14: Tecomatlán | R14: Santa Inés Ahuatempan
Q15: Tehuitzingo | R15: Huehuetlán el Grande
Q16: Totoltepec de Guerrero | R16: Tepexi de Rodríguez
Q17: Tulcingo | R17: Zacapala
Q18: Xayacatlán de Bravo

Sheet Población
A1: Región: | G1: ='tablas población'!B1 -> 1 Xicotepec
A5: Municipio: | G5: ='tablas población'!B2 -> (Todas)
D13: ='tablas población'!$F$6 -> 0.520493341 | U13: ='tablas población'!$F$5 -> 0.479506659
AC17: =GETPIVOTDATA("Población total1",'tablas población'!$O$3) -> 226537
AE34: ='tablas población'!J6 -> 92.12541663
AE49: ='tablas población'!N6 -> 64.53283553
I77: 13 a 17 años | L77: 18 a 29 años | O77: 30 a 59 años | R77: 60 años y más | U77: No especificado | X77: Total General
C80: =GETPIVOTDATA("Población total1",'tablas población'!$O$3,"grupos","0 a 11 años") -> 52989 | F80: =GETPIVOTDATA("Población total1",'tablas población'!$O$3,"grupos","12 años") -> 4646 | I80: =GETPIVOTDATA("Población total1",'tablas población'!$O$3,"grupos","13 a 17 años") -> 22109 | L80: =GETPIVOTDATA("Población total1",'tablas población'!$O$3,"grupos","18 a 29 años") -> 39165 | O80: =GETPIVOTDATA("Población total1",'tablas población'!$O$3,"grupos","30 a 59 años") -> 77065 | R80: =GETPIVOTDATA("Población total1",'tablas población'!$O$3,"grupos","60 años y más") -> 30540 | U80: =GETPIVOTDATA("Población total1",'tablas población'!$O$3,"grupos","No especificado") -> 23 | X80: =GETPIVOTDATA("Población total1",'tablas población'!$O$4) -> 226537

Sheet tablas población (hidden)
A1: Región | B1: 1 Xicotepec | E1: Región | F1: 1 Xicotepec | H1: Región | I1: (Varios elementos) | L1: Región | M1: (Varios elementos) | O1: Región | P1: 1 Xicotepec
A2: mun | B2: (Todas) | E2: mun | F2: (Todas) | H2: mun | I2: (Todas) | L2: mun | M2: (Todas) | O2: mun | P2: (Todas)
A4: Suma de Piramides | B4: Etiquetas de columna | E4: Etiquetas de fila | F4: Suma de Población total1 | H4: Etiquetas de fila | I4: Suma de Población total1 | L4: Etiquetas de fila | M4: Suma de Población total1 | O4: Etiquetas de fila | P4: Suma de Población total1
A5: Etiquetas de fila | B5: HOMBRES | C5: MUJERES | E5: HOMBRES | F5: 0.479506659 | H5: HOMBRES | I5: 108626 | L5: 0 A 14 Y 65 Y MAS | M5: 88843 | O5: 0 a 11 años | P5: 52989
A6: 00-04 años | B6: 10711 | C6: -10442 | E6: MUJERES | F6: 0.520493341 | H6: MUJERES | I6: 117911 | J6: =(I5/I6)*100 -> 92.12541663 | L6: 15 A 64 | M6: 137671 | N6: =(M5/M6)*100 -> 64.53283553 | O6: 12 años | P6: 4646
A7: 05-09 años | B7: 11306 | C7: -11273 | E7: Total general | F7: 1 | H7: Total general | I7: 226537 | L7: Total general | M7: 226514 | O7: 13 a 17 años | P7: 22109
A8: 10-14 años | B8: 11653 | C8: -11101 | O8: 18 a 29 años | P8: 39165
A9: 15-19 años | B9: 10448 | C9: -10415 | O9: 30 a 59 años | P9: 77065
A10: 20-24 años | B10: 7483 | C10: -8504 | O10: 60 años y más | P10: 30540
A11: 25-29 años | B11: 6971 | C11: -8602 | O11: No especificado | P11: 23
A12: 30-34 años | B12: 6779 | C12: -8325 | O12: Total general | P12: 226537
A13: 35-39 años | B13: 6702 | C13: -7926
A14: 40-44 años | B14: 6448 | C14: -7594
A15: 45-49 años | B15: 5820 | C15: -6540
A16: 50-54 años | B16: 5276 | C16: -6140
A17: 55-59 años | B17: 4410 | C17: -5105
A18: 60-64 años | B18: 3775 | C18: -4408
A19: 65-69 años | B19: 3492 | C19: -3921
A20: 70-74 años | B20: 2697 | C20: -2837
A21: 75-79 años | B21: 2185 | C21: -2140
A22: 80-84 años | B22: 1293 | C22: -1364
A23: 85-89 años | B23: 756 | C23: -819
A24: 90-94 años | B24: 249 | C24: -267
A25: 95-99 años | B25: 131 | C25: -139
A26: 100 años | B26: 30 | C26: -37
A27: Total general | B27: 108615 | C27: -117899

Sheet Etnicidad
A1: Región: | E1: ='tablas población'!B1 -> 1 Xicotepec
A5: Municipio: | E5: ='tablas población'!B2 -> (Todas)
A15: ='tablas lenguas'!A7 -> 0.1674333241 | U15: =GETPIVOTDATA("Suma de Habla lengua indígena total",'tablas lenguas'!$A$5) -> 35853
A22: ='tablas lenguas'!B7 -> 0.04699746186 | U22: =GETPIVOTDATA("Suma de Habla lengua indígena y No habla español",'tablas lenguas'!$A$5) -> 1685
A31: ='tablas lenguas'!G7 -> 0.005204447839 | U31: =GETPIVOTDATA("Suma de Se considera afromexicana o afrodescendiente",'tablas lenguas'!$E$6) -> 1179

Sheet tabla edad afro (hidden)
A1: REG | B1: 1 Xicotepec
A2: Municipio | B2: (Todas)
A3: Sexo | B3: (Varios elementos)
A5: Etiquetas de fila | B5: Suma de Se considera afromexicana o afrodescendiente
A6: 0 a 14 años | B6: 0.1832061069
A7: 15 a 29 años | B7: 0.2417302799
A8: 30 a 59 años | B8: 0.4240882103
A9: 60 años y más | B9: 0.1509754029
A10: Total general | B10: 1

Sheet tablas lenguas (hidden)
A1: REG | B1: 1 Xicotepec
A2: MUN | B2: (Todas) | E2: REG | F2: 1 Xicotepec
A3: Sexo | B3: (Varios elementos) | E3: Municipio | F3: (Todas)
E4: Sexo | F4: (Varios elementos)
A5: Suma de Habla lengua indígena total | B5: Suma de Habla lengua indígena y No habla español | C5: Suma de Población de 3 años y más
A6: 35853 | B6: 1685 | C6: 214133 | E6: Suma de Se considera afromexicana o afrodescendiente | F6: Suma de Población total1
A7: =A6/C6 -> 0.1674333241 | B7: =B6/A6 -> 0.04699746186 | E7: 1179 | F7: 226537 | G7: =GETPIVOTDATA("Suma de Se considera afromexicana o afrodescendiente",$E$6)/GETPIVOTDATA("Suma de Población total1",$E$6) -> 0.005204447839

Sheet Discapacidad
A1: Región: | E1: ='tablas población'!B1 -> 1 Xicotepec
A5: Municipio: | E5: ='tablas población'!B2 -> (Todas)
A17: ='tablas dicapacidad'!B7 -> 0.123322018 | S17: =GETPIVOTDATA("Suma de LIMITACION",'tablas dicapacidad'!$A$5) -> 27937
A24: ='tablas dicapacidad'!C7 -> 0.01295594097 | S24: =GETPIVOTDATA("Suma de MENTAL",'tablas dicapacidad'!$A$5) -> 2935
A33: ='tablas dicapacidad'!A7 -> 0.05742108353 | S33: =GETPIVOTDATA("Suma de DISCAPACIDAD",'tablas dicapacidad'!$A$5) -> 13008

Sheet tablas dicapacidad (hidden)
A1: REG | B1: 1 Xicotepec | E1: Región | F1: 1 Xicotepec
A2: MUN | B2: (Todas) | E2: mun | F2: (Todas)
A3: Sexo | B3: (Varios elementos)
E4: Suma de Población total1
A5: Suma de DISCAPACIDAD | B5: Suma de LIMITACION | C5: Suma de MENTAL | E5: 226537
A6: 13008 | B6: 27937 | C6: 2935
A7: =A6/$E$5 -> 0.05742108353 | B7: =B6/$E$5 -> 0.123322018 | C7: 0.01295594097

Sheet Discapacidad por grupos de edad (hidden)
A1: REG | B1: 1 Xicotepec
A2: Sexo | B2: (Varios elementos)
A3: MUN | B3: (Todas)
A5: Etiquetas de fila | B5: Suma de BUENO
A6: 0 a 14 años | B6: 0.02331317871
A7: 15 a 29 años | B7: 0.02269995994
A8: 30 a 59 años | B8: 0.04480633232
A9: 60 años y más | B9: 0.2231499673
A10: Total general | B10: 0.05742691401

Sheet Migración
A1: Región: | E1: ='tablas población'!B1 -> 1 Xicotepec
A5: Municipio: | E5: ='tablas población'!B2 -> (Todas)
Q15: ='tabla migración'!$B$12 -> 9801

Sheet tabla migración (hidden)
A2: reg | B2: 1 Xicotepec
A3: id_mun | B3: (Todas)
A4: Sexo | B4: (Varios elementos)
A6: Valores
A7: Inseguridad. | B7: 409
A8: Estudiar. | B8: 743
A9: Familiar 5 | B9: 6053
A10: Trabajo 6 | B10: 1795
A11: Otra causa 7 | B11: 801
B12: =SUM(B7:B11) -> 9801

Sheet PEA y Pob Ocupada
A1: Región: | E1: ='tablas población'!B1 -> 1 Xicotepec
A5: Municipio: | E5: ='tablas población'!B2 -> (Todas)
G21: =+GETPIVOTDATA("Suma de PEA_",'PEA y POBOCU'!$A$4) -> 108717 | N21: =+GETPIVOTDATA("Suma de Ocupada_",'PEA y POBOCU'!$A$4) -> 107352
B22: =+GETPIVOTDATA("Suma de PEA_",'PEA y POBOCU'!$A$4)/GETPIVOTDATA("Suma de POB 12+",'PEA y POBOCU'!$A$4) -> 0.6265206743 | J22: =+GETPIVOTDATA("Suma de Ocupada_",'PEA y POBOCU'!$A$4)/GETPIVOTDATA("Suma de PEA_",'PEA y POBOCU'!$A$4) -> 0.9874444659
Q26: =+GETPIVOTDATA("Suma de PEA_",'PEA y POBOCU'!$A$4) -> 108717 | R26: personas de 12 años y más son Económicamente Activos
R28: =+GETPIVOTDATA("Suma de Ocupada_",'PEA y POBOCU'!$A$4) -> 107352 | S28: personas, están ocupadas. | V28: =+GETPIVOTDATA("Suma de Ocupada_",'PEA y POBOCU'!$A$4)/GETPIVOTDATA("Suma de PEA_",'PEA y POBOCU'!$A$4) -> 0.9874444659
Q30: =+GETPIVOTDATA("Suma de PEA_",'PEA y POBOCU'!$A$4,"Sexo","Hombre") -> 65433 | R30: hombres de 12 años y más son Económicamente Activos
R32: =+GETPIVOTDATA("Suma de Ocupada_",'PEA y POBOCU'!$A$4,"Sexo","Hombre") -> 64314 | S32: hombres, están ocupados. | V32: =+GETPIVOTDATA("Suma de Ocupada_",'PEA y POBOCU'!$A$4,"Sexo","Hombre")/GETPIVOTDATA("Suma de PEA_",'PEA y POBOCU'!$A$4,"Sexo","Hombre") -> 0.9828985374
Q34: =+GETPIVOTDATA("Suma de PEA_",'PEA y POBOCU'!$A$4,"Sexo","Mujer") -> 43284 | R34: mujeres de 12 años y más son Económicamente Activas
R36: =+GETPIVOTDATA("Suma de Ocupada_",'PEA y POBOCU'!$A$4,"Sexo","Mujer") -> 43038 | S36: mujeress, están ocupadas. | V36: =+GETPIVOTDATA("Suma de Ocupada_",'PEA y POBOCU'!$A$4,"Sexo","Mujer")/GETPIVOTDATA("Suma de PEA_",'PEA y POBOCU'!$A$4,"Sexo","Mujer") -> 0.9943166066

Sheet PEA y POBOCU (hidden)
A1: Región | B1: (Varios elementos)
A2: Municipio | B2: (Todas)
A4: Etiquetas de columna
A5: Hombre | D5: Mujer | G5: Total Suma de PEA_ | H5: Total Suma de POB 12+ | I5: Total Suma de Ocupada_
A6: Suma de PEA_ | B6: Suma de POB 12+ | C6: Suma de Ocupada_ | D6: Suma de PEA_ | E6: Suma de POB 12+ | F6: Suma de Ocupada_
A7: 65433 | B7: 81892 | C7: 64314 | D7: 43284 | E7: 91633 | F7: 43038 | G7: 108717 | H7: 173525 | I7: 107352
B9: Hombres | C9: Mujeres | D9: PEA% | F9: Hombres | G9: Mujeres | H9: POB OCUP %
B10: =+GETPIVOTDATA("Suma de PEA_",$A$4,"Sexo","Hombre")/GETPIVOTDATA("Suma de PEA_",$A$4) -> 0.6018653936 | C10: =+GETPIVOTDATA("Suma de PEA_",$A$4,"Sexo","Mujer")/GETPIVOTDATA("Suma de PEA_",$A$4) -> 0.3981346064 | D10: =+GETPIVOTDATA("Suma de PEA_",$A$4)/GETPIVOTDATA("Suma de POB 12+",$A$4) -> 0.6265206743 | F10: =+GETPIVOTDATA("Suma de Ocupada_",$A$4,"Sexo","Hombre")/GETPIVOTDATA("Suma de Ocupada_",$A$4) -> 0.5990945674 | G10: =+GETPIVOTDATA("Suma de Ocupada_",$A$4,"Sexo","Mujer")/GETPIVOTDATA("Suma de Ocupada_",$A$4) -> 0.4009054326 | H10: =+GETPIVOTDATA("Suma de Ocupada_",$A$4)/GETPIVOTDATA("Suma de PEA_",$A$4) -> 0.9874444659

Sheet PNEA
A1: Región: | E1: ='tablas población'!B1 -> 1 Xicotepec
A5: Municipio: | E5: ='tablas población'!B2 -> (Todas)
F15: =+PNEA.!$C$22 -> 0.3704711137 | O15: =+GETPIVOTDATA("Suma de Población de 12 años y más no económicamente activa",PNEA.!$B$6) -> 64286
A65: 1/

Sheet PNEA. (hidden)
B2: Región | C2: 1 Xicotepec
B3: Municipio | C3: (Todas)
B4: Sexo | C4: Total
B6: Suma de Población de 12 años y más no económicamente activa | C6: Suma de Pensionada o jubilada | D6: Suma de Estudiante | E6: Suma de Se dedica a los quehaceres de su hogar | F6: Suma de Limitación física o mental permanente que le impide trabajar | G6: Suma de Otras actividades no económicas | H6: Suma de POB 12+
B7: 64286 | C7: 808 | D7: 21049 | E7: 33152 | F7: 4531 | G7: 4746 | H7: 173525
C12: TOTAL
B13: Población de 12 años y más no económicamente activa | C13: =+B7 -> 64286
B14: Pensionada o jubilada | C14: =+GETPIVOTDATA("Suma de Pensionada o jubilada",$B$6) -> 808 | D14: =+C14/$C$13 -> 0.01256883303
B15: Estudiante | C15: =+GETPIVOTDATA("Suma de Estudiante",$B$6) -> 21049 | D15: =+C15/$C$13 -> 0.3274274337
B16: Se dedica a los quehaceres de su hogar | C16: =+E7 -> 33152 | D16: =+C16/$C$13 -> 0.5156954858
B17: Limitación física o mental permanente que le impide trabajar | C17: =+F7 -> 4531 | D17: =+C17/$C$13 -> 0.07048190897
B18: Otras actividades no económicas | C18: =+G7 -> 4746 | D18: =+C18/$C$13 -> 0.07382633855
B21: Población de 12 años y más | C21: =+GETPIVOTDATA("Suma de POB 12+",$B$5) -> 173525
B22: Porcentaje de la PNEA | C22: =+C13/C21 -> 0.3704711137

Sheet Pob afiliada
A1: Región: | E1: ='tablas población'!B1 -> 1 Xicotepec
A5: Municipio: | E5: ='tablas población'!B2 -> (Todas)
D16: ='Población afiliada'!T5 -> 0.7567858672 | P16: ='Población afiliada'!S5 -> 171440

Sheet Población afiliada (hidden)
B3: Región | C3: 1 Xicotepec | M3: Valores | N3: Hombre | O3: Mujer | P3: Hombre | Q3: Mujer
B4: Municipio | C4: (Todas) | M4: Pob total | N4: =+GETPIVOTDATA("Suma de POB_TOT",$B$6,"Sexo","Hombre") -> 108626 | O4: =+GETPIVOTDATA("Suma de POB_TOT",$B$6,"Sexo","Mujer") -> 117911 | S4: =+GETPIVOTDATA("Suma de POB_TOT",$B$6) -> 226537
M5: Pob tot Afiliada | N5: =GETPIVOTDATA("Suma de Afiliada ",$B$6,"Sexo","Hombre") -> 79666 | O5: =GETPIVOTDATA("Suma de Afiliada ",$B$6,"Sexo","Mujer") -> 91774 | S5: =SUM(N5:O5) -> 171440 | T5: =+S5/S4 -> 0.7567858672
C6: Etiquetas de columna | M6: IMSS | N6: =GETPIVOTDATA("Suma de Pob afiliada IMSS ",$B$6,"Sexo","Hombre") -> 8264 | O6: =GETPIVOTDATA("Suma de Pob afiliada IMSS ",$B$6,"Sexo","Mujer") -> 7542 | P6: =+N6/$S$5 -> 0.0482034531 | Q6: 0.0439920672 | R6: =+S6/$S$5 -> 0.0921955203 | S6: 15806 | T6: =+P6+Q6 -> 0.0921955203
B7: Valores | C7: Hombre | D7: Mujer | E7: Total general | M7: ISSSTE | N7: =GETPIVOTDATA("Suma de Pob afiliada ISSSTE ",$B$6,"Sexo","Hombre") -> 2850 | O7: =GETPIVOTDATA("Suma de Pob afiliada ISSSTE ",$B$6,"Sexo","Mujer") -> 3536 | P7: 0.01662389174 | Q7: 0.02062529165 | R7: 0.03724918339 | S7: 6386 | T7: 0.03724918339
B8: Suma de Afiliada | C8: 79666 | D8: 91774 | E8: 171440 | M8: ISSSTE estatal | N8: =GETPIVOTDATA("Suma de Pob afiliada ISSSTE estatal ",$B$6,"Sexo","Hombre") -> 1229 | O8: =GETPIVOTDATA("Suma de Pob afiliada ISSSTE estatal ",$D$11,"Sexo","Mujer") -> 1402 | P8: 0.007168688754 | Q8: 0.008177788147 | R8: 0.0153464769 | S8: 2631 | T8: 0.0153464769
B9: Suma de Pob afiliada IMSS | C9: 8264 | D9: 7542 | E9: 15806 | M9: Pemex, Defensa o Marina | N9: =GETPIVOTDATA("Suma de Pob afiliada Pemex, Defensa o Marina ",$B$6,"Sexo","Hombre") -> 665 | O9: =GETPIVOTDATA("Suma de Pob afiliada Pemex, Defensa o Marina ",$D$12,"Sexo","Mujer") -> 680 | P9: 0.003878908073 | Q9: 0.00396640224 | R9: 0.007845310313 | S9: 1345 | T9: 0.007845310313
B10: Suma de Pob afiliada ISSSTE | C10: 2850 | D10: 3536 | E10: 6386 | M10: INSABI | N10: =GETPIVOTDATA("Suma de Pob afiliada Instituto de Salud para el Bienestar ",$B$6,"Sexo","Hombre") -> 63999 | O10: =GETPIVOTDATA("Suma de Pob afiliada Instituto de Salud para el Bienestar ",$D$13,"Sexo","Mujer") -> 75639 | P10: 0.3733026132 | Q10: 0.4411980868 | R10: 0.8145007 | S10: 139638 | T10: 0.8145007
B11: Suma de Pob afiliada ISSSTE estatal | C11: 1229 | D11: 1402 | E11: 2631 | M11: IMSS BIENESTAR | N11: =GETPIVOTDATA("Suma de Pob afiliada IMSS BIENESTAR ",$B$6,"Sexo","Hombre") -> 3000 | O11: =GETPIVOTDATA("Suma de Pob afiliada IMSS BIENESTAR ",$D$14,"Sexo","Mujer") -> 3481 | P11: 0.01749883341 | Q11: 0.0203044797 | R11: 0.03780331311 | S11: 6481 | T11: 0.03780331311
B12: Suma de Pob afiliada Pemex, Defensa o Marina | C12: 665 | D12: 680 | E12: 1345 | M12: Institución privada | N12: =GETPIVOTDATA("Suma de Pob afiliada Institución privada ",$B$6,"Sexo","Hombre") -> 303 | O12: =D15 -> 255 | P12: 0.001767382175 | Q12: 0.00148740084 | R12: 0.003254783014 | S12: 558 | T12: 0.003254783014
B13: Suma de Pob afiliada Instituto de Salud para el Bienestar | C13: 63999 | D13: 75639 | E13: 139638 | M13: Otra institución | N13: =GETPIVOTDATA("Suma de Pob afiliada Otra institución ",$B$6,"Sexo","Hombre") -> 206 | O13: =GETPIVOTDATA("Suma de Pob afiliada Otra institución ",$D$16,"Sexo","Mujer") -> 154 | P13: 0.001201586561 | Q13: 0.0008982734484 | R13: 0.002099860009 | S13: 360 | T13: 0.002099860009
B14: Suma de Pob afiliada IMSS BIENESTAR | C14: 3000 | D14: 3481 | E14: 6481
B15: Suma de Pob afiliada Institución privada | C15: 303 | D15: 255 | E15: 558
B16: Suma de Pob afiliada Otra institución | C16: 206 | D16: 154 | E16: 360
B17: Suma de POB_TOT | C17: 108626 | D17: 117911 | E17: 226537
B45: 2 La suma de los porcentajes en las distintas instituciones de salud puede no coincidir con el porcentaje total de la región por aquella población incorporada a este servicio en más de una institución de salud.

Sheet Fecundidad
A1: Región: | E1: ='tablas población'!B1 -> 1 Xicotepec
A5: Municipio: | E5: ='tablas población'!B2 -> (Todas)
B16: =GETPIVOTDATA("PROMEDIO REAL",'tabla fecundidad'!$A$4) -> 2.633734572

Sheet tabla fecundidad (hidden)
D1: REG | E1: 1 Xicotepec
A2: REG | B2: 1 Xicotepec | D2: Municipio | E2: (Todas)
A3: Municipio | B3: (Todas)
D4: Etiquetas de fila | E4: Suma de PROMEDIO REAL
A5: Suma de PROMEDIO REAL | D5: 15-19 años | E5: 0.1356697072
A6: 2.633734572 | D6: 20-24 años | E6: 0.7804562559
D7: 25-29 años | E7: 1.467216926
D8: 30-34 años | E8: 2.115075075
D9: 35-39 años | E9: 2.608125158
D10: 40-44 años | E10: 3.022781143
D11: 45-49 años | E11: 3.399847095
D12: Total general | E12: 1.798449211

Sheet Educación
A1: Región: | E1: ='tablas población'!B1 -> 1 Xicotepec
A5: Municipio: | E5: ='tablas población'!B2 -> (Todas)
X17: =GETPIVOTDATA("Suma de POB ANALFABETA ",'Pob Analfabeta'!$B$7,"Sexo","Total") -> 20564 | AA17: personas
AH18: ='Tasa de alfabetización'!C9 -> 0.9829464166 | AK18: 15 a 29 años | AL18: ='Tasa de alfabetización'!D9 -> 103058 | AO18: personas
AH20: ='Tasa de alfabetización'!C10 -> 0.9041328748 | AK20: 30 a 59 años | AL20: ='Tasa de alfabetización'!D10 -> 139354 | AO20: personas
AH22: ='Tasa de alfabetización'!C11 -> 0.5935166994 | AK22: 60 años y más | AL22: ='Tasa de alfabetización'!D11 -> 36252 | AO22: personas
W43: =GETPIVOTDATA("Suma de POB ANALFABETA ",'Pob Analfabeta'!$B$7,"Sexo","Hombre") -> 7977 | AA43: hombres
W46: =GETPIVOTDATA("Suma de POB ANALFABETA ",'Pob Analfabeta'!$B$7,"Sexo","Mujer") -> 12587 | AA46: mujeres

Sheet Asistencia Escolar (hidden)
B2: Región | C2: 1 Xicotepec
B3: Municipio | C3: (Todas)
B5: Suma de 3-5 Asiste | C5: Suma de 3-5 No Asiste | D5: Suma de 6-11 Asiste | E5: Suma de 6-11 No asiste | F5: Suma de 12 -14 Asiste | G5: Suma de 12-14 No asiste | H5: Suma de 15 - 24 Asiste | I5: Suma de 15 - 24 No asiste
B6: 9241 | C6: 3998 | D6: 26574 | E6: 783 | F6: 12535 | G6: 962 | H6: 16647 | I6: 20196
B8: Asistencia Escolar1 | C8: Porcentaje | D8: Total de personas que van a la escuela
B9: 3 a 5 años | C9: =+GETPIVOTDATA("Suma de 3-5 Asiste",$B$5)/(GETPIVOTDATA("Suma de 3-5 No Asiste",$B$5)+GETPIVOTDATA("Suma de 3-5 Asiste",$B$5)) -> 0.6980134451 | D9: =+GETPIVOTDATA("Suma de 3-5 Asiste",$B$5) -> 9241
B10: 6 a 11 años | C10: =+GETPIVOTDATA("Suma de 6-11 Asiste",$B$5)/(GETPIVOTDATA("Suma de 6-11 No asiste",$B$5)+GETPIVOTDATA("Suma de 6-11 Asiste",$B$5)) -> 0.9713784406 | D10: =+GETPIVOTDATA("Suma de 6-11 Asiste",$B$5) -> 26574
B11: 12 a 14 años | C11: =GETPIVOTDATA("Suma de 12 -14 Asiste",$B$5)/(GETPIVOTDATA("Suma de 12 -14 Asiste",$B$5)+GETPIVOTDATA("Suma de 12-14 No asiste",$B$5)) -> 0.9287249018 | D11: =+GETPIVOTDATA("Suma de 12 -14 Asiste",$B$5) -> 12535
B12: 15 a 24 años | C12: =+GETPIVOTDATA("Suma de 15 - 24 Asiste",$B$5)/(GETPIVOTDATA("Suma de 15 - 24 Asiste",$B$5)+GETPIVOTDATA("Suma de 15 - 24 No asiste",$B$5)) -> 0.4518361697 | D12: =+GETPIVOTDATA("Suma de 15 - 24 Asiste",$B$5) -> 16647
B13: 1/Porcentaje de la población que asiste a la escuela, representado por rangos de edad
B57: Suma de 3-5 Asiste | C57: Suma de 3-5 No Asiste | D57: Suma de 6-11 Asiste | E57: Suma de 6-11 No asiste | F57: Suma de 12 -14 Asiste | G57: Suma de 12-14 No asiste | H57: Suma de 15 - 24 Asiste | I57: Suma de 15 - 24 No asiste
B58: 249490 | C58: 111247 | D58: 690293 | E58: 27865 | F58: 322352 | G58: 39816 | H58: 527554 | I58: 649801
C60: =+B58/(B58+C58) -> 0.6916118945 | E60: =D58/(D58+E58) -> 0.9611993461 | G60: =+F58/(G58+F58) -> 0.8900620706 | I60: =+H58/(I58+H58) -> 0.4480840528

Sheet base_economia (hidden)
A1: Cve_Mun | B1: Municipio | C1: Cve_Reg | D1: Región | E1: Sexo | F1: POB_TOT | G1: Pob 3+ | H1: Población de 12 años y más no económicamente activa | I1: Pensionada o jubilada | J1: Estudiante | K1: Se dedica a los quehaceres de su hogar | L1: Limitación física o mental permanente que le impide trabajar | M1: Otras actividades no económicas | N1: POB 12+ | O1: PEA_ | P1: Ocupada_ | Q1: Desocupada_ | R1: Afiliada | S1: Pob afiliada IMSS | T1: Pob afiliada ISSSTE | U1: Pob afiliada ISSSTE estatal | V1: Pob afiliada Pemex, Defensa o Marina | W1: Pob afiliada Instituto de Salud para el Bienestar | X1: Pob afiliada IMSS BIENESTAR | Y1: Pob afiliada Institución privada | Z1: Pob afiliada Otra institución | AA1: Afiliación No especificado | AB1: POB 15+ AÑOS | AC1: Sin escolaridad | AD1: BÁSICA | AE1: MEDIA SUPERIOR | AF1: SUPERIOR | AG1: educacion NO ESPECIFICADO | AH1: POB ANALFABETA | AI1: Población de 15-29 | AJ1: Población de 15-29 Alfabeta | AK1: Población de 30-59 | AL1: Población de 30-59 Alfabeta | AM1: Población de 60 y + | AN1: Población de 60 y + Alfabeta | AO1: 3-5 Asiste | AP1: 3-5 No Asiste | AQ1: 6-11 Asiste | AR1: 6-11 No asiste | AS1: 12 -14 Asiste | AT1: 12-14 No asiste | AU1: 15 - 24 Asiste | AV1: 15 - 24 No asiste
A2: 1 | B2: Acajete | C2: 32 | D2: 32 Tepeaca | E2: Hombre | F2: 35139 | G2: 32597 | H2: 4972 | I2: 90 | J2: 3081 | K2: 410 | L2: 546 | M2: 845 | N2: 25352 | O2: 20290 | P2: 19822 | Q2: 468 | R2: 25261 | S2: 3595 | T2: 293 | U2: 97 | V2: 17 | W2: 21069 | X2: 86 | Y2: 272 | Z2: 37 | AA2: 31 | AB2: 23121 | AC2: 1462 | AD2: 15879 | AE2: 3876 | AF2: 1878 | AG2: 26 | AH2: 1511 | AI2: 9800 | AJ2: 9574 | AK2: 10563 | AL2: 9757 | AM2: 2758 | AN2: 2254 | AO2: N/A | AP2: N/A | AQ2: N/A | AR2: N/A | AS2: N/A | AT2: N/A | AU2: N/A | AV2: N/A
A3: 2 | B3: Acateno | C3: 6 | D3: 6 Teziutlán | E3: Hombre | F3: 4586 | G3: 4332 | H3: 636 | I3: 9 | J3: 325 | K3: 32 | L3: 157 | M3: 113 | N3: 3636 | O3: 2987 | P3: 2962 | Q3: 25 | R3: 3287 | S3: 570 | T3: 48 | U3: 67 | V3: 10 | W3: 2591 | X3: 2 | Y3: 5 | Z3: 4 | AA3: 1 | AB3: 3384 | AC3: 339 | AD3: 2235 | AE3: 658 | AF3: 151 | AG3: 1 | AH3: 333 | AI3: 1059 | AJ3: 1042 | AK3: 1613 | AL3: 1504 | AM3: 712 | AN3: 504 | AO3: N/A | AP3: N/A | AQ3: N/A | AR3: N/A | AS3: N/A | AT3: N/A | AU3: N/A | AV3: N/A
A4: 3 | B4: Acatlán | C4: 17 | D4: 17 Acatlán | E4: Hombre | F4: 17836 | G4: 16743 | H4: 3471 | I4: 248 | J4: 1708 | K4: 289 | L4: 464 | M4: 762 | N4: 13442 | O4: 9918 | P4: 9707 | Q4: 211 | R4: 12943 | S4: 778 | T4: 1632 | U4: 490 | V4: 37 | W4: 9913 | X4: 112 | Y4: 41 | Z4: 11 | AA4: 12 | AB4: 12450 | AC4: 883 | AD4: 6437 | AE4: 3171 | AF4: 1937 | AG4: 22 | AH4: 906 | AI4: 4357 | AJ4: 4277 | AK4: 5442 | AL4: 5187 | AM4: 2651 | AN4: 2056 | AO4: N/A | AP4: N/A | AQ4: N/A | AR4: N/A | AS4: N/A | AT4: N/A | AU4: N/A | AV4: N/A
A5: 4 | B5: Acatzingo | C5: 10 | D5: 10 Acatzingo | E5: Hombre | F5: 30923 | G5: 28796 | H5: 3620 | I5: 89 | J5: 2280 | K5: 234 | L5: 428 | M5: 589 | N5: 22473 | O5: 18749 | P5: 18391 | Q5: 358 | R5: 17368 | S5: 1250 | T5: 273 | U5: 94 | V5: 19 | W5: 15210 | X5: 196 | Y5: 121 | Z5: 266 | AA5: 19 | AB5: 20466 | AC5: 1006 | AD5: 14523 | AE5: 3136 | AF5: 1787 | AG5: 14 | AH5: 1196 | AI5: 8888 | AJ5: 8683 | AK5: 9456 | AL5: 8858 | AM5: 2122 | AN5: 1719 | AO5: N/A | AP5: N/A | AQ5: N/A | AR5: N/A | AS5: N/A | AT5: N/A | AU5: N/A | AV5: N/A
A6: 5 | B6: Acteopan | C6: 19 | D6: 19 Atlixco | E6: Hombre | F6: 1446 | G6: 1367 | H6: 239 | I6: 0 | J6: 101 | K6: 8 | L6: 31 | M6: 99 | N6: 1173 | O6: 932 | P6: 931 | Q6: 1 | R6: 1310 | S6: 11 | T6: 4 | U6: 0 | V6: 0 | W6: 1284 | X6: 1 | Y6: 9 | Z6: 2 | AA6: 0 | AB6: 1097 | AC6: 60 | AD6: 903 | AE6: 112 | AF6: 22 | AG6: 0 | AH6: 107 | AI6: 384 | AJ6: 381 | AK6: 476 | AL6: 430 | AM6: 237 | AN6: 179 | AO6: N/A | AP6: N/A | AQ6: N/A | AR6: N/A | AS6: N/A | AT6: N/A | AU6: N/A | AV6: N/A
A7: 6 | B7: Ahuacatlán | C7: 3 | D7: 3 Zacatlán | E7: Hombre | F7: 6852 | G7: 6410 | H7: 999 | I7: 4 | J7: 670 | K7: 25 | L7: 57 | M7: 243 | N7: 5094 | O7: 4083 | P7: 4064 | Q7: 19 | R7: 6382 | S7: 336 | T7: 61 | U7: 18 | V7: 9 | W7: 6017 | X7: 61 | Y7: 21 | Z7: 14 | AA7: 3 | AB7: 4642 | AC7: 1087 | AD7: 2498 | AE7: 803 | AF7: 252 | AG7: 2 | AH7: 1174 | AI7: 1673 | AJ7: 1632 | AK7: 2150 | AL7: 1602 | AM7: 819 | AN7: 231 | AO7: N/A | AP7: N/A | AQ7: N/A | AR7: N/A | AS7: N/A | AT7: N/A | AU7: N/A | AV7: N/A
A8: 7 | B8: Ahuatlán | C8: 15 | D8: 15 Izúcar de Matamoros | E8: Hombre | F8: 1557 | G8: 1469 | H8: 439 | I8: 1 | J8: 158 | K8: 63 | L8: 31 | M8: 186 | N8: 1150 | O8: 701 | P8: 689 | Q8: 12 | R8: 1422 | S8: 13 | T8: 4 | U8: 0 | V8: 0 | W8: 1406 | X8: 2 | Y8: 4 | Z8: 1 | AA8: 1 | AB8: 1055 | AC8: 140 | AD8: 713 | AE8: 189 | AF8: 13 | AG8: 0 | AH8: 155 | AI8: 304 | AJ8: 300 | AK8: 438 | AL8: 400 | AM8: 313 | AN8: 200 | AO8: N/A | AP8: N/A | AQ8: N/A | AR8: N/A | AS8: N/A | AT8: N/A | AU8: N/A | AV8: N/A
A9: 8 | B9: Ahuazotepec | C9: 2 | D9: 2 Huauchinango | E9: Hombre | F9: 5549 | G9: 5213 | H9: 1109 | I9: 57 | J9: 634 | K9: 62 | L9: 148 | M9: 208 | N9: 4165 | O9: 3030 | P9: 2923 | Q9: 107 | R9: 3558 | S9: 722 | T9: 78 | U9: 38 | V9: 20 | W9: 2645 | X9: 16 | Y9: 71 | Z9: 3 | AA9: 0 | AB9: 3818 | AC9: 197 | AD9: 2332 | AE9: 955 | AF9: 331 | AG9: 3 | AH9: 220 | AI9: 1328 | AJ9: 1318 | AK9: 1911 | AL9: 1817 | AM9: 579 | AN9: 460 | AO9: N/A | AP9: N/A | AQ9: N/A | AR9: N/A | AS9: N/A | AT9: N/A | AU9: N/A | AV9: N/A
A10: 9 | B10: Ahuehuetitla | C10: 17 | D10: 17 Acatlán | E10: Hombre | F10: 1053 | G10: 975 | H10: 295 | I10: 6 | J10: 92 | K10: 6 | L10: 59 | M10: 132 | N10: 784 | O10: 485 | P10: 473 | Q10: 12 | R10: 843 | S10: 17 | T10: 50 | U10: 7 | V10: 0 | W10: 766 | X10: 7 | Y10: 1 | Z10: 1 | AA10: 1 | AB10: 737 | AC10: 66 | AD10: 451 | AE10: 161 | AF10: 58 | AG10: 1 | AH10: 66 | AI10: 236 | AJ10: 234 | AK10: 297 | AL10: 286 | AM10: 204 | AN10: 150 | AO10: N/A | AP10: N/A | AQ10: N/A | AR10: N/A | AS10: N/A | AT10: N/A | AU10: N/A | AV10: N/A
A11: 10 | B11: Ajalpan | C11: 14 | D11: 14 Sierra Negra | E11: Hombre | F11: 36191 | G11: 33742 | H11: 3618 | I11: 123 | J11: 2159 | K11: 286 | L11: 447 | M11: 603 | N11: 26281 | O11: 22589 | P11: 22418 | Q11: 171 | R11: 26267 | S11: 2702 | T11: 268 | U11: 219 | V11: 20 | W11: 22914 | X11: 189 | Y11: 42 | Z11: 100 | AA11: 13 | AB11: 23787 | AC11: 2836 | AD11: 15457 | AE11: 3970 | AF11: 1511 | AG11: 13 | AH11: 3060 | AI11: 10576 | AJ11: 10196 | AK11: 10815 | AL11: 9231 | AM11: 2396 | AN11: 1284 | AO11: N/A | AP11: N/A | AQ11: N/A | AR11: N/A | AS11: N/A | AT11: N/A | AU11: N/A | AV11: N/A
A12: 11 | B12: Albino Zertuche | C12: 16 | D12: 16 Chiautla | E12: Hombre | F12: 886 | G12: 828 | H12: 329 | I12: 1 | J12: 90 | K12: 44 | L12: 37 | M12: 157 | N12: 662 | O12: 326 | P12: 311 | Q12: 15 | R12: 658 | S12: 3 | T12: 4 | U12: 1 | V12: 0 | W12: 651 | X12: 0 | Y12: 0 | Z12: 1 | AA12: 2 | AB12: 604 | AC12: 42 | AD12: 447 | AE12: 100 | AF12: 14 | AG12: 1 | AH12: 44 | AI12: 187 | AJ12: 185 | AK12: 260 | AL12: 244 | AM12: 157 | AN12: 130 | AO12: N/A | AP12: N/A | AQ12: N/A | AR12: N/A | AS12: N/A | AT12: N/A | AU12: N/A | AV12: N/A
A13: 12 | B13: Aljojuca | C13: 11 | D13: 11 Ciudad Serdán | E13: Hombre | F13: 3100 | G13: 2954 | H13: 546 | I13: 4 | J13: 279 | K13: 22 | L13: 101 | M13: 140 | N13: 2427 | O13: 1879 | P13: 1845 | Q13: 34 | R13: 2394 | S13: 220 | T13: 31 | U13: 22 | V13: 2 | W13: 2155 | X13: 35 | Y13: 6 | Z13: 0 | AA13: 0 | AB13: 2260 | AC13: 165 | AD13: 1498 | AE13: 410 | AF13: 187 | AG13: 0 | AH13: 157 | AI13: 724 | AJ13: 712 | AK13: 1040 | AL13: 976 | AM13: 496 | AN13: 415 | AO13: N/A | AP13: N/A | AQ13: N/A | AR13: N/A | AS13: N/A | AT13: N/A | AU13: N/A | AV13: N/A
A14: 13 | B14: Altepexi | C14: 13 | D14: 13 Tehuacán | E14: Hombre | F14: 10889 | G14: 10273 | H14: 1246 | I14: 72 | J14: 670 | K14: 73 | L14: 144 | M14: 287 | N14: 8254 | O14: 6980 | P14: 6901 | Q14: 79 | R14: 6429 | S14: 1218 | T14: 189 | U14: 57 | V14: 8 | W14: 4913 | X14: 33 | Y14: 33 | Z14: 30 | AA14: 2 | AB14: 7636 | AC14: 445 | AD14: 5451 | AE14: 1176 | AF14: 561 | AG14: 3 | AH14: 593 | AI14: 2854 | AJ14: 2795 | AK14: 3963 | AL14: 3641 | AM14: 819 | AN14: 607 | AO14: N/A | AP14: N/A | AQ14: N/A | AR14: N/A | AS14: N/A | AT14: N/A | AU14: N/A | AV14: N/A
A15: 14 | B15: Amixtlán | C15: 3 | D15: 3 Zacatlán | E15: Hombre | F15: 2270 | G15: 2125 | H15: 591 | I15: 5 | J15: 305 | K15: 10 | L15: 62 | M15: 209 | N15: 1728 | O15: 1129 | P15: 1099 | Q15: 30 | R15: 1955 | S15: 110 | T15: 20 | U15: 37 | V15: 2 | W15: 1788 | X15: 8 | Y15: 4 | Z15: 4 | AA15: 0 | AB15: 1605 | AC15: 371 | AD15: 772 | AE15: 379 | AF15: 82 | AG15: 1 | AH15: 404 | AI15: 563 | AJ15: 546 | AK15: 675 | AL15: 501 | AM15: 367 | AN15: 153 | AO15: N/A | AP15: N/A | AQ15: N/A | AR15: N/A | AS15: N/A | AT15: N/A | AU15: N/A | AV15: N/A
A16: 15 | B16: Amozoc | C16: 21-31 | D16: 21-31 Área Metropolitana de la Ciudad de Puebla | E16: Hombre | F16: 61479 | G16: 58060 | H16: 10234 | I16: 1008 | J16: 7068 | K16: 420 | L16: 482 | M16: 1256 | N16: 47173 | O16: 36867 | P16: 35934 | Q16: 933 | R16: 38940 | S16: 20522 | T16: 1332 | U16: 775 | V16: 407 | W16: 15349 | X16: 217 | Y16: 371 | Z16: 249 | AA16: 279 | AB16: 43365 | AC16: 1723 | AD16: 23211 | AE16: 11685 | AF16: 6706 | AG16: 40 | AH16: 1387 | AI16: 17104 | AJ16: 16867 | AK16: 21959 | AL16: 21288 | AM16: 4302 | AN16: 3785 | AO16: N/A | AP16: N/A | AQ16: N/A | AR16: N/A | AS16: N/A | AT16: N/A | AU16: N/A | AV16: N/A
A17: 16 | B17: Aquixtla | C17: 7 | D17: 7 Chignahuapan | E17: Hombre | F17: 4508 | G17: 4213 | H17: 703 | I17: 8 | J17: 307 | K17: 84 | L17: 102 | M17: 202 | N17: 3436 | O17: 2725 | P17: 2685 | Q17: 40 | R17: 3436 | S17: 165 | T17: 38 | U17: 33 | V17: 8 | W17: 3121 | X17: 77 | Y17: 8 | Z17: 2 | AA17: 0 | AB17: 3165 | AC17: 273 | AD17: 2265 | AE17: 477 | AF17: 148 | AG17: 2 | AH17: 346 | AI17: 1112 | AJ17: 1087 | AK17: 1471 | AL17: 1312 | AM17: 582 | AN17: 418 | AO17: N/A | AP17: N/A | AQ17: N/A | AR17: N/A | AS17: N/A | AT17: N/A | AU17: N/A | AV17: N/A
A18: 17 | B18: Atempan | C18: 6 | D18: 6 Teziutlán | E18: Hombre | F18: 14279 | G18: 13286 | H18: 2007 | I18: 50 | J18: 1370 | K18: 99 | L18: 173 | M18: 315 | N18: 10278 | O18: 8243 | P18: 8034 | Q18: 209 | R18: 9918 | S18: 918 | T18: 527 | U18: 96 | V18: 35 | W18: 8148 | X18: 161 | Y18: 117 | Z18: 6 | AA18: 4 | AB18: 9314 | AC18: 649 | AD18: 5877 | AE18: 1849 | AF18: 928 | AG18: 11 | AH18: 776 | AI18: 4098 | AJ18: 4032 | AK18: 4250 | AL18: 3862 | AM18: 966 | AN18: 635 | AO18: N/A | AP18: N/A | AQ18: N/A | AR18: N/A | AS18: N/A | AT18: N/A | AU18: N/A | AV18: N/A
A19: 18 | B19: Atexcal | C19: 18 | D19: 18 Tepexi de Rodríguez | E19: Hombre | F19: 1841 | G19: 1716 | H19: 526 | I19: 8 | J19: 211 | K19: 43 | L19: 50 | M19: 214 | N19: 1381 | O19: 852 | P19: 828 | Q19: 24 | R19: 1353 | S19: 271 | T19: 46 | U19: 6 | V19: 1 | W19: 1078 | X19: 13 | Y19: 5 | Z19: 6 | AA19: 10 | AB19: 1244 | AC19: 70 | AD19: 874 | AE19: 231 | AF19: 68 | AG19: 1 | AH19: 66 | AI19: 405 | AJ19: 401 | AK19: 550 | AL19: 526 | AM19: 289 | AN19: 250 | AO19: N/A | AP19: N/A | AQ19: N/A | AR19: N/A | AS19: N/A | AT19: N/A | AU19: N/A | AV19: N/A
A20: 19 | B20: Atlixco | C20: 19 | D20: 19 Atlixco | E20: Hombre | F20: 66862 | G20: 63106 | H20: 11161 | I20: 1907 | J20: 6296 | K20: 483 | L20: 807 | M20: 1668 | N20: 51833 | O20: 40512 | P20: 40007 | Q20: 505 | R20: 42663 | S20: 14836 | T20: 2963 | U20: 781 | V20: 691 | W20: 22089 | X20: 687 | Y20: 700 | Z20: 345 | AA20: 58 | AB20: 48158 | AC20: 1536 | AD20: 26133 | AE20: 10207 | AF20: 10212 | AG20: 70 | AH20: 1625 | AI20: 17735 | AJ20: 17488 | AK20: 22009 | AL20: 21303 | AM20: 8414 | AN20: 7676 | AO20: N/A | AP20: N/A | AQ20: N/A | AR20: N/A | AS20: N/A | AT20: N/A | AU20: N/A | AV20: N/A
A21: 20 | B21: Atoyatempan | C21: 32 | D21: 32 Tepeaca | E21: Hombre | F21: 3760 | G21: 3536 | H21: 660 | I21: 4 | J21: 358 | K21: 45 | L21: 60 | M21: 193 | N21: 2768 | O21: 2097 | P21: 2028 | Q21: 69 | R21: 2839 | S21: 54 | T21: 46 | U21: 11 | V21: 1 | W21: 2379 | X21: 9 | Y21: 101 | Z21: 259 | AA21: 0 | AB21: 2506 | AC21: 55 | AD21: 1767 | AE21: 460 | AF21: 213 | AG21: 11 | AH21: 92 | AI21: 1008 | AJ21: 990 | AK21: 1181 | AL21: 1136 | AM21: 317 | AN21: 277 | AO21: N/A | AP21: N/A | AQ21: N/A | AR21: N/A | AS21: N/A | AT21: N/A | AU21: N/A | AV21: N/A
A22: 21 | B22: Atzala | C22: 15 | D22: 15 Izúcar de Matamoros | E22: Hombre | F22: 729 | G22: 694 | H22: 146 | I22: 13 | J22: 83 | K22: 5 | L22: 12 | M22: 33 | N22: 554 | O22: 407 | P22: 397 | Q22: 10 | R22: 596 | S22: 197 | T22: 15 | U22: 8 | V22: 1 | W22: 393 | X22: 0 | Y22: 0 | Z22: 0 | AA22: 1 | AB22: 509 | AC22: 24 | AD22: 311 | AE22: 128 | AF22: 46 | AG22: 0 | AH22: 33 | AI22: 190 | AJ22: 187 | AK22: 241 | AL22: 225 | AM22: 78 | AN22: 64 | AO22: N/A | AP22: N/A | AQ22: N/A | AR22: N/A | AS22: N/A | AT22: N/A | AU22: N/A | AV22: N/A
A23: 22 | B23: Atzitzihuacán | C23: 19 | D23: 19 Atlixco | E23: Hombre | F23: 6025 | G23: 5660 | H23: 943 | I23: 24 | J23: 339 | K23: 38 | L23: 151 | M23: 391 | N23: 4536 | O23: 3583 | P23: 3556 | Q23: 27 | R23: 4193 | S23: 183 | T23: 113 | U23: 1 | V23: 7 | W23: 3883 | X23: 8 | Y23: 5 | Z23: 6 | AA23: 0 | AB23: 4214 | AC23: 208 | AD23: 3324 | AE23: 556 | AF23: 123 | AG23: 3 | AH23: 302 | AI23: 1538 | AJ23: 1501 | AK23: 1804 | AL23: 1676 | AM23: 872 | AN23: 732 | AO23: N/A | AP23: N/A | AQ23: N/A | AR23: N/A | AS23: N/A | AT23: N/A | AU23: N/A | AV23: N/A
A24: 23 | B24: Atzitzintla | C24: 11 | D24: 11 Ciudad Serdán | E24: Hombre | F24: 4421 | G24: 4121 | H24: 530 | I24: 3 | J24: 257 | K24: 36 | L24: 127 | M24: 107 | N24: 3144 | O24: 2600 | P24: 2564 | Q24: 36 | R24: 3744 | S24: 82 | T24: 27 | U24: 5 | V24: 6 | W24: 3561 | X24: 54 | Y24: 13 | Z24: 11 | AA24: 0 | AB24: 2891 | AC24: 323 | AD24: 2087 | AE24: 409 | AF24: 72 | AG24: 0 | AH24: 380 | AI24: 1159 | AJ24: 1111 | AK24: 1288 | AL24: 1107 | AM24: 444 | AN24: 293 | AO24: N/A | AP24: N/A | AQ24: N/A | AR24: N/A | AS24: N/A | AT24: N/A | AU24: N/A | AV24: N/A
A25: 24 | B25: Axutla | C25: 17 | D25: 17 Acatlán | E25: Hombre | F25: 466 | G25: 439 | H25: 122 | I25: 2 | J25: 40 | K25: 14 | L25: 38 | M25: 28 | N25: 383 | O25: 255 | P25: 252 | Q25: 3 | R25: 312 | S25: 107 | T25: 8 | U25: 8 | V25: 0 | W25: 252 | X25: 0 | Y25: 1 | Z25: 1 | AA25: 2 | AB25: 363 | AC25: 55 | AD25: 231 | AE25: 61 | AF25: 14 | AG25: 2 | AH25: 39 | AI25: 103 | AJ25: 101 | AK25: 136 | AL25: 126 | AM25: 124 | AN25: 95 | AO25: N/A | AP25: N/A | AQ25: N/A | AR25: N/A | AS25: N/A | AT25: N/A | AU25: N/A | AV25: N/A
A26: 25 | B26: Ayotoxco de Guerrero | C26: 6 | D26: 6 Teziutlán | E26: Hombre | F26: 3968 | G26: 3753 | H26: 539 | I26: 9 | J26: 280 | K26: 37 | L26: 85 | M26: 128 | N26: 3046 | O26: 2502 | P26: 2477 | Q26: 25 | R26: 3132 | S26: 92 | T26: 133 | U26: 69 | V26: 17 | W26: 2751 | X26: 66 | Y26: 6 | Z26: 7 | AA26: 2 | AB26: 2808 | AC26: 232 | AD26: 1704 | AE26: 651 | AF26: 220 | AG26: 1 | AH26: 267 | AI26: 890 | AJ26: 875 | AK26: 1383 | AL26: 1263 | AM26: 535 | AN26: 402 | AO26: N/A | AP26: N/A | AQ26: N/A | AR26: N/A | AS26: N/A | AT26: N/A | AU26: N/A | AV26: N/A
A27: 26 | B27: Calpan | C27: 20 | D27: 20 San Martín Texmelucan | E27: Hombre | F27: 7337 | G27: 6946 | H27: 1094 | I27: 13 | J27: 621 | K27: 49 | L27: 171 | M27: 240 | N27: 5720 | O27: 4606 | P27: 4487 | Q27: 119 | R27: 4672 | S27: 372 | T27: 75 | U27: 22 | V27: 7 | W27: 4013 | X27: 37 | Y27: 32 | Z27: 132 | AA27: 2 | AB27: 5275 | AC27: 456 | AD27: 3428 | AE27: 1014 | AF27: 368 | AG27: 9 | AH27: 489 | AI27: 1931 | AJ27: 1890 | AK27: 2320 | AL27: 2149 | AM27: 1024 | AN27: 738 | AO27: N/A | AP27: N/A | AQ27: N/A | AR27: N/A | AS27: N/A | AT27: N/A | AU27: N/A | AV27: N/A
A28: 27 | B28: Caltepec | C28: 13 | D28: 13 Tehuacán | E28: Hombre | F28: 1923 | G28: 1836 | H28: 462 | I28: 9 | J28: 178 | K28: 80 | L28: 88 | M28: 107 | N28: 1495 | O28: 1030 | P28: 1023 | Q28: 7 | R28: 1353 | S28: 94 | T28: 24 | U28: 7 | V28: 2 | W28: 1210 | X28: 16 | Y28: 2 | Z28: 4 | AA28: 0 | AB28: 1374 | AC28: 64 | AD28: 1033 | AE28: 244 | AF28: 32 | AG28: 1 | AH28: 93 | AI28: 360 | AJ28: 357 | AK28: 611 | AL28: 568 | AM28: 403 | AN28: 355 | AO28: N/A | AP28: N/A | AQ28: N/A | AR28: N/A | AS28: N/A | AT28: N/A | AU28: N/A | AV28: N/A
A29: 28 | B29: Camocuautla | C29: 3 | D29: 3 Zacatlán | E29: Hombre | F29: 1367 | G29: 1279 | H29: 242 | I29: 0 | J29: 144 | K29: 9 | L29: 37 | M29: 52 | N29: 1037 | O29: 788 | P29: 782 | Q29: 6 | R29: 1307 | S29: 23 | T29: 6 | U29: 1 | V29: 0 | W29: 1269 | X29: 16 | Y29: 0 | Z29: 0 | AA29: 0 | AB29: 936 | AC29: 145 | AD29: 628 | AE29: 140 | AF29: 23 | AG29: 0 | AH29: 184 | AI29: 355 | AJ29: 349 | AK29: 428 | AL29: 326 | AM29: 153 | AN29: 77 | AO29: N/A | AP29: N/A | AQ29: N/A | AR29: N/A | AS29: N/A | AT29: N/A | AU29: N/A | AV29: N/A
A30: 29 | B30: Caxhuacan | C30: 4 | D30: 4 Huehuetla | E30: Hombre | F30: 1816 | G30: 1721 | H30: 396 | I30: 7 | J30: 204 | K30: 15 | L30: 47 | M30: 123 | N30: 1414 | O30: 1011 | P30: 1003 | Q30: 8 | R30: 1306 | S30: 190 | T30: 96 | U30: 98 | V30: 5 | W30: 920 | X30: 11 | Y30: 2 | Z30: 1 | AA30: 1 | AB30: 1319 | AC30: 184 | AD30: 644 | AE30: 312 | AF30: 177 | AG30: 2 | AH30: 214 | AI30: 416 | AJ30: 409 | AK30: 576 | AL30: 535 | AM30: 327 | AN30: 158 | AO30: N/A | AP30: N/A | AQ30: N/A | AR30: N/A | AS30: N/A | AT30: N/A | AU30: N/A | AV30: N/A
A31: 30 | B31: Coatepec | C31: 3 | D31: 3 Zacatlán | E31: Hombre | F31: 372 | G31: 354 | H31: 74 | I31: 0 | J31: 41 | K31: 4 | L31: 2 | M31: 27 | N31: 281 | O31: 207 | P31: 207 | Q31: 0 | R31: 322 | S31: 8 | T31: 11 | U31: 0 | V31: 0 | W31: 298 | X31: 5 | Y31: 0 | Z31: 3 | AA31: 0 | AB31: 262 | AC31: 25 | AD31: 154 | AE31: 65 | AF31: 18 | AG31: 0 | AH31: 43 | AI31: 95 | AJ31: 94 | AK31: 102 | AL31: 90 | AM31: 65 | AN31: 35 | AO31: N/A | AP31: N/A | AQ31: N/A | AR31: N/A | AS31: N/A | AT31: N/A | AU31: N/A | AV31: N/A
A32: 31 | B32: Coatzingo | C32: 18 | D32: 18 Tepexi de Rodríguez | E32: Hombre | F32: 1363 | G32: 1280 | H32: 341 | I32: 3 | J32: 88 | K32: 18 | L32: 75 | M32: 157 | N32: 1021 | O32: 666 | P32: 663 | Q32: 3 | R32: 1234 | S32: 7 | T32: 3 | U32: 2 | V32: 0 | W32: 1170 | X32: 2 | Y32: 57 | Z32: 2 | AA32: 3 | AB32: 941 | AC32: 162 | AD32: 640 | AE32: 119 | AF32: 20 | AG32: 0 | AH32: 189 | AI32: 279 | AJ32: 267 | AK32: 433 | AL32: 368 | AM32: 229 | AN32: 117 | AO32: N/A | AP32: N/A | AQ32: N/A | AR32: N/A | AS32: N/A | AT32: N/A | AU32: N/A | AV32: N/A
A33: 32 | B33: Cohetzala | C33: 16 | D33: 16 Chiautla | E33: Hombre | F33: 719 | G33: 676 | H33: 236 | I33: 0 | J33: 69 | K33: 45 | L33: 30 | M33: 92 | N33: 571 | O33: 333 | P33: 330 | Q33: 3 | R33: 664 | S33: 14 | T33: 10 | U33: 2 | V33: 0 | W33: 636 | X33: 2 | Y33: 2 | Z33: 1 | AA33: 5 | AB33: 531 | AC33: 71 | AD33: 330 | AE33: 118 | AF33: 12 | AG33: 0 | AH33: 69 | AI33: 147 | AJ33: 144 | AK33: 245 | AL33: 226 | AM33: 139 | AN33: 92 | AO33: N/A | AP33: N/A | AQ33: N/A | AR33: N/A | AS33: N/A | AT33: N/A | AU33: N/A | AV33: N/A
A34: 33 | B34: Cohuecan | C34: 19 | D34: 19 Atlixco | E34: Hombre | F34: 2549 | G34: 2391 | H34: 438 | I34: 0 | J34: 191 | K34: 13 | L34: 89 | M34: 145 | N34: 1933 | O34: 1475 | P34: 1454 | Q34: 21 | R34: 2038 | S34: 50 | T34: 38 | U34: 2 | V34: 1 | W34: 1947 | X34: 2 | Y34: 0 | Z34: 6 | AA34: 0 | AB34: 1804 | AC34: 97 | AD34: 1322 | AE34: 323 | AF34: 61 | AG34: 1 | AH34: 72 | AI34: 598 | AJ34: 585 | AK34: 873 | AL34: 844 | AM34: 333 | AN34: 302 | AO34: N/A | AP34: N/A | AQ34: N/A | AR34: N/A | AS34: N/A | AT34: N/A | AU34: N/A | AV34: N/A
A35: 34 | B35: Coronango | C35: 21-31 | D35: 21-31 Área Metropolitana de la Ciudad de Puebla | E35: Hombre | F35: 22984 | G35: 21550 | H35: 3410 | I35: 169 | J35: 2362 | K35: 177 | L35: 202 | M35: 500 | N35: 17613 | O35: 14181 | P35: 13986 | Q35: 195 | R35: 13424 | S35: 5472 | T35: 443 | U35: 140 | V35: 44 | W35: 7023 | X35: 44 | Y35: 392 | Z35: 70 | AA35: 73 | AB35: 16415 | AC35: 415 | AD35: 8216 | AE35: 4086 | AF35: 3688 | AG35: 10 | AH35: 381 | AI35: 6255 | AJ35: 6202 | AK35: 8369 | AL35: 8189 | AM35: 1791 | AN35: 1634 | AO35: N/A | AP35: N/A | AQ35: N/A | AR35: N/A | AS35: N/A | AT35: N/A | AU35: N/A | AV35: N/A
A36: 35 | B36: Coxcatlán | C36: 13 | D36: 13 Tehuacán | E36: Hombre | F36: 9775 | G36: 9248 | H36: 1948 | I36: 300 | J36: 974 | K36: 89 | L36: 162 | M36: 423 | N36: 7579 | O36: 5615 | P36: 5333 | Q36: 282 | R36: 8076 | S36: 1736 | T36: 515 | U36: 66 | V36: 32 | W36: 5671 | X36: 50 | Y36: 21 | Z36: 42 | AA36: 2 | AB36: 7003 | AC36: 462 | AD36: 4071 | AE36: 1574 | AF36: 889 | AG36: 7 | AH36: 590 | AI36: 2555 | AJ36: 2501 | AK36: 3283 | AL36: 3043 | AM36: 1165 | AN36: 862 | AO36: N/A | AP36: N/A | AQ36: N/A | AR36: N/A | AS36: N/A | AT36: N/A | AU36: N/A | AV36: N/A
A37: 36 | B37: Coyomeapan | C37: 14 | D37: 14 Sierra Negra | E37: Hombre | F37: 6943 | G37: 6454 | H37: 1362 | I37: 5 | J37: 747 | K37: 92 | L37: 144 | M37: 374 | N37: 4871 | O37: 3476 | P37: 3449 | Q37: 27 | R37: 5797 | S37: 55 | T37: 25 | U37: 11 | V37: 10 | W37: 5685 | X37: 23 | Y37: 1 | Z37: 4 | AA37: 6 | AB37: 4299 | AC37: 731 | AD37: 2936 | AE37: 576 | AF37: 54 | AG37: 2 | AH37: 902 | AI37: 1714 | AJ37: 1631 | AK37: 1920 | AL37: 1520 | AM37: 665 | AN37: 245 | AO37: N/A | AP37: N/A | AQ37: N/A | AR37: N/A | AS37: N/A | AT37: N/A | AU37: N/A | AV37: N/A
A38: 37 | B38: Coyotepec | C38: 18 | D38: 18 Tepexi de Rodríguez | E38: Hombre | F38: 1099 | G38: 1051 | H38: 360 | I38: 24 | J38: 131 | K38: 15 | L38: 57 | M38: 133 | N38: 891 | O38: 528 | P38: 526 | Q38: 2 | R38: 869 | S38: 132 | T38: 119 | U38: 50 | V38: 6 | W38: 394 | X38: 190 | Y38: 4 | Z38: 16 | AA38: 1 | AB38: 841 | AC38: 80 | AD38: 486 | AE38: 156 | AF38: 117 | AG38: 2 | AH38: 77 | AI38: 226 | AJ38: 224 | AK38: 330 | AL38: 316 | AM38: 285 | AN38: 222 | AO38: N/A | AP38: N/A | AQ38: N/A | AR38: N/A | AS38: N/A | AT38: N/A | AU38: N/A | AV38: N/A
A39: 38 | B39: Cuapiaxtla de Madero | C39: 10 | D39: 10 Acatzingo | E39: Hombre | F39: 5196 | G39: 4811 | H39: 587 | I39: 8 | J39: 369 | K39: 35 | L39: 82 | M39: 93 | N39: 3703 | O39: 3105 | P39: 3037 | Q39: 68 | R39: 2714 | S39: 146 | T39: 16 | U39: 20 | V39: 1 | W39: 2515 | X39: 15 | Y39: 11 | Z39: 1 | AA39: 2 | AB39: 3381 | AC39: 110 | AD39: 2479 | AE39: 632 | AF39: 160 | AG39: 0 | AH39: 131 | AI39: 1418 | AJ39: 1397 | AK39: 1609 | AL39: 1544 | AM39: 354 | AN39: 309 | AO39: N/A | AP39: N/A | AQ39: N/A | AR39: N/A | AS39: N/A | AT39: N/A | AU39: N/A | AV39: N/A
A40: 39 | B40: Cuautempan | C40: 7 | D40: 7 Chignahuapan | E40: Hombre | F40: 4659 | G40: 4402 | H40: 654 | I40: 16 | J40: 338 | K40: 35 | L40: 96 | M40: 169 | N40: 3523 | O40: 2856 | P40: 2823 | Q40: 33 | R40: 4142 | S40: 93 | T40: 117 | U40: 26 | V40: 9 | W40: 3708 | X40: 226 | Y40: 5 | Z40: 5 | AA40: 0 | AB40: 3226 | AC40: 255 | AD40: 2239 | AE40: 511 | AF40: 219 | AG40: 2 | AH40: 411 | AI40: 1119 | AJ40: 1082 | AK40: 1562 | AL40: 1382 | AM40: 545 | AN40: 351 | AO40: N/A | AP40: N/A | AQ40: N/A | AR40: N/A | AS40: N/A | AT40: N/A | AU40: N/A | AV40: N/A
A41: 40 | B41: Cuautinchán | C41: 32 | D41: 32 Tepeaca | E41: Hombre | F41: 6104 | G41: 5715 | H41: 828 | I41: 17 | J41: 511 | K41: 54 | L41: 128 | M41: 118 | N41: 4467 | O41: 3617 | P41: 3531 | Q41: 86 | R41: 3108 | S41: 563 | T41: 49 | U41: 30 | V41: 22 | W41: 2313 | X41: 13 | Y41: 130 | Z41: 5 | AA41: 6 | AB41: 4089 | AC41: 256 | AD41: 2848 | AE41: 724 | AF41: 259 | AG41: 2 | AH41: 254 | AI41: 1667 | AJ41: 1621 | AK41: 1959 | AL41: 1820 | AM41: 463 | AN41: 392 | AO41: N/A | AP41: N/A | AQ41: N/A | AR41: N/A | AS41: N/A | AT41: N/A | AU41: N/A | AV41: N/A
A42: 41 | B42: Cuautlancingo | C42: 21-31 | D42: 21-31 Área Metropolitana de la Ciudad de Puebla | E42: Hombre | F42: 66950 | G42: 63898 | H42: 12010 | I42: 1972 | J42: 8257 | K42: 359 | L42: 324 | M42: 1098 | N42: 53108 | O42: 41006 | P42: 40068 | Q42: 938 | R42: 49916 | S42: 36953 | T42: 2309 | U42: 792 | V42: 215 | W42: 8393 | X42: 389 | Y42: 1229 | Z42: 339 | AA42: 232 | AB42: 49562 | AC42: 528 | AD42: 18266 | AE42: 14522 | AF42: 16160 | AG42: 86 | AH42: 471 | AI42: 17362 | AJ42: 17254 | AK42: 27653 | AL42: 27387 | AM42: 4547 | AN42: 4355 | AO42: N/A | AP42: N/A | AQ42: N/A | AR42: N/A | AS42: N/A | AT42: N/A | AU42: N/A | AV42: N/A
A43: 42 | B43: Cuayuca de Andrade | C43: 18 | D43: 18 Tepexi de Rodríguez | E43: Hombre | F43: 1629 | G43: 1526 | H43: 675 | I43: 16 | J43: 157 | K43: 156 | L43: 49 | M43: 297 | N43: 1225 | O43: 548 | P43: 540 | Q43: 8 | R43: 1408 | S43: 27 | T43: 31 | U43: 17 | V43: 8 | W43: 1065 | X43: 412 | Y43: 0 | Z43: 2 | AA43: 0 | AB43: 1144 | AC43: 159 | AD43: 693 | AE43: 256 | AF43: 36 | AG43: 0 | AH43: 166 | AI43: 353 | AJ43: 348 | AK43: 480 | AL43: 432 | AM43: 311 | AN43: 198 | AO43: N/A | AP43: N/A | AQ43: N/A | AR43: N/A | AS43: N/A | AT43: N/A | AU43: N/A | AV43: N/A
A44: 43 | B44: Cuetzalan del Progreso | C44: 5 | D44: 5 Zacapoaxtla | E44: Hombre | F44: 24149 | G44: 22803 | H44: 2601 | I44: 79 | J44: 1592 | K44: 85 | L44: 477 | M44: 368 | N44: 18210 | O44: 15550 | P44: 15419 | Q44: 131 | R44: 18629 | S44: 845 | T44: 771 | U44: 188 | V44: 73 | W44: 16049 | X44: 776 | Y44: 56 | Z44: 68 | AA44: 3 | AB44: 16625 | AC44: 1151 | AD44: 10641 | AE44: 3341 | AF44: 1484 | AG44: 8 | AH44: 1713 | AI44: 6045 | AJ44: 5907 | AK44: 7495 | AL44: 6804 | AM44: 3085 | AN44: 2194 | AO44: N/A | AP44: N/A | AQ44: N/A | AR44: N/A | AS44: N/A | AT44: N/A | AU44: N/A | AV44: N/A
A45: 44 | B45: Cuyoaco | C45: 8 | D45: 8 Libres | E45: Hombre | F45: 8226 | G45: 7763 | H45: 1403 | I45: 24 | J45: 890 | K45: 81 | L45: 156 | M45: 252 | N45: 6163 | O45: 4745 | P45: 4663 | Q45: 82 | R45: 6417 | S45: 853 | T45: 77 | U45: 40 | V45: 9 | W45: 5472 | X45: 12 | Y45: 11 | Z45: 5 | AA45: 1 | AB45: 5619 | AC45: 310 | AD45: 3765 | AE45: 1105 | AF45: 438 | AG45: 1 | AH45: 313 | AI45: 2127 | AJ45: 2100 | AK45: 2599 | AL45: 2471 | AM45: 893 | AN45: 734 | AO45: N/A | AP45: N/A | AQ45: N/A | AR45: N/A | AS45: N/A | AT45: N/A | AU45: N/A | AV45: N/A
A46: 45 | B46: Chalchicomula de Sesma | C46: 11 | D46: 11 Ciudad Serdán | E46: Hombre | F46: 22788 | G46: 21410 | H46: 3661 | I46: 167 | J46: 2291 | K46: 155 | L46: 472 | M46: 576 | N46: 17350 | O46: 13633 | P46: 13323 | Q46: 310 | R46: 15829 | S46: 1963 | T46: 755 | U46: 529 | V46: 25 | W46: 12004 | X46: 124 | Y46: 304 | Z46: 295 | AA46: 5 | AB46: 16023 | AC46: 1057 | AD46: 9648 | AE46: 3237 | AF46: 2073 | AG46: 8 | AH46: 1230 | AI46: 5743 | AJ46: 5657 | AK46: 7661 | AL46: 7112 | AM46: 2619 | AN46: 2016 | AO46: N/A | AP46: N/A | AQ46: N/A | AR46: N/A | AS46: N/A | AT46: N/A | AU46: N/A | AV46: N/A
A47: 46 | B47: Chapulco | C47: 13 | D47: 13 Tehuacán | E47: Hombre | F47: 3937 | G47: 3646 | H47: 623 | I47: 32 | J47: 389 | K47: 29 | L47: 76 | M47: 97 | N47: 2869 | O47: 2236 | P47: 2202 | Q47: 34 | R47: 2687 | S47: 704 | T47: 32 | U47: 11 | V47: 1 | W47: 1913 | X47: 1 | Y47: 29 | Z47: 6 | AA47: 6 | AB47: 2596 | AC47: 114 | AD47: 1778 | AE47: 510 | AF47: 191 | AG47: 3 | AH47: 130 | AI47: 1112 | AJ47: 1099 | AK47: 1192 | AL47: 1122 | AM47: 292 | AN47: 242 | AO47: N/A | AP47: N/A | AQ47: N/A | AR47: N/A | AS47: N/A | AT47: N/A | AU47: N/A | AV47: N/A
A48: 47 | B48: Chiautla | C48: 16 | D48: 16 Chiautla | E48: Hombre | F48: 10672 | G48: 10061 | H48: 2145 | I48: 203 | J48: 924 | K48: 273 | L48: 343 | M48: 402 | N48: 8224 | O48: 6035 | P48: 5944 | Q48: 91 | R48: 7901 | S48: 1061 | T48: 701 | U48: 366 | V48: 21 | W48: 5683 | X48: 32 | Y48: 37 | Z48: 66 | AA48: 7 | AB48: 7619 | AC48: 742 | AD48: 4180 | AE48: 1617 | AF48: 1068 | AG48: 12 | AH48: 685 | AI48: 2610 | AJ48: 2559 | AK48: 3338 | AL48: 3151 | AM48: 1671 | AN48: 1213 | AO48: N/A | AP48: N/A | AQ48: N/A | AR48: N/A | AS48: N/A | AT48: N/A | AU48: N/A | AV48: N/A
A49: 48 | B49: Chiautzingo | C49: 20 | D49: 20 San Martín Texmelucan | E49: Hombre | F49: 10496 | G49: 9932 | H49: 1335 | I49: 31 | J49: 831 | K49: 94 | L49: 208 | M49: 171 | N49: 8057 | O49: 6709 | P49: 6645 | Q49: 64 | R49: 6174 | S49: 1495 | T49: 164 | U49: 31 | V49: 36 | W49: 4314 | X49: 15 | Y49: 29 | Z49: 112 | AA49: 3 | AB49: 7487 | AC49: 144 | AD49: 4947 | AE49: 1811 | AF49: 579 | AG49: 6 | AH49: 210 | AI49: 2850 | AJ49: 2818 | AK49: 3500 | AL49: 3400 | AM49: 1137 | AN49: 1053 | AO49: N/A | AP49: N/A | AQ49: N/A | AR49: N/A | AS49: N/A | AT49: N/A | AU49: N/A | AV49: N/A
A50: 49 | B50: Chiconcuautla | C50: 2 | D50: 2 Huauchinango | E50: Hombre | F50: 8464 | G50: 7858 | H50: 784 | I50: 5 | J50: 428 | K50: 40 | L50: 87 | M50: 224 | N50: 6034 | O50: 5246 | P50: 5207 | Q50: 39 | R50: 7282 | S50: 336 | T50: 37 | U50: 12 | V50: 14 | W50: 6551 | X50: 334 | Y50: 8 | Z50: 44 | AA50: 3 | AB50: 5386 | AC50: 1129 | AD50: 3402 | AE50: 777 | AF50: 74 | AG50: 4 | AH50: 1177 | AI50: 2434 | AJ50: 2298 | AK50: 2336 | AL50: 1636 | AM50: 616 | AN50: 273 | AO50: N/A | AP50: N/A | AQ50: N/A | AR50: N/A | AS50: N/A | AT50: N/A | AU50: N/A | AV50: N/A
A51: 50 | B51: Chichiquila | C51: 9 | D51: 9 Quimixtlán | E51: Hombre | F51: 13303 | G51: 12352 | H51: 1287 | I51: 6 | J51: 708 | K51: 151 | L51: 165 | M51: 257 | N51: 9591 | O51: 8272 | P51: 8162 | Q51: 110 | R51: 10449 | S51: 685 | T51: 49 | U51: 10 | V51: 5 | W51: 9730 | X51: 49 | Y51: 15 | Z51: 4 | AA51: 1 | AB51: 8572 | AC51: 1146 | AD51: 6368 | AE51: 910 | AF51: 145 | AG51: 3 | AH51: 1264 | AI51: 3871 | AJ51: 3687 | AK51: 3710 | AL51: 3066 | AM51: 991 | AN51: 553 | AO51: N/A | AP51: N/A | AQ51: N/A | AR51: N/A | AS51: N/A | AT51: N/A | AU51: N/A | AV51: N/A
A52: 51 | B52: Chietla | C52: 15 | D52: 15 Izúcar de Matamoros | E52: Hombre | F52: 17989 | G52: 17050 | H52: 3407 | I52: 912 | J52: 1418 | K52: 164 | L52: 443 | M52: 470 | N52: 13898 | O52: 10396 | P52: 10259 | Q52: 137 | R52: 14771 | S52: 5853 | T52: 591 | U52: 95 | V52: 21 | W52: 8226 | X52: 36 | Y52: 113 | Z52: 29 | AA52: 6 | AB52: 12923 | AC52: 1075 | AD52: 7992 | AE52: 2677 | AF52: 1171 | AG52: 8 | AH52: 1099 | AI52: 4248 | AJ52: 4163 | AK52: 5993 | AL52: 5557 | AM52: 2682 | AN52: 2096 | AO52: N/A | AP52: N/A | AQ52: N/A | AR52: N/A | AS52: N/A | AT52: N/A | AU52: N/A | AV52: N/A
A53: 52 | B53: Chigmecatitlán | C53: 18 | D53: 18 Tepexi de Rodríguez | E53: Hombre | F53: 536 | G53: 522 | H53: 175 | I53: 0 | J53: 56 | K53: 6 | L53: 11 | M53: 102 | N53: 461 | O53: 285 | P53: 269 | Q53: 16 | R53: 406 | S53: 1 | T53: 5 | U53: 0 | V53: 2 | W53: 379 | X53: 19 | Y53: 0 | Z53: 0 | AA53: 1 | AB53: 433 | AC53: 73 | AD53: 260 | AE53: 86 | AF53: 14 | AG53: 0 | AH53: 66 | AI53: 116 | AJ53: 111 | AK53: 202 | AL53: 183 | AM53: 115 | AN53: 73 | AO53: N/A | AP53: N/A | AQ53: N/A | AR53: N/A | AS53: N/A | AT53: N/A | AU53: N/A | AV53: N/A
A54: 53 | B54: Chignahuapan | C54: 7 | D54: 7 Chignahuapan | E54: Hombre | F54: 32162 | G54: 30189 | H54: 4251 | I54: 219 | J54: 2525 | K54: 185 | L54: 535 | M54: 787 | N54: 24182 | O54: 19849 | P54: 19639 | Q54: 210 | R54: 19715 | S54: 2821 | T54: 564 | U54: 464 | V54: 107 | W54: 15210 | X54: 504 | Y54: 207 | Z54: 55 | AA54: 18 | AB54: 22175 | AC54: 1583 | AD54: 14492 | AE54: 4010 | AF54: 2085 | AG54: 5 | AH54: 1823 | AI54: 7957 | AJ54: 7854 | AK54: 10939 | AL54: 10144 | AM54: 3279 | AN54: 2348 | AO54: N/A | AP54: N/A | AQ54: N/A | AR54: N/A | AS54: N/A | AT54: N/A | AU54: N/A | AV54: N/A
A55: 54 | B55: Chignautla | C55: 6 | D55: 6 Teziutlán | E55: Hombre | F55: 16932 | G55: 15776 | H55: 2230 | I55: 72 | J55: 1616 | K55: 125 | L55: 196 | M55: 221 | N55: 12393 | O55: 10114 | P55: 10031 | Q55: 83 | R55: 10358 | S55: 2306 | T55: 265 | U55: 55 | V55: 28 | W55: 7396 | X55: 100 | Y55: 297 | Z55: 27 | AA55: 2 | AB55: 11253 | AC55: 871 | AD55: 7324 | AE55: 2133 | AF55: 919 | AG55: 6 | AH55: 819 | AI55: 4942 | AJ55: 4860 | AK55: 5190 | AL55: 4748 | AM55: 1121 | AN55: 821 | AO55: N/A | AP55: N/A | AQ55: N/A | AR55: N/A | AS55: N/A | AT55: N/A | AU55: N/A | AV55: N/A
A56: 55 | B56: Chila | C56: 17 | D56: 17 Acatlán | E56: Hombre | F56: 2418 | G56: 2287 | H56: 675 | I56: 23 | J56: 250 | K56: 48 | L56: 141 | M56: 213 | N56: 1839 | O56: 1147 | P56: 1040 | Q56: 107 | R56: 1951 | S56: 21 | T56: 110 | U56: 1 | V56: 4 | W56: 1789 | X56: 5 | Y56: 5 | Z56: 27 | AA56: 1 | AB56: 1703 | AC56: 151 | AD56: 1126 | AE56: 302 | AF56: 124 | AG56: 0 | AH56: 136 | AI56: 572 | AJ56: 561 | AK56: 698 | AL56: 664 | AM56: 433 | AN56: 342 | AO56: N/A | AP56: N/A | AQ56: N/A | AR56: N/A | AS56: N/A | AT56: N/A | AU56: N/A | AV56: N/A
A57: 56 | B57: Chila de la Sal | C57: 16 | D57: 16 Chiautla | E57: Hombre | F57: 635 | G57: 603 | H57: 153 | I57: 0 | J57: 52 | K57: 6 | L57: 62 | M57: 33 | N57: 506 | O57: 346 | P57: 341 | Q57: 5 | R57: 522 | S57: 8 | T57: 2 | U57: 2 | V57: 0 | W57: 510 | X57: 0 | Y57: 0 | Z57: 0 | AA57: 0 | AB57: 475 | AC57: 62 | AD57: 331 | AE57: 68 | AF57: 14 | AG57: 0 | AH57: 49 | AI57: 127 | AJ57: 125 | AK57: 184 | AL57: 165 | AM57: 164 | AN57: 136 | AO57: N/A | AP57: N/A | AQ57: N/A | AR57: N/A | AS57: N/A | AT57: N/A | AU57: N/A | AV57: N/A
A58: 57 | B58: Honey | C58: 1 | D58: 1 Xicotepec | E58: Hombre | F58: 3205 | G58: 2978 | H58: 545 | I58: 9 | J58: 266 | K58: 28 | L58: 102 | M58: 140 | N58: 2292 | O58: 1728 | P58: 1645 | Q58: 83 | R58: 2174 | S58: 203 | T58: 16 | U58: 11 | V58: 2 | W58: 1497 | X58: 445 | Y58: 11 | Z58: 10 | AA58: 4 | AB58: 2085 | AC58: 292 | AD58: 1434 | AE58: 293 | AF58: 66 | AG58: 0 | AH58: 354 | AI58: 708 | AJ58: 682 | AK58: 979 | AL58: 837 | AM58: 398 | AN58: 209 | AO58: N/A | AP58: N/A | AQ58: N/A | AR58: N/A | AS58: N/A | AT58: N/A | AU58: N/A | AV58: N/A
A59: 58 | B59: Chilchotla | C59: 9 | D59: 9 Quimixtlán | E59: Hombre | F59: 10407 | G59: 9648 | H59: 1458 | I59: 4 | J59: 780 | K59: 134 | L59: 258 | M59: 282 | N59: 7444 | O59: 5934 | P59: 5763 | Q59: 171 | R59: 8836 | S59: 378 | T59: 46 | U59: 22 | V59: 10 | W59: 8369 | X59: 72 | Y59: 7 | Z59: 12 | AA59: 19 | AB59: 6616 | AC59: 1122 | AD59: 4570 | AE59: 708 | AF59: 213 | AG59: 3 | AH59: 1111 | AI59: 2712 | AJ59: 2613 | AK59: 2961 | AL59: 2463 | AM59: 943 | AN59: 426 | AO59: N/A | AP59: N/A | AQ59: N/A | AR59: N/A | AS59: N/A | AT59: N/A | AU59: N/A | AV59: N/A
A60: 59 | B60: Chinantla | C60: 17 | D60: 17 Acatlán | E60: Hombre | F60: 1382 | G60: 1304 | H60: 366 | I60: 22 | J60: 117 | K60: 31 | L60: 51 | M60: 145 | N60: 1041 | O60: 672 | P60: 660 | Q60: 12 | R60: 1061 | S60: 19 | T60: 46 | U60: 14 | V60: 1 | W60: 964 | X60: 20 | Y60: 6 | Z60: 0 | AA60: 0 | AB60: 972 | AC60: 91 | AD60: 558 | AE60: 214 | AF60: 109 | AG60: 0 | AH60: 84 | AI60: 325 | AJ60: 321 | AK60: 399 | AL60: 382 | AM60: 248 | AN60: 185 | AO60: N/A | AP60: N/A | AQ60: N/A | AR60: N/A | AS60: N/A | AT60: N/A | AU60: N/A | AV60: N/A
A61: 60 | B61: Domingo Arenas | C61: 20 | D61: 20 San Martín Texmelucan | E61: Hombre | F61: 3832 | G61: 3565 | H61: 551 | I61: 8 | J61: 361 | K61: 61 | L61: 66 | M61: 55 | N61: 2807 | O61: 2247 | P61: 2195 | Q61: 52 | R61: 1927 | S61: 249 | T61: 39 | U61: 24 | V61: 1 | W61: 1590 | X61: 22 | Y61: 18 | Z61: 2 | AA61: 1 | AB61: 2590 | AC61: 61 | AD61: 1918 | AE61: 419 | AF61: 190 | AG61: 2 | AH61: 86 | AI61: 1154 | AJ61: 1143 | AK61: 1123 | AL61: 1069 | AM61: 313 | AN61: 291 | AO61: N/A | AP61: N/A | AQ61: N/A | AR61: N/A | AS61: N/A | AT61: N/A | AU61: N/A | AV61: N/A
A62: 61 | B62: Eloxochitlán | C62: 14 | D62: 14 Sierra Negra | E62: Hombre | F62: 7070 | G62: 6592 | H62: 1408 | I62: 3 | J62: 574 | K62: 93 | L62: 137 | M62: 601 | N62: 5216 | O62: 3794 | P62: 3769 | Q62: 25 | R62: 5816 | S62: 41 | T62: 24 | U62: 0 | V62: 2 | W62: 5738 | X62: 10 | Y62: 6 | Z62: 1 | AA62: 1 | AB62: 4707 | AC62: 734 | AD62: 3247 | AE62: 635 | AF62: 87 | AG62: 4 | AH62: 825 | AI62: 2093 | AJ62: 1996 | AK62: 2040 | AL62: 1630 | AM62: 574 | AN62: 252 | AO62: N/A | AP62: N/A | AQ62: N/A | AR62: N/A | AS62: N/A | AT62: N/A | AU62: N/A | AV62: N/A
A63: 62 | B63: Epatlán | C63: 15 | D63: 15 Izúcar de Matamoros | E63: Hombre | F63: 2421 | G63: 2276 | H63: 514 | I63: 16 | J63: 248 | K63: 23 | L63: 78 | M63: 149 | N63: 1814 | O63: 1289 | P63: 1263 | Q63: 26 | R63: 1921 | S63: 324 | T63: 45 | U63: 14 | V63: 2 | W63: 1534 | X63: 6 | Y63: 4 | Z63: 8 | AA63: 0 | AB63: 1676 | AC63: 118 | AD63: 1019 | AE63: 394 | AF63: 143 | AG63: 2 | AH63: 119 | AI63: 586 | AJ63: 576 | AK63: 737 | AL63: 696 | AM63: 353 | AN63: 283 | AO63: N/A | AP63: N/A | AQ63: N/A | AR63: N/A | AS63: N/A | AT63: N/A | AU63: N/A | AV63: N/A
A64: 63 | B64: Esperanza | C64: 11 | D64: 11 Ciudad Serdán | E64: Hombre | F64: 7091 | G64: 6644 | H64: 1237 | I64: 105 | J64: 664 | K64: 82 | L64: 124 | M64: 262 | N64: 5282 | O64: 4038 | P64: 3923 | Q64: 115 | R64: 5419 | S64: 641 | T64: 381 | U64: 21 | V64: 5 | W64: 4261 | X64: 36 | Y64: 127 | Z64: 15 | AA64: 4 | AB64: 4850 | AC64: 281 | AD64: 3076 | AE64: 1068 | AF64: 421 | AG64: 4 | AH64: 318 | AI64: 1779 | AJ64: 1749 | AK64: 2265 | AL64: 2135 | AM64: 806 | AN64: 644 | AO64: N/A | AP64: N/A | AQ64: N/A | AR64: N/A | AS64: N/A | AT64: N/A | AU64: N/A | AV64: N/A
A65: 64 | B65: Francisco Z. Mena | C65: 1 | D65: 1 Xicotepec | E65: Hombre | F65: 8867 | G65: 8430 | H65: 1005 | I65: 21 | J65: 504 | K65: 57 | L65: 239 | M65: 184 | N65: 6965 | O65: 5932 | P65: 5881 | Q65: 51 | R65: 6795 | S65: 215 | T65: 170 | U65: 67 | V65: 43 | W65: 5999 | X65: 272 | Y65: 76 | Z65: 66 | AA65: 3 | AB65: 6511 | AC65: 544 | AD65: 4128 | AE65: 1461 | AF65: 376 | AG65: 2 | AH65: 597 | AI65: 1854 | AJ65: 1828 | AK65: 3203 | AL65: 3011 | AM65: 1454 | AN65: 1073 | AO65: N/A | AP65: N/A | AQ65: N/A | AR65: N/A | AS65: N/A | AT65: N/A | AU65: N/A | AV65: N/A
A66: 65 | B66: General Felipe Ángeles | C66: 10 | D66: 10 Acatzingo | E66: Hombre | F66: 10982 | G66: 10258 | H66: 1418 | I66: 11 | J66: 843 | K66: 115 | L66: 205 | M66: 244 | N66: 8057 | O66: 6627 | P66: 6521 | Q66: 106 | R66: 7163 | S66: 647 | T66: 58 | U66: 10 | V66: 4 | W66: 6456 | X66: 35 | Y66: 18 | Z66: 9 | AA66: 2 | AB66: 7324 | AC66: 626 | AD66: 5230 | AE66: 1117 | AF66: 348 | AG66: 3 | AH66: 591 | AI66: 2975 | AJ66: 2901 | AK66: 3487 | AL66: 3217 | AM66: 862 | AN66: 612 | AO66: N/A | AP66: N/A | AQ66: N/A | AR66: N/A | AS66: N/A | AT66: N/A | AU66: N/A | AV66: N/A
A67: 66 | B67: Guadalupe | C67: 17 | D67: 17 Acatlán | E67: Hombre | F67: 3013 | G67: 2845 | H67: 802 | I67: 10 | J67: 264 | K67: 73 | L67: 116 | M67: 339 | N67: 2305 | O67: 1493 | P67: 1461 | Q67: 32 | R67: 2497 | S67: 33 | T67: 28 | U67: 17 | V67: 4 | W67: 2411 | X67: 3 | Y67: 1 | Z67: 1 | AA67: 1 | AB67: 2146 | AC67: 346 | AD67: 1283 | AE67: 458 | AF67: 59 | AG67: 0 | AH67: 387 | AI67: 759 | AJ67: 741 | AK67: 779 | AL67: 675 | AM67: 608 | AN67: 343 | AO67: N/A | AP67: N/A | AQ67: N/A | AR67: N/A | AS67: N/A | AT67: N/A | AU67: N/A | AV67: N/A
A68: 67 | B68: Guadalupe Victoria | C68: 9 | D68: 9 Quimixtlán | E68: Hombre | F68: 9209 | G68: 8627 | H68: 1121 | I68: 14 | J68: 687 | K68: 35 | L68: 210 | M68: 175 | N68: 6839 | O68: 5686 | P68: 5610 | Q68: 76 | R68: 7015 | S68: 364 | T68: 140 | U68: 145 | V68: 14 | W68: 6333 | X68: 36 | Y68: 9 | Z68: 12 | AA68: 1 | AB68: 6280 | AC68: 599 | AD68: 3917 | AE68: 1302 | AF68: 459 | AG68: 3 | AH68: 636 | AI68: 2491 | AJ68: 2407 | AK68: 2845 | AL68: 2524 | AM68: 944 | AN68: 710 | AO68: N/A | AP68: N/A | AQ68: N/A | AR68: N/A | AS68: N/A | AT68: N/A | AU68: N/A | AV68: N/A
A69: 68 | B69: Hermenegildo Galeana | C69: 3 | D69: 3 Zacatlán | E69: Hombre | F69: 3378 | G69: 3195 | H69: 505 | I69: 0 | J69: 297 | K69: 28 | L69: 100 | M69: 80 | N69: 2556 | O69: 2024 | P69: 2017 | Q69: 7 | R69: 2968 | S69: 78 | T69: 41 | U69: 19 | V69: 10 | W69: 2768 | X69: 44 | Y69: 1 | Z69: 19 | AA69: 1 | AB69: 2308 | AC69: 541 | AD69: 1316 | AE69: 392 | AF69: 59 | AG69: 0 | AH69: 581 | AI69: 628 | AJ69: 604 | AK69: 1120 | AL69: 877 | AM69: 560 | AN69: 246 | AO69: N/A | AP69: N/A | AQ69: N/A | AR69: N/A | AS69: N/A | AT69: N/A | AU69: N/A | AV69: N/A
A70: 69 | B70: Huaquechula | C70: 19 | D70: 19 Atlixco | E70: Hombre | F70: 13800 | G70: 12880 | H70: 1760 | I70: 43 | J70: 732 | K70: 107 | L70: 423 | M70: 455 | N70: 10326 | O70: 8503 | P70: 8409 | Q70: 94 | R70: 9933 | S70: 564 | T70: 241 | U70: 64 | V70: 25 | W70: 9015 | X70: 64 | Y70: 28 | Z70: 8 | AA70: 2 | AB70: 9529 | AC70: 429 | AD70: 7277 | AE70: 1318 | AF70: 502 | AG70: 3 | AH70: 559 | AI70: 3610 | AJ70: 3523 | AK70: 4044 | AL70: 3808 | AM70: 1875 | AN70: 1636 | AO70: N/A | AP70: N/A | AQ70: N/A | AR70: N/A | AS70: N/A | AT70: N/A | AU70: N/A | AV70: N/A
A71: 70 | B71: Huatlatlauca | C71: 18 | D71: 18 Tepexi de Rodríguez | E71: Hombre | F71: 2784 | G71: 2644 | H71: 675 | I71: 1 | J71: 252 | K71: 32 | L71: 75 | M71: 315 | N71: 2188 | O71: 1504 | P71: 1495 | Q71: 9 | R71: 1960 | S71: 141 | T71: 18 | U71: 4 | V71: 3 | W71: 1686 | X71: 93 | Y71: 31 | Z71: 24 | AA71: 2 | AB71: 2000 | AC71: 275 | AD71: 1305 | AE71: 321 | AF71: 97 | AG71: 2 | AH71: 297 | AI71: 629 | AJ71: 613 | AK71: 852 | AL71: 780 | AM71: 519 | AN71: 308 | AO71: N/A | AP71: N/A | AQ71: N/A | AR71: N/A | AS71: N/A | AT71: N/A | AU71: N/A | AV71: N/A
A72: 71 | B72: Huauchinango | C72: 2 | D72: 2 Huauchinango | E72: Hombre | F72: 48818 | G72: 46023 | H72: 8560 | I72: 1200 | J72: 5674 | K72: 260 | L72: 602 | M72: 824 | N72: 36685 | O72: 28025 | P72: 27435 | Q72: 590 | R72: 33090 | S72: 5403 | T72: 3096 | U72: 1037 | V72: 1492 | W72: 21422 | X72: 532 | Y72: 175 | Z72: 147 | AA72: 25 | AB72: 33619 | AC72: 2168 | AD72: 16750 | AE72: 8350 | AF72: 6320 | AG72: 31 | AH72: 2077 | AI72: 12400 | AJ72: 12205 | AK72: 16250 | AL72: 15393 | AM72: 4969 | AN72: 3913 | AO72: N/A | AP72: N/A | AQ72: N/A | AR72: N/A | AS72: N/A | AT72: N/A | AU72: N/A | AV72: N/A
A73: 72 | B73: Huehuetla | C73: 4 | D73: 4 Huehuetla | E73: Hombre | F73: 8373 | G73: 7911 | H73: 1539 | I73: 22 | J73: 827 | K73: 64 | L73: 210 | M73: 416 | N73: 6376 | O73: 4806 | P73: 4730 | Q73: 76 | R73: 7513 | S73: 126 | T73: 139 | U73: 127 | V73: 11 | W73: 6382 | X73: 870 | Y73: 4 | Z73: 95 | AA73: 8 | AB73: 5768 | AC73: 875 | AD73: 3530 | AE73: 1019 | AF73: 342 | AG73: 2 | AH73: 1304 | AI73: 1838 | AJ73: 1771 | AK73: 2527 | AL73: 2059 | AM73: 1403 | AN73: 633 | AO73: N/A | AP73: N/A | AQ73: N/A | AR73: N/A | AS73: N/A | AT73: N/A | AU73: N/A | AV73: N/A
A74: 73 | B74: Huehuetlán el Chico | C74: 16 | D74: 16 Chiautla | E74: Hombre | F74: 4792 | G74: 4504 | H74: 1059 | I74: 20 | J74: 414 | K74: 103 | L74: 106 | M74: 416 | N74: 3642 | O74: 2554 | P74: 2501 | Q74: 53 | R74: 3947 | S74: 211 | T74: 136 | U74: 27 | V74: 3 | W74: 3506 | X74: 40 | Y74: 13 | Z74: 24 | AA74: 1 | AB74: 3375 | AC74: 400 | AD74: 2115 | AE74: 640 | AF74: 215 | AG74: 5 | AH74: 375 | AI74: 1052 | AJ74: 1036 | AK74: 1610 | AL74: 1487 | AM74: 713 | AN74: 474 | AO74: N/A | AP74: N/A | AQ74: N/A | AR74: N/A | AS74: N/A | AT74: N/A | AU74: N/A | AV74: N/A
A75: 74 | B75: Huejotzingo | C75: 20 | D75: 20 San Martín Texmelucan | E75: Hombre | F75: 44075 | G75: 41702 | H75: 6303 | I75: 387 | J75: 4257 | K75: 298 | L75: 508 | M75: 853 | N75: 33765 | O75: 27377 | P75: 26854 | Q75: 523 | R75: 25964 | S75: 11167 | T75: 1566 | U75: 541 | V75: 157 | W75: 12066 | X75: 232 | Y75: 287 | Z75: 174 | AA75: 45 | AB75: 31195 | AC75: 613 | AD75: 16189 | AE75: 8304 | AF75: 6027 | AG75: 62 | AH75: 639 | AI75: 12114 | AJ75: 11979 | AK75: 15574 | AL75: 15245 | AM75: 3507 | AN75: 3272 | AO75: N/A | AP75: N/A | AQ75: N/A | AR75: N/A | AS75: N/A | AT75: N/A | AU75: N/A | AV75: N/A
A76: 75 | B76: Hueyapan | C76: 6 | D76: 6 Teziutlán | E76: Hombre | F76: 6259 | G76: 5828 | H76: 911 | I76: 14 | J76: 653 | K76: 18 | L76: 133 | M76: 93 | N76: 4577 | O76: 3652 | P76: 3606 | Q76: 46 | R76: 4456 | S76: 281 | T76: 189 | U76: 38 | V76: 34 | W76: 3862 | X76: 70 | Y76: 15 | Z76: 2 | AA76: 1 | AB76: 4112 | AC76: 213 | AD76: 2542 | AE76: 991 | AF76: 363 | AG76: 3 | AH76: 278 | AI76: 1674 | AJ76: 1645 | AK76: 1928 | AL76: 1823 | AM76: 510 | AN76: 363 | AO76: N/A | AP76: N/A | AQ76: N/A | AR76: N/A | AS76: N/A | AT76: N/A | AU76: N/A | AV76: N/A
A77: 76 | B77: Hueytamalco | C77: 6 | D77: 6 Teziutlán | E77: Hombre | F77: 13597 | G77: 12866 | H77: 1623 | I77: 37 | J77: 968 | K77: 46 | L77: 357 | M77: 215 | N77: 10575 | O77: 8911 | P77: 8852 | Q77: 59 | R77: 9642 | S77: 911 | T77: 326 | U77: 76 | V77: 31 | W77: 8273 | X77: 40 | Y77: 28 | Z77: 19 | AA77: 2 | AB77: 9791 | AC77: 837 | AD77: 6578 | AE77: 1814 | AF77: 561 | AG77: 1 | AH77: 878 | AI77: 3361 | AJ77: 3299 | AK77: 4675 | AL77: 4297 | AM77: 1755 | AN77: 1316 | AO77: N/A | AP77: N/A | AQ77: N/A | AR77: N/A | AS77: N/A | AT77: N/A | AU77: N/A | AV77: N/A
A78: 77 | B78: Hueytlalpan | C78: 4 | D78: 4 Huehuetla | E78: Hombre | F78: 2924 | G78: 2759 | H78: 570 | I78: 2 | J78: 308 | K78: 25 | L78: 73 | M78: 162 | N78: 2272 | O78: 1698 | P78: 1679 | Q78: 19 | R78: 2540 | S78: 35 | T78: 17 | U78: 6 | V78: 1 | W78: 2481 | X78: 4 | Y78: 2 | Z78: 2 | AA78: 0 | AB78: 2066 | AC78: 396 | AD78: 1285 | AE78: 317 | AF78: 68 | AG78: 0 | AH78: 454 | AI78: 777 | AJ78: 757 | AK78: 916 | AL78: 705 | AM78: 373 | AN78: 150 | AO78: N/A | AP78: N/A | AQ78: N/A | AR78: N/A | AS78: N/A | AT78: N/A | AU78: N/A | AV78: N/A
A79: 78 | B79: Huitzilan de Serdán | C79: 4 | D79: 4 Huehuetla | E79: Hombre | F79: 8092 | G79: 7530 | H79: 1080 | I79: 5 | J79: 595 | K79: 113 | L79: 99 | M79: 268 | N79: 5924 | O79: 4813 | P79: 4784 | Q79: 29 | R79: 7110 | S79: 51 | T79: 57 | U79: 33 | V79: 2 | W79: 6680 | X79: 235 | Y79: 5 | Z79: 63 | AA79: 5 | AB79: 5313 | AC79: 825 | AD79: 3674 | AE79: 654 | AF79: 156 | AG79: 4 | AH79: 933 | AI79: 2348 | AJ79: 2226 | AK79: 2291 | AL79: 1794 | AM79: 674 | AN79: 358 | AO79: N/A | AP79: N/A | AQ79: N/A | AR79: N/A | AS79: N/A | AT79: N/A | AU79: N/A | AV79: N/A
A80: 79 | B80: Huitziltepec | C80: 32 | D80: 32 Tepeaca | E80: Hombre | F80: 2797 | G80: 2646 | H80: 524 | I80: 1 | J80: 244 | K80: 6 | L80: 48 | M80: 225 | N80: 2084 | O80: 1550 | P80: 1537 | Q80: 13 | R80: 1661 | S80: 132 | T80: 62 | U80: 14 | V80: 8 | W80: 1430 | X80: 6 | Y80: 4 | Z80: 7 | AA80: 1 | AB80: 1929 | AC80: 57 | AD80: 1268 | AE80: 434 | AF80: 170 | AG80: 0 | AH80: 44 | AI80: 689 | AJ80: 680 | AK80: 955 | AL80: 937 | AM80: 285 | AN80: 268 | AO80: N/A | AP80: N/A | AQ80: N/A | AR80: N/A | AS80: N/A | AT80: N/A | AU80: N/A | AV80: N/A
A81: 80 | B81: Atlequizayan | C81: 4 | D81: 4 Huehuetla | E81: Hombre | F81: 1228 | G81: 1166 | H81: 257 | I81: 3 | J81: 138 | K81: 8 | L81: 32 | M81: 76 | N81: 950 | O81: 684 | P81: 678 | Q81: 6 | R81: 955 | S81: 19 | T81: 15 | U81: 4 | V81: 7 | W81: 914 | X81: 3 | Y81: 0 | Z81: 0 | AA81: 0 | AB81: 862 | AC81: 88 | AD81: 596 | AE81: 141 | AF81: 37 | AG81: 0 | AH81: 133 | AI81: 272 | AJ81: 265 | AK81: 348 | AL81: 313 | AM81: 242 | AN81: 151 | AO81: N/A | AP81: N/A | AQ81: N/A | AR81: N/A | AS81: N/A | AT81: N/A | AU81: N/A | AV81: N/A
A82: 81 | B82: Ixcamilpa de Guerrero | C82: 16 | D82: 16 Chiautla | E82: Hombre | F82: 1948 | G82: 1830 | H82: 724 | I82: 5 | J82: 184 | K82: 290 | L82: 93 | M82: 152 | N82: 1484 | O82: 741 | P82: 712 | Q82: 29 | R82: 1631 | S82: 36 | T82: 13 | U82: 8 | V82: 4 | W82: 1566 | X82: 1 | Y82: 6 | Z82: 1 | AA82: 0 | AB82: 1364 | AC82: 205 | AD82: 891 | AE82: 244 | AF82: 24 | AG82: 0 | AH82: 217 | AI82: 463 | AJ82: 454 | AK82: 541 | AL82: 476 | AM82: 360 | AN82: 217 | AO82: N/A | AP82: N/A | AQ82: N/A | AR82: N/A | AS82: N/A | AT82: N/A | AU82: N/A | AV82: N/A
A83: 82 | B83: Ixcaquixtla | C83: 18 | D83: 18 Tepexi de Rodríguez | E83: Hombre | F83: 4193 | G83: 3954 | H83: 762 | I83: 42 | J83: 392 | K83: 36 | L83: 89 | M83: 203 | N83: 3193 | O83: 2422 | P83: 2391 | Q83: 31 | R83: 2996 | S83: 199 | T83: 428 | U83: 128 | V83: 12 | W83: 2112 | X83: 7 | Y83: 122 | Z83: 16 | AA83: 1 | AB83: 2941 | AC83: 138 | AD83: 1589 | AE83: 681 | AF83: 531 | AG83: 2 | AH83: 161 | AI83: 1046 | AJ83: 1037 | AK83: 1375 | AL83: 1305 | AM83: 520 | AN83: 437 | AO83: N/A | AP83: N/A | AQ83: N/A | AR83: N/A | AS83: N/A | AT83: N/A | AU83: N/A | AV83: N/A
A84: 83 | B84: Ixtacamaxtitlán | C84: 7 | D84: 7 Chignahuapan | E84: Hombre | F84: 12488 | G84: 11760 | H84: 1765 | I84: 7 | J84: 770 | K84: 323 | L84: 290 | M84: 375 | N84: 9504 | O84: 7712 | P84: 7660 | Q84: 52 | R84: 10374 | S84: 758 | T84: 84 | U84: 43 | V84: 10 | W84: 9386 | X84: 177 | Y84: 8 | Z84: 7 | AA84: 5 | AB84: 8675 | AC84: 816 | AD84: 5810 | AE84: 1650 | AF84: 394 | AG84: 5 | AH84: 944 | AI84: 2842 | AJ84: 2806 | AK84: 3873 | AL84: 3541 | AM84: 1960 | AN84: 1379 | AO84: N/A | AP84: N/A | AQ84: N/A | AR84: N/A | AS84: N/A | AT84: N/A | AU84: N/A | AV84: N/A
A85: 84 | B85: Ixtepec | C85: 4 | D85: 4 Huehuetla | E85: Hombre | F85: 3370 | G85: 3145 | H85: 545 | I85: 6 | J85: 273 | K85: 16 | L85: 71 | M85: 179 | N85: 2550 | O85: 1989 | P85: 1941 | Q85: 48 | R85: 2733 | S85: 87 | T85: 41 | U85: 34 | V85: 3 | W85: 2428 | X85: 153 | Y85: 7 | Z85: 1 | AA85: 0 | AB85: 2338 | AC85: 363 | AD85: 1515 | AE85: 360 | AF85: 99 | AG85: 1 | AH85: 464 | AI85: 836 | AJ85: 821 | AK85: 1044 | AL85: 864 | AM85: 458 | AN85: 188 | AO85: N/A | AP85: N/A | AQ85: N/A | AR85: N/A | AS85: N/A | AT85: N/A | AU85: N/A | AV85: N/A
A86: 85 | B86: Izúcar de Matamoros | C86: 15 | D86: 15 Izúcar de Matamoros | E86: Hombre | F86: 39551 | G86: 37294 | H86: 7059 | I86: 889 | J86: 3777 | K86: 424 | L86: 913 | M86: 1056 | N86: 30061 | O86: 22865 | P86: 22550 | Q86: 315 | R86: 28253 | S86: 7335 | T86: 2264 | U86: 1052 | V86: 69 | W86: 17038 | X86: 477 | Y86: 130 | Z86: 186 | AA86: 35 | AB86: 27880 | AC86: 1702 | AD86: 14721 | AE86: 6534 | AF86: 4878 | AG86: 45 | AH86: 1735 | AI86: 9994 | AJ86: 9861 | AK86: 12938 | AL86: 12291 | AM86: 4948 | AN86: 3943 | AO86: N/A | AP86: N/A | AQ86: N/A | AR86: N/A | AS86: N/A | AT86: N/A | AU86: N/A | AV86: N/A
A87: 86 | B87: Jalpan | C87: 1 | D87: 1 Xicotepec | E87: Hombre | F87: 5717 | G87: 5420 | H87: 971 | I87: 9 | J87: 561 | K87: 45 | L87: 168 | M87: 188 | N87: 4347 | O87: 3354 | P87: 3254 | Q87: 100 | R87: 4439 | S87: 172 | T87: 67 | U87: 44 | V87: 55 | W87: 3976 | X87: 135 | Y87: 23 | Z87: 2 | AA87: 3 | AB87: 3953 | AC87: 492 | AD87: 2307 | AE87: 974 | AF87: 178 | AG87: 2 | AH87: 449 | AI87: 1241 | AJ87: 1218 | AK87: 1888 | AL87: 1718 | AM87: 824 | AN87: 567 | AO87: N/A | AP87: N/A | AQ87: N/A | AR87: N/A | AS87: N/A | AT87: N/A | AU87: N/A | AV87: N/A
A88: 87 | B88: Jolalpan | C88: 16 | D88: 16 Chiautla | E88: Hombre | F88: 6418 | G88: 6079 | H88: 1242 | I88: 4 | J88: 498 | K88: 77 | L88: 188 | M88: 475 | N88: 4847 | O88: 3577 | P88: 3497 | Q88: 80 | R88: 5459 | S88: 40 | T88: 36 | U88: 8 | V88: 0 | W88: 5346 | X88: 21 | Y88: 6 | Z88: 12 | AA88: 0 | AB88: 4450 | AC88: 509 | AD88: 3223 | AE88: 615 | AF88: 99 | AG88: 4 | AH88: 586 | AI88: 1518 | AJ88: 1482 | AK88: 2073 | AL88: 1834 | AM88: 859 | AN88: 544 | AO88: N/A | AP88: N/A | AQ88: N/A | AR88: N/A | AS88: N/A | AT88: N/A | AU88: N/A | AV88: N/A
A89: 88 | B89: Jonotla | C89: 5 | D89: 5 Zacapoaxtla | E89: Hombre | F89: 2172 | G89: 2057 | H89: 404 | I89: 2 | J89: 211 | K89: 11 | L89: 46 | M89: 134 | N89: 1650 | O89: 1232 | P89: 1219 | Q89: 13 | R89: 1661 | S89: 82 | T89: 58 | U89: 14 | V89: 7 | W89: 1496 | X89: 2 | Y89: 3 | Z89: 7 | AA89: 0 | AB89: 1539 | AC89: 123 | AD89: 965 | AE89: 338 | AF89: 113 | AG89: 0 | AH89: 158 | AI89: 447 | AJ89: 444 | AK89: 723 | AL89: 669 | AM89: 369 | AN89: 268 | AO89: N/A | AP89: N/A | AQ89: N/A | AR89: N/A | AS89: N/A | AT89: N/A | AU89: N/A | AV89: N/A
A90: 89 | B90: Jopala | C90: 2 | D90: 2 Huauchinango | E90: Hombre | F90: 5817 | G90: 5434 | H90: 1014 | I90: 5 | J90: 640 | K90: 28 | L90: 169 | M90: 172 | N90: 4343 | O90: 3294 | P90: 3222 | Q90: 72 | R90: 4628 | S90: 178 | T90: 86 | U90: 73 | V90: 48 | W90: 4201 | X90: 44 | Y90: 3 | Z90: 5 | AA90: 0 | AB90: 3939 | AC90: 743 | AD90: 2252 | AE90: 788 | AF90: 150 | AG90: 6 | AH90: 768 | AI90: 1248 | AJ90: 1210 | AK90: 1825 | AL90: 1502 | AM90: 866 | AN90: 453 | AO90: N/A | AP90: N/A | AQ90: N/A | AR90: N/A | AS90: N/A | AT90: N/A | AU90: N/A | AV90: N/A
A91: 90 | B91: Juan C. Bonilla | C91: 21-31 | D91: 21-31 Área Metropolitana de la Ciudad de Puebla | E91: Hombre | F91: 11475 | G91: 10764 | H91: 1844 | I91: 119 | J91: 1218 | K91: 77 | L91: 134 | M91: 296 | N91: 8657 | O91: 6792 | P91: 6677 | Q91: 115 | R91: 7485 | S91: 2738 | T91: 244 | U91: 122 | V91: 39 | W91: 4201 | X91: 36 | Y91: 135 | Z91: 40 | AA91: 52 | AB91: 8019 | AC91: 168 | AD91: 4404 | AE91: 1933 | AF91: 1509 | AG91: 5 | AH91: 174 | AI91: 3026 | AJ91: 3005 | AK91: 4017 | AL91: 3918 | AM91: 976 | AN91: 915 | AO91: N/A | AP91: N/A | AQ91: N/A | AR91: N/A | AS91: N/A | AT91: N/A | AU91: N/A | AV91: N/A
A92: 91 | B92: Juan Galindo | C92: 2 | D92: 2 Huauchinango | E92: Hombre | F92: 4559 | G92: 4334 | H92: 1098 | I92: 297 | J92: 518 | K92: 55 | L92: 53 | M92: 175 | N92: 3525 | O92: 2422 | P92: 2349 | Q92: 73 | R92: 3334 | S92: 1534 | T92: 163 | U92: 50 | V92: 35 | W92: 1518 | X92: 13 | Y92: 37 | Z92: 47 | AA92: 0 | AB92: 3228 | AC92: 110 | AD92: 1558 | AE92: 878 | AF92: 681 | AG92: 1 | AH92: 98 | AI92: 1015 | AJ92: 1005 | AK92: 1610 | AL92: 1562 | AM92: 603 | AN92: 562 | AO92: N/A | AP92: N/A | AQ92: N/A | AR92: N/A | AS92: N/A | AT92: N/A | AU92: N/A | AV92: N/A
A93: 92 | B93: Juan N. Méndez | C93: 18 | D93: 18 Tepexi de Rodríguez | E93: Hombre | F93: 2555 | G93: 2407 | H93: 524 | I93: 5 | J93: 201 | K93: 44 | L93: 83 | M93: 191 | N93: 1896 | O93: 1362 | P93: 1351 | Q93: 11 | R93: 2056 | S93: 76 | T93: 17 | U93: 4 | V93: 3 | W93: 1865 | X93: 12 | Y93: 7 | Z93: 96 | AA93: 2 | AB93: 1735 | AC93: 174 | AD93: 1235 | AE93: 277 | AF93: 47 | AG93: 2 | AH93: 178 | AI93: 571 | AJ93: 557 | AK93: 783 | AL93: 713 | AM93: 381 | AN93: 285 | AO93: N/A | AP93: N/A | AQ93: N/A | AR93: N/A | AS93: N/A | AT93: N/A | AU93: N/A | AV93: N/A
A94: 93 | B94: Lafragua | C94: 9 | D94: 9 Quimixtlán | E94: Hombre | F94: 3709 | G94: 3504 | H94: 668 | I94: 2 | J94: 339 | K94: 34 | L94: 166 | M94: 127 | N94: 2858 | O94: 2162 | P94: 2119 | Q94: 43 | R94: 2868 | S94: 130 | T94: 19 | U94: 13 | V94: 0 | W94: 2653 | X94: 26 | Y94: 43 | Z94: 2 | AA94: 4 | AB94: 2608 | AC94: 252 | AD94: 1906 | AE94: 380 | AF94: 69 | AG94: 1 | AH94: 308 | AI94: 813 | AJ94: 784 | AK94: 1197 | AL94: 1064 | AM94: 598 | AN94: 451 | AO94: N/A | AP94: N/A | AQ94: N/A | AR94: N/A | AS94: N/A | AT94: N/A | AU94: N/A | AV94: N/A
A95: 94 | B95: Libres | C95: 8 | D95: 8 Libres | E95: Hombre | F95: 18097 | G95: 16979 | H95: 2735 | I95: 113 | J95: 1693 | K95: 175 | L95: 232 | M95: 522 | N95: 13376 | O95: 10589 | P95: 10358 | Q95: 231 | R95: 12662 | S95: 1498 | T95: 419 | U95: 292 | V95: 74 | W95: 10332 | X95: 51 | Y95: 33 | Z95: 46 | AA95: 53 | AB95: 12152 | AC95: 585 | AD95: 7614 | AE95: 2401 | AF95: 1548 | AG95: 4 | AH95: 578 | AI95: 4715 | AJ95: 4669 | AK95: 5699 | AL95: 5480 | AM95: 1738 | AN95: 1423 | AO95: N/A | AP95: N/A | AQ95: N/A | AR95: N/A | AS95: N/A | AT95: N/A | AU95: N/A | AV95: N/A
A96: 95 | B96: La Magdalena Tlatlauquitepec | C96: 18 | D96: 18 Tepexi de Rodríguez | E96: Hombre | F96: 324 | G96: 304 | H96: 84 | I96: 1 | J96: 33 | K96: 16 | L96: 13 | M96: 21 | N96: 251 | O96: 166 | P96: 161 | Q96: 5 | R96: 239 | S96: 4 | T96: 5 | U96: 0 | V96: 2 | W96: 218 | X96: 8 | Y96: 2 | Z96: 0 | AA96: 0 | AB96: 229 | AC96: 8 | AD96: 136 | AE96: 71 | AF96: 13 | AG96: 1 | AH96: 7 | AI96: 77 | AJ96: 76 | AK96: 123 | AL96: 117 | AM96: 29 | AN96: 29 | AO96: N/A | AP96: N/A | AQ96: N/A | AR96: N/A | AS96: N/A | AT96: N/A | AU96: N/A | AV96: N/A
A97: 96 | B97: Mazapiltepec de Juárez | C97: 8 | D97: 8 Libres | E97: Hombre | F97: 1557 | G97: 1465 | H97: 293 | I97: 2 | J97: 137 | K97: 17 | L97: 40 | M97: 97 | N97: 1168 | O97: 874 | P97: 832 | Q97: 42 | R97: 1324 | S97: 107 | T97: 9 | U97: 13 | V97: 3 | W97: 1193 | X97: 1 | Y97: 0 | Z97: 3 | AA97: 0 | AB97: 1076 | AC97: 33 | AD97: 752 | AE97: 214 | AF97: 74 | AG97: 3 | AH97: 43 | AI97: 409 | AJ97: 404 | AK97: 493 | AL97: 472 | AM97: 174 | AN97: 154 | AO97: N/A | AP97: N/A | AQ97: N/A | AR97: N/A | AS97: N/A | AT97: N/A | AU97: N/A | AV97: N/A
A98: 97 | B98: Mixtla | C98: 32 | D98: 32 Tepeaca | E98: Hombre | F98: 1270 | G98: 1192 | H98: 258 | I98: 6 | J98: 161 | K98: 5 | L98: 18 | M98: 68 | N98: 953 | O98: 693 | P98: 622 | Q98: 71 | R98: 917 | S98: 109 | T98: 39 | U98: 41 | V98: 7 | W98: 673 | X98: 0 | Y98: 41 | Z98: 20 | AA98: 0 | AB98: 887 | AC98: 14 | AD98: 476 | AE98: 281 | AF98: 116 | AG98: 0 | AH98: 21 | AI98: 328 | AJ98: 324 | AK98: 416 | AL98: 407 | AM98: 143 | AN98: 135 | AO98: N/A | AP98: N/A | AQ98: N/A | AR98: N/A | AS98: N/A | AT98: N/A | AU98: N/A | AV98: N/A
A99: 98 | B99: Molcaxac | C99: 18 | D99: 18 Tepexi de Rodríguez | E99: Hombre | F99: 3173 | G99: 2970 | H99: 573 | I99: 8 | J99: 321 | K99: 72 | L99: 103 | M99: 69 | N99: 2389 | O99: 1803 | P99: 1739 | Q99: 64 | R99: 2194 | S99: 165 | T99: 41 | U99: 27 | V99: 1 | W99: 1940 | X99: 19 | Y99: 3 | Z99: 2 | AA99: 0 | AB99: 2204 | AC99: 111 | AD99: 1442 | AE99: 499 | AF99: 152 | AG99: 0 | AH99: 130 | AI99: 795 | AJ99: 786 | AK99: 962 | AL99: 926 | AM99: 447 | AN99: 362 | AO99: N/A | AP99: N/A | AQ99: N/A | AR99: N/A | AS99: N/A | AT99: N/A | AU99: N/A | AV99: N/A
A100: 99 | B100: Cañada Morelos | C100: 11 | D100: 11 Ciudad Serdán | E100: Hombre | F100: 9911 | G100: 9218 | H100: 1349 | I100: 29 | J100: 634 | K100: 107 | L100: 324 | M100: 255 | N100: 7260 | O100: 5884 | P100: 5741 | Q100: 143 | R100: 7511 | S100: 765 | T100: 54 | U100: 27 | V100: 8 | W100: 6629 | X100: 89 | Y100: 17 | Z100: 7 | AA100: 1 | AB100: 6657 | AC100: 633 | AD100: 4815 | AE100: 980 | AF100: 228 | AG100: 1 | AH100: 699 | AI100: 2580 | AJ100: 2500 | AK100: 3031 | AL100: 2746 | AM100: 1046 | AN100: 711 | AO100: N/A | AP100: N/A | AQ100: N/A | AR100: N/A | AS100: N/A | AT100: N/A | AU100: N/A | AV100: N/A
A101: 100 | B101: Naupan | C101: 1 | D101: 1 Xicotepec | E101: Hombre | F101: 4320 | G101: 4073 | H101: 453 | I101: 3 | J101: 222 | K101: 18 | L101: 117 | M101: 93 | N101: 3175 | O101: 2718 | P101: 2711 | Q101: 7 | R101: 3806 | S101: 111 | T101: 30 | U101: 6 | V101: 5 | W101: 3580 | X101: 101 | Y101: 28 | Z101: 11 | AA101: 1 | AB101: 2839 | AC101: 357 | AD101: 2012 | AE101: 409 | AF101: 61 | AG101: 0 | AH101: 418 | AI101: 951 | AJ101: 920 | AK101: 1312 | AL101: 1161 | AM101: 576 | AN101: 340 | AO101: N/A | AP101: N/A | AQ101: N/A | AR101: N/A | AS101: N/A | AT101: N/A | AU101: N/A | AV101: N/A
A102: 101 | B102: Nauzontla | C102: 5 | D102: 5 Zacapoaxtla | E102: Hombre | F102: 1543 | G102: 1455 | H102: 323 | I102: 3 | J102: 165 | K102: 43 | L102: 51 | M102: 61 | N102: 1215 | O102: 881 | P102: 874 | Q102: 7 | R102: 1260 | S102: 85 | T102: 23 | U102: 12 | V102: 4 | W102: 1150 | X102: 3 | Y102: 7 | Z102: 1 | AA102: 0 | AB102: 1123 | AC102: 72 | AD102: 750 | AE102: 240 | AF102: 61 | AG102: 0 | AH102: 87 | AI102: 334 | AJ102: 326 | AK102: 524 | AL102: 493 | AM102: 265 | AN102: 217 | AO102: N/A | AP102: N/A | AQ102: N/A | AR102: N/A | AS102: N/A | AT102: N/A | AU102: N/A | AV102: N/A
A103: 102 | B103: Nealtican | C103: 20 | D103: 20 San Martín Texmelucan | E103: Hombre | F103: 6815 | G103: 6335 | H103: 775 | I103: 7 | J103: 471 | K103: 19 | L103: 132 | M103: 146 | N103: 5039 | O103: 4241 | P103: 4213 | Q103: 28 | R103: 4073 | S103: 85 | T103: 30 | U103: 5 | V103: 10 | W103: 3920 | X103: 11 | Y103: 11 | Z103: 12 | AA103: 1 | AB103: 4635 | AC103: 120 | AD103: 3473 | AE103: 809 | AF103: 232 | AG103: 1 | AH103: 151 | AI103: 1910 | AJ103: 1892 | AK103: 2144 | AL103: 2077 | AM103: 581 | AN103: 514 | AO103: N/A | AP103: N/A | AQ103: N/A | AR103: N/A | AS103: N/A | AT103: N/A | AU103: N/A | AV103: N/A
A104: 103 | B104: Nicolás Bravo | C104: 13 | D104: 13 Tehuacán | E104: Hombre | F104: 3230 | G104: 3028 | H104: 510 | I104: 15 | J104: 322 | K104: 21 | L104: 61 | M104: 91 | N104: 2387 | O104: 1865 | P104: 1831 | Q104: 34 | R104: 2182 | S104: 412 | T104: 21 | U104: 10 | V104: 2 | W104: 1693 | X104: 12 | Y104: 59 | Z104: 1 | AA104: 4 | AB104: 2162 | AC104: 100 | AD104: 1552 | AE104: 374 | AF104: 131 | AG104: 5 | AH104: 142 | AI104: 874 | AJ104: 857 | AK104: 1013 | AL104: 944 | AM104: 275 | AN104: 215 | AO104: N/A | AP104: N/A | AQ104: N/A | AR104: N/A | AS104: N/A | AT104: N/A | AU104: N/A | AV104: N/A
A105: 104 | B105: Nopalucan | C105: 8 | D105: 8 Libres | E105: Hombre | F105: 15891 | G105: 14862 | H105: 2406 | I105: 128 | J105: 1441 | K105: 158 | L105: 178 | M105: 501 | N105: 11540 | O105: 9081 | P105: 8620 | Q105: 461 | R105: 12708 | S105: 2788 | T105: 151 | U105: 39 | V105: 23 | W105: 9474 | X105: 67 | Y105: 137 | Z105: 118 | AA105: 10 | AB105: 10568 | AC105: 589 | AD105: 7238 | AE105: 1894 | AF105: 836 | AG105: 11 | AH105: 649 | AI105: 4602 | AJ105: 4448 | AK105: 4853 | AL105: 4510 | AM105: 1113 | AN105: 951 | AO105: N/A | AP105: N/A | AQ105: N/A | AR105: N/A | AS105: N/A | AT105: N/A | AU105: N/A | AV105: N/A
A106: 105 | B106: Ocotepec | C106: 8 | D106: 8 Libres | E106: Hombre | F106: 2433 | G106: 2316 | H106: 585 | I106: 9 | J106: 261 | K106: 102 | L106: 75 | M106: 138 | N106: 1839 | O106: 1248 | P106: 1215 | Q106: 33 | R106: 1962 | S106: 142 | T106: 19 | U106: 23 | V106: 6 | W106: 1768 | X106: 38 | Y106: 3 | Z106: 1 | AA106: 0 | AB106: 1690 | AC106: 130 | AD106: 1132 | AE106: 313 | AF106: 114 | AG106: 1 | AH106: 148 | AI106: 526 | AJ106: 518 | AK106: 757 | AL106: 712 | AM106: 407 | AN106: 311 | AO106: N/A | AP106: N/A | AQ106: N/A | AR106: N/A | AS106: N/A | AT106: N/A | AU106: N/A | AV106: N/A
A107: 106 | B107: Ocoyucan | C107: 21-31 | D107: 21-31 Área Metropolitana de la Ciudad de Puebla | E107: Hombre | F107: 20420 | G107: 19038 | H107: 3471 | I107: 242 | J107: 2114 | K107: 137 | L107: 221 | M107: 757 | N107: 15257 | O107: 11728 | P107: 11585 | Q107: 143 | R107: 11933 | S107: 3208 | T107: 288 | U107: 102 | V107: 170 | W107: 6363 | X107: 393 | Y107: 1649 | Z107: 53 | AA107: 49 | AB107: 14135 | AC107: 741 | AD107: 7024 | AE107: 2689 | AF107: 3665 | AG107: 16 | AH107: 744 | AI107: 5721 | AJ107: 5612 | AK107: 6848 | AL107: 6548 | AM107: 1566 | AN107: 1216 | AO107: N/A | AP107: N/A | AQ107: N/A | AR107: N/A | AS107: N/A | AT107: N/A | AU107: N/A | AV107: N/A
A108: 107 | B108: Olintla | C108: 4 | D108: 4 Huehuetla | E108: Hombre | F108: 5835 | G108: 5483 | H108: 1377 | I108: 8 | J108: 652 | K108: 72 | L108: 148 | M108: 497 | N108: 4308 | O108: 2905 | P108: 2864 | Q108: 41 | R108: 5202 | S108: 51 | T108: 62 | U108: 38 | V108: 1 | W108: 5010 | X108: 79 | Y108: 2 | Z108: 27 | AA108: 0 | AB108: 3854 | AC108: 780 | AD108: 2400 | AE108: 529 | AF108: 142 | AG108: 3 | AH108: 1039 | AI108: 1240 | AJ108: 1184 | AK108: 1671 | AL108: 1256 | AM108: 943 | AN108: 372 | AO108: N/A | AP108: N/A | AQ108: N/A | AR108: N/A | AS108: N/A | AT108: N/A | AU108: N/A | AV108: N/A
A109: 108 | B109: Oriental | C109: 8 | D109: 8 Libres | E109: Hombre | F109: 9678 | G109: 9094 | H109: 1606 | I109: 128 | J109: 887 | K109: 84 | L109: 165 | M109: 342 | N109: 7269 | O109: 5634 | P109: 5464 | Q109: 170 | R109: 7304 | S109: 1991 | T109: 181 | U109: 83 | V109: 58 | W109: 5111 | X109: 29 | Y109: 8 | Z109: 28 | AA109: 4 | AB109: 6619 | AC109: 413 | AD109: 4168 | AE109: 1341 | AF109: 696 | AG109: 1 | AH109: 442 | AI109: 2554 | AJ109: 2508 | AK109: 3231 | AL109: 2997 | AM109: 834 | AN109: 671 | AO109: N/A | AP109: N/A | AQ109: N/A | AR109: N/A | AS109: N/A | AT109: N/A | AU109: N/A | AV109: N/A
A110: 109 | B110: Pahuatlán | C110: 1 | D110: 1 Xicotepec | E110: Hombre | F110: 9674 | G110: 9033 | H110: 1315 | I110: 37 | J110: 779 | K110: 38 | L110: 221 | M110: 240 | N110: 7038 | O110: 5694 | P110: 5583 | Q110: 111 | R110: 7745 | S110: 316 | T110: 170 | U110: 90 | V110: 26 | W110: 6970 | X110: 185 | Y110: 40 | Z110: 7 | AA110: 0 | AB110: 6393 | AC110: 848 | AD110: 3883 | AE110: 1383 | AF110: 275 | AG110: 4 | AH110: 1012 | AI110: 2247 | AJ110: 2186 | AK110: 2843 | AL110: 2458 | AM110: 1303 | AN110: 734 | AO110: N/A | AP110: N/A | AQ110: N/A | AR110: N/A | AS110: N/A | AT110: N/A | AU110: N/A | AV110: N/A
A111: 110 | B111: Palmar de Bravo | C111: 11 | D111: 11 Ciudad Serdán | E111: Hombre | F111: 24595 | G111: 22718 | H111: 2629 | I111: 57 | J111: 1518 | K111: 213 | L111: 294 | M111: 547 | N111: 17813 | O111: 15141 | P111: 14920 | Q111: 221 | R111: 18590 | S111: 1638 | T111: 133 | U111: 38 | V111: 36 | W111: 16223 | X111: 521 | Y111: 27 | Z111: 12 | AA111: 7 | AB111: 16223 | AC111: 1750 | AD111: 11120 | AE111: 2566 | AF111: 778 | AG111: 9 | AH111: 1834 | AI111: 7040 | AJ111: 6769 | AK111: 7254 | AL111: 6311 | AM111: 1929 | AN111: 1300 | AO111: N/A | AP111: N/A | AQ111: N/A | AR111: N/A | AS111: N/A | AT111: N/A | AU111: N/A | AV111: N/A
A112: 111 | B112: Pantepec | C112: 1 | D112: 1 Xicotepec | E112: Hombre | F112: 8904 | G112: 8440 | H112: 1334 | I112: 50 | J112: 654 | K112: 53 | L112: 247 | M112: 330 | N112: 6924 | O112: 5567 | P112: 5491 | Q112: 76 | R112: 6851 | S112: 645 | T112: 240 | U112: 90 | V112: 27 | W112: 5540 | X112: 368 | Y112: 13 | Z112: 19 | AA112: 10 | AB112: 6383 | AC112: 1034 | AD112: 3496 | AE112: 1433 | AF112: 417 | AG112: 3 | AH112: 1059 | AI112: 1757 | AJ112: 1719 | AK112: 3068 | AL112: 2720 | AM112: 1558 | AN112: 883 | AO112: N/A | AP112: N/A | AQ112: N/A | AR112: N/A | AS112: N/A | AT112: N/A | AU112: N/A | AV112: N/A
A113: 112 | B113: Petlalcingo | C113: 17 | D113: 17 Acatlán | E113: Hombre | F113: 4489 | G113: 4246 | H113: 936 | I113: 24 | J113: 404 | K113: 49 | L113: 184 | M113: 275 | N113: 3449 | O113: 2483 | P113: 2363 | Q113: 120 | R113: 3608 | S113: 46 | T113: 100 | U113: 12 | V113: 8 | W113: 3417 | X113: 7 | Y113: 1 | Z113: 32 | AA113: 1 | AB113: 3166 | AC113: 356 | AD113: 2090 | AE113: 585 | AF113: 134 | AG113: 1 | AH113: 412 | AI113: 1082 | AJ113: 1055 | AK113: 1310 | AL113: 1194 | AM113: 774 | AN113: 504 | AO113: N/A | AP113: N/A | AQ113: N/A | AR113: N/A | AS113: N/A | AT113: N/A | AU113: N/A | AV113: N/A
A114: 113 | B114: Piaxtla | C114: 17 | D114: 17 Acatlán | E114: Hombre | F114: 2262 | G114: 2142 | H114: 602 | I114: 5 | J114: 191 | K114: 162 | L114: 114 | M114: 130 | N114: 1780 | O114: 1167 | P114: 1141 | Q114: 26 | R114: 1692 | S114: 29 | T114: 57 | U114: 22 | V114: 3 | W114: 1561 | X114: 5 | Y114: 22 | Z114: 4 | AA114: 1 | AB114: 1648 | AC114: 236 | AD114: 976 | AE114: 313 | AF114: 121 | AG114: 2 | AH114: 259 | AI114: 478 | AJ114: 465 | AK114: 699 | AL114: 633 | AM114: 471 | AN114: 290 | AO114: N/A | AP114: N/A | AQ114: N/A | AR114: N/A | AS114: N/A | AT114: N/A | AU114: N/A | AV114: N/A
A115: 114 | B115: Puebla | C115: 21-31 | D115: 21-31 Área Metropolitana de la Ciudad de Puebla | E115: Hombre | F115: 809485 | G115: 774671 | H115: 170971 | I115: 36434 | J115: 105208 | K115: 5166 | L115: 6050 | M115: 18113 | N115: 660037 | O115: 487644 | P115: 474545 | Q115: 13099 | R115: 558830 | S115: 340859 | T115: 31193 | U115: 20142 | V115: 7070 | W115: 136256 | X115: 3228 | Y115: 17974 | Z115: 9418 | AA115: 1107 | AB115: 619905 | AC115: 12558 | AD115: 231882 | AE115: 165380 | AF115: 209183 | AG115: 902 | AH115: 9993 | AI115: 219873 | AJ115: 218032 | AK115: 307271 | AL115: 302365 | AM115: 92761 | AN115: 88625 | AO115: N/A | AP115: N/A | AQ115: N/A | AR115: N/A | AS115: N/A | AT115: N/A | AU115: N/A | AV115: N/A
A116: 115 | B116: Quecholac | C116: 10 | D116: 10 Acatzingo | E116: Hombre | F116: 28367 | G116: 26313 | H116: 2842 | I116: 28 | J116: 1556 | K116: 218 | L116: 376 | M116: 664 | N116: 20510 | O116: 17595 | P116: 17314 | Q116: 281 | R116: 18966 | S116: 1444 | T116: 116 | U116: 33 | V116: 21 | W116: 16767 | X116: 185 | Y116: 282 | Z116: 242 | AA116: 23 | AB116: 18599 | AC116: 1963 | AD116: 13294 | AE116: 2334 | AF116: 1002 | AG116: 6 | AH116: 2257 | AI116: 8052 | AJ116: 7682 | AK116: 8490 | AL116: 7405 | AM116: 2057 | AN116: 1249 | AO116: N/A | AP116: N/A | AQ116: N/A | AR116: N/A | AS116: N/A | AT116: N/A | AU116: N/A | AV116: N/A
A117: 116 | B117: Quimixtlán | C117: 9 | D117: 9 Quimixtlán | E117: Hombre | F117: 11102 | G117: 10327 | H117: 1096 | I117: 3 | J117: 577 | K117: 62 | L117: 159 | M117: 295 | N117: 7950 | O117: 6828 | P117: 6786 | Q117: 42 | R117: 9335 | S117: 295 | T117: 76 | U117: 24 | V117: 3 | W117: 8885 | X117: 51 | Y117: 9 | Z117: 30 | AA117: 1 | AB117: 7131 | AC117: 866 | AD117: 5236 | AE117: 835 | AF117: 192 | AG117: 2 | AH117: 968 | AI117: 2867 | AJ117: 2772 | AK117: 3272 | AL117: 2750 | AM117: 992 | AN117: 638 | AO117: N/A | AP117: N/A | AQ117: N/A | AR117: N/A | AS117: N/A | AT117: N/A | AU117: N/A | AV117: N/A
A118: 117 | B118: Rafael Lara Grajales | C118: 8 | D118: 8 Libres | E118: Hombre | F118: 7625 | G118: 7162 | H118: 1626 | I118: 180 | J118: 926 | K118: 72 | L118: 79 | M118: 369 | N118: 5774 | O118: 4140 | P118: 3843 | Q118: 297 | R118: 5750 | S118: 2271 | T118: 110 | U118: 32 | V118: 2 | W118: 3242 | X118: 38 | Y118: 35 | Z118: 85 | AA118: 1 | AB118: 5274 | AC118: 160 | AD118: 3200 | AE118: 1232 | AF118: 679 | AG118: 3 | AH118: 209 | AI118: 2134 | AJ118: 2075 | AK118: 2492 | AL118: 2415 | AM118: 648 | AN118: 572 | AO118: N/A | AP118: N/A | AQ118: N/A | AR118: N/A | AS118: N/A | AT118: N/A | AU118: N/A | AV118: N/A
A119: 118 | B119: Los Reyes de Juárez | C119: 10 | D119: 10 Acatzingo | E119: Hombre | F119: 14606 | G119: 13580 | H119: 1684 | I119: 22 | J119: 934 | K119: 94 | L119: 225 | M119: 409 | N119: 10595 | O119: 8873 | P119: 8756 | Q119: 117 | R119: 7409 | S119: 398 | T119: 67 | U119: 16 | V119: 9 | W119: 6886 | X119: 6 | Y119: 36 | Z119: 11 | AA119: 3 | AB119: 9605 | AC119: 370 | AD119: 7452 | AE119: 1265 | AF119: 510 | AG119: 8 | AH119: 454 | AI119: 4098 | AJ119: 3998 | AK119: 4320 | AL119: 4117 | AM119: 1187 | AN119: 1032 | AO119: N/A | AP119: N/A | AQ119: N/A | AR119: N/A | AS119: N/A | AT119: N/A | AU119: N/A | AV119: N/A
A120: 119 | B120: San Andrés Cholula | C120: 21-31 | D120: 21-31 Área Metropolitana de la Ciudad de Puebla | E120: Hombre | F120: 74272 | G120: 70655 | H120: 15638 | I120: 2033 | J120: 11185 | K120: 389 | L120: 540 | M120: 1491 | N120: 60913 | O120: 45132 | P120: 44110 | Q120: 1022 | R120: 48808 | S120: 23098 | T120: 2500 | U120: 1064 | V120: 587 | W120: 12835 | X120: 251 | Y120: 9530 | Z120: 1006 | AA120: 1139 | AB120: 57228 | AC120: 758 | AD120: 17809 | AE120: 12828 | AF120: 25738 | AG120: 95 | AH120: 704 | AI120: 21725 | AJ120: 21564 | AK120: 28589 | AL120: 28237 | AM120: 6914 | AN120: 6626 | AO120: N/A | AP120: N/A | AQ120: N/A | AR120: N/A | AS120: N/A | AT120: N/A | AU120: N/A | AV120: N/A
A121: 120 | B121: San Antonio Cañada | C121: 13 | D121: 13 Tehuacán | E121: Hombre | F121: 2791 | G121: 2607 | H121: 559 | I121: 12 | J121: 261 | K121: 43 | L121: 67 | M121: 176 | N121: 2030 | O121: 1465 | P121: 1398 | Q121: 67 | R121: 2012 | S121: 285 | T121: 13 | U121: 7 | V121: 5 | W121: 1707 | X121: 15 | Y121: 4 | Z121: 0 | AA121: 0 | AB121: 1849 | AC121: 207 | AD121: 1291 | AE121: 276 | AF121: 75 | AG121: 0 | AH121: 214 | AI121: 813 | AJ121: 785 | AK121: 810 | AL121: 711 | AM121: 226 | AN121: 138 | AO121: N/A | AP121: N/A | AQ121: N/A | AR121: N/A | AS121: N/A | AT121: N/A | AU121: N/A | AV121: N/A
A122: 121 | B122: San Diego la Mesa Tochimiltzingo | C122: 15 | D122: 15 Izúcar de Matamoros | E122: Hombre | F122: 626 | G122: 593 | H122: 116 | I122: 1 | J122: 59 | K122: 4 | L122: 24 | M122: 28 | N122: 487 | O122: 370 | P122: 368 | Q122: 2 | R122: 554 | S122: 1 | T122: 0 | U122: 2 | V122: 4 | W122: 546 | X122: 1 | Y122: 1 | Z122: 0 | AA122: 0 | AB122: 443 | AC122: 51 | AD122: 324 | AE122: 63 | AF122: 5 | AG122: 0 | AH122: 66 | AI122: 147 | AJ122: 144 | AK122: 203 | AL122: 181 | AM122: 93 | AN122: 52 | AO122: N/A | AP122: N/A | AQ122: N/A | AR122: N/A | AS122: N/A | AT122: N/A | AU122: N/A | AV122: N/A
A123: 122 | B123: San Felipe Teotlalcingo | C123: 20 | D123: 20 San Martín Texmelucan | E123: Hombre | F123: 5349 | G123: 5019 | H123: 884 | I123: 32 | J123: 530 | K123: 45 | L123: 105 | M123: 172 | N123: 4047 | O123: 3144 | P123: 3097 | Q123: 47 | R123: 3452 | S123: 580 | T123: 96 | U123: 28 | V123: 40 | W123: 2724 | X123: 2 | Y123: 1 | Z123: 3 | AA123: 2 | AB123: 3736 | AC123: 62 | AD123: 2574 | AE123: 783 | AF123: 317 | AG123: 0 | AH123: 87 | AI123: 1387 | AJ123: 1376 | AK123: 1778 | AL123: 1728 | AM123: 571 | AN123: 544 | AO123: N/A | AP123: N/A | AQ123: N/A | AR123: N/A | AS123: N/A | AT123: N/A | AU123: N/A | AV123: N/A
A124: 123 | B124: San Felipe Tepatlán | C124: 3 | D124: 3 Zacatlán | E124: Hombre | F124: 1829 | G124: 1735 | H124: 364 | I124: 0 | J124: 166 | K124: 28 | L124: 53 | M124: 117 | N124: 1377 | O124: 1006 | P124: 988 | Q124: 18 | R124: 1510 | S124: 70 | T124: 3 | U124: 0 | V124: 3 | W124: 1418 | X124: 29 | Y124: 8 | Z124: 2 | AA124: 3 | AB124: 1266 | AC124: 249 | AD124: 858 | AE124: 143 | AF124: 16 | AG124: 0 | AH124: 317 | AI124: 345 | AJ124: 336 | AK124: 614 | AL124: 474 | AM124: 307 | AN124: 139 | AO124: N/A | AP124: N/A | AQ124: N/A | AR124: N/A | AS124: N/A | AT124: N/A | AU124: N/A | AV124: N/A
A125: 124 | B125: San Gabriel Chilac | C125: 13 | D125: 13 Tehuacán | E125: Hombre | F125: 7569 | G125: 7130 | H125: 1310 | I125: 24 | J125: 682 | K125: 71 | L125: 198 | M125: 335 | N125: 5825 | O125: 4473 | P125: 4378 | Q125: 95 | R125: 4815 | S125: 470 | T125: 186 | U125: 18 | V125: 3 | W125: 3617 | X125: 241 | Y125: 297 | Z125: 26 | AA125: 1 | AB125: 5411 | AC125: 507 | AD125: 3435 | AE125: 1003 | AF125: 460 | AG125: 6 | AH125: 474 | AI125: 2022 | AJ125: 1975 | AK125: 2631 | AL125: 2423 | AM125: 758 | AN125: 533 | AO125: N/A | AP125: N/A | AQ125: N/A | AR125: N/A | AS125: N/A | AT125: N/A | AU125: N/A | AV125: N/A
A126: 125 | B126: San Gregorio Atzompa | C126: 21-31 | D126: 21-31 Área Metropolitana de la Ciudad de Puebla | E126: Hombre | F126: 4682 | G126: 4442 | H126: 705 | I126: 73 | J126: 408 | K126: 47 | L126: 48 | M126: 129 | N126: 3670 | O126: 2956 | P126: 2916 | Q126: 40 | R126: 3394 | S126: 968 | T126: 65 | U126: 19 | V126: 8 | W126: 2189 | X126: 22 | Y126: 158 | Z126: 13 | AA126: 37 | AB126: 3428 | AC126: 59 | AD126: 1865 | AE126: 831 | AF126: 669 | AG126: 4 | AH126: 57 | AI126: 1132 | AJ126: 1121 | AK126: 1733 | AL126: 1712 | AM126: 563 | AN126: 534 | AO126: N/A | AP126: N/A | AQ126: N/A | AR126: N/A | AS126: N/A | AT126: N/A | AU126: N/A | AV126: N/A
A127: 126 | B127: San Jerónimo Tecuanipan | C127: 19 | D127: 19 Atlixco | E127: Hombre | F127: 3118 | G127: 2921 | H127: 395 | I127: 8 | J127: 237 | K127: 27 | L127: 53 | M127: 70 | N127: 2285 | O127: 1881 | P127: 1865 | Q127: 16 | R127: 2280 | S127: 227 | T127: 16 | U127: 2 | V127: 8 | W127: 1922 | X127: 70 | Y127: 28 | Z127: 17 | AA127: 1 | AB127: 2109 | AC127: 60 | AD127: 1534 | AE127: 401 | AF127: 113 | AG127: 1 | AH127: 62 | AI127: 837 | AJ127: 833 | AK127: 963 | AL127: 925 | AM127: 309 | AN127: 288 | AO127: N/A | AP127: N/A | AQ127: N/A | AR127: N/A | AS127: N/A | AT127: N/A | AU127: N/A | AV127: N/A
A128: 127 | B128: San Jerónimo Xayacatlán | C128: 17 | D128: 17 Acatlán | E128: Hombre | F128: 1734 | G128: 1664 | H128: 557 | I128: 29 | J128: 172 | K128: 31 | L128: 113 | M128: 212 | N128: 1386 | O128: 819 | P128: 811 | Q128: 8 | R128: 1344 | S128: 75 | T128: 111 | U128: 18 | V128: 13 | W128: 1128 | X128: 6 | Y128: 6 | Z128: 2 | AA128: 4 | AB128: 1284 | AC128: 96 | AD128: 818 | AE128: 274 | AF128: 94 | AG128: 2 | AH128: 131 | AI128: 350 | AJ128: 346 | AK128: 535 | AL128: 499 | AM128: 399 | AN128: 306 | AO128: N/A | AP128: N/A | AQ128: N/A | AR128: N/A | AS128: N/A | AT128: N/A | AU128: N/A | AV128: N/A
A129: 128 | B129: San José Chiapa | C129: 8 | D129: 8 Libres | E129: Hombre | F129: 5107 | G129: 4773 | H129: 868 | I129: 36 | J129: 497 | K129: 52 | L129: 97 | M129: 186 | N129: 3722 | O129: 2840 | P129: 2642 | Q129: 198 | R129: 3886 | S129: 958 | T129: 18 | U129: 28 | V129: 15 | W129: 2793 | X129: 65 | Y129: 40 | Z129: 11 | AA129: 2 | AB129: 3416 | AC129: 188 | AD129: 2389 | AE129: 644 | AF129: 189 | AG129: 6 | AH129: 203 | AI129: 1242 | AJ129: 1214 | AK129: 1717 | AL129: 1616 | AM129: 457 | AN129: 377 | AO129: N/A | AP129: N/A | AQ129: N/A | AR129: N/A | AS129: N/A | AT129: N/A | AU129: N/A | AV129: N/A
A130: 129 | B130: San José Miahuatlán | C130: 13 | D130: 13 Tehuacán | E130: Hombre | F130: 6720 | G130: 6328 | H130: 1114 | I130: 30 | J130: 620 | K130: 82 | L130: 175 | M130: 207 | N130: 5150 | O130: 3996 | P130: 3893 | Q130: 103 | R130: 4534 | S130: 534 | T130: 89 | U130: 9 | V130: 0 | W130: 3819 | X130: 90 | Y130: 32 | Z130: 5 | AA130: 6 | AB130: 4768 | AC130: 378 | AD130: 3435 | AE130: 705 | AF130: 250 | AG130: 0 | AH130: 461 | AI130: 1701 | AJ130: 1674 | AK130: 2276 | AL130: 2133 | AM130: 791 | AN130: 500 | AO130: N/A | AP130: N/A | AQ130: N/A | AR130: N/A | AS130: N/A | AT130: N/A | AU130: N/A | AV130: N/A
A131: 130 | B131: San Juan Atenco | C131: 11 | D131: 11 Ciudad Serdán | E131: Hombre | F131: 1660 | G131: 1571 | H131: 371 | I131: 5 | J131: 161 | K131: 27 | L131: 60 | M131: 118 | N131: 1302 | O131: 926 | P131: 907 | Q131: 19 | R131: 1283 | S131: 76 | T131: 10 | U131: 24 | V131: 5 | W131: 1149 | X131: 0 | Y131: 3 | Z131: 21 | AA131: 0 | AB131: 1220 | AC131: 72 | AD131: 795 | AE131: 241 | AF131: 112 | AG131: 0 | AH131: 90 | AI131: 388 | AJ131: 380 | AK131: 552 | AL131: 518 | AM131: 280 | AN131: 232 | AO131: N/A | AP131: N/A | AQ131: N/A | AR131: N/A | AS131: N/A | AT131: N/A | AU131: N/A | AV131: N/A
A132: 131 | B132: San Juan Atzompa | C132: 18 | D132: 18 Tepexi de Rodríguez | E132: Hombre | F132: 508 | G132: 482 | H132: 102 | I132: 1 | J132: 61 | K132: 1 | L132: 7 | M132: 32 | N132: 387 | O132: 285 | P132: 285 | Q132: 0 | R132: 328 | S132: 6 | T132: 3 | U132: 9 | V132: 0 | W132: 294 | X132: 13 | Y132: 0 | Z132: 5 | AA132: 0 | AB132: 354 | AC132: 5 | AD132: 243 | AE132: 71 | AF132: 31 | AG132: 4 | AH132: 5 | AI132: 131 | AJ132: 126 | AK132: 168 | AL132: 167 | AM132: 55 | AN132: 52 | AO132: N/A | AP132: N/A | AQ132: N/A | AR132: N/A | AS132: N/A | AT132: N/A | AU132: N/A | AV132: N/A
A133: 132 | B133: San Martín Texmelucan | C133: 20 | D133: 20 San Martín Texmelucan | E133: Hombre | F133: 74922 | G133: 70987 | H133: 12764 | I133: 1439 | J133: 8430 | K133: 472 | L133: 942 | M133: 1481 | N133: 58346 | O133: 45431 | P133: 44469 | Q133: 962 | R133: 43445 | S133: 20138 | T133: 2825 | U133: 582 | V133: 1430 | W133: 17652 | X133: 461 | Y133: 434 | Z133: 290 | AA133: 88 | AB133: 54029 | AC133: 1307 | AD133: 27763 | AE133: 14485 | AF133: 10340 | AG133: 134 | AH133: 1301 | AI133: 19640 | AJ133: 19413 | AK133: 26662 | AL133: 26132 | AM133: 7727 | AN133: 7058 | AO133: N/A | AP133: N/A | AQ133: N/A | AR133: N/A | AS133: N/A | AT133: N/A | AU133: N/A | AV133: N/A
A134: 133 | B134: San Martín Totoltepec | C134: 15 | D134: 15 Izúcar de Matamoros | E134: Hombre | F134: 358 | G134: 334 | H134: 111 | I134: 1 | J134: 41 | K134: 0 | L134: 11 | M134: 58 | N134: 269 | O134: 155 | P134: 152 | Q134: 3 | R134: 313 | S134: 21 | T134: 3 | U134: 4 | V134: 0 | W134: 285 | X134: 1 | Y134: 0 | Z134: 0 | AA134: 0 | AB134: 247 | AC134: 15 | AD134: 144 | AE134: 67 | AF134: 21 | AG134: 0 | AH134: 22 | AI134: 102 | AJ134: 100 | AK134: 96 | AL134: 91 | AM134: 49 | AN134: 34 | AO134: N/A | AP134: N/A | AQ134: N/A | AR134: N/A | AS134: N/A | AT134: N/A | AU134: N/A | AV134: N/A
A135: 134 | B135: San Matías Tlalancaleca | C135: 20 | D135: 20 San Martín Texmelucan | E135: Hombre | F135: 10218 | G135: 9678 | H135: 1583 | I135: 94 | J135: 964 | K135: 82 | L135: 180 | M135: 263 | N135: 7895 | O135: 6291 | P135: 6146 | Q135: 145 | R135: 5644 | S135: 920 | T135: 138 | U135: 22 | V135: 24 | W135: 4392 | X135: 129 | Y135: 23 | Z135: 14 | AA135: 0 | AB135: 7362 | AC135: 324 | AD135: 4825 | AE135: 1534 | AF135: 671 | AG135: 8 | AH135: 303 | AI135: 2699 | AJ135: 2658 | AK135: 3492 | AL135: 3362 | AM135: 1171 | AN135: 1032 | AO135: N/A | AP135: N/A | AQ135: N/A | AR135: N/A | AS135: N/A | AT135: N/A | AU135: N/A | AV135: N/A
A136: 135 | B136: San Miguel Ixitlán | C136: 17 | D136: 17 Acatlán | E136: Hombre | F136: 254 | G136: 242 | H136: 55 | I136: 2 | J136: 23 | K136: 2 | L136: 25 | M136: 3 | N136: 211 | O136: 155 | P136: 155 | Q136: 0 | R136: 236 | S136: 4 | T136: 3 | U136: 0 | V136: 0 | W136: 229 | X136: 1 | Y136: 0 | Z136: 0 | AA136: 2 | AB136: 198 | AC136: 10 | AD136: 144 | AE136: 38 | AF136: 6 | AG136: 0 | AH136: 12 | AI136: 42 | AJ136: 41 | AK136: 75 | AL136: 70 | AM136: 81 | AN136: 75 | AO136: N/A | AP136: N/A | AQ136: N/A | AR136: N/A | AS136: N/A | AT136: N/A | AU136: N/A | AV136: N/A
A137: 136 | B137: San Miguel Xoxtla | C137: 21-31 | D137: 21-31 Área Metropolitana de la Ciudad de Puebla | E137: Hombre | F137: 6089 | G137: 5780 | H137: 1363 | I137: 197 | J137: 880 | K137: 46 | L137: 56 | M137: 184 | N137: 4749 | O137: 3379 | P137: 3208 | Q137: 171 | R137: 4684 | S137: 2894 | T137: 114 | U137: 21 | V137: 3 | W137: 1536 | X137: 14 | Y137: 49 | Z137: 80 | AA137: 6 | AB137: 4399 | AC137: 83 | AD137: 1960 | AE137: 1495 | AF137: 853 | AG137: 8 | AH137: 49 | AI137: 1724 | AJ137: 1712 | AK137: 2126 | AL137: 2102 | AM137: 549 | AN137: 528 | AO137: N/A | AP137: N/A | AQ137: N/A | AR137: N/A | AS137: N/A | AT137: N/A | AU137: N/A | AV137: N/A
A138: 137 | B138: San Nicolás Buenos Aires | C138: 9 | D138: 9 Quimixtlán | E138: Hombre | F138: 5120 | G138: 4777 | H138: 702 | I138: 11 | J138: 328 | K138: 44 | L138: 87 | M138: 232 | N138: 3729 | O138: 3017 | P138: 2969 | Q138: 48 | R138: 4090 | S138: 382 | T138: 23 | U138: 19 | V138: 5 | W138: 3683 | X138: 32 | Y138: 7 | Z138: 2 | AA138: 1 | AB138: 3406 | AC138: 308 | AD138: 2559 | AE138: 391 | AF138: 147 | AG138: 1 | AH138: 386 | AI138: 1224 | AJ138: 1178 | AK138: 1722 | AL138: 1537 | AM138: 460 | AN138: 304 | AO138: N/A | AP138: N/A | AQ138: N/A | AR138: N/A | AS138: N/A | AT138: N/A | AU138: N/A | AV138: N/A
A139: 138 | B139: San Nicolás de los Ranchos | C139: 20 | D139: 20 San Martín Texmelucan | E139: Hombre | F139: 5737 | G139: 5363 | H139: 679 | I139: 6 | J139: 374 | K139: 32 | L139: 140 | M139: 127 | N139: 4294 | O139: 3607 | P139: 3582 | Q139: 25 | R139: 3930 | S139: 203 | T139: 37 | U139: 23 | V139: 5 | W139: 3614 | X139: 28 | Y139: 22 | Z139: 9 | AA139: 0 | AB139: 3952 | AC139: 188 | AD139: 2887 | AE139: 636 | AF139: 237 | AG139: 4 | AH139: 226 | AI139: 1434 | AJ139: 1413 | AK139: 1740 | AL139: 1675 | AM139: 778 | AN139: 635 | AO139: N/A | AP139: N/A | AQ139: N/A | AR139: N/A | AS139: N/A | AT139: N/A | AU139: N/A | AV139: N/A
A140: 139 | B140: San Pablo Anicano | C140: 17 | D140: 17 Acatlán | E140: Hombre | F140: 1791 | G140: 1700 | H140: 487 | I140: 17 | J140: 172 | K140: 99 | L140: 75 | M140: 124 | N140: 1385 | O140: 897 | P140: 873 | Q140: 24 | R140: 1491 | S140: 37 | T140: 62 | U140: 18 | V140: 2 | W140: 1378 | X140: 1 | Y140: 2 | Z140: 0 | AA140: 0 | AB140: 1284 | AC140: 97 | AD140: 800 | AE140: 280 | AF140: 107 | AG140: 0 | AH140: 121 | AI140: 424 | AJ140: 419 | AK140: 534 | AL140: 496 | AM140: 326 | AN140: 248 | AO140: N/A | AP140: N/A | AQ140: N/A | AR140: N/A | AS140: N/A | AT140: N/A | AU140: N/A | AV140: N/A
A141: 140 | B141: San Pedro Cholula | C141: 21-31 | D141: 21-31 Área Metropolitana de la Ciudad de Puebla | E141: Hombre | F141: 66454 | G141: 63194 | H141: 12273 | I141: 2181 | J141: 7591 | K141: 388 | L141: 585 | M141: 1528 | N141: 52898 | O141: 40464 | P141: 39628 | Q141: 836 | R141: 42776 | S141: 21600 | T141: 2034 | U141: 1178 | V141: 253 | W141: 14799 | X141: 248 | Y141: 3120 | Z141: 644 | AA141: 707 | AB141: 49582 | AC141: 817 | AD141: 20578 | AE141: 11462 | AF141: 16637 | AG141: 88 | AH141: 790 | AI141: 17300 | AJ141: 17126 | AK141: 25083 | AL141: 24724 | AM141: 7199 | AN141: 6852 | AO141: N/A | AP141: N/A | AQ141: N/A | AR141: N/A | AS141: N/A | AT141: N/A | AU141: N/A | AV141: N/A
A142: 141 | B142: San Pedro Yeloixtlahuaca | C142: 17 | D142: 17 Acatlán | E142: Hombre | F142: 1685 | G142: 1582 | H142: 404 | I142: 15 | J142: 154 | K142: 42 | L142: 76 | M142: 117 | N142: 1288 | O142: 881 | P142: 858 | Q142: 23 | R142: 1258 | S142: 34 | T142: 96 | U142: 11 | V142: 5 | W142: 1107 | X142: 3 | Y142: 1 | Z142: 5 | AA142: 0 | AB142: 1199 | AC142: 113 | AD142: 699 | AE142: 276 | AF142: 109 | AG142: 2 | AH142: 108 | AI142: 400 | AJ142: 396 | AK142: 465 | AL142: 442 | AM142: 334 | AN142: 251 | AO142: N/A | AP142: N/A | AQ142: N/A | AR142: N/A | AS142: N/A | AT142: N/A | AU142: N/A | AV142: N/A
A143: 142 | B143: San Salvador el Seco | C143: 8 | D143: 8 Libres | E143: Hombre | F143: 14990 | G143: 14071 | H143: 2166 | I143: 36 | J143: 1321 | K143: 142 | L143: 361 | M143: 306 | N143: 11456 | O143: 9264 | P143: 9051 | Q143: 213 | R143: 8159 | S143: 1559 | T143: 140 | U143: 95 | V143: 16 | W143: 6269 | X143: 136 | Y143: 27 | Z143: 7 | AA143: 2 | AB143: 10545 | AC143: 911 | AD143: 6811 | AE143: 2015 | AF143: 799 | AG143: 9 | AH143: 745 | AI143: 3949 | AJ143: 3880 | AK143: 5150 | AL143: 4836 | AM143: 1446 | AN143: 1075 | AO143: N/A | AP143: N/A | AQ143: N/A | AR143: N/A | AS143: N/A | AT143: N/A | AU143: N/A | AV143: N/A
A144: 143 | B144: San Salvador el Verde | C144: 20 | D144: 20 San Martín Texmelucan | E144: Hombre | F144: 16955 | G144: 16007 | H144: 2636 | I144: 98 | J144: 1810 | K144: 135 | L144: 163 | M144: 430 | N144: 12966 | O144: 10308 | P144: 10117 | Q144: 191 | R144: 10601 | S144: 3037 | T144: 353 | U144: 71 | V144: 90 | W144: 6901 | X144: 18 | Y144: 105 | Z144: 97 | AA144: 15 | AB144: 11999 | AC144: 297 | AD144: 7499 | AE144: 2909 | AF144: 1281 | AG144: 13 | AH144: 290 | AI144: 4659 | AJ144: 4615 | AK144: 5794 | AL144: 5676 | AM144: 1546 | AN144: 1405 | AO144: N/A | AP144: N/A | AQ144: N/A | AR144: N/A | AS144: N/A | AT144: N/A | AU144: N/A | AV144: N/A
A145: 144 | B145: San Salvador Huixcolotla | C145: 10 | D145: 10 Acatzingo | E145: Hombre | F145: 8176 | G145: 7635 | H145: 870 | I145: 5 | J145: 498 | K145: 51 | L145: 74 | M145: 242 | N145: 6100 | O145: 5214 | P145: 5152 | Q145: 62 | R145: 2552 | S145: 118 | T145: 52 | U145: 10 | V145: 3 | W145: 2282 | X145: 45 | Y145: 40 | Z145: 9 | AA145: 2 | AB145: 5593 | AC145: 255 | AD145: 4050 | AE145: 823 | AF145: 458 | AG145: 7 | AH145: 218 | AI145: 2239 | AJ145: 2212 | AK145: 2710 | AL145: 2599 | AM145: 644 | AN145: 558 | AO145: N/A | AP145: N/A | AQ145: N/A | AR145: N/A | AS145: N/A | AT145: N/A | AU145: N/A | AV145: N/A
A146: 145 | B146: San Sebastián Tlacotepec | C146: 14 | D146: 14 Sierra Negra | E146: Hombre | F146: 6486 | G146: 6093 | H146: 1138 | I146: 2 | J146: 596 | K146: 29 | L146: 203 | M146: 308 | N146: 4751 | O146: 3584 | P146: 3532 | Q146: 52 | R146: 5637 | S146: 139 | T146: 45 | U146: 6 | V146: 13 | W146: 5489 | X146: 11 | Y146: 8 | Z146: 8 | AA146: 4 | AB146: 4268 | AC146: 401 | AD146: 3202 | AE146: 589 | AF146: 75 | AG146: 1 | AH146: 597 | AI146: 1517 | AJ146: 1471 | AK146: 1990 | AL146: 1729 | AM146: 761 | AN146: 470 | AO146: N/A | AP146: N/A | AQ146: N/A | AR146: N/A | AS146: N/A | AT146: N/A | AU146: N/A | AV146: N/A
A147: 146 | B147: Santa Catarina Tlaltempan | C147: 18 | D147: 18 Tepexi de Rodríguez | E147: Hombre | F147: 372 | G147: 367 | H147: 110 | I147: 3 | J147: 36 | K147: 6 | L147: 12 | M147: 53 | N147: 310 | O147: 195 | P147: 182 | Q147: 13 | R147: 273 | S147: 23 | T147: 2 | U147: 0 | V147: 4 | W147: 228 | X147: 34 | Y147: 0 | Z147: 2 | AA147: 0 | AB147: 290 | AC147: 54 | AD147: 182 | AE147: 47 | AF147: 7 | AG147: 0 | AH147: 35 | AI147: 77 | AJ147: 76 | AK147: 126 | AL147: 118 | AM147: 87 | AN147: 61 | AO147: N/A | AP147: N/A | AQ147: N/A | AR147: N/A | AS147: N/A | AT147: N/A | AU147: N/A | AV147: N/A
A148: 147 | B148: Santa Inés Ahuatempan | C148: 18 | D148: 18 Tepexi de Rodríguez | E148: Hombre | F148: 3038 | G148: 2845 | H148: 716 | I148: 25 | J148: 321 | K148: 109 | L148: 97 | M148: 164 | N148: 2347 | O148: 1603 | P148: 1590 | Q148: 13 | R148: 2294 | S148: 99 | T148: 88 | U148: 26 | V148: 18 | W148: 1874 | X148: 144 | Y148: 25 | Z148: 34 | AA148: 2 | AB148: 2129 | AC148: 225 | AD148: 1294 | AE148: 452 | AF148: 156 | AG148: 2 | AH148: 219 | AI148: 722 | AJ148: 716 | AK148: 864 | AL148: 800 | AM148: 543 | AN148: 392 | AO148: N/A | AP148: N/A | AQ148: N/A | AR148: N/A | AS148: N/A | AT148: N/A | AU148: N/A | AV148: N/A
A149: 148 | B149: Santa Isabel Cholula | C149: 19 | D149: 19 Atlixco | E149: Hombre | F149: 5613 | G149: 5229 | H149: 775 | I149: 15 | J149: 453 | K149: 54 | L149: 129 | M149: 124 | N149: 4065 | O149: 3271 | P149: 3237 | Q149: 34 | R149: 4040 | S149: 338 | T149: 32 | U149: 18 | V149: 8 | W149: 3640 | X149: 18 | Y149: 16 | Z149: 4 | AA149: 2 | AB149: 3711 | AC149: 133 | AD149: 2747 | AE149: 614 | AF149: 215 | AG149: 2 | AH149: 198 | AI149: 1572 | AJ149: 1542 | AK149: 1649 | AL149: 1543 | AM149: 490 | AN149: 426 | AO149: N/A | AP149: N/A | AQ149: N/A | AR149: N/A | AS149: N/A | AT149: N/A | AU149: N/A | AV149: N/A
A150: 149 | B150: Santiago Miahuatlán | C150: 13 | D150: 13 Tehuacán | E150: Hombre | F150: 14673 | G150: 13790 | H150: 2242 | I150: 118 | J150: 1394 | K150: 147 | L150: 203 | M150: 380 | N150: 11070 | O150: 8808 | P150: 8697 | Q150: 111 | R150: 10041 | S150: 3819 | T150: 129 | U150: 31 | V150: 39 | W150: 5763 | X150: 21 | Y150: 236 | Z150: 110 | AA150: 5 | AB150: 10120 | AC150: 692 | AD150: 6742 | AE150: 1902 | AF150: 780 | AG150: 4 | AH150: 616 | AI150: 4344 | AJ150: 4261 | AK150: 4773 | AL150: 4451 | AM150: 1003 | AN150: 788 | AO150: N/A | AP150: N/A | AQ150: N/A | AR150: N/A | AS150: N/A | AT150: N/A | AU150: N/A | AV150: N/A
A151: 150 | B151: Huehuetlán el Grande | C151: 18 | D151: 18 Tepexi de Rodríguez | E151: Hombre | F151: 2946 | G151: 2771 | H151: 643 | I151: 8 | J151: 234 | K151: 94 | L151: 116 | M151: 191 | N151: 2220 | O151: 1564 | P151: 1508 | Q151: 56 | R151: 2266 | S151: 34 | T151: 29 | U151: 19 | V151: 4 | W151: 2162 | X151: 2 | Y151: 18 | Z151: 2 | AA151: 3 | AB151: 2057 | AC151: 220 | AD151: 1536 | AE151: 250 | AF151: 47 | AG151: 4 | AH151: 253 | AI151: 664 | AJ151: 650 | AK151: 897 | AL151: 807 | AM151: 496 | AN151: 343 | AO151: N/A | AP151: N/A | AQ151: N/A | AR151: N/A | AS151: N/A | AT151: N/A | AU151: N/A | AV151: N/A
A152: 151 | B152: Santo Tomás Hueyotlipan | C152: 32 | D152: 32 Tepeaca | E152: Hombre | F152: 4524 | G152: 4253 | H152: 731 | I152: 10 | J152: 459 | K152: 33 | L152: 97 | M152: 132 | N152: 3400 | O152: 2646 | P152: 2613 | Q152: 33 | R152: 2127 | S152: 257 | T152: 79 | U152: 31 | V152: 6 | W152: 1729 | X152: 18 | Y152: 6 | Z152: 9 | AA152: 2 | AB152: 3155 | AC152: 67 | AD152: 2019 | AE152: 654 | AF152: 412 | AG152: 3 | AH152: 78 | AI152: 1220 | AJ152: 1204 | AK152: 1493 | AL152: 1463 | AM152: 442 | AN152: 407 | AO152: N/A | AP152: N/A | AQ152: N/A | AR152: N/A | AS152: N/A | AT152: N/A | AU152: N/A | AV152: N/A
A153: 152 | B153: Soltepec | C153: 8 | D153: 8 Libres | E153: Hombre | F153: 6103 | G153: 5769 | H153: 1055 | I153: 12 | J153: 516 | K153: 59 | L153: 160 | M153: 308 | N153: 4650 | O153: 3573 | P153: 3473 | Q153: 100 | R153: 4473 | S153: 660 | T153: 68 | U153: 13 | V153: 8 | W153: 3714 | X153: 45 | Y153: 5 | Z153: 8 | AA153: 5 | AB153: 4305 | AC153: 175 | AD153: 3079 | AE153: 834 | AF153: 214 | AG153: 3 | AH153: 252 | AI153: 1507 | AJ153: 1478 | AK153: 1998 | AL153: 1882 | AM153: 800 | AN153: 689 | AO153: N/A | AP153: N/A | AQ153: N/A | AR153: N/A | AS153: N/A | AT153: N/A | AU153: N/A | AV153: N/A
A154: 153 | B154: Tecali de Herrera | C154: 32 | D154: 32 Tepeaca | E154: Hombre | F154: 11494 | G154: 10800 | H154: 1821 | I154: 69 | J154: 1177 | K154: 83 | L154: 218 | M154: 274 | N154: 8665 | O154: 6826 | P154: 6674 | Q154: 152 | R154: 6761 | S154: 1081 | T154: 408 | U154: 125 | V154: 14 | W154: 4911 | X154: 44 | Y154: 76 | Z154: 128 | AA154: 1 | AB154: 7990 | AC154: 137 | AD154: 5197 | AE154: 1753 | AF154: 897 | AG154: 6 | AH154: 182 | AI154: 3004 | AJ154: 2973 | AK154: 3867 | AL154: 3782 | AM154: 1119 | AN154: 1047 | AO154: N/A | AP154: N/A | AQ154: N/A | AR154: N/A | AS154: N/A | AT154: N/A | AU154: N/A | AV154: N/A
A155: 154 | B155: Tecamachalco | C155: 12 | D155: 12 Tecamachalco | E155: Hombre | F155: 38781 | G155: 36385 | H155: 5689 | I155: 271 | J155: 3856 | K155: 273 | L155: 524 | M155: 765 | N155: 28977 | O155: 23181 | P155: 22938 | Q155: 243 | R155: 23076 | S155: 4957 | T155: 927 | U155: 285 | V155: 43 | W155: 16451 | X155: 248 | Y155: 183 | Z155: 97 | AA155: 28 | AB155: 26568 | AC155: 1219 | AD155: 15658 | AE155: 5807 | AF155: 3853 | AG155: 31 | AH155: 1219 | AI155: 10810 | AJ155: 10659 | AK155: 12747 | AL155: 12182 | AM155: 3011 | AN155: 2477 | AO155: N/A | AP155: N/A | AQ155: N/A | AR155: N/A | AS155: N/A | AT155: N/A | AU155: N/A | AV155: N/A
A156: 155 | B156: Tecomatlán | C156: 17 | D156: 17 Acatlán | E156: Hombre | F156: 3416 | G156: 3218 | H156: 992 | I156: 20 | J156: 695 | K156: 46 | L156: 112 | M156: 119 | N156: 2726 | O156: 1707 | P156: 1674 | Q156: 33 | R156: 2409 | S156: 457 | T156: 98 | U156: 39 | V156: 1 | W156: 1759 | X156: 14 | Y156: 42 | Z156: 39 | AA156: 3 | AB156: 2508 | AC156: 233 | AD156: 1153 | AE156: 587 | AF156: 533 | AG156: 2 | AH156: 278 | AI156: 1238 | AJ156: 1220 | AK156: 827 | AL156: 736 | AM156: 443 | AN156: 272 | AO156: N/A | AP156: N/A | AQ156: N/A | AR156: N/A | AS156: N/A | AT156: N/A | AU156: N/A | AV156: N/A
A157: 156 | B157: Tehuacán | C157: 13 | D157: 13 Tehuacán | E157: Hombre | F157: 154407 | G157: 146128 | H157: 25493 | I157: 3306 | J157: 16302 | K157: 977 | L157: 1866 | M157: 3042 | N157: 119684 | O157: 93780 | P157: 92089 | Q157: 1691 | R157: 96119 | S157: 49055 | T157: 5942 | U157: 1345 | V157: 1093 | W157: 36558 | X157: 560 | Y157: 1300 | Z157: 1438 | AA157: 134 | AB157: 110655 | AC157: 4049 | AD157: 56471 | AE157: 26436 | AF157: 23549 | AG157: 150 | AH157: 3789 | AI157: 42859 | AJ157: 42272 | AK157: 54336 | AL157: 52504 | AM157: 13460 | AN157: 11943 | AO157: N/A | AP157: N/A | AQ157: N/A | AR157: N/A | AS157: N/A | AT157: N/A | AU157: N/A | AV157: N/A
A158: 157 | B158: Tehuitzingo | C158: 17 | D158: 17 Acatlán | E158: Hombre | F158: 6093 | G158: 5753 | H158: 1394 | I158: 44 | J158: 485 | K158: 158 | L158: 250 | M158: 457 | N158: 4640 | O158: 3220 | P158: 3179 | Q158: 41 | R158: 4346 | S158: 134 | T158: 206 | U158: 48 | V158: 12 | W158: 3922 | X158: 32 | Y158: 15 | Z158: 9 | AA158: 8 | AB158: 4312 | AC158: 471 | AD158: 2678 | AE158: 786 | AF158: 359 | AG158: 18 | AH158: 580 | AI158: 1409 | AJ158: 1369 | AK158: 1791 | AL158: 1613 | AM158: 1112 | AN158: 732 | AO158: N/A | AP158: N/A | AQ158: N/A | AR158: N/A | AS158: N/A | AT158: N/A | AU158: N/A | AV158: N/A
A159: 158 | B159: Tenampulco | C159: 6 | D159: 6 Teziutlán | E159: Hombre | F159: 3304 | G159: 3167 | H159: 567 | I159: 16 | J159: 274 | K159: 29 | L159: 158 | M159: 90 | N159: 2707 | O159: 2121 | P159: 2093 | Q159: 28 | R159: 2456 | S159: 124 | T159: 137 | U159: 48 | V159: 16 | W159: 2118 | X159: 37 | Y159: 7 | Z159: 4 | AA159: 0 | AB159: 2528 | AC159: 167 | AD159: 1575 | AE159: 635 | AF159: 151 | AG159: 0 | AH159: 210 | AI159: 746 | AJ159: 735 | AK159: 1186 | AL159: 1106 | AM159: 596 | AN159: 477 | AO159: N/A | AP159: N/A | AQ159: N/A | AR159: N/A | AS159: N/A | AT159: N/A | AU159: N/A | AV159: N/A
A160: 159 | B160: Teopantlán | C160: 15 | D160: 15 Izúcar de Matamoros | E160: Hombre | F160: 1712 | G160: 1637 | H160: 667 | I160: 2 | J160: 144 | K160: 99 | L160: 107 | M160: 315 | N160: 1409 | O160: 720 | P160: 715 | Q160: 5 | R160: 1256 | S160: 13 | T160: 3 | U160: 2 | V160: 1 | W160: 1238 | X160: 2 | Y160: 9 | Z160: 1 | AA160: 0 | AB160: 1330 | AC160: 312 | AD160: 829 | AE160: 149 | AF160: 39 | AG160: 1 | AH160: 318 | AI160: 323 | AJ160: 313 | AK160: 529 | AL160: 461 | AM160: 478 | AN160: 237 | AO160: N/A | AP160: N/A | AQ160: N/A | AR160: N/A | AS160: N/A | AT160: N/A | AU160: N/A | AV160: N/A
A161: 160 | B161: Teotlalco | C161: 16 | D161: 16 Chiautla | E161: Hombre | F161: 1840 | G161: 1734 | H161: 471 | I161: 23 | J161: 174 | K161: 100 | L161: 43 | M161: 131 | N161: 1387 | O161: 911 | P161: 713 | Q161: 198 | R161: 1543 | S161: 57 | T161: 42 | U161: 7 | V161: 1 | W161: 1434 | X161: 0 | Y161: 3 | Z161: 1 | AA161: 13 | AB161: 1275 | AC161: 86 | AD161: 826 | AE161: 292 | AF161: 69 | AG161: 2 | AH161: 104 | AI161: 389 | AJ161: 381 | AK161: 595 | AL161: 555 | AM161: 291 | AN161: 233 | AO161: N/A | AP161: N/A | AQ161: N/A | AR161: N/A | AS161: N/A | AT161: N/A | AU161: N/A | AV161: N/A
A162: 161 | B162: Tepanco de López | C162: 13 | D162: 13 Tehuacán | E162: Hombre | F162: 10401 | G162: 9719 | H162: 1716 | I162: 68 | J162: 1115 | K162: 72 | L162: 208 | M162: 253 | N162: 7875 | O162: 6137 | P162: 6085 | Q162: 52 | R162: 6899 | S162: 2771 | T162: 144 | U162: 40 | V162: 11 | W162: 3935 | X162: 24 | Y162: 9 | Z162: 9 | AA162: 4 | AB162: 7191 | AC162: 332 | AD162: 4570 | AE162: 1504 | AF162: 782 | AG162: 3 | AH162: 385 | AI162: 3000 | AJ162: 2962 | AK162: 3309 | AL162: 3099 | AM162: 882 | AN162: 742 | AO162: N/A | AP162: N/A | AQ162: N/A | AR162: N/A | AS162: N/A | AT162: N/A | AU162: N/A | AV162: N/A
A163: 162 | B163: Tepango de Rodríguez | C163: 3 | D163: 3 Zacatlán | E163: Hombre | F163: 1919 | G163: 1809 | H163: 372 | I163: 4 | J163: 209 | K163: 6 | L163: 59 | M163: 94 | N163: 1438 | O163: 1062 | P163: 973 | Q163: 89 | R163: 1316 | S163: 20 | T163: 9 | U163: 17 | V163: 0 | W163: 1267 | X163: 1 | Y163: 1 | Z163: 1 | AA163: 0 | AB163: 1325 | AC163: 324 | AD163: 699 | AE163: 213 | AF163: 88 | AG163: 1 | AH163: 348 | AI163: 442 | AJ163: 423 | AK163: 598 | AL163: 450 | AM163: 285 | AN163: 103 | AO163: N/A | AP163: N/A | AQ163: N/A | AR163: N/A | AS163: N/A | AT163: N/A | AU163: N/A | AV163: N/A
A164: 163 | B164: Tepatlaxco de Hidalgo | C164: 32 | D164: 32 Tepeaca | E164: Hombre | F164: 9120 | G164: 8564 | H164: 1550 | I164: 15 | J164: 924 | K164: 167 | L164: 228 | M164: 216 | N164: 6812 | O164: 5227 | P164: 5096 | Q164: 131 | R164: 6080 | S164: 1053 | T164: 70 | U164: 20 | V164: 18 | W164: 4744 | X164: 58 | Y164: 181 | Z164: 9 | AA164: 2 | AB164: 6224 | AC164: 335 | AD164: 4413 | AE164: 956 | AF164: 520 | AG164: 0 | AH164: 271 | AI164: 2470 | AJ164: 2444 | AK164: 2993 | AL164: 2859 | AM164: 761 | AN164: 650 | AO164: N/A | AP164: N/A | AQ164: N/A | AR164: N/A | AS164: N/A | AT164: N/A | AU164: N/A | AV164: N/A
A165: 164 | B165: Tepeaca | C165: 32 | D165: 32 Tepeaca | E165: Hombre | F165: 40509 | G165: 37847 | H165: 5499 | I165: 182 | J165: 3693 | K165: 318 | L165: 552 | M165: 754 | N165: 29847 | O165: 24242 | P165: 24029 | Q165: 213 | R165: 22385 | S165: 4131 | T165: 933 | U165: 343 | V165: 44 | W165: 16516 | X165: 195 | Y165: 212 | Z165: 116 | AA165: 18 | AB165: 27325 | AC165: 820 | AD165: 17020 | AE165: 5756 | AF165: 3691 | AG165: 38 | AH165: 953 | AI165: 11179 | AJ165: 10985 | AK165: 12838 | AL165: 12389 | AM165: 3308 | AN165: 2968 | AO165: N/A | AP165: N/A | AQ165: N/A | AR165: N/A | AS165: N/A | AT165: N/A | AU165: N/A | AV165: N/A
A166: 165 | B166: Tepemaxalco | C166: 19 | D166: 19 Atlixco | E166: Hombre | F166: 614 | G166: 579 | H166: 180 | I166: 0 | J166: 76 | K166: 3 | L166: 32 | M166: 69 | N166: 442 | O166: 255 | P166: 221 | Q166: 34 | R166: 474 | S166: 1 | T166: 0 | U166: 1 | V166: 0 | W166: 470 | X166: 2 | Y166: 0 | Z166: 0 | AA166: 0 | AB166: 395 | AC166: 47 | AD166: 271 | AE166: 75 | AF166: 2 | AG166: 0 | AH166: 51 | AI166: 161 | AJ166: 155 | AK166: 144 | AL166: 128 | AM166: 90 | AN166: 61 | AO166: N/A | AP166: N/A | AQ166: N/A | AR166: N/A | AS166: N/A | AT166: N/A | AU166: N/A | AV166: N/A
A167: 166 | B167: Tepeojuma | C167: 15 | D167: 15 Izúcar de Matamoros | E167: Hombre | F167: 4139 | G167: 3894 | H167: 707 | I167: 45 | J167: 330 | K167: 44 | L167: 85 | M167: 203 | N167: 3128 | O167: 2400 | P167: 2375 | Q167: 25 | R167: 3166 | S167: 512 | T167: 57 | U167: 11 | V167: 17 | W167: 2554 | X167: 15 | Y167: 26 | Z167: 3 | AA167: 0 | AB167: 2884 | AC167: 253 | AD167: 1978 | AE167: 439 | AF167: 208 | AG167: 6 | AH167: 265 | AI167: 1002 | AJ167: 988 | AK167: 1269 | AL167: 1163 | AM167: 613 | AN167: 462 | AO167: N/A | AP167: N/A | AQ167: N/A | AR167: N/A | AS167: N/A | AT167: N/A | AU167: N/A | AV167: N/A
A168: 167 | B168: Tepetzintla | C168: 3 | D168: 3 Zacatlán | E168: Hombre | F168: 4915 | G168: 4589 | H168: 1098 | I168: 4 | J168: 641 | K168: 125 | L168: 71 | M168: 257 | N168: 3570 | O168: 2459 | P168: 2245 | Q168: 214 | R168: 4534 | S168: 741 | T168: 27 | U168: 16 | V168: 8 | W168: 3152 | X168: 599 | Y168: 14 | Z168: 4 | AA168: 0 | AB168: 3189 | AC168: 679 | AD168: 1937 | AE168: 483 | AF168: 87 | AG168: 3 | AH168: 713 | AI168: 1151 | AJ168: 1125 | AK168: 1489 | AL168: 1132 | AM168: 549 | AN168: 216 | AO168: N/A | AP168: N/A | AQ168: N/A | AR168: N/A | AS168: N/A | AT168: N/A | AU168: N/A | AV168: N/A
A169: 168 | B169: Tepexco | C169: 15 | D169: 15 Izúcar de Matamoros | E169: Hombre | F169: 3704 | G169: 3456 | H169: 748 | I169: 12 | J169: 278 | K169: 106 | L169: 149 | M169: 203 | N169: 2738 | O169: 1953 | P169: 1909 | Q169: 44 | R169: 3289 | S169: 75 | T169: 57 | U169: 7 | V169: 13 | W169: 2822 | X169: 257 | Y169: 15 | Z169: 52 | AA169: 3 | AB169: 2515 | AC169: 245 | AD169: 1738 | AE169: 423 | AF169: 108 | AG169: 1 | AH169: 289 | AI169: 1017 | AJ169: 998 | AK169: 1027 | AL169: 908 | AM169: 471 | AN169: 319 | AO169: N/A | AP169: N/A | AQ169: N/A | AR169: N/A | AS169: N/A | AT169: N/A | AU169: N/A | AV169: N/A
A170: 169 | B170: Tepexi de Rodríguez | C170: 18 | D170: 18 Tepexi de Rodríguez | E170: Hombre | F170: 11194 | G170: 10645 | H170: 1681 | I170: 54 | J170: 881 | K170: 56 | L170: 362 | M170: 328 | N170: 8671 | O170: 6960 | P170: 6914 | Q170: 46 | R170: 6989 | S170: 953 | T170: 330 | U170: 388 | V170: 67 | W170: 5183 | X170: 171 | Y170: 10 | Z170: 42 | AA170: 724 | AB170: 8008 | AC170: 578 | AD170: 4886 | AE170: 1824 | AF170: 718 | AG170: 2 | AH170: 521 | AI170: 2703 | AJ170: 2663 | AK170: 3886 | AL170: 3680 | AM170: 1419 | AN170: 1142 | AO170: N/A | AP170: N/A | AQ170: N/A | AR170: N/A | AS170: N/A | AT170: N/A | AU170: N/A | AV170: N/A
A171: 170 | B171: Tepeyahualco | C171: 8 | D171: 8 Libres | E171: Hombre | F171: 9366 | G171: 8785 | H171: 1289 | I171: 24 | J171: 697 | K171: 96 | L171: 157 | M171: 315 | N171: 7016 | O171: 5708 | P171: 5425 | Q171: 283 | R171: 7009 | S171: 780 | T171: 125 | U171: 33 | V171: 8 | W171: 5988 | X171: 102 | Y171: 10 | Z171: 8 | AA171: 15 | AB171: 6460 | AC171: 448 | AD171: 4557 | AE171: 1101 | AF171: 351 | AG171: 3 | AH171: 567 | AI171: 2353 | AJ171: 2288 | AK171: 3019 | AL171: 2765 | AM171: 1088 | AN171: 840 | AO171: N/A | AP171: N/A | AQ171: N/A | AR171: N/A | AS171: N/A | AT171: N/A | AU171: N/A | AV171: N/A
A172: 171 | B172: Tepeyahualco de Cuauhtémoc | C172: 32 | D172: 32 Tepeaca | E172: Hombre | F172: 1816 | G172: 1712 | H172: 316 | I172: 3 | J172: 187 | K172: 21 | L172: 85 | M172: 20 | N172: 1394 | O172: 1073 | P172: 1045 | Q172: 28 | R172: 1154 | S172: 102 | T172: 27 | U172: 32 | V172: 0 | W172: 937 | X172: 2 | Y172: 58 | Z172: 1 | AA172: 0 | AB172: 1294 | AC172: 39 | AD172: 824 | AE172: 302 | AF172: 129 | AG172: 0 | AH172: 36 | AI172: 459 | AJ172: 452 | AK172: 649 | AL172: 635 | AM172: 186 | AN172: 171 | AO172: N/A | AP172: N/A | AQ172: N/A | AR172: N/A | AS172: N/A | AT172: N/A | AU172: N/A | AV172: N/A
A173: 172 | B173: Tetela de Ocampo | C173: 7 | D173: 7 Chignahuapan | E173: Hombre | F173: 13100 | G173: 12371 | H173: 1790 | I173: 59 | J173: 943 | K173: 80 | L173: 326 | M173: 382 | N173: 9964 | O173: 8142 | P173: 8060 | Q173: 82 | R173: 10184 | S173: 615 | T173: 336 | U173: 100 | V173: 20 | W173: 8790 | X173: 323 | Y173: 21 | Z173: 121 | AA173: 0 | AB173: 9153 | AC173: 705 | AD173: 5936 | AE173: 1714 | AF173: 795 | AG173: 3 | AH173: 962 | AI173: 3073 | AJ173: 3028 | AK173: 4517 | AL173: 4072 | AM173: 1563 | AN173: 1089 | AO173: N/A | AP173: N/A | AQ173: N/A | AR173: N/A | AS173: N/A | AT173: N/A | AU173: N/A | AV173: N/A
A174: 173 | B174: Teteles de Avila Castillo | C174: 6 | D174: 6 Teziutlán | E174: Hombre | F174: 2887 | G174: 2768 | H174: 580 | I174: 74 | J174: 387 | K174: 13 | L174: 50 | M174: 56 | N174: 2197 | O174: 1609 | P174: 1571 | Q174: 38 | R174: 2103 | S174: 276 | T174: 497 | U174: 127 | V174: 19 | W174: 1193 | X174: 0 | Y174: 7 | Z174: 0 | AA174: 1 | AB174: 2036 | AC174: 62 | AD174: 802 | AE174: 614 | AF174: 558 | AG174: 0 | AH174: 56 | AI174: 749 | AJ174: 746 | AK174: 988 | AL174: 970 | AM174: 299 | AN174: 264 | AO174: N/A | AP174: N/A | AQ174: N/A | AR174: N/A | AS174: N/A | AT174: N/A | AU174: N/A | AV174: N/A
A175: 174 | B175: Teziutlán | C175: 6 | D175: 6 Teziutlán | E175: Hombre | F175: 48649 | G175: 46266 | H175: 8554 | I175: 1092 | J175: 5789 | K175: 403 | L175: 496 | M175: 774 | N175: 37969 | O175: 29342 | P175: 28981 | Q175: 361 | R175: 30889 | S175: 15910 | T175: 2232 | U175: 565 | V175: 76 | W175: 11398 | X175: 333 | Y175: 498 | Z175: 218 | AA175: 14 | AB175: 35212 | AC175: 1200 | AD175: 17468 | AE175: 9289 | AF175: 7232 | AG175: 23 | AH175: 1148 | AI175: 13298 | AJ175: 13160 | AK175: 17184 | AL175: 16671 | AM175: 4730 | AN175: 4210 | AO175: N/A | AP175: N/A | AQ175: N/A | AR175: N/A | AS175: N/A | AT175: N/A | AU175: N/A | AV175: N/A
A176: 175 | B176: Tianguismanalco | C176: 19 | D176: 19 Atlixco | E176: Hombre | F176: 6990 | G176: 6563 | H176: 815 | I176: 30 | J176: 487 | K176: 42 | L176: 97 | M176: 159 | N176: 5274 | O176: 4440 | P176: 4400 | Q176: 40 | R176: 3829 | S176: 812 | T176: 93 | U176: 29 | V176: 12 | W176: 2869 | X176: 4 | Y176: 21 | Z176: 6 | AA176: 2 | AB176: 4891 | AC176: 234 | AD176: 3471 | AE176: 803 | AF176: 374 | AG176: 9 | AH176: 222 | AI176: 1917 | AJ176: 1877 | AK176: 2166 | AL176: 2062 | AM176: 808 | AN176: 723 | AO176: N/A | AP176: N/A | AQ176: N/A | AR176: N/A | AS176: N/A | AT176: N/A | AU176: N/A | AV176: N/A
A177: 176 | B177: Tilapa | C177: 15 | D177: 15 Izúcar de Matamoros | E177: Hombre | F177: 4635 | G177: 4367 | H177: 788 | I177: 85 | J177: 397 | K177: 45 | L177: 132 | M177: 129 | N177: 3529 | O177: 2732 | P177: 2676 | Q177: 56 | R177: 3806 | S177: 981 | T177: 154 | U177: 76 | V177: 17 | W177: 2591 | X177: 6 | Y177: 30 | Z177: 2 | AA177: 9 | AB177: 3260 | AC177: 201 | AD177: 2026 | AE177: 742 | AF177: 278 | AG177: 13 | AH177: 232 | AI177: 1155 | AJ177: 1131 | AK177: 1491 | AL177: 1399 | AM177: 614 | AN177: 490 | AO177: N/A | AP177: N/A | AQ177: N/A | AR177: N/A | AS177: N/A | AT177: N/A | AU177: N/A | AV177: N/A
A178: 177 | B178: Tlacotepec de Benito Juárez | C178: 12 | D178: 12 Tecamachalco | E178: Hombre | F178: 25754 | G178: 23665 | H178: 2923 | I178: 76 | J178: 1637 | K178: 179 | L178: 473 | M178: 558 | N178: 17762 | O178: 14777 | P178: 14565 | Q178: 212 | R178: 15862 | S178: 2100 | T178: 381 | U178: 49 | V178: 20 | W178: 13221 | X178: 72 | Y178: 57 | Z178: 38 | AA178: 8 | AB178: 15955 | AC178: 1426 | AD178: 11223 | AE178: 2341 | AF178: 944 | AG178: 21 | AH178: 1504 | AI178: 6677 | AJ178: 6545 | AK178: 7218 | AL178: 6434 | AM178: 2060 | AN178: 1453 | AO178: N/A | AP178: N/A | AQ178: N/A | AR178: N/A | AS178: N/A | AT178: N/A | AU178: N/A | AV178: N/A
A179: 178 | B179: Tlacuilotepec | C179: 1 | D179: 1 Xicotepec | E179: Hombre | F179: 7876 | G179: 7458 | H179: 1085 | I179: 8 | J179: 518 | K179: 48 | L179: 274 | M179: 237 | N179: 5976 | O179: 4867 | P179: 4828 | Q179: 39 | R179: 6007 | S179: 264 | T179: 65 | U179: 29 | V179: 71 | W179: 5578 | X179: 33 | Y179: 9 | Z179: 6 | AA179: 0 | AB179: 5429 | AC179: 660 | AD179: 3689 | AE179: 950 | AF179: 130 | AG179: 0 | AH179: 723 | AI179: 1591 | AJ179: 1564 | AK179: 2503 | AL179: 2284 | AM179: 1335 | AN179: 858 | AO179: N/A | AP179: N/A | AQ179: N/A | AR179: N/A | AS179: N/A | AT179: N/A | AU179: N/A | AV179: N/A
A180: 179 | B180: Tlachichuca | C180: 9 | D180: 9 Quimixtlán | E180: Hombre | F180: 15498 | G180: 14538 | H180: 2095 | I180: 17 | J180: 1143 | K180: 151 | L180: 308 | M180: 476 | N180: 11628 | O180: 9496 | P180: 9345 | Q180: 151 | R180: 12489 | S180: 713 | T180: 161 | U180: 142 | V180: 14 | W180: 11531 | X180: 21 | Y180: 24 | Z180: 35 | AA180: 20 | AB180: 10673 | AC180: 863 | AD180: 7191 | AE180: 1960 | AF180: 652 | AG180: 7 | AH180: 954 | AI180: 4154 | AJ180: 4051 | AK180: 4851 | AL180: 4473 | AM180: 1668 | AN180: 1188 | AO180: N/A | AP180: N/A | AQ180: N/A | AR180: N/A | AS180: N/A | AT180: N/A | AU180: N/A | AV180: N/A
A181: 180 | B181: Tlahuapan | C181: 20 | D181: 20 San Martín Texmelucan | E181: Hombre | F181: 20461 | G181: 19152 | H181: 2995 | I181: 105 | J181: 1797 | K181: 130 | L181: 427 | M181: 536 | N181: 15447 | O181: 12378 | P181: 12142 | Q181: 236 | R181: 12906 | S181: 2289 | T181: 222 | U181: 47 | V181: 27 | W181: 10266 | X181: 49 | Y181: 45 | Z181: 25 | AA181: 26 | AB181: 14244 | AC181: 460 | AD181: 10086 | AE181: 2759 | AF181: 932 | AG181: 7 | AH181: 574 | AI181: 5404 | AJ181: 5330 | AK181: 6733 | AL181: 6529 | AM181: 2107 | AN181: 1806 | AO181: N/A | AP181: N/A | AQ181: N/A | AR181: N/A | AS181: N/A | AT181: N/A | AU181: N/A | AV181: N/A
A182: 181 | B182: Tlaltenango | C182: 21-31 | D182: 21-31 Área Metropolitana de la Ciudad de Puebla | E182: Hombre | F182: 3634 | G182: 3424 | H182: 767 | I182: 23 | J182: 460 | K182: 41 | L182: 63 | M182: 180 | N182: 2728 | O182: 1945 | P182: 1837 | Q182: 108 | R182: 2576 | S182: 884 | T182: 43 | U182: 14 | V182: 1 | W182: 1597 | X182: 14 | Y182: 29 | Z182: 20 | AA182: 1 | AB182: 2508 | AC182: 74 | AD182: 1466 | AE182: 724 | AF182: 243 | AG182: 1 | AH182: 79 | AI182: 975 | AJ182: 966 | AK182: 1195 | AL182: 1158 | AM182: 338 | AN182: 304 | AO182: N/A | AP182: N/A | AQ182: N/A | AR182: N/A | AS182: N/A | AT182: N/A | AU182: N/A | AV182: N/A
A183: 182 | B183: Tlanepantla | C183: 32 | D183: 32 Tepeaca | E183: Hombre | F183: 2582 | G183: 2398 | H183: 423 | I183: 5 | J183: 263 | K183: 28 | L183: 43 | M183: 84 | N183: 1899 | O183: 1471 | P183: 1448 | Q183: 23 | R183: 1818 | S183: 42 | T183: 25 | U183: 6 | V183: 5 | W183: 1696 | X183: 4 | Y183: 20 | Z183: 23 | AA183: 0 | AB183: 1740 | AC183: 35 | AD183: 1255 | AE183: 319 | AF183: 130 | AG183: 1 | AH183: 55 | AI183: 758 | AJ183: 750 | AK183: 791 | AL183: 763 | AM183: 191 | AN183: 172 | AO183: N/A | AP183: N/A | AQ183: N/A | AR183: N/A | AS183: N/A | AT183: N/A | AU183: N/A | AV183: N/A
A184: 183 | B184: Tlaola | C184: 2 | D184: 2 Huauchinango | E184: Hombre | F184: 9850 | G184: 9202 | H184: 949 | I184: 4 | J184: 589 | K184: 33 | L184: 129 | M184: 194 | N184: 7070 | O184: 6096 | P184: 6071 | Q184: 25 | R184: 8129 | S184: 429 | T184: 89 | U184: 23 | V184: 36 | W184: 7487 | X184: 188 | Y184: 12 | Z184: 4 | AA184: 2 | AB184: 6365 | AC184: 1190 | AD184: 3887 | AE184: 1112 | AF184: 172 | AG184: 4 | AH184: 1232 | AI184: 2484 | AJ184: 2337 | AK184: 2936 | AL184: 2292 | AM184: 945 | AN184: 499 | AO184: N/A | AP184: N/A | AQ184: N/A | AR184: N/A | AS184: N/A | AT184: N/A | AU184: N/A | AV184: N/A
A185: 184 | B185: Tlapacoya | C185: 2 | D185: 2 Huauchinango | E185: Hombre | F185: 3075 | G185: 2869 | H185: 350 | I185: 2 | J185: 212 | K185: 20 | L185: 37 | M185: 79 | N185: 2221 | O185: 1857 | P185: 1850 | Q185: 7 | R185: 2743 | S185: 75 | T185: 24 | U185: 18 | V185: 3 | W185: 2554 | X185: 20 | Y185: 19 | Z185: 52 | AA185: 1 | AB185: 2046 | AC185: 294 | AD185: 1361 | AE185: 336 | AF185: 54 | AG185: 1 | AH185: 343 | AI185: 690 | AJ185: 661 | AK185: 961 | AL185: 815 | AM185: 395 | AN185: 226 | AO185: N/A | AP185: N/A | AQ185: N/A | AR185: N/A | AS185: N/A | AT185: N/A | AU185: N/A | AV185: N/A
A186: 185 | B186: Tlapanalá | C186: 15 | D186: 15 Izúcar de Matamoros | E186: Hombre | F186: 5050 | G186: 4649 | H186: 689 | I186: 10 | J186: 262 | K186: 54 | L186: 210 | M186: 153 | N186: 3708 | O186: 2974 | P186: 2925 | Q186: 49 | R186: 3520 | S186: 454 | T186: 26 | U186: 22 | V186: 4 | W186: 3016 | X186: 14 | Y186: 4 | Z186: 1 | AA186: 0 | AB186: 3419 | AC186: 218 | AD186: 2753 | AE186: 332 | AF186: 115 | AG186: 1 | AH186: 258 | AI186: 1278 | AJ186: 1245 | AK186: 1476 | AL186: 1382 | AM186: 665 | AN186: 533 | AO186: N/A | AP186: N/A | AQ186: N/A | AR186: N/A | AS186: N/A | AT186: N/A | AU186: N/A | AV186: N/A
A187: 186 | B187: Tlatlauquitepec | C187: 6 | D187: 6 Teziutlán | E187: Hombre | F187: 26617 | G187: 25123 | H187: 3854 | I187: 213 | J187: 2513 | K187: 181 | L187: 431 | M187: 516 | N187: 20182 | O187: 16273 | P187: 16105 | Q187: 168 | R187: 19654 | S187: 2313 | T187: 1551 | U187: 534 | V187: 83 | W187: 15216 | X187: 57 | Y187: 43 | Z187: 41 | AA187: 4 | AB187: 18396 | AC187: 1129 | AD187: 10443 | AE187: 4197 | AF187: 2615 | AG187: 12 | AH187: 1238 | AI187: 6541 | AJ187: 6476 | AK187: 8959 | AL187: 8478 | AM187: 2896 | AN187: 2192 | AO187: N/A | AP187: N/A | AQ187: N/A | AR187: N/A | AS187: N/A | AT187: N/A | AU187: N/A | AV187: N/A
A188: 187 | B188: Tlaxco | C188: 1 | D188: 1 Xicotepec | E188: Hombre | F188: 2428 | G188: 2316 | H188: 343 | I188: 4 | J188: 172 | K188: 11 | L188: 85 | M188: 71 | N188: 1881 | O188: 1528 | P188: 1515 | Q188: 13 | R188: 1998 | S188: 40 | T188: 26 | U188: 48 | V188: 1 | W188: 1882 | X188: 8 | Y188: 3 | Z188: 0 | AA188: 0 | AB188: 1719 | AC188: 220 | AD188: 1108 | AE188: 301 | AF188: 90 | AG188: 0 | AH188: 268 | AI188: 467 | AJ188: 453 | AK188: 818 | AL188: 719 | AM188: 434 | AN188: 279 | AO188: N/A | AP188: N/A | AQ188: N/A | AR188: N/A | AS188: N/A | AT188: N/A | AU188: N/A | AV188: N/A
A189: 188 | B189: Tochimilco | C189: 19 | D189: 19 Atlixco | E189: Hombre | F189: 9196 | G189: 8546 | H189: 1015 | I189: 9 | J189: 404 | K189: 69 | L189: 243 | M189: 290 | N189: 6694 | O189: 5655 | P189: 5637 | Q189: 18 | R189: 6072 | S189: 260 | T189: 41 | U189: 10 | V189: 32 | W189: 5699 | X189: 40 | Y189: 11 | Z189: 11 | AA189: 12 | AB189: 6184 | AC189: 222 | AD189: 5040 | AE189: 764 | AF189: 156 | AG189: 2 | AH189: 343 | AI189: 2386 | AJ189: 2338 | AK189: 2646 | AL189: 2486 | AM189: 1152 | AN189: 1015 | AO189: N/A | AP189: N/A | AQ189: N/A | AR189: N/A | AS189: N/A | AT189: N/A | AU189: N/A | AV189: N/A
A190: 189 | B190: Tochtepec | C190: 12 | D190: 12 Tecamachalco | E190: Hombre | F190: 10828 | G190: 10113 | H190: 1579 | I190: 33 | J190: 990 | K190: 84 | L190: 245 | M190: 227 | N190: 8048 | O190: 6436 | P190: 6391 | Q190: 45 | R190: 6926 | S190: 611 | T190: 146 | U190: 84 | V190: 10 | W190: 5954 | X190: 44 | Y190: 71 | Z190: 53 | AA190: 41 | AB190: 7325 | AC190: 301 | AD190: 4759 | AE190: 1482 | AF190: 781 | AG190: 2 | AH190: 351 | AI190: 2827 | AJ190: 2784 | AK190: 3473 | AL190: 3303 | AM190: 1025 | AN190: 885 | AO190: N/A | AP190: N/A | AQ190: N/A | AR190: N/A | AS190: N/A | AT190: N/A | AU190: N/A | AV190: N/A
A191: 190 | B191: Totoltepec de Guerrero | C191: 17 | D191: 17 Acatlán | E191: Hombre | F191: 553 | G191: 527 | H191: 194 | I191: 18 | J191: 58 | K191: 8 | L191: 33 | M191: 77 | N191: 458 | O191: 263 | P191: 254 | Q191: 9 | R191: 429 | S191: 41 | T191: 36 | U191: 5 | V191: 3 | W191: 350 | X191: 0 | Y191: 0 | Z191: 0 | AA191: 0 | AB191: 419 | AC191: 3 | AD191: 286 | AE191: 101 | AF191: 29 | AG191: 0 | AH191: 10 | AI191: 116 | AJ191: 115 | AK191: 173 | AL191: 170 | AM191: 130 | AN191: 124 | AO191: N/A | AP191: N/A | AQ191: N/A | AR191: N/A | AS191: N/A | AT191: N/A | AU191: N/A | AV191: N/A
A192: 191 | B192: Tulcingo | C192: 17 | D192: 17 Acatlán | E192: Hombre | F192: 4641 | G192: 4347 | H192: 706 | I192: 15 | J192: 256 | K192: 57 | L192: 215 | M192: 163 | N192: 3528 | O192: 2786 | P192: 2746 | Q192: 40 | R192: 3600 | S192: 62 | T192: 74 | U192: 23 | V192: 6 | W192: 3418 | X192: 2 | Y192: 12 | Z192: 18 | AA192: 2 | AB192: 3261 | AC192: 508 | AD192: 2073 | AE192: 477 | AF192: 202 | AG192: 1 | AH192: 467 | AI192: 1051 | AJ192: 1033 | AK192: 1431 | AL192: 1295 | AM192: 779 | AN192: 465 | AO192: N/A | AP192: N/A | AQ192: N/A | AR192: N/A | AS192: N/A | AT192: N/A | AU192: N/A | AV192: N/A
A193: 192 | B193: Tuzamapan de Galeana | C193: 5 | D193: 5 Zacapoaxtla | E193: Hombre | F193: 2909 | G193: 2772 | H193: 438 | I193: 3 | J193: 252 | K193: 20 | L193: 77 | M193: 86 | N193: 2330 | O193: 1886 | P193: 1877 | Q193: 9 | R193: 2555 | S193: 215 | T193: 109 | U193: 54 | V193: 20 | W193: 2181 | X193: 18 | Y193: 2 | Z193: 0 | AA193: 0 | AB193: 2157 | AC193: 124 | AD193: 1378 | AE193: 486 | AF193: 169 | AG193: 0 | AH193: 177 | AI193: 668 | AJ193: 661 | AK193: 999 | AL193: 926 | AM193: 490 | AN193: 393 | AO193: N/A | AP193: N/A | AQ193: N/A | AR193: N/A | AS193: N/A | AT193: N/A | AU193: N/A | AV193: N/A
A194: 193 | B194: Tzicatlacoyan | C194: 32 | D194: 32 Tepeaca | E194: Hombre | F194: 3190 | G194: 2993 | H194: 629 | I194: 4 | J194: 292 | K194: 46 | L194: 58 | M194: 229 | N194: 2427 | O194: 1790 | P194: 1756 | Q194: 34 | R194: 2539 | S194: 122 | T194: 11 | U194: 1 | V194: 0 | W194: 2180 | X194: 431 | Y194: 2 | Z194: 22 | AA194: 0 | AB194: 2237 | AC194: 85 | AD194: 1669 | AE194: 440 | AF194: 42 | AG194: 1 | AH194: 142 | AI194: 809 | AJ194: 802 | AK194: 989 | AL194: 935 | AM194: 439 | AN194: 357 | AO194: N/A | AP194: N/A | AQ194: N/A | AR194: N/A | AS194: N/A | AT194: N/A | AU194: N/A | AV194: N/A
A195: 194 | B195: Venustiano Carranza | C195: 1 | D195: 1 Xicotepec | E195: Hombre | F195: 13413 | G195: 12658 | H195: 2108 | I195: 98 | J195: 1232 | K195: 73 | L195: 388 | M195: 317 | N195: 10090 | O195: 7925 | P195: 7756 | Q195: 169 | R195: 8889 | S195: 917 | T195: 557 | U195: 231 | V195: 75 | W195: 7082 | X195: 98 | Y195: 21 | Z195: 18 | AA195: 9 | AB195: 9266 | AC195: 1003 | AD195: 4830 | AE195: 2307 | AF195: 1119 | AG195: 7 | AH195: 804 | AI195: 2929 | AJ195: 2887 | AK195: 4539 | AL195: 4279 | AM195: 1798 | AN195: 1290 | AO195: N/A | AP195: N/A | AQ195: N/A | AR195: N/A | AS195: N/A | AT195: N/A | AU195: N/A | AV195: N/A
A196: 195 | B196: Vicente Guerrero | C196: 14 | D196: 14 Sierra Negra | E196: Hombre | F196: 12434 | G196: 11512 | H196: 2374 | I196: 9 | J196: 1113 | K196: 71 | L196: 261 | M196: 920 | N196: 8766 | O196: 6363 | P196: 6071 | Q196: 292 | R196: 10883 | S196: 260 | T196: 33 | U196: 8 | V196: 5 | W196: 10605 | X196: 39 | Y196: 5 | Z196: 12 | AA196: 0 | AB196: 7857 | AC196: 1447 | AD196: 5416 | AE196: 903 | AF196: 88 | AG196: 3 | AH196: 1491 | AI196: 3138 | AJ196: 3001 | AK196: 3548 | AL196: 2829 | AM196: 1171 | AN196: 534 | AO196: N/A | AP196: N/A | AQ196: N/A | AR196: N/A | AS196: N/A | AT196: N/A | AU196: N/A | AV196: N/A
A197: 196 | B197: Xayacatlán de Bravo | C197: 17 | D197: 17 Acatlán | E197: Hombre | F197: 726 | G197: 689 | H197: 247 | I197: 13 | J197: 85 | K197: 24 | L197: 40 | M197: 85 | N197: 559 | O197: 308 | P197: 298 | Q197: 10 | R197: 607 | S197: 9 | T197: 82 | U197: 3 | V197: 0 | W197: 507 | X197: 8 | Y197: 1 | Z197: 0 | AA197: 2 | AB197: 517 | AC197: 57 | AD197: 302 | AE197: 107 | AF197: 50 | AG197: 1 | AH197: 70 | AI197: 156 | AJ197: 154 | AK197: 210 | AL197: 195 | AM197: 151 | AN197: 97 | AO197: N/A | AP197: N/A | AQ197: N/A | AR197: N/A | AS197: N/A | AT197: N/A | AU197: N/A | AV197: N/A
A198: 197 | B198: Xicotepec | C198: 1 | D198: 1 Xicotepec | E198: Hombre | F198: 38448 | G198: 36221 | H198: 6215 | I198: 253 | J198: 4248 | K198: 234 | L198: 620 | M198: 860 | N198: 28901 | O198: 22585 | P198: 22124 | Q198: 461 | R198: 26240 | S198: 5142 | T198: 1435 | U198: 598 | V198: 316 | W198: 17914 | X198: 958 | Y198: 77 | Z198: 67 | AA198: 9 | AB198: 26430 | AC198: 2057 | AD198: 13689 | AE198: 6565 | AF198: 4077 | AG198: 42 | AH198: 1752 | AI198: 9864 | AJ198: 9690 | AK198: 12412 | AL198: 11746 | AM198: 4154 | AN198: 3202 | AO198: N/A | AP198: N/A | AQ198: N/A | AR198: N/A | AS198: N/A | AT198: N/A | AU198: N/A | AV198: N/A
A199: 198 | B199: Xicotlán | C199: 16 | D199: 16 Chiautla | E199: Hombre | F199: 628 | G199: 582 | H199: 215 | I199: 1 | J199: 63 | K199: 35 | L199: 9 | M199: 107 | N199: 488 | O199: 273 | P199: 240 | Q199: 33 | R199: 575 | S199: 228 | T199: 0 | U199: 2 | V199: 0 | W199: 350 | X199: 3 | Y199: 2 | Z199: 0 | AA199: 3 | AB199: 457 | AC199: 67 | AD199: 289 | AE199: 88 | AF199: 13 | AG199: 0 | AH199: 66 | AI199: 170 | AJ199: 167 | AK199: 189 | AL199: 167 | AM199: 98 | AN199: 57 | AO199: N/A | AP199: N/A | AQ199: N/A | AR199: N/A | AS199: N/A | AT199: N/A | AU199: N/A | AV199: N/A
A200: 199 | B200: Xiutetelco | C200: 6 | D200: 6 Teziutlán | E200: Hombre | F200: 20679 | G200: 19322 | H200: 2340 | I200: 61 | J200: 1583 | K200: 128 | L200: 223 | M200: 345 | N200: 15022 | O200: 12652 | P200: 12534 | Q200: 118 | R200: 13805 | S200: 1460 | T200: 222 | U200: 68 | V200: 14 | W200: 11443 | X200: 580 | Y200: 31 | Z200: 31 | AA200: 1 | AB200: 13630 | AC200: 1553 | AD200: 9487 | AE200: 1854 | AF200: 730 | AG200: 6 | AH200: 1536 | AI200: 5658 | AJ200: 5486 | AK200: 6431 | AL200: 5681 | AM200: 1541 | AN200: 921 | AO200: N/A | AP200: N/A | AQ200: N/A | AR200: N/A | AS200: N/A | AT200: N/A | AU200: N/A | AV200: N/A
... 452 more rows

Sheet Nivel de escolaridad (hidden)
B1: Región | C1: 1 Xicotepec
B2: Municipio | C2: (Todas)
C4: Etiquetas de columna
B5: Valores | C5: Hombre | D5: Mujer | E5: Total general
B6: Suma de Sin escolaridad | C6: 8019 | D6: 11633 | E6: 19652
B7: Suma de BÁSICA | C7: 43119 | D7: 46840 | E7: 89959
B8: Suma de MEDIA SUPERIOR | C8: 16842 | D8: 18032 | E8: 34874
B9: Suma de SUPERIOR | C9: 6903 | D9: 8503 | E9: 15406
B10: Suma de educacion NO ESPECIFICADO | C10: 62 | D10: 75 | E10: 137
B11: Suma de POB 15+ AÑOS | C11: 74945 | D11: 85083 | E11: 160028
B12: Suma de Pob 3+ | C12: 102428 | D12: 111705 | E12: 214133
B14: Nivel educativo | C14: Hombres | D14: Mujeres | E14: TOTAL
B15: Sin escolaridad | C15: =+GETPIVOTDATA("Suma de Sin escolaridad",$B$4,"Sexo","Hombre")/GETPIVOTDATA("Suma de POB 15+ AÑOS ",$B$4) -> 0.05010998075 | D15: =+GETPIVOTDATA("Suma de Sin escolaridad",$B$4,"Sexo","Mujer")/GETPIVOTDATA("Suma de POB 15+ AÑOS ",$B$4) -> 0.07269352863 | E15: =+C15+D15 -> 0.1228035094
B16: Básica | C16: =+GETPIVOTDATA("Suma de BÁSICA ",$B$4,"Sexo","Hombre")/GETPIVOTDATA("Suma de POB 15+ AÑOS ",$B$4) -> 0.2694465968 | D16: =+GETPIVOTDATA("Suma de BÁSICA ",$B$4,"Sexo","Mujer")/GETPIVOTDATA("Suma de POB 15+ AÑOS ",$B$4) -> 0.2926987777 | E16: =+C16+D16 -> 0.5621453746
B17: Media Superior | C17: =+GETPIVOTDATA("Suma de MEDIA SUPERIOR ",$B$4,"Sexo","Hombre")/GETPIVOTDATA("Suma de POB 15+ AÑOS ",$B$4) -> 0.1052440823 | D17: =+GETPIVOTDATA("Suma de MEDIA SUPERIOR ",$B$4,"Sexo","Mujer")/GETPIVOTDATA("Suma de POB 15+ AÑOS ",$B$4) -> 0.112680281 | E17: =+C17+D17 -> 0.2179243632
B18: Superior | C18: =+GETPIVOTDATA("Suma de SUPERIOR ",$B$4,"Sexo","Hombre")/GETPIVOTDATA("Suma de POB 15+ AÑOS ",$B$4) -> 0.04313620116 | D18: =+GETPIVOTDATA("Suma de SUPERIOR ",$B$4,"Sexo","Mujer")/GETPIVOTDATA("Suma de POB 15+ AÑOS ",$B$4) -> 0.05313445147 | E18: =+C18+D18 -> 0.09627065264
B19: No especificado | C19: =+GETPIVOTDATA("Suma de educacion NO ESPECIFICADO ",$B$4,"Sexo","Hombre")/GETPIVOTDATA("Suma de POB 15+ AÑOS ",$B$4) -> 0.0003874321994 | D19: =+GETPIVOTDATA("Suma de educacion NO ESPECIFICADO ",$B$4,"Sexo","Mujer")/GETPIVOTDATA("Suma de POB 15+ AÑOS ",$B$4) -> 0.0004686679831 | E19: =+C19+D19 -> 0.0008561001825

Sheet Pob Analfabeta (hidden)
B4: Región | C4: 1 Xicotepec
B5: Municipio | C5: (Todas)
B7: Etiquetas de fila | C7: Suma de POB ANALFABETA | D7: Suma de POB 15+ AÑOS | F7: Pob Analfabeta Total | G7: =+C10 -> 20564
B8: Hombre | C8: 7977 | D8: 74945 | F8: % Pob Analfabeta | G8: =G7/GETPIVOTDATA("Suma de POB 15+ AÑOS ",$D$10,"Sexo","Total") -> 0.1285025121
B9: Mujer | C9: 12587 | D9: 85083 | F9: Hombres | G9: =+GETPIVOTDATA("POB ANALFABETA ",$C$8,"Sexo","Hombre")/G7 -> 0.3879109123
B10: Total | C10: 20564 | D10: 160028 | F10: Mujeres | G10: =+GETPIVOTDATA("POB ANALFABETA ",$C$9,"Sexo","Mujer")/G7 -> 0.6120890877
B11: Total general | C11: 41128 | D11: 320056

Sheet Tasa de alfabetización (hidden)
B2: Región | C2: 1 Xicotepec
B3: Municipio | C3: (Todas)
B5: Suma de Población de 15-29 | C5: Suma de Población de 15-29 Alfabeta | D5: Suma de Población de 30-59 | E5: Suma de Población de 30-59 Alfabeta | F5: Suma de Población de 60 y + | G5: Suma de Población de 60 y + Alfabeta
B6: 104846 | C6: 103058 | D6: 154130 | E6: 139354 | F6: 61080 | G6: 36252
B8: Tasa de alfabetización | D8: Total de personas alfabetas
B9: 15 a 29 años | C9: =+C6/B6 -> 0.9829464166 | D9: =+C6 -> 103058
B10: 30 a 59 años | C10: =+E6/D6 -> 0.9041328748 | D10: =+E6 -> 139354
B11: 60 años y más | C11: =+G6/F6 -> 0.5935166994 | D11: =+GETPIVOTDATA("Suma de Población de 60 y + Alfabeta",$B$5) -> 36252

Sheet Viviendas
A1: Región: | D1: ='tablas población'!B1 -> 1 Xicotepec
A5: Municipio: | D5: ='tablas población'!B2 -> (Todas)
O6: =GETPIVOTDATA("Suma de Total de viviendas",'tablas viviendas 1'!$A$4) -> 76704
F13: Hogares censales
F14: Total | G14: =+'tablas viviendas 1'!$D$5 -> 61215
A26: Viviendas particulares habitadas (VPH) | J26: Disponibilidad de servicios
A27: Total | B27: =+GETPIVOTDATA("Suma de Viviendas particulares habitadas",'tablas viviendas 1'!$A$4) -> 61091
A30: =+GETPIVOTDATA("Suma de Promedio de ocupantes vph",'tablas viviendas 1'!$A$4) -> 3.696747475 | B30: Promedio de ocupantes por VPH
A34: =+GETPIVOTDATA("Suma de Porcentaje piso de tierra",'tablas viviendas 1'!$A$4) -> 0.09448200226 | B34: Viviendas particulares habitadas
B36: con piso de tierra | E36: =+GETPIVOTDATA("Suma de Viviendas particulares habitadas con piso de tierra",'tablas viviendas 1'!$A$4) -> 5772

Sheet tablas viviendas 1 (hidden)
A1: reg | B1: 1 Xicotepec | H1: reg | I1: 1 Xicotepec | Q1: reg | R1: 1 Xicotepec
A2: mun | B2: (Todas) | H2: mun | I2: (Todas) | Q2: mun | R2: (Todas)
A4: Suma de Total de viviendas | B4: Suma de Viviendas particulares habitadas | C4: Suma de Viviendas particulares habitadas con piso de tierra | D4: Suma de Total de hogares censales | E4: Suma de Promedio de ocupantes vph | F4: Suma de Porcentaje piso de tierra | H4: Hogares censales con persona de referencia mujer 15 | I4: Hogares censales con persona de referencia hombre 15 | Q4: Valores
A5: 76704 | B5: 61091 | C5: 5772 | D5: 61215 | E5: 3.696747475 | F5: 0.09448200226 | H5: 0.3018541207 | I5: 0.6981458793 | Q5: Servicio sanitario | R5: 0.9792113405
Q6: Energía eléctrica | R6: 0.9801607438
Q7: Drenaje | R7: 0.9086935883
Q8: Agua entubada dentro de la vivienda | R8: 0.4258401401

Sheet Bienes
A1: Región: | D1: ='tablas población'!B1 -> 1 Xicotepec
A5: Municipio: | D5: ='tablas población'!B2 -> (Todas)
A13: Disponibilidad de bienes | J13: Disponibilidad de vehículos
G33: Disponibilidad de TIC’s

Sheet base población sin totales (hidden)
A1: ID región | B1: Región | C1: ID mun | D1: mun | E1: Entidad federativa | F1: Municipio | G1: Edad desplegada | H1: grupos | I1: rangos | J1: SEXO | K1: RAZON | L1: grupos de edad | M1: Población total1 | N1: Piramides
A2: 32 | B2: 32 Tepeaca | C2: 1 | D2: Acajete | E2: 21 Puebla | F2: 001 Acajete | G2: 00 años | H2: 0 a 11 años | I2: 00-04 años | J2: HOMBRES | K2: 0 A 14 Y 65 Y MAS | L2: Niñas y niños | M2: 789 | N2: =M2 -> 789
A3: 32 | B3: 32 Tepeaca | C3: 1 | D3: Acajete | E3: 21 Puebla | F3: 001 Acajete | G3: 01 años | H3: 0 a 11 años | I3: 00-04 años | J3: HOMBRES | K3: 0 A 14 Y 65 Y MAS | L3: Niñas y niños | M3: 842 | N3: 842
A4: 32 | B4: 32 Tepeaca | C4: 1 | D4: Acajete | E4: 21 Puebla | F4: 001 Acajete | G4: 02 años | H4: 0 a 11 años | I4: 00-04 años | J4: HOMBRES | K4: 0 A 14 Y 65 Y MAS | L4: Niñas y niños | M4: 888 | N4: 888
A5: 32 | B5: 32 Tepeaca | C5: 1 | D5: Acajete | E5: 21 Puebla | F5: 001 Acajete | G5: 03 años | H5: 0 a 11 años | I5: 00-04 años | J5: HOMBRES | K5: 0 A 14 Y 65 Y MAS | L5: Niñas y niños | M5: 840 | N5: 840
A6: 32 | B6: 32 Tepeaca | C6: 1 | D6: Acajete | E6: 21 Puebla | F6: 001 Acajete | G6: 04 años | H6: 0 a 11 años | I6: 00-04 años | J6: HOMBRES | K6: 0 A 14 Y 65 Y MAS | L6: Niñas y niños | M6: 798 | N6: 798
A7: 32 | B7: 32 Tepeaca | C7: 1 | D7: Acajete | E7: 21 Puebla | F7: 001 Acajete | G7: 05 años | H7: 0 a 11 años | I7: 05-09 años | J7: HOMBRES | K7: 0 A 14 Y 65 Y MAS | L7: Niñas y niños | M7: 797 | N7: 797
A8: 32 | B8: 32 Tepeaca | C8: 1 | D8: Acajete | E8: 21 Puebla | F8: 001 Acajete | G8: 06 años | H8: 0 a 11 años | I8: 05-09 años | J8: HOMBRES | K8: 0 A 14 Y 65 Y MAS | L8: Niñas y niños | M8: 826 | N8: 826
A9: 32 | B9: 32 Tepeaca | C9: 1 | D9: Acajete | E9: 21 Puebla | F9: 001 Acajete | G9: 07 años | H9: 0 a 11 años | I9: 05-09 años | J9: HOMBRES | K9: 0 A 14 Y 65 Y MAS | L9: Niñas y niños | M9: 782 | N9: 782
A10: 32 | B10: 32 Tepeaca | C10: 1 | D10: Acajete | E10: 21 Puebla | F10: 001 Acajete | G10: 08 años | H10: 0 a 11 años | I10: 05-09 años | J10: HOMBRES | K10: 0 A 14 Y 65 Y MAS | L10: Niñas y niños | M10: 814 | N10: 814
A11: 32 | B11: 32 Tepeaca | C11: 1 | D11: Acajete | E11: 21 Puebla | F11: 001 Acajete | G11: 09 años | H11: 0 a 11 años | I11: 05-09 años | J11: HOMBRES | K11: 0 A 14 Y 65 Y MAS | L11: Niñas y niños | M11: 780 | N11: 780
A12: 32 | B12: 32 Tepeaca | C12: 1 | D12: Acajete | E12: 21 Puebla | F12: 001 Acajete | G12: 10 años | H12: 0 a 11 años | I12: 10-14 años | J12: HOMBRES | K12: 0 A 14 Y 65 Y MAS | L12: Niñas y niños | M12: 856 | N12: 856
A13: 32 | B13: 32 Tepeaca | C13: 1 | D13: Acajete | E13: 21 Puebla | F13: 001 Acajete | G13: 11 años | H13: 0 a 11 años | I13: 10-14 años | J13: HOMBRES | K13: 0 A 14 Y 65 Y MAS | L13: Niñas y niños | M13: 752 | N13: 752
A14: 32 | B14: 32 Tepeaca | C14: 1 | D14: Acajete | E14: 21 Puebla | F14: 001 Acajete | G14: 12 años | H14: 12 años | I14: 10-14 años | J14: HOMBRES | K14: 0 A 14 Y 65 Y MAS | L14: Niñas y niños | M14: 739 | N14: 739
A15: 32 | B15: 32 Tepeaca | C15: 1 | D15: Acajete | E15: 21 Puebla | F15: 001 Acajete | G15: 13 años | H15: 13 a 17 años | I15: 10-14 años | J15: HOMBRES | K15: 0 A 14 Y 65 Y MAS | L15: Adolescentes | M15: 727 | N15: 727
A16: 32 | B16: 32 Tepeaca | C16: 1 | D16: Acajete | E16: 21 Puebla | F16: 001 Acajete | G16: 14 años | H16: 13 a 17 años | I16: 10-14 años | J16: HOMBRES | K16: 0 A 14 Y 65 Y MAS | L16: Adolescentes | M16: 765 | N16: 765
A17: 32 | B17: 32 Tepeaca | C17: 1 | D17: Acajete | E17: 21 Puebla | F17: 001 Acajete | G17: 15 años | H17: 13 a 17 años | I17: 15-19 años | J17: HOMBRES | K17: 15 A 64 | L17: Adolescentes | M17: 742 | N17: 742
A18: 32 | B18: 32 Tepeaca | C18: 1 | D18: Acajete | E18: 21 Puebla | F18: 001 Acajete | G18: 16 años | H18: 13 a 17 años | I18: 15-19 años | J18: HOMBRES | K18: 15 A 64 | L18: Adolescentes | M18: 711 | N18: 711
A19: 32 | B19: 32 Tepeaca | C19: 1 | D19: Acajete | E19: 21 Puebla | F19: 001 Acajete | G19: 17 años | H19: 13 a 17 años | I19: 15-19 años | J19: HOMBRES | K19: 15 A 64 | L19: Adolescentes | M19: 853 | N19: 853
A20: 32 | B20: 32 Tepeaca | C20: 1 | D20: Acajete | E20: 21 Puebla | F20: 001 Acajete | G20: 18 años | H20: 18 a 29 años | I20: 15-19 años | J20: HOMBRES | K20: 15 A 64 | L20: Adultos | M20: 779 | N20: 779
A21: 32 | B21: 32 Tepeaca | C21: 1 | D21: Acajete | E21: 21 Puebla | F21: 001 Acajete | G21: 19 años | H21: 18 a 29 años | I21: 15-19 años | J21: HOMBRES | K21: 15 A 64 | L21: Adultos | M21: 618 | N21: 618
A22: 32 | B22: 32 Tepeaca | C22: 1 | D22: Acajete | E22: 21 Puebla | F22: 001 Acajete | G22: 20 años | H22: 18 a 29 años | I22: 20-24 años | J22: HOMBRES | K22: 15 A 64 | L22: Adultos | M22: 740 | N22: 740
A23: 32 | B23: 32 Tepeaca | C23: 1 | D23: Acajete | E23: 21 Puebla | F23: 001 Acajete | G23: 21 años | H23: 18 a 29 años | I23: 20-24 años | J23: HOMBRES | K23: 15 A 64 | L23: Adultos | M23: 571 | N23: 571
A24: 32 | B24: 32 Tepeaca | C24: 1 | D24: Acajete | E24: 21 Puebla | F24: 001 Acajete | G24: 22 años | H24: 18 a 29 años | I24: 20-24 años | J24: HOMBRES | K24: 15 A 64 | L24: Adultos | M24: 644 | N24: 644
A25: 32 | B25: 32 Tepeaca | C25: 1 | D25: Acajete | E25: 21 Puebla | F25: 001 Acajete | G25: 23 años | H25: 18 a 29 años | I25: 20-24 años | J25: HOMBRES | K25: 15 A 64 | L25: Adultos | M25: 610 | N25: 610
A26: 32 | B26: 32 Tepeaca | C26: 1 | D26: Acajete | E26: 21 Puebla | F26: 001 Acajete | G26: 24 años | H26: 18 a 29 años | I26: 20-24 años | J26: HOMBRES | K26: 15 A 64 | L26: Adultos | M26: 602 | N26: 602
A27: 32 | B27: 32 Tepeaca | C27: 1 | D27: Acajete | E27: 21 Puebla | F27: 001 Acajete | G27: 25 años | H27: 18 a 29 años | I27: 25-29 años | J27: HOMBRES | K27: 15 A 64 | L27: Adultos | M27: 638 | N27: =M27 -> 638
A28: 32 | B28: 32 Tepeaca | C28: 1 | D28: Acajete | E28: 21 Puebla | F28: 001 Acajete | G28: 26 años | H28: 18 a 29 años | I28: 25-29 años | J28: HOMBRES | K28: 15 A 64 | L28: Adultos | M28: 557 | N28: 557
A29: 32 | B29: 32 Tepeaca | C29: 1 | D29: Acajete | E29: 21 Puebla | F29: 001 Acajete | G29: 27 años | H29: 18 a 29 años | I29: 25-29 años | J29: HOMBRES | K29: 15 A 64 | L29: Adultos | M29: 583 | N29: 583
A30: 32 | B30: 32 Tepeaca | C30: 1 | D30: Acajete | E30: 21 Puebla | F30: 001 Acajete | G30: 28 años | H30: 18 a 29 años | I30: 25-29 años | J30: HOMBRES | K30: 15 A 64 | L30: Adultos | M30: 615 | N30: 615
A31: 32 | B31: 32 Tepeaca | C31: 1 | D31: Acajete | E31: 21 Puebla | F31: 001 Acajete | G31: 29 años | H31: 18 a 29 años | I31: 25-29 años | J31: HOMBRES | K31: 15 A 64 | L31: Adultos | M31: 537 | N31: 537
A32: 32 | B32: 32 Tepeaca | C32: 1 | D32: Acajete | E32: 21 Puebla | F32: 001 Acajete | G32: 30 años | H32: 30 a 59 años | I32: 30-34 años | J32: HOMBRES | K32: 15 A 64 | L32: Adultos | M32: 593 | N32: 593
A33: 32 | B33: 32 Tepeaca | C33: 1 | D33: Acajete | E33: 21 Puebla | F33: 001 Acajete | G33: 31 años | H33: 30 a 59 años | I33: 30-34 años | J33: HOMBRES | K33: 15 A 64 | L33: Adultos | M33: 417 | N33: 417
A34: 32 | B34: 32 Tepeaca | C34: 1 | D34: Acajete | E34: 21 Puebla | F34: 001 Acajete | G34: 32 años | H34: 30 a 59 años | I34: 30-34 años | J34: HOMBRES | K34: 15 A 64 | L34: Adultos | M34: 536 | N34: 536
A35: 32 | B35: 32 Tepeaca | C35: 1 | D35: Acajete | E35: 21 Puebla | F35: 001 Acajete | G35: 33 años | H35: 30 a 59 años | I35: 30-34 años | J35: HOMBRES | K35: 15 A 64 | L35: Adultos | M35: 423 | N35: 423
A36: 32 | B36: 32 Tepeaca | C36: 1 | D36: Acajete | E36: 21 Puebla | F36: 001 Acajete | G36: 34 años | H36: 30 a 59 años | I36: 30-34 años | J36: HOMBRES | K36: 15 A 64 | L36: Adultos | M36: 442 | N36: 442
A37: 32 | B37: 32 Tepeaca | C37: 1 | D37: Acajete | E37: 21 Puebla | F37: 001 Acajete | G37: 35 años | H37: 30 a 59 años | I37: 35-39 años | J37: HOMBRES | K37: 15 A 64 | L37: Adultos | M37: 439 | N37: 439
A38: 32 | B38: 32 Tepeaca | C38: 1 | D38: Acajete | E38: 21 Puebla | F38: 001 Acajete | G38: 36 años | H38: 30 a 59 años | I38: 35-39 años | J38: HOMBRES | K38: 15 A 64 | L38: Adultos | M38: 443 | N38: 443
A39: 32 | B39: 32 Tepeaca | C39: 1 | D39: Acajete | E39: 21 Puebla | F39: 001 Acajete | G39: 37 años | H39: 30 a 59 años | I39: 35-39 años | J39: HOMBRES | K39: 15 A 64 | L39: Adultos | M39: 378 | N39: 378
A40: 32 | B40: 32 Tepeaca | C40: 1 | D40: Acajete | E40: 21 Puebla | F40: 001 Acajete | G40: 38 años | H40: 30 a 59 años | I40: 35-39 años | J40: HOMBRES | K40: 15 A 64 | L40: Adultos | M40: 513 | N40: 513
A41: 32 | B41: 32 Tepeaca | C41: 1 | D41: Acajete | E41: 21 Puebla | F41: 001 Acajete | G41: 39 años | H41: 30 a 59 años | I41: 35-39 años | J41: HOMBRES | K41: 15 A 64 | L41: Adultos | M41: 425 | N41: 425
A42: 32 | B42: 32 Tepeaca | C42: 1 | D42: Acajete | E42: 21 Puebla | F42: 001 Acajete | G42: 40 años | H42: 30 a 59 años | I42: 40-44 años | J42: HOMBRES | K42: 15 A 64 | L42: Adultos | M42: 495 | N42: 495
A43: 32 | B43: 32 Tepeaca | C43: 1 | D43: Acajete | E43: 21 Puebla | F43: 001 Acajete | G43: 41 años | H43: 30 a 59 años | I43: 40-44 años | J43: HOMBRES | K43: 15 A 64 | L43: Adultos | M43: 250 | N43: 250
A44: 32 | B44: 32 Tepeaca | C44: 1 | D44: Acajete | E44: 21 Puebla | F44: 001 Acajete | G44: 42 años | H44: 30 a 59 años | I44: 40-44 años | J44: HOMBRES | K44: 15 A 64 | L44: Adultos | M44: 428 | N44: 428
A45: 32 | B45: 32 Tepeaca | C45: 1 | D45: Acajete | E45: 21 Puebla | F45: 001 Acajete | G45: 43 años | H45: 30 a 59 años | I45: 40-44 años | J45: HOMBRES | K45: 15 A 64 | L45: Adultos | M45: 354 | N45: 354
A46: 32 | B46: 32 Tepeaca | C46: 1 | D46: Acajete | E46: 21 Puebla | F46: 001 Acajete | G46: 44 años | H46: 30 a 59 años | I46: 40-44 años | J46: HOMBRES | K46: 15 A 64 | L46: Adultos | M46: 327 | N46: 327
A47: 32 | B47: 32 Tepeaca | C47: 1 | D47: Acajete | E47: 21 Puebla | F47: 001 Acajete | G47: 45 años | H47: 30 a 59 años | I47: 45-49 años | J47: HOMBRES | K47: 15 A 64 | L47: Adultos | M47: 353 | N47: 353
A48: 32 | B48: 32 Tepeaca | C48: 1 | D48: Acajete | E48: 21 Puebla | F48: 001 Acajete | G48: 46 años | H48: 30 a 59 años | I48: 45-49 años | J48: HOMBRES | K48: 15 A 64 | L48: Adultos | M48: 344 | N48: 344
A49: 32 | B49: 32 Tepeaca | C49: 1 | D49: Acajete | E49: 21 Puebla | F49: 001 Acajete | G49: 47 años | H49: 30 a 59 años | I49: 45-49 años | J49: HOMBRES | K49: 15 A 64 | L49: Adultos | M49: 309 | N49: 309
A50: 32 | B50: 32 Tepeaca | C50: 1 | D50: Acajete | E50: 21 Puebla | F50: 001 Acajete | G50: 48 años | H50: 30 a 59 años | I50: 45-49 años | J50: HOMBRES | K50: 15 A 64 | L50: Adultos | M50: 330 | N50: 330
A51: 32 | B51: 32 Tepeaca | C51: 1 | D51: Acajete | E51: 21 Puebla | F51: 001 Acajete | G51: 49 años | H51: 30 a 59 años | I51: 45-49 años | J51: HOMBRES | K51: 15 A 64 | L51: Adultos | M51: 302 | N51: 302
A52: 32 | B52: 32 Tepeaca | C52: 1 | D52: Acajete | E52: 21 Puebla | F52: 001 Acajete | G52: 50 años | H52: 30 a 59 años | I52: 50-54 años | J52: HOMBRES | K52: 15 A 64 | L52: Adultos | M52: 349 | N52: 349
A53: 32 | B53: 32 Tepeaca | C53: 1 | D53: Acajete | E53: 21 Puebla | F53: 001 Acajete | G53: 51 años | H53: 30 a 59 años | I53: 50-54 años | J53: HOMBRES | K53: 15 A 64 | L53: Adultos | M53: 180 | N53: 180
A54: 32 | B54: 32 Tepeaca | C54: 1 | D54: Acajete | E54: 21 Puebla | F54: 001 Acajete | G54: 52 años | H54: 30 a 59 años | I54: 50-54 años | J54: HOMBRES | K54: 15 A 64 | L54: Adultos | M54: 297 | N54: 297
A55: 32 | B55: 32 Tepeaca | C55: 1 | D55: Acajete | E55: 21 Puebla | F55: 001 Acajete | G55: 53 años | H55: 30 a 59 años | I55: 50-54 años | J55: HOMBRES | K55: 15 A 64 | L55: Adultos | M55: 271 | N55: 271
A56: 32 | B56: 32 Tepeaca | C56: 1 | D56: Acajete | E56: 21 Puebla | F56: 001 Acajete | G56: 54 años | H56: 30 a 59 años | I56: 50-54 años | J56: HOMBRES | K56: 15 A 64 | L56: Adultos | M56: 276 | N56: 276
A57: 32 | B57: 32 Tepeaca | C57: 1 | D57: Acajete | E57: 21 Puebla | F57: 001 Acajete | G57: 55 años | H57: 30 a 59 años | I57: 55-59 años | J57: HOMBRES | K57: 15 A 64 | L57: Adultos | M57: 243 | N57: 243
A58: 32 | B58: 32 Tepeaca | C58: 1 | D58: Acajete | E58: 21 Puebla | F58: 001 Acajete | G58: 56 años | H58: 30 a 59 años | I58: 55-59 años | J58: HOMBRES | K58: 15 A 64 | L58: Adultos | M58: 230 | N58: 230
A59: 32 | B59: 32 Tepeaca | C59: 1 | D59: Acajete | E59: 21 Puebla | F59: 001 Acajete | G59: 57 años | H59: 30 a 59 años | I59: 55-59 años | J59: HOMBRES | K59: 15 A 64 | L59: Adultos | M59: 190 | N59: 190
A60: 32 | B60: 32 Tepeaca | C60: 1 | D60: Acajete | E60: 21 Puebla | F60: 001 Acajete | G60: 58 años | H60: 30 a 59 años | I60: 55-59 años | J60: HOMBRES | K60: 15 A 64 | L60: Adultos | M60: 225 | N60: 225
A61: 32 | B61: 32 Tepeaca | C61: 1 | D61: Acajete | E61: 21 Puebla | F61: 001 Acajete | G61: 59 años | H61: 30 a 59 años | I61: 55-59 años | J61: HOMBRES | K61: 15 A 64 | L61: Adultos | M61: 201 | N61: 201
A62: 32 | B62: 32 Tepeaca | C62: 1 | D62: Acajete | E62: 21 Puebla | F62: 001 Acajete | G62: 60 años | H62: 60 años y más | I62: 60-64 años | J62: HOMBRES | K62: 15 A 64 | L62: Adultos mayores | M62: 254 | N62: 254
A63: 32 | B63: 32 Tepeaca | C63: 1 | D63: Acajete | E63: 21 Puebla | F63: 001 Acajete | G63: 61 años | H63: 60 años y más | I63: 60-64 años | J63: HOMBRES | K63: 15 A 64 | L63: Adultos mayores | M63: 143 | N63: 143
A64: 32 | B64: 32 Tepeaca | C64: 1 | D64: Acajete | E64: 21 Puebla | F64: 001 Acajete | G64: 62 años | H64: 60 años y más | I64: 60-64 años | J64: HOMBRES | K64: 15 A 64 | L64: Adultos mayores | M64: 170 | N64: 170
A65: 32 | B65: 32 Tepeaca | C65: 1 | D65: Acajete | E65: 21 Puebla | F65: 001 Acajete | G65: 63 años | H65: 60 años y más | I65: 60-64 años | J65: HOMBRES | K65: 15 A 64 | L65: Adultos mayores | M65: 162 | N65: 162
A66: 32 | B66: 32 Tepeaca | C66: 1 | D66: Acajete | E66: 21 Puebla | F66: 001 Acajete | G66: 64 años | H66: 60 años y más | I66: 60-64 años | J66: HOMBRES | K66: 15 A 64 | L66: Adultos mayores | M66: 162 | N66: 162
A67: 32 | B67: 32 Tepeaca | C67: 1 | D67: Acajete | E67: 21 Puebla | F67: 001 Acajete | G67: 65 años | H67: 60 años y más | I67: 65-69 años | J67: HOMBRES | K67: 0 A 14 Y 65 Y MAS | L67: Adultos mayores | M67: 173 | N67: 173
A68: 32 | B68: 32 Tepeaca | C68: 1 | D68: Acajete | E68: 21 Puebla | F68: 001 Acajete | G68: 66 años | H68: 60 años y más | I68: 65-69 años | J68: HOMBRES | K68: 0 A 14 Y 65 Y MAS | L68: Adultos mayores | M68: 124 | N68: 124
A69: 32 | B69: 32 Tepeaca | C69: 1 | D69: Acajete | E69: 21 Puebla | F69: 001 Acajete | G69: 67 años | H69: 60 años y más | I69: 65-69 años | J69: HOMBRES | K69: 0 A 14 Y 65 Y MAS | L69: Adultos mayores | M69: 132 | N69: 132
A70: 32 | B70: 32 Tepeaca | C70: 1 | D70: Acajete | E70: 21 Puebla | F70: 001 Acajete | G70: 68 años | H70: 60 años y más | I70: 65-69 años | J70: HOMBRES | K70: 0 A 14 Y 65 Y MAS | L70: Adultos mayores | M70: 147 | N70: 147
A71: 32 | B71: 32 Tepeaca | C71: 1 | D71: Acajete | E71: 21 Puebla | F71: 001 Acajete | G71: 69 años | H71: 60 años y más | I71: 65-69 años | J71: HOMBRES | K71: 0 A 14 Y 65 Y MAS | L71: Adultos mayores | M71: 104 | N71: 104
A72: 32 | B72: 32 Tepeaca | C72: 1 | D72: Acajete | E72: 21 Puebla | F72: 001 Acajete | G72: 70 años | H72: 60 años y más | I72: 70-74 años | J72: HOMBRES | K72: 0 A 14 Y 65 Y MAS | L72: Adultos mayores | M72: 126 | N72: 126
A73: 32 | B73: 32 Tepeaca | C73: 1 | D73: Acajete | E73: 21 Puebla | F73: 001 Acajete | G73: 71 años | H73: 60 años y más | I73: 70-74 años | J73: HOMBRES | K73: 0 A 14 Y 65 Y MAS | L73: Adultos mayores | M73: 76 | N73: 76
A74: 32 | B74: 32 Tepeaca | C74: 1 | D74: Acajete | E74: 21 Puebla | F74: 001 Acajete | G74: 72 años | H74: 60 años y más | I74: 70-74 años | J74: HOMBRES | K74: 0 A 14 Y 65 Y MAS | L74: Adultos mayores | M74: 92 | N74: 92
A75: 32 | B75: 32 Tepeaca | C75: 1 | D75: Acajete | E75: 21 Puebla | F75: 001 Acajete | G75: 73 años | H75: 60 años y más | I75: 70-74 años | J75: HOMBRES | K75: 0 A 14 Y 65 Y MAS | L75: Adultos mayores | M75: 90 | N75: 90
A76: 32 | B76: 32 Tepeaca | C76: 1 | D76: Acajete | E76: 21 Puebla | F76: 001 Acajete | G76: 74 años | H76: 60 años y más | I76: 70-74 años | J76: HOMBRES | K76: 0 A 14 Y 65 Y MAS | L76: Adultos mayores | M76: 86 | N76: 86
A77: 32 | B77: 32 Tepeaca | C77: 1 | D77: Acajete | E77: 21 Puebla | F77: 001 Acajete | G77: 75 años | H77: 60 años y más | I77: 75-79 años | J77: HOMBRES | K77: 0 A 14 Y 65 Y MAS | L77: Adultos mayores | M77: 87 | N77: 87
A78: 32 | B78: 32 Tepeaca | C78: 1 | D78: Acajete | E78: 21 Puebla | F78: 001 Acajete | G78: 76 años | H78: 60 años y más | I78: 75-79 años | J78: HOMBRES | K78: 0 A 14 Y 65 Y MAS | L78: Adultos mayores | M78: 78 | N78: 78
A79: 32 | B79: 32 Tepeaca | C79: 1 | D79: Acajete | E79: 21 Puebla | F79: 001 Acajete | G79: 77 años | H79: 60 años y más | I79: 75-79 años | J79: HOMBRES | K79: 0 A 14 Y 65 Y MAS | L79: Adultos mayores | M79: 54 | N79: 54
A80: 32 | B80: 32 Tepeaca | C80: 1 | D80: Acajete | E80: 21 Puebla | F80: 001 Acajete | G80: 78 años | H80: 60 años y más | I80: 75-79 años | J80: HOMBRES | K80: 0 A 14 Y 65 Y MAS | L80: Adultos mayores | M80: 78 | N80: 78
A81: 32 | B81: 32 Tepeaca | C81: 1 | D81: Acajete | E81: 21 Puebla | F81: 001 Acajete | G81: 79 años | H81: 60 años y más | I81: 75-79 años | J81: HOMBRES | K81: 0 A 14 Y 65 Y MAS | L81: Adultos mayores | M81: 47 | N81: 47
A82: 32 | B82: 32 Tepeaca | C82: 1 | D82: Acajete | E82: 21 Puebla | F82: 001 Acajete | G82: 80 años | H82: 60 años y más | I82: 80-84 años | J82: HOMBRES | K82: 0 A 14 Y 65 Y MAS | L82: Adultos mayores | M82: 47 | N82: 47
A83: 32 | B83: 32 Tepeaca | C83: 1 | D83: Acajete | E83: 21 Puebla | F83: 001 Acajete | G83: 81 años | H83: 60 años y más | I83: 80-84 años | J83: HOMBRES | K83: 0 A 14 Y 65 Y MAS | L83: Adultos mayores | M83: 27 | N83: 27
A84: 32 | B84: 32 Tepeaca | C84: 1 | D84: Acajete | E84: 21 Puebla | F84: 001 Acajete | G84: 82 años | H84: 60 años y más | I84: 80-84 años | J84: HOMBRES | K84: 0 A 14 Y 65 Y MAS | L84: Adultos mayores | M84: 33 | N84: 33
A85: 32 | B85: 32 Tepeaca | C85: 1 | D85: Acajete | E85: 21 Puebla | F85: 001 Acajete | G85: 83 años | H85: 60 años y más | I85: 80-84 años | J85: HOMBRES | K85: 0 A 14 Y 65 Y MAS | L85: Adultos mayores | M85: 34 | N85: 34
A86: 32 | B86: 32 Tepeaca | C86: 1 | D86: Acajete | E86: 21 Puebla | F86: 001 Acajete | G86: 84 años | H86: 60 años y más | I86: 80-84 años | J86: HOMBRES | K86: 0 A 14 Y 65 Y MAS | L86: Adultos mayores | M86: 40 | N86: 40
A87: 32 | B87: 32 Tepeaca | C87: 1 | D87: Acajete | E87: 21 Puebla | F87: 001 Acajete | G87: 85 años | H87: 60 años y más | I87: 85-89 años | J87: HOMBRES | K87: 0 A 14 Y 65 Y MAS | L87: Adultos mayores | M87: 44 | N87: 44
A88: 32 | B88: 32 Tepeaca | C88: 1 | D88: Acajete | E88: 21 Puebla | F88: 001 Acajete | G88: 86 años | H88: 60 años y más | I88: 85-89 años | J88: HOMBRES | K88: 0 A 14 Y 65 Y MAS | L88: Adultos mayores | M88: 26 | N88: 26
A89: 32 | B89: 32 Tepeaca | C89: 1 | D89: Acajete | E89: 21 Puebla | F89: 001 Acajete | G89: 87 años | H89: 60 años y más | I89: 85-89 años | J89: HOMBRES | K89: 0 A 14 Y 65 Y MAS | L89: Adultos mayores | M89: 29 | N89: 29
A90: 32 | B90: 32 Tepeaca | C90: 1 | D90: Acajete | E90: 21 Puebla | F90: 001 Acajete | G90: 88 años | H90: 60 años y más | I90: 85-89 años | J90: HOMBRES | K90: 0 A 14 Y 65 Y MAS | L90: Adultos mayores | M90: 16 | N90: 16
A91: 32 | B91: 32 Tepeaca | C91: 1 | D91: Acajete | E91: 21 Puebla | F91: 001 Acajete | G91: 89 años | H91: 60 años y más | I91: 85-89 años | J91: HOMBRES | K91: 0 A 14 Y 65 Y MAS | L91: Adultos mayores | M91: 16 | N91: =M91 -> 16
A92: 32 | B92: 32 Tepeaca | C92: 1 | D92: Acajete | E92: 21 Puebla | F92: 001 Acajete | G92: 90 años | H92: 60 años y más | I92: 90-94 años | J92: HOMBRES | K92: 0 A 14 Y 65 Y MAS | L92: Adultos mayores | M92: 20 | N92: 20
A93: 32 | B93: 32 Tepeaca | C93: 1 | D93: Acajete | E93: 21 Puebla | F93: 001 Acajete | G93: 91 años | H93: 60 años y más | I93: 90-94 años | J93: HOMBRES | K93: 0 A 14 Y 65 Y MAS | L93: Adultos mayores | M93: 10 | N93: 10
A94: 32 | B94: 32 Tepeaca | C94: 1 | D94: Acajete | E94: 21 Puebla | F94: 001 Acajete | G94: 92 años | H94: 60 años y más | I94: 90-94 años | J94: HOMBRES | K94: 0 A 14 Y 65 Y MAS | L94: Adultos mayores | M94: 3 | N94: 3
A95: 32 | B95: 32 Tepeaca | C95: 1 | D95: Acajete | E95: 21 Puebla | F95: 001 Acajete | G95: 93 años | H95: 60 años y más | I95: 90-94 años | J95: HOMBRES | K95: 0 A 14 Y 65 Y MAS | L95: Adultos mayores | M95: 5 | N95: 5
A96: 32 | B96: 32 Tepeaca | C96: 1 | D96: Acajete | E96: 21 Puebla | F96: 001 Acajete | G96: 94 años | H96: 60 años y más | I96: 90-94 años | J96: HOMBRES | K96: 0 A 14 Y 65 Y MAS | L96: Adultos mayores | M96: 8 | N96: 8
A97: 32 | B97: 32 Tepeaca | C97: 1 | D97: Acajete | E97: 21 Puebla | F97: 001 Acajete | G97: 95 años | H97: 60 años y más | I97: 95-99 años | J97: HOMBRES | K97: 0 A 14 Y 65 Y MAS | L97: Adultos mayores | M97: 3 | N97: 3
A98: 32 | B98: 32 Tepeaca | C98: 1 | D98: Acajete | E98: 21 Puebla | F98: 001 Acajete | G98: 96 años | H98: 60 años y más | I98: 95-99 años | J98: HOMBRES | K98: 0 A 14 Y 65 Y MAS | L98: Adultos mayores | M98: 4 | N98: 4
A99: 32 | B99: 32 Tepeaca | C99: 1 | D99: Acajete | E99: 21 Puebla | F99: 001 Acajete | G99: 97 años | H99: 60 años y más | I99: 95-99 años | J99: HOMBRES | K99: 0 A 14 Y 65 Y MAS | L99: Adultos mayores | M99: 6 | N99: 6
A100: 32 | B100: 32 Tepeaca | C100: 1 | D100: Acajete | E100: 21 Puebla | F100: 001 Acajete | G100: 98 años | H100: 60 años y más | I100: 95-99 años | J100: HOMBRES | K100: 0 A 14 Y 65 Y MAS | L100: Adultos mayores | M100: 0 | N100: 0
A101: 32 | B101: 32 Tepeaca | C101: 1 | D101: Acajete | E101: 21 Puebla | F101: 001 Acajete | G101: 99 años | H101: 60 años y más | I101: 95-99 años | J101: HOMBRES | K101: 0 A 14 Y 65 Y MAS | L101: Adultos mayores | M101: 1 | N101: 1
A102: 32 | B102: 32 Tepeaca | C102: 1 | D102: Acajete | E102: 21 Puebla | F102: 001 Acajete | G102: 100 años y más | H102: 60 años y más | I102: 100 años | J102: HOMBRES | K102: 0 A 14 Y 65 Y MAS | L102: Adultos mayores | M102: 1 | N102: 1
A103: 32 | B103: 32 Tepeaca | C103: 1 | D103: Acajete | E103: 21 Puebla | F103: 001 Acajete | G103: No especificado | H103: No especificado | J103: HOMBRES | L103: No especificado | M103: 23 | N103: 23
A104: 6 | B104: 6 Teziutlán | C104: 2 | D104: Acateno | E104: 21 Puebla | F104: 002 Acateno | G104: 00 años | H104: 0 a 11 años | I104: 00-04 años | J104: HOMBRES | K104: 0 A 14 Y 65 Y MAS | L104: Niñas y niños | M104: 88 | N104: 88
A105: 6 | B105: 6 Teziutlán | C105: 2 | D105: Acateno | E105: 21 Puebla | F105: 002 Acateno | G105: 01 años | H105: 0 a 11 años | I105: 00-04 años | J105: HOMBRES | K105: 0 A 14 Y 65 Y MAS | L105: Niñas y niños | M105: 76 | N105: 76
A106: 6 | B106: 6 Teziutlán | C106: 2 | D106: Acateno | E106: 21 Puebla | F106: 002 Acateno | G106: 02 años | H106: 0 a 11 años | I106: 00-04 años | J106: HOMBRES | K106: 0 A 14 Y 65 Y MAS | L106: Niñas y niños | M106: 90 | N106: 90
A107: 6 | B107: 6 Teziutlán | C107: 2 | D107: Acateno | E107: 21 Puebla | F107: 002 Acateno | G107: 03 años | H107: 0 a 11 años | I107: 00-04 años | J107: HOMBRES | K107: 0 A 14 Y 65 Y MAS | L107: Niñas y niños | M107: 93 | N107: 93
A108: 6 | B108: 6 Teziutlán | C108: 2 | D108: Acateno | E108: 21 Puebla | F108: 002 Acateno | G108: 04 años | H108: 0 a 11 años | I108: 00-04 años | J108: HOMBRES | K108: 0 A 14 Y 65 Y MAS | L108: Niñas y niños | M108: 73 | N108: 73
A109: 6 | B109: 6 Teziutlán | C109: 2 | D109: Acateno | E109: 21 Puebla | F109: 002 Acateno | G109: 05 años | H109: 0 a 11 años | I109: 05-09 años | J109: HOMBRES | K109: 0 A 14 Y 65 Y MAS | L109: Niñas y niños | M109: 76 | N109: 76
A110: 6 | B110: 6 Teziutlán | C110: 2 | D110: Acateno | E110: 21 Puebla | F110: 002 Acateno | G110: 06 años | H110: 0 a 11 años | I110: 05-09 años | J110: HOMBRES | K110: 0 A 14 Y 65 Y MAS | L110: Niñas y niños | M110: 70 | N110: 70
A111: 6 | B111: 6 Teziutlán | C111: 2 | D111: Acateno | E111: 21 Puebla | F111: 002 Acateno | G111: 07 años | H111: 0 a 11 años | I111: 05-09 años | J111: HOMBRES | K111: 0 A 14 Y 65 Y MAS | L111: Niñas y niños | M111: 78 | N111: 78
A112: 6 | B112: 6 Teziutlán | C112: 2 | D112: Acateno | E112: 21 Puebla | F112: 002 Acateno | G112: 08 años | H112: 0 a 11 años | I112: 05-09 años | J112: HOMBRES | K112: 0 A 14 Y 65 Y MAS | L112: Niñas y niños | M112: 81 | N112: 81
A113: 6 | B113: 6 Teziutlán | C113: 2 | D113: Acateno | E113: 21 Puebla | F113: 002 Acateno | G113: 09 años | H113: 0 a 11 años | I113: 05-09 años | J113: HOMBRES | K113: 0 A 14 Y 65 Y MAS | L113: Niñas y niños | M113: 64 | N113: 64
A114: 6 | B114: 6 Teziutlán | C114: 2 | D114: Acateno | E114: 21 Puebla | F114: 002 Acateno | G114: 10 años | H114: 0 a 11 años | I114: 10-14 años | J114: HOMBRES | K114: 0 A 14 Y 65 Y MAS | L114: Niñas y niños | M114: 76 | N114: 76
A115: 6 | B115: 6 Teziutlán | C115: 2 | D115: Acateno | E115: 21 Puebla | F115: 002 Acateno | G115: 11 años | H115: 0 a 11 años | I115: 10-14 años | J115: HOMBRES | K115: 0 A 14 Y 65 Y MAS | L115: Niñas y niños | M115: 85 | N115: 85
A116: 6 | B116: 6 Teziutlán | C116: 2 | D116: Acateno | E116: 21 Puebla | F116: 002 Acateno | G116: 12 años | H116: 12 años | I116: 10-14 años | J116: HOMBRES | K116: 0 A 14 Y 65 Y MAS | L116: Niñas y niños | M116: 98 | N116: 98
A117: 6 | B117: 6 Teziutlán | C117: 2 | D117: Acateno | E117: 21 Puebla | F117: 002 Acateno | G117: 13 años | H117: 13 a 17 años | I117: 10-14 años | J117: HOMBRES | K117: 0 A 14 Y 65 Y MAS | L117: Adolescentes | M117: 67 | N117: 67
A118: 6 | B118: 6 Teziutlán | C118: 2 | D118: Acateno | E118: 21 Puebla | F118: 002 Acateno | G118: 14 años | H118: 13 a 17 años | I118: 10-14 años | J118: HOMBRES | K118: 0 A 14 Y 65 Y MAS | L118: Adolescentes | M118: 87 | N118: 87
A119: 6 | B119: 6 Teziutlán | C119: 2 | D119: Acateno | E119: 21 Puebla | F119: 002 Acateno | G119: 15 años | H119: 13 a 17 años | I119: 15-19 años | J119: HOMBRES | K119: 15 A 64 | L119: Adolescentes | M119: 78 | N119: 78
A120: 6 | B120: 6 Teziutlán | C120: 2 | D120: Acateno | E120: 21 Puebla | F120: 002 Acateno | G120: 16 años | H120: 13 a 17 años | I120: 15-19 años | J120: HOMBRES | K120: 15 A 64 | L120: Adolescentes | M120: 75 | N120: 75
A121: 6 | B121: 6 Teziutlán | C121: 2 | D121: Acateno | E121: 21 Puebla | F121: 002 Acateno | G121: 17 años | H121: 13 a 17 años | I121: 15-19 años | J121: HOMBRES | K121: 15 A 64 | L121: Adolescentes | M121: 88 | N121: 88
A122: 6 | B122: 6 Teziutlán | C122: 2 | D122: Acateno | E122: 21 Puebla | F122: 002 Acateno | G122: 18 años | H122: 18 a 29 años | I122: 15-19 años | J122: HOMBRES | K122: 15 A 64 | L122: Adultos | M122: 87 | N122: 87
A123: 6 | B123: 6 Teziutlán | C123: 2 | D123: Acateno | E123: 21 Puebla | F123: 002 Acateno | G123: 19 años | H123: 18 a 29 años | I123: 15-19 años | J123: HOMBRES | K123: 15 A 64 | L123: Adultos | M123: 62 | N123: 62
A124: 6 | B124: 6 Teziutlán | C124: 2 | D124: Acateno | E124: 21 Puebla | F124: 002 Acateno | G124: 20 años | H124: 18 a 29 años | I124: 20-24 años | J124: HOMBRES | K124: 15 A 64 | L124: Adultos | M124: 79 | N124: 79
A125: 6 | B125: 6 Teziutlán | C125: 2 | D125: Acateno | E125: 21 Puebla | F125: 002 Acateno | G125: 21 años | H125: 18 a 29 años | I125: 20-24 años | J125: HOMBRES | K125: 15 A 64 | L125: Adultos | M125: 69 | N125: 69
A126: 6 | B126: 6 Teziutlán | C126: 2 | D126: Acateno | E126: 21 Puebla | F126: 002 Acateno | G126: 22 años | H126: 18 a 29 años | I126: 20-24 años | J126: HOMBRES | K126: 15 A 64 | L126: Adultos | M126: 70 | N126: 70
A127: 6 | B127: 6 Teziutlán | C127: 2 | D127: Acateno | E127: 21 Puebla | F127: 002 Acateno | G127: 23 años | H127: 18 a 29 años | I127: 20-24 años | J127: HOMBRES | K127: 15 A 64 | L127: Adultos | M127: 73 | N127: 73
A128: 6 | B128: 6 Teziutlán | C128: 2 | D128: Acateno | E128: 21 Puebla | F128: 002 Acateno | G128: 24 años | H128: 18 a 29 años | I128: 20-24 años | J128: HOMBRES | K128: 15 A 64 | L128: Adultos | M128: 72 | N128: 72
A129: 6 | B129: 6 Teziutlán | C129: 2 | D129: Acateno | E129: 21 Puebla | F129: 002 Acateno | G129: 25 años | H129: 18 a 29 años | I129: 25-29 años | J129: HOMBRES | K129: 15 A 64 | L129: Adultos | M129: 64 | N129: 64
A130: 6 | B130: 6 Teziutlán | C130: 2 | D130: Acateno | E130: 21 Puebla | F130: 002 Acateno | G130: 26 años | H130: 18 a 29 años | I130: 25-29 años | J130: HOMBRES | K130: 15 A 64 | L130: Adultos | M130: 55 | N130: 55
A131: 6 | B131: 6 Teziutlán | C131: 2 | D131: Acateno | E131: 21 Puebla | F131: 002 Acateno | G131: 27 años | H131: 18 a 29 años | I131: 25-29 años | J131: HOMBRES | K131: 15 A 64 | L131: Adultos | M131: 55 | N131: 55
A132: 6 | B132: 6 Teziutlán | C132: 2 | D132: Acateno | E132: 21 Puebla | F132: 002 Acateno | G132: 28 años | H132: 18 a 29 años | I132: 25-29 años | J132: HOMBRES | K132: 15 A 64 | L132: Adultos | M132: 65 | N132: 65
A133: 6 | B133: 6 Teziutlán | C133: 2 | D133: Acateno | E133: 21 Puebla | F133: 002 Acateno | G133: 29 años | H133: 18 a 29 años | I133: 25-29 años | J133: HOMBRES | K133: 15 A 64 | L133: Adultos | M133: 67 | N133: 67
A134: 6 | B134: 6 Teziutlán | C134: 2 | D134: Acateno | E134: 21 Puebla | F134: 002 Acateno | G134: 30 años | H134: 30 a 59 años | I134: 30-34 años | J134: HOMBRES | K134: 15 A 64 | L134: Adultos | M134: 67 | N134: 67
A135: 6 | B135: 6 Teziutlán | C135: 2 | D135: Acateno | E135: 21 Puebla | F135: 002 Acateno | G135: 31 años | H135: 30 a 59 años | I135: 30-34 años | J135: HOMBRES | K135: 15 A 64 | L135: Adultos | M135: 48 | N135: 48
A136: 6 | B136: 6 Teziutlán | C136: 2 | D136: Acateno | E136: 21 Puebla | F136: 002 Acateno | G136: 32 años | H136: 30 a 59 años | I136: 30-34 años | J136: HOMBRES | K136: 15 A 64 | L136: Adultos | M136: 61 | N136: 61
A137: 6 | B137: 6 Teziutlán | C137: 2 | D137: Acateno | E137: 21 Puebla | F137: 002 Acateno | G137: 33 años | H137: 30 a 59 años | I137: 30-34 años | J137: HOMBRES | K137: 15 A 64 | L137: Adultos | M137: 63 | N137: 63
A138: 6 | B138: 6 Teziutlán | C138: 2 | D138: Acateno | E138: 21 Puebla | F138: 002 Acateno | G138: 34 años | H138: 30 a 59 años | I138: 30-34 años | J138: HOMBRES | K138: 15 A 64 | L138: Adultos | M138: 55 | N138: 55
A139: 6 | B139: 6 Teziutlán | C139: 2 | D139: Acateno | E139: 21 Puebla | F139: 002 Acateno | G139: 35 años | H139: 30 a 59 años | I139: 35-39 años | J139: HOMBRES | K139: 15 A 64 | L139: Adultos | M139: 56 | N139: 56
A140: 6 | B140: 6 Teziutlán | C140: 2 | D140: Acateno | E140: 21 Puebla | F140: 002 Acateno | G140: 36 años | H140: 30 a 59 años | I140: 35-39 años | J140: HOMBRES | K140: 15 A 64 | L140: Adultos | M140: 70 | N140: 70
A141: 6 | B141: 6 Teziutlán | C141: 2 | D141: Acateno | E141: 21 Puebla | F141: 002 Acateno | G141: 37 años | H141: 30 a 59 años | I141: 35-39 años | J141: HOMBRES | K141: 15 A 64 | L141: Adultos | M141: 54 | N141: 54
A142: 6 | B142: 6 Teziutlán | C142: 2 | D142: Acateno | E142: 21 Puebla | F142: 002 Acateno | G142: 38 años | H142: 30 a 59 años | I142: 35-39 años | J142: HOMBRES | K142: 15 A 64 | L142: Adultos | M142: 68 | N142: 68
A143: 6 | B143: 6 Teziutlán | C143: 2 | D143: Acateno | E143: 21 Puebla | F143: 002 Acateno | G143: 39 años | H143: 30 a 59 años | I143: 35-39 años | J143: HOMBRES | K143: 15 A 64 | L143: Adultos | M143: 56 | N143: 56
A144: 6 | B144: 6 Teziutlán | C144: 2 | D144: Acateno | E144: 21 Puebla | F144: 002 Acateno | G144: 40 años | H144: 30 a 59 años | I144: 40-44 años | J144: HOMBRES | K144: 15 A 64 | L144: Adultos | M144: 71 | N144: 71
A145: 6 | B145: 6 Teziutlán | C145: 2 | D145: Acateno | E145: 21 Puebla | F145: 002 Acateno | G145: 41 años | H145: 30 a 59 años | I145: 40-44 años | J145: HOMBRES | K145: 15 A 64 | L145: Adultos | M145: 46 | N145: 46
A146: 6 | B146: 6 Teziutlán | C146: 2 | D146: Acateno | E146: 21 Puebla | F146: 002 Acateno | G146: 42 años | H146: 30 a 59 años | I146: 40-44 años | J146: HOMBRES | K146: 15 A 64 | L146: Adultos | M146: 62 | N146: 62
A147: 6 | B147: 6 Teziutlán | C147: 2 | D147: Acateno | E147: 21 Puebla | F147: 002 Acateno | G147: 43 años | H147: 30 a 59 años | I147: 40-44 años | J147: HOMBRES | K147: 15 A 64 | L147: Adultos | M147: 61 | N147: 61
A148: 6 | B148: 6 Teziutlán | C148: 2 | D148: Acateno | E148: 21 Puebla | F148: 002 Acateno | G148: 44 años | H148: 30 a 59 años | I148: 40-44 años | J148: HOMBRES | K148: 15 A 64 | L148: Adultos | M148: 56 | N148: 56
A149: 6 | B149: 6 Teziutlán | C149: 2 | D149: Acateno | E149: 21 Puebla | F149: 002 Acateno | G149: 45 años | H149: 30 a 59 años | I149: 45-49 años | J149: HOMBRES | K149: 15 A 64 | L149: Adultos | M149: 58 | N149: 58
A150: 6 | B150: 6 Teziutlán | C150: 2 | D150: Acateno | E150: 21 Puebla | F150: 002 Acateno | G150: 46 años | H150: 30 a 59 años | I150: 45-49 años | J150: HOMBRES | K150: 15 A 64 | L150: Adultos | M150: 39 | N150: 39
A151: 6 | B151: 6 Teziutlán | C151: 2 | D151: Acateno | E151: 21 Puebla | F151: 002 Acateno | G151: 47 años | H151: 30 a 59 años | I151: 45-49 años | J151: HOMBRES | K151: 15 A 64 | L151: Adultos | M151: 49 | N151: 49
A152: 6 | B152: 6 Teziutlán | C152: 2 | D152: Acateno | E152: 21 Puebla | F152: 002 Acateno | G152: 48 años | H152: 30 a 59 años | I152: 45-49 años | J152: HOMBRES | K152: 15 A 64 | L152: Adultos | M152: 53 | N152: 53
A153: 6 | B153: 6 Teziutlán | C153: 2 | D153: Acateno | E153: 21 Puebla | F153: 002 Acateno | G153: 49 años | H153: 30 a 59 años | I153: 45-49 años | J153: HOMBRES | K153: 15 A 64 | L153: Adultos | M153: 61 | N153: 61
A154: 6 | B154: 6 Teziutlán | C154: 2 | D154: Acateno | E154: 21 Puebla | F154: 002 Acateno | G154: 50 años | H154: 30 a 59 años | I154: 50-54 años | J154: HOMBRES | K154: 15 A 64 | L154: Adultos | M154: 64 | N154: =M154 -> 64
A155: 6 | B155: 6 Teziutlán | C155: 2 | D155: Acateno | E155: 21 Puebla | F155: 002 Acateno | G155: 51 años | H155: 30 a 59 años | I155: 50-54 años | J155: HOMBRES | K155: 15 A 64 | L155: Adultos | M155: 46 | N155: 46
A156: 6 | B156: 6 Teziutlán | C156: 2 | D156: Acateno | E156: 21 Puebla | F156: 002 Acateno | G156: 52 años | H156: 30 a 59 años | I156: 50-54 años | J156: HOMBRES | K156: 15 A 64 | L156: Adultos | M156: 53 | N156: 53
A157: 6 | B157: 6 Teziutlán | C157: 2 | D157: Acateno | E157: 21 Puebla | F157: 002 Acateno | G157: 53 años | H157: 30 a 59 años | I157: 50-54 años | J157: HOMBRES | K157: 15 A 64 | L157: Adultos | M157: 43 | N157: 43
A158: 6 | B158: 6 Teziutlán | C158: 2 | D158: Acateno | E158: 21 Puebla | F158: 002 Acateno | G158: 54 años | H158: 30 a 59 años | I158: 50-54 años | J158: HOMBRES | K158: 15 A 64 | L158: Adultos | M158: 45 | N158: 45
A159: 6 | B159: 6 Teziutlán | C159: 2 | D159: Acateno | E159: 21 Puebla | F159: 002 Acateno | G159: 55 años | H159: 30 a 59 años | I159: 55-59 años | J159: HOMBRES | K159: 15 A 64 | L159: Adultos | M159: 43 | N159: 43
A160: 6 | B160: 6 Teziutlán | C160: 2 | D160: Acateno | E160: 21 Puebla | F160: 002 Acateno | G160: 56 años | H160: 30 a 59 años | I160: 55-59 años | J160: HOMBRES | K160: 15 A 64 | L160: Adultos | M160: 53 | N160: 53
A161: 6 | B161: 6 Teziutlán | C161: 2 | D161: Acateno | E161: 21 Puebla | F161: 002 Acateno | G161: 57 años | H161: 30 a 59 años | I161: 55-59 años | J161: HOMBRES | K161: 15 A 64 | L161: Adultos | M161: 30 | N161: 30
A162: 6 | B162: 6 Teziutlán | C162: 2 | D162: Acateno | E162: 21 Puebla | F162: 002 Acateno | G162: 58 años | H162: 30 a 59 años | I162: 55-59 años | J162: HOMBRES | K162: 15 A 64 | L162: Adultos | M162: 42 | N162: 42
A163: 6 | B163: 6 Teziutlán | C163: 2 | D163: Acateno | E163: 21 Puebla | F163: 002 Acateno | G163: 59 años | H163: 30 a 59 años | I163: 55-59 años | J163: HOMBRES | K163: 15 A 64 | L163: Adultos | M163: 40 | N163: 40
A164: 6 | B164: 6 Teziutlán | C164: 2 | D164: Acateno | E164: 21 Puebla | F164: 002 Acateno | G164: 60 años | H164: 60 años y más | I164: 60-64 años | J164: HOMBRES | K164: 15 A 64 | L164: Adultos mayores | M164: 48 | N164: 48
A165: 6 | B165: 6 Teziutlán | C165: 2 | D165: Acateno | E165: 21 Puebla | F165: 002 Acateno | G165: 61 años | H165: 60 años y más | I165: 60-64 años | J165: HOMBRES | K165: 15 A 64 | L165: Adultos mayores | M165: 18 | N165: 18
A166: 6 | B166: 6 Teziutlán | C166: 2 | D166: Acateno | E166: 21 Puebla | F166: 002 Acateno | G166: 62 años | H166: 60 años y más | I166: 60-64 años | J166: HOMBRES | K166: 15 A 64 | L166: Adultos mayores | M166: 21 | N166: 21
A167: 6 | B167: 6 Teziutlán | C167: 2 | D167: Acateno | E167: 21 Puebla | F167: 002 Acateno | G167: 63 años | H167: 60 años y más | I167: 60-64 años | J167: HOMBRES | K167: 15 A 64 | L167: Adultos mayores | M167: 45 | N167: 45
A168: 6 | B168: 6 Teziutlán | C168: 2 | D168: Acateno | E168: 21 Puebla | F168: 002 Acateno | G168: 64 años | H168: 60 años y más | I168: 60-64 años | J168: HOMBRES | K168: 15 A 64 | L168: Adultos mayores | M168: 31 | N168: 31
A169: 6 | B169: 6 Teziutlán | C169: 2 | D169: Acateno | E169: 21 Puebla | F169: 002 Acateno | G169: 65 años | H169: 60 años y más | I169: 65-69 años | J169: HOMBRES | K169: 0 A 14 Y 65 Y MAS | L169: Adultos mayores | M169: 26 | N169: 26
A170: 6 | B170: 6 Teziutlán | C170: 2 | D170: Acateno | E170: 21 Puebla | F170: 002 Acateno | G170: 66 años | H170: 60 años y más | I170: 65-69 años | J170: HOMBRES | K170: 0 A 14 Y 65 Y MAS | L170: Adultos mayores | M170: 22 | N170: 22
A171: 6 | B171: 6 Teziutlán | C171: 2 | D171: Acateno | E171: 21 Puebla | F171: 002 Acateno | G171: 67 años | H171: 60 años y más | I171: 65-69 años | J171: HOMBRES | K171: 0 A 14 Y 65 Y MAS | L171: Adultos mayores | M171: 36 | N171: 36
A172: 6 | B172: 6 Teziutlán | C172: 2 | D172: Acateno | E172: 21 Puebla | F172: 002 Acateno | G172: 68 años | H172: 60 años y más | I172: 65-69 años | J172: HOMBRES | K172: 0 A 14 Y 65 Y MAS | L172: Adultos mayores | M172: 20 | N172: 20
A173: 6 | B173: 6 Teziutlán | C173: 2 | D173: Acateno | E173: 21 Puebla | F173: 002 Acateno | G173: 69 años | H173: 60 años y más | I173: 65-69 años | J173: HOMBRES | K173: 0 A 14 Y 65 Y MAS | L173: Adultos mayores | M173: 32 | N173: 32
A174: 6 | B174: 6 Teziutlán | C174: 2 | D174: Acateno | E174: 21 Puebla | F174: 002 Acateno | G174: 70 años | H174: 60 años y más | I174: 70-74 años | J174: HOMBRES | K174: 0 A 14 Y 65 Y MAS | L174: Adultos mayores | M174: 36 | N174: 36
A175: 6 | B175: 6 Teziutlán | C175: 2 | D175: Acateno | E175: 21 Puebla | F175: 002 Acateno | G175: 71 años | H175: 60 años y más | I175: 70-74 años | J175: HOMBRES | K175: 0 A 14 Y 65 Y MAS | L175: Adultos mayores | M175: 26 | N175: 26
A176: 6 | B176: 6 Teziutlán | C176: 2 | D176: Acateno | E176: 21 Puebla | F176: 002 Acateno | G176: 72 años | H176: 60 años y más | I176: 70-74 años | J176: HOMBRES | K176: 0 A 14 Y 65 Y MAS | L176: Adultos mayores | M176: 15 | N176: 15
A177: 6 | B177: 6 Teziutlán | C177: 2 | D177: Acateno | E177: 21 Puebla | F177: 002 Acateno | G177: 73 años | H177: 60 años y más | I177: 70-74 años | J177: HOMBRES | K177: 0 A 14 Y 65 Y MAS | L177: Adultos mayores | M177: 29 | N177: 29
A178: 6 | B178: 6 Teziutlán | C178: 2 | D178: Acateno | E178: 21 Puebla | F178: 002 Acateno | G178: 74 años | H178: 60 años y más | I178: 70-74 años | J178: HOMBRES | K178: 0 A 14 Y 65 Y MAS | L178: Adultos mayores | M178: 21 | N178: 21
A179: 6 | B179: 6 Teziutlán | C179: 2 | D179: Acateno | E179: 21 Puebla | F179: 002 Acateno | G179: 75 años | H179: 60 años y más | I179: 75-79 años | J179: HOMBRES | K179: 0 A 14 Y 65 Y MAS | L179: Adultos mayores | M179: 28 | N179: 28
A180: 6 | B180: 6 Teziutlán | C180: 2 | D180: Acateno | E180: 21 Puebla | F180: 002 Acateno | G180: 76 años | H180: 60 años y más | I180: 75-79 años | J180: HOMBRES | K180: 0 A 14 Y 65 Y MAS | L180: Adultos mayores | M180: 21 | N180: 21
A181: 6 | B181: 6 Teziutlán | C181: 2 | D181: Acateno | E181: 21 Puebla | F181: 002 Acateno | G181: 77 años | H181: 60 años y más | I181: 75-79 años | J181: HOMBRES | K181: 0 A 14 Y 65 Y MAS | L181: Adultos mayores | M181: 27 | N181: 27
A182: 6 | B182: 6 Teziutlán | C182: 2 | D182: Acateno | E182: 21 Puebla | F182: 002 Acateno | G182: 78 años | H182: 60 años y más | I182: 75-79 años | J182: HOMBRES | K182: 0 A 14 Y 65 Y MAS | L182: Adultos mayores | M182: 31 | N182: 31
A183: 6 | B183: 6 Teziutlán | C183: 2 | D183: Acateno | E183: 21 Puebla | F183: 002 Acateno | G183: 79 años | H183: 60 años y más | I183: 75-79 años | J183: HOMBRES | K183: 0 A 14 Y 65 Y MAS | L183: Adultos mayores | M183: 27 | N183: 27
A184: 6 | B184: 6 Teziutlán | C184: 2 | D184: Acateno | E184: 21 Puebla | F184: 002 Acateno | G184: 80 años | H184: 60 años y más | I184: 80-84 años | J184: HOMBRES | K184: 0 A 14 Y 65 Y MAS | L184: Adultos mayores | M184: 15 | N184: 15
A185: 6 | B185: 6 Teziutlán | C185: 2 | D185: Acateno | E185: 21 Puebla | F185: 002 Acateno | G185: 81 años | H185: 60 años y más | I185: 80-84 años | J185: HOMBRES | K185: 0 A 14 Y 65 Y MAS | L185: Adultos mayores | M185: 15 | N185: 15
A186: 6 | B186: 6 Teziutlán | C186: 2 | D186: Acateno | E186: 21 Puebla | F186: 002 Acateno | G186: 82 años | H186: 60 años y más | I186: 80-84 años | J186: HOMBRES | K186: 0 A 14 Y 65 Y MAS | L186: Adultos mayores | M186: 8 | N186: 8
A187: 6 | B187: 6 Teziutlán | C187: 2 | D187: Acateno | E187: 21 Puebla | F187: 002 Acateno | G187: 83 años | H187: 60 años y más | I187: 80-84 años | J187: HOMBRES | K187: 0 A 14 Y 65 Y MAS | L187: Adultos mayores | M187: 14 | N187: 14
A188: 6 | B188: 6 Teziutlán | C188: 2 | D188: Acateno | E188: 21 Puebla | F188: 002 Acateno | G188: 84 años | H188: 60 años y más | I188: 80-84 años | J188: HOMBRES | K188: 0 A 14 Y 65 Y MAS | L188: Adultos mayores | M188: 24 | N188: 24
A189: 6 | B189: 6 Teziutlán | C189: 2 | D189: Acateno | E189: 21 Puebla | F189: 002 Acateno | G189: 85 años | H189: 60 años y más | I189: 85-89 años | J189: HOMBRES | K189: 0 A 14 Y 65 Y MAS | L189: Adultos mayores | M189: 18 | N189: 18
A190: 6 | B190: 6 Teziutlán | C190: 2 | D190: Acateno | E190: 21 Puebla | F190: 002 Acateno | G190: 86 años | H190: 60 años y más | I190: 85-89 años | J190: HOMBRES | K190: 0 A 14 Y 65 Y MAS | L190: Adultos mayores | M190: 14 | N190: 14
A191: 6 | B191: 6 Teziutlán | C191: 2 | D191: Acateno | E191: 21 Puebla | F191: 002 Acateno | G191: 87 años | H191: 60 años y más | I191: 85-89 años | J191: HOMBRES | K191: 0 A 14 Y 65 Y MAS | L191: Adultos mayores | M191: 6 | N191: 6
A192: 6 | B192: 6 Teziutlán | C192: 2 | D192: Acateno | E192: 21 Puebla | F192: 002 Acateno | G192: 88 años | H192: 60 años y más | I192: 85-89 años | J192: HOMBRES | K192: 0 A 14 Y 65 Y MAS | L192: Adultos mayores | M192: 7 | N192: 7
A193: 6 | B193: 6 Teziutlán | C193: 2 | D193: Acateno | E193: 21 Puebla | F193: 002 Acateno | G193: 89 años | H193: 60 años y más | I193: 85-89 años | J193: HOMBRES | K193: 0 A 14 Y 65 Y MAS | L193: Adultos mayores | M193: 11 | N193: 11
A194: 6 | B194: 6 Teziutlán | C194: 2 | D194: Acateno | E194: 21 Puebla | F194: 002 Acateno | G194: 90 años | H194: 60 años y más | I194: 90-94 años | J194: HOMBRES | K194: 0 A 14 Y 65 Y MAS | L194: Adultos mayores | M194: 4 | N194: 4
A195: 6 | B195: 6 Teziutlán | C195: 2 | D195: Acateno | E195: 21 Puebla | F195: 002 Acateno | G195: 91 años | H195: 60 años y más | I195: 90-94 años | J195: HOMBRES | K195: 0 A 14 Y 65 Y MAS | L195: Adultos mayores | M195: 5 | N195: 5
A196: 6 | B196: 6 Teziutlán | C196: 2 | D196: Acateno | E196: 21 Puebla | F196: 002 Acateno | G196: 92 años | H196: 60 años y más | I196: 90-94 años | J196: HOMBRES | K196: 0 A 14 Y 65 Y MAS | L196: Adultos mayores | M196: 2 | N196: 2
A197: 6 | B197: 6 Teziutlán | C197: 2 | D197: Acateno | E197: 21 Puebla | F197: 002 Acateno | G197: 93 años | H197: 60 años y más | I197: 90-94 años | J197: HOMBRES | K197: 0 A 14 Y 65 Y MAS | L197: Adultos mayores | M197: 3 | N197: 3
A198: 6 | B198: 6 Teziutlán | C198: 2 | D198: Acateno | E198: 21 Puebla | F198: 002 Acateno | G198: 94 años | H198: 60 años y más | I198: 90-94 años | J198: HOMBRES | K198: 0 A 14 Y 65 Y MAS | L198: Adultos mayores | M198: 3 | N198: 3
A199: 6 | B199: 6 Teziutlán | C199: 2 | D199: Acateno | E199: 21 Puebla | F199: 002 Acateno | G199: 95 años | H199: 60 años y más | I199: 95-99 años | J199: HOMBRES | K199: 0 A 14 Y 65 Y MAS | L199: Adultos mayores | M199: 1 | N199: 1
A200: 6 | B200: 6 Teziutlán | C200: 2 | D200: Acateno | E200: 21 Puebla | F200: 002 Acateno | G200: 96 años | H200: 60 años y más | I200: 95-99 años | J200: HOMBRES | K200: 0 A 14 Y 65 Y MAS | L200: Adultos mayores | M200: 1 | N200: 1
... 4300 more rows

Sheet base población (hidden)
A1: ID región | B1: Región | C1: ID mun | D1: mun | E1: Entidad federativa | F1: Municipio | G1: Edad desplegada | H1: rangos | I1: SEXO | J1: RAZON | K1: grupos de edad | L1: Población total1 | M1: Piramides
A2: 0 | B2: Estatal | C2: 0 | D2: Estatal | E2: 21 Puebla | F2: Total | G2: Total | I2: HOMBRES | L2: 3160115 | M2: =L2 -> 3160115
A3: 0 | B3: Estatal | C3: 0 | D3: Estatal | E3: 21 Puebla | F3: Total | G3: 00 años | H3: 00-04 años | I3: HOMBRES | J3: 0 A 14 Y 65 Y MAS | K3: Niñas y niños | L3: 54783 | M3: =L3 -> 54783
A4: 0 | B4: Estatal | C4: 0 | D4: Estatal | E4: 21 Puebla | F4: Total | G4: 01 años | H4: 00-04 años | I4: HOMBRES | J4: 0 A 14 Y 65 Y MAS | K4: Niñas y niños | L4: 56315 | M4: 56315
A5: 0 | B5: Estatal | C5: 0 | D5: Estatal | E5: 21 Puebla | F5: Total | G5: 02 años | H5: 00-04 años | I5: HOMBRES | J5: 0 A 14 Y 65 Y MAS | K5: Niñas y niños | L5: 60029 | M5: 60029
A6: 0 | B6: Estatal | C6: 0 | D6: Estatal | E6: 21 Puebla | F6: Total | G6: 03 años | H6: 00-04 años | I6: HOMBRES | J6: 0 A 14 Y 65 Y MAS | K6: Niñas y niños | L6: 60003 | M6: 60003
A7: 0 | B7: Estatal | C7: 0 | D7: Estatal | E7: 21 Puebla | F7: Total | G7: 04 años | H7: 00-04 años | I7: HOMBRES | J7: 0 A 14 Y 65 Y MAS | K7: Niñas y niños | L7: 61136 | M7: 61136
A8: 0 | B8: Estatal | C8: 0 | D8: Estatal | E8: 21 Puebla | F8: Total | G8: 05 años | H8: 05-09 años | I8: HOMBRES | J8: 0 A 14 Y 65 Y MAS | K8: Niñas y niños | L8: 61596 | M8: 61596
A9: 0 | B9: Estatal | C9: 0 | D9: Estatal | E9: 21 Puebla | F9: Total | G9: 06 años | H9: 05-09 años | I9: HOMBRES | J9: 0 A 14 Y 65 Y MAS | K9: Niñas y niños | L9: 58244 | M9: 58244
A10: 0 | B10: Estatal | C10: 0 | D10: Estatal | E10: 21 Puebla | F10: Total | G10: 07 años | H10: 05-09 años | I10: HOMBRES | J10: 0 A 14 Y 65 Y MAS | K10: Niñas y niños | L10: 60564 | M10: 60564
A11: 0 | B11: Estatal | C11: 0 | D11: Estatal | E11: 21 Puebla | F11: Total | G11: 08 años | H11: 05-09 años | I11: HOMBRES | J11: 0 A 14 Y 65 Y MAS | K11: Niñas y niños | L11: 63397 | M11: 63397
A12: 0 | B12: Estatal | C12: 0 | D12: Estatal | E12: 21 Puebla | F12: Total | G12: 09 años | H12: 05-09 años | I12: HOMBRES | J12: 0 A 14 Y 65 Y MAS | K12: Niñas y niños | L12: 58387 | M12: 58387
A13: 0 | B13: Estatal | C13: 0 | D13: Estatal | E13: 21 Puebla | F13: Total | G13: 10 años | H13: 10-14 años | I13: HOMBRES | J13: 0 A 14 Y 65 Y MAS | K13: Niñas y niños | L13: 64633 | M13: 64633
A14: 0 | B14: Estatal | C14: 0 | D14: Estatal | E14: 21 Puebla | F14: Total | G14: 11 años | H14: 10-14 años | I14: HOMBRES | J14: 0 A 14 Y 65 Y MAS | K14: Niñas y niños | L14: 57913 | M14: 57913
A15: 0 | B15: Estatal | C15: 0 | D15: Estatal | E15: 21 Puebla | F15: Total | G15: 12 años | H15: 10-14 años | I15: HOMBRES | J15: 0 A 14 Y 65 Y MAS | K15: Niñas y niños | L15: 62958 | M15: 62958
A16: 0 | B16: Estatal | C16: 0 | D16: Estatal | E16: 21 Puebla | F16: Total | G16: 13 años | H16: 10-14 años | I16: HOMBRES | J16: 0 A 14 Y 65 Y MAS | K16: Adolescentes | L16: 59981 | M16: 59981
A17: 0 | B17: Estatal | C17: 0 | D17: Estatal | E17: 21 Puebla | F17: Total | G17: 14 años | H17: 10-14 años | I17: HOMBRES | J17: 0 A 14 Y 65 Y MAS | K17: Adolescentes | L17: 60368 | M17: 60368
A18: 0 | B18: Estatal | C18: 0 | D18: Estatal | E18: 21 Puebla | F18: Total | G18: 15 años | H18: 15-19 años | I18: HOMBRES | J18: 15 A 64 | K18: Adolescentes | L18: 62916 | M18: 62916
A19: 0 | B19: Estatal | C19: 0 | D19: Estatal | E19: 21 Puebla | F19: Total | G19: 16 años | H19: 15-19 años | I19: HOMBRES | J19: 15 A 64 | K19: Adolescentes | L19: 59456 | M19: 59456
A20: 0 | B20: Estatal | C20: 0 | D20: Estatal | E20: 21 Puebla | F20: Total | G20: 17 años | H20: 15-19 años | I20: HOMBRES | J20: 15 A 64 | K20: Adolescentes | L20: 63764 | M20: 63764
A21: 0 | B21: Estatal | C21: 0 | D21: Estatal | E21: 21 Puebla | F21: Total | G21: 18 años | H21: 15-19 años | I21: HOMBRES | J21: 15 A 64 | K21: Adultos | L21: 65297 | M21: 65297
A22: 0 | B22: Estatal | C22: 0 | D22: Estatal | E22: 21 Puebla | F22: Total | G22: 19 años | H22: 15-19 años | I22: HOMBRES | J22: 15 A 64 | K22: Adultos | L22: 54394 | M22: 54394
A23: 0 | B23: Estatal | C23: 0 | D23: Estatal | E23: 21 Puebla | F23: Total | G23: 20 años | H23: 20-24 años | I23: HOMBRES | J23: 15 A 64 | K23: Adultos | L23: 63481 | M23: 63481
A24: 0 | B24: Estatal | C24: 0 | D24: Estatal | E24: 21 Puebla | F24: Total | G24: 21 años | H24: 20-24 años | I24: HOMBRES | J24: 15 A 64 | K24: Adultos | L24: 50416 | M24: 50416
A25: 0 | B25: Estatal | C25: 0 | D25: Estatal | E25: 21 Puebla | F25: Total | G25: 22 años | H25: 20-24 años | I25: HOMBRES | J25: 15 A 64 | K25: Adultos | L25: 57714 | M25: 57714
A26: 0 | B26: Estatal | C26: 0 | D26: Estatal | E26: 21 Puebla | F26: Total | G26: 23 años | H26: 20-24 años | I26: HOMBRES | J26: 15 A 64 | K26: Adultos | L26: 54059 | M26: 54059
A27: 0 | B27: Estatal | C27: 0 | D27: Estatal | E27: 21 Puebla | F27: Total | G27: 24 años | H27: 20-24 años | I27: HOMBRES | J27: 15 A 64 | K27: Adultos | L27: 53704 | M27: 53704
A28: 0 | B28: Estatal | C28: 0 | D28: Estatal | E28: 21 Puebla | F28: Total | G28: 25 años | H28: 25-29 años | I28: HOMBRES | J28: 15 A 64 | K28: Adultos | L28: 56583 | M28: 56583
A29: 0 | B29: Estatal | C29: 0 | D29: Estatal | E29: 21 Puebla | F29: Total | G29: 26 años | H29: 25-29 años | I29: HOMBRES | J29: 15 A 64 | K29: Adultos | L29: 49576 | M29: 49576
A30: 0 | B30: Estatal | C30: 0 | D30: Estatal | E30: 21 Puebla | F30: Total | G30: 27 años | H30: 25-29 años | I30: HOMBRES | J30: 15 A 64 | K30: Adultos | L30: 49416 | M30: 49416
A31: 0 | B31: Estatal | C31: 0 | D31: Estatal | E31: 21 Puebla | F31: Total | G31: 28 años | H31: 25-29 años | I31: HOMBRES | J31: 15 A 64 | K31: Adultos | L31: 51353 | M31: 51353
A32: 0 | B32: Estatal | C32: 0 | D32: Estatal | E32: 21 Puebla | F32: Total | G32: 29 años | H32: 25-29 años | I32: HOMBRES | J32: 15 A 64 | K32: Adultos | L32: 44971 | M32: 44971
A33: 0 | B33: Estatal | C33: 0 | D33: Estatal | E33: 21 Puebla | F33: Total | G33: 30 años | H33: 30-34 años | I33: HOMBRES | J33: 15 A 64 | K33: Adultos | L33: 57368 | M33: 57368
A34: 0 | B34: Estatal | C34: 0 | D34: Estatal | E34: 21 Puebla | F34: Total | G34: 31 años | H34: 30-34 años | I34: HOMBRES | J34: 15 A 64 | K34: Adultos | L34: 35062 | M34: 35062
A35: 0 | B35: Estatal | C35: 0 | D35: Estatal | E35: 21 Puebla | F35: Total | G35: 32 años | H35: 30-34 años | I35: HOMBRES | J35: 15 A 64 | K35: Adultos | L35: 47342 | M35: 47342
A36: 0 | B36: Estatal | C36: 0 | D36: Estatal | E36: 21 Puebla | F36: Total | G36: 33 años | H36: 30-34 años | I36: HOMBRES | J36: 15 A 64 | K36: Adultos | L36: 40816 | M36: 40816
A37: 0 | B37: Estatal | C37: 0 | D37: Estatal | E37: 21 Puebla | F37: Total | G37: 34 años | H37: 30-34 años | I37: HOMBRES | J37: 15 A 64 | K37: Adultos | L37: 40557 | M37: 40557
A38: 0 | B38: Estatal | C38: 0 | D38: Estatal | E38: 21 Puebla | F38: Total | G38: 35 años | H38: 35-39 años | I38: HOMBRES | J38: 15 A 64 | K38: Adultos | L38: 47027 | M38: 47027
A39: 0 | B39: Estatal | C39: 0 | D39: Estatal | E39: 21 Puebla | F39: Total | G39: 36 años | H39: 35-39 años | I39: HOMBRES | J39: 15 A 64 | K39: Adultos | L39: 42442 | M39: 42442
A40: 0 | B40: Estatal | C40: 0 | D40: Estatal | E40: 21 Puebla | F40: Total | G40: 37 años | H40: 35-39 años | I40: HOMBRES | J40: 15 A 64 | K40: Adultos | L40: 37185 | M40: 37185
A41: 0 | B41: Estatal | C41: 0 | D41: Estatal | E41: 21 Puebla | F41: Total | G41: 38 años | H41: 35-39 años | I41: HOMBRES | J41: 15 A 64 | K41: Adultos | L41: 47193 | M41: 47193
A42: 0 | B42: Estatal | C42: 0 | D42: Estatal | E42: 21 Puebla | F42: Total | G42: 39 años | H42: 35-39 años | I42: HOMBRES | J42: 15 A 64 | K42: Adultos | L42: 38673 | M42: 38673
A43: 0 | B43: Estatal | C43: 0 | D43: Estatal | E43: 21 Puebla | F43: Total | G43: 40 años | H43: 40-44 años | I43: HOMBRES | J43: 15 A 64 | K43: Adultos | L43: 52972 | M43: 52972
A44: 0 | B44: Estatal | C44: 0 | D44: Estatal | E44: 21 Puebla | F44: Total | G44: 41 años | H44: 40-44 años | I44: HOMBRES | J44: 15 A 64 | K44: Adultos | L44: 28930 | M44: 28930
A45: 0 | B45: Estatal | C45: 0 | D45: Estatal | E45: 21 Puebla | F45: Total | G45: 42 años | H45: 40-44 años | I45: HOMBRES | J45: 15 A 64 | K45: Adultos | L45: 45421 | M45: 45421
A46: 0 | B46: Estatal | C46: 0 | D46: Estatal | E46: 21 Puebla | F46: Total | G46: 43 años | H46: 40-44 años | I46: HOMBRES | J46: 15 A 64 | K46: Adultos | L46: 36727 | M46: 36727
A47: 0 | B47: Estatal | C47: 0 | D47: Estatal | E47: 21 Puebla | F47: Total | G47: 44 años | H47: 40-44 años | I47: HOMBRES | J47: 15 A 64 | K47: Adultos | L47: 32500 | M47: 32500
A48: 0 | B48: Estatal | C48: 0 | D48: Estatal | E48: 21 Puebla | F48: Total | G48: 45 años | H48: 45-49 años | I48: HOMBRES | J48: 15 A 64 | K48: Adultos | L48: 43557 | M48: 43557
A49: 0 | B49: Estatal | C49: 0 | D49: Estatal | E49: 21 Puebla | F49: Total | G49: 46 años | H49: 45-49 años | I49: HOMBRES | J49: 15 A 64 | K49: Adultos | L49: 33246 | M49: 33246
A50: 0 | B50: Estatal | C50: 0 | D50: Estatal | E50: 21 Puebla | F50: Total | G50: 47 años | H50: 45-49 años | I50: HOMBRES | J50: 15 A 64 | K50: Adultos | L50: 33815 | M50: 33815
A51: 0 | B51: Estatal | C51: 0 | D51: Estatal | E51: 21 Puebla | F51: Total | G51: 48 años | H51: 45-49 años | I51: HOMBRES | J51: 15 A 64 | K51: Adultos | L51: 35632 | M51: 35632
A52: 0 | B52: Estatal | C52: 0 | D52: Estatal | E52: 21 Puebla | F52: Total | G52: 49 años | H52: 45-49 años | I52: HOMBRES | J52: 15 A 64 | K52: Adultos | L52: 31956 | M52: 31956
A53: 0 | B53: Estatal | C53: 0 | D53: Estatal | E53: 21 Puebla | F53: Total | G53: 50 años | H53: 50-54 años | I53: HOMBRES | J53: 15 A 64 | K53: Adultos | L53: 41515 | M53: 41515
A54: 0 | B54: Estatal | C54: 0 | D54: Estatal | E54: 21 Puebla | F54: Total | G54: 51 años | H54: 50-54 años | I54: HOMBRES | J54: 15 A 64 | K54: Adultos | L54: 23313 | M54: 23313
A55: 0 | B55: Estatal | C55: 0 | D55: Estatal | E55: 21 Puebla | F55: Total | G55: 52 años | H55: 50-54 años | I55: HOMBRES | J55: 15 A 64 | K55: Adultos | L55: 32873 | M55: 32873
A56: 0 | B56: Estatal | C56: 0 | D56: Estatal | E56: 21 Puebla | F56: Total | G56: 53 años | H56: 50-54 años | I56: HOMBRES | J56: 15 A 64 | K56: Adultos | L56: 27595 | M56: 27595
A57: 0 | B57: Estatal | C57: 0 | D57: Estatal | E57: 21 Puebla | F57: Total | G57: 54 años | H57: 50-54 años | I57: HOMBRES | J57: 15 A 64 | K57: Adultos | L57: 27743 | M57: 27743
A58: 0 | B58: Estatal | C58: 0 | D58: Estatal | E58: 21 Puebla | F58: Total | G58: 55 años | H58: 55-59 años | I58: HOMBRES | J58: 15 A 64 | K58: Adultos | L58: 28761 | M58: 28761
A59: 0 | B59: Estatal | C59: 0 | D59: Estatal | E59: 21 Puebla | F59: Total | G59: 56 años | H59: 55-59 años | I59: HOMBRES | J59: 15 A 64 | K59: Adultos | L59: 27147 | M59: 27147
A60: 0 | B60: Estatal | C60: 0 | D60: Estatal | E60: 21 Puebla | F60: Total | G60: 57 años | H60: 55-59 años | I60: HOMBRES | J60: 15 A 64 | K60: Adultos | L60: 21300 | M60: 21300
A61: 0 | B61: Estatal | C61: 0 | D61: Estatal | E61: 21 Puebla | F61: Total | G61: 58 años | H61: 55-59 años | I61: HOMBRES | J61: 15 A 64 | K61: Adultos | L61: 24414 | M61: 24414
A62: 0 | B62: Estatal | C62: 0 | D62: Estatal | E62: 21 Puebla | F62: Total | G62: 59 años | H62: 55-59 años | I62: HOMBRES | J62: 15 A 64 | K62: Adultos | L62: 21983 | M62: 21983
A63: 0 | B63: Estatal | C63: 0 | D63: Estatal | E63: 21 Puebla | F63: Total | G63: 60 años | H63: 60-64 años | I63: HOMBRES | J63: 15 A 64 | K63: Adultos mayores | L63: 29501 | M63: 29501
A64: 0 | B64: Estatal | C64: 0 | D64: Estatal | E64: 21 Puebla | F64: Total | G64: 61 años | H64: 60-64 años | I64: HOMBRES | J64: 15 A 64 | K64: Adultos mayores | L64: 15311 | M64: 15311
A65: 0 | B65: Estatal | C65: 0 | D65: Estatal | E65: 21 Puebla | F65: Total | G65: 62 años | H65: 60-64 años | I65: HOMBRES | J65: 15 A 64 | K65: Adultos mayores | L65: 20890 | M65: 20890
A66: 0 | B66: Estatal | C66: 0 | D66: Estatal | E66: 21 Puebla | F66: Total | G66: 63 años | H66: 60-64 años | I66: HOMBRES | J66: 15 A 64 | K66: Adultos mayores | L66: 20091 | M66: 20091
A67: 0 | B67: Estatal | C67: 0 | D67: Estatal | E67: 21 Puebla | F67: Total | G67: 64 años | H67: 60-64 años | I67: HOMBRES | J67: 15 A 64 | K67: Adultos mayores | L67: 18576 | M67: =L67 -> 18576
A68: 0 | B68: Estatal | C68: 0 | D68: Estatal | E68: 21 Puebla | F68: Total | G68: 65 años | H68: 65-69 años | I68: HOMBRES | J68: 0 A 14 Y 65 Y MAS | K68: Adultos mayores | L68: 22147 | M68: 22147
A69: 0 | B69: Estatal | C69: 0 | D69: Estatal | E69: 21 Puebla | F69: Total | G69: 66 años | H69: 65-69 años | I69: HOMBRES | J69: 0 A 14 Y 65 Y MAS | K69: Adultos mayores | L69: 14875 | M69: 14875
A70: 0 | B70: Estatal | C70: 0 | D70: Estatal | E70: 21 Puebla | F70: Total | G70: 67 años | H70: 65-69 años | I70: HOMBRES | J70: 0 A 14 Y 65 Y MAS | K70: Adultos mayores | L70: 15109 | M70: 15109
A71: 0 | B71: Estatal | C71: 0 | D71: Estatal | E71: 21 Puebla | F71: Total | G71: 68 años | H71: 65-69 años | I71: HOMBRES | J71: 0 A 14 Y 65 Y MAS | K71: Adultos mayores | L71: 16642 | M71: 16642
A72: 0 | B72: Estatal | C72: 0 | D72: Estatal | E72: 21 Puebla | F72: Total | G72: 69 años | H72: 65-69 años | I72: HOMBRES | J72: 0 A 14 Y 65 Y MAS | K72: Adultos mayores | L72: 12119 | M72: 12119
A73: 0 | B73: Estatal | C73: 0 | D73: Estatal | E73: 21 Puebla | F73: Total | G73: 70 años | H73: 70-74 años | I73: HOMBRES | J73: 0 A 14 Y 65 Y MAS | K73: Adultos mayores | L73: 15728 | M73: 15728
A74: 0 | B74: Estatal | C74: 0 | D74: Estatal | E74: 21 Puebla | F74: Total | G74: 71 años | H74: 70-74 años | I74: HOMBRES | J74: 0 A 14 Y 65 Y MAS | K74: Adultos mayores | L74: 8598 | M74: 8598
A75: 0 | B75: Estatal | C75: 0 | D75: Estatal | E75: 21 Puebla | F75: Total | G75: 72 años | H75: 70-74 años | I75: HOMBRES | J75: 0 A 14 Y 65 Y MAS | K75: Adultos mayores | L75: 12982 | M75: 12982
A76: 0 | B76: Estatal | C76: 0 | D76: Estatal | E76: 21 Puebla | F76: Total | G76: 73 años | H76: 70-74 años | I76: HOMBRES | J76: 0 A 14 Y 65 Y MAS | K76: Adultos mayores | L76: 10492 | M76: 10492
A77: 0 | B77: Estatal | C77: 0 | D77: Estatal | E77: 21 Puebla | F77: Total | G77: 74 años | H77: 70-74 años | I77: HOMBRES | J77: 0 A 14 Y 65 Y MAS | K77: Adultos mayores | L77: 10204 | M77: 10204
A78: 0 | B78: Estatal | C78: 0 | D78: Estatal | E78: 21 Puebla | F78: Total | G78: 75 años | H78: 75-79 años | I78: HOMBRES | J78: 0 A 14 Y 65 Y MAS | K78: Adultos mayores | L78: 10898 | M78: 10898
A79: 0 | B79: Estatal | C79: 0 | D79: Estatal | E79: 21 Puebla | F79: Total | G79: 76 años | H79: 75-79 años | I79: HOMBRES | J79: 0 A 14 Y 65 Y MAS | K79: Adultos mayores | L79: 8819 | M79: 8819
A80: 0 | B80: Estatal | C80: 0 | D80: Estatal | E80: 21 Puebla | F80: Total | G80: 77 años | H80: 75-79 años | I80: HOMBRES | J80: 0 A 14 Y 65 Y MAS | K80: Adultos mayores | L80: 7025 | M80: 7025
A81: 0 | B81: Estatal | C81: 0 | D81: Estatal | E81: 21 Puebla | F81: Total | G81: 78 años | H81: 75-79 años | I81: HOMBRES | J81: 0 A 14 Y 65 Y MAS | K81: Adultos mayores | L81: 8738 | M81: 8738
A82: 0 | B82: Estatal | C82: 0 | D82: Estatal | E82: 21 Puebla | F82: Total | G82: 79 años | H82: 75-79 años | I82: HOMBRES | J82: 0 A 14 Y 65 Y MAS | K82: Adultos mayores | L82: 6319 | M82: 6319
A83: 0 | B83: Estatal | C83: 0 | D83: Estatal | E83: 21 Puebla | F83: Total | G83: 80 años | H83: 80-84 años | I83: HOMBRES | J83: 0 A 14 Y 65 Y MAS | K83: Adultos mayores | L83: 7639 | M83: 7639
A84: 0 | B84: Estatal | C84: 0 | D84: Estatal | E84: 21 Puebla | F84: Total | G84: 81 años | H84: 80-84 años | I84: HOMBRES | J84: 0 A 14 Y 65 Y MAS | K84: Adultos mayores | L84: 3838 | M84: 3838
A85: 0 | B85: Estatal | C85: 0 | D85: Estatal | E85: 21 Puebla | F85: Total | G85: 82 años | H85: 80-84 años | I85: HOMBRES | J85: 0 A 14 Y 65 Y MAS | K85: Adultos mayores | L85: 5107 | M85: 5107
A86: 0 | B86: Estatal | C86: 0 | D86: Estatal | E86: 21 Puebla | F86: Total | G86: 83 años | H86: 80-84 años | I86: HOMBRES | J86: 0 A 14 Y 65 Y MAS | K86: Adultos mayores | L86: 4782 | M86: 4782
A87: 0 | B87: Estatal | C87: 0 | D87: Estatal | E87: 21 Puebla | F87: Total | G87: 84 años | H87: 80-84 años | I87: HOMBRES | J87: 0 A 14 Y 65 Y MAS | K87: Adultos mayores | L87: 4736 | M87: 4736
A88: 0 | B88: Estatal | C88: 0 | D88: Estatal | E88: 21 Puebla | F88: Total | G88: 85 años | H88: 85-89 años | I88: HOMBRES | J88: 0 A 14 Y 65 Y MAS | K88: Adultos mayores | L88: 4463 | M88: 4463
A89: 0 | B89: Estatal | C89: 0 | D89: Estatal | E89: 21 Puebla | F89: Total | G89: 86 años | H89: 85-89 años | I89: HOMBRES | J89: 0 A 14 Y 65 Y MAS | K89: Adultos mayores | L89: 3403 | M89: 3403
A90: 0 | B90: Estatal | C90: 0 | D90: Estatal | E90: 21 Puebla | F90: Total | G90: 87 años | H90: 85-89 años | I90: HOMBRES | J90: 0 A 14 Y 65 Y MAS | K90: Adultos mayores | L90: 2907 | M90: 2907
A91: 0 | B91: Estatal | C91: 0 | D91: Estatal | E91: 21 Puebla | F91: Total | G91: 88 años | H91: 85-89 años | I91: HOMBRES | J91: 0 A 14 Y 65 Y MAS | K91: Adultos mayores | L91: 2419 | M91: 2419
A92: 0 | B92: Estatal | C92: 0 | D92: Estatal | E92: 21 Puebla | F92: Total | G92: 89 años | H92: 85-89 años | I92: HOMBRES | J92: 0 A 14 Y 65 Y MAS | K92: Adultos mayores | L92: 2148 | M92: 2148
A93: 0 | B93: Estatal | C93: 0 | D93: Estatal | E93: 21 Puebla | F93: Total | G93: 90 años | H93: 90-94 años | I93: HOMBRES | J93: 0 A 14 Y 65 Y MAS | K93: Adultos mayores | L93: 2161 | M93: 2161
A94: 0 | B94: Estatal | C94: 0 | D94: Estatal | E94: 21 Puebla | F94: Total | G94: 91 años | H94: 90-94 años | I94: HOMBRES | J94: 0 A 14 Y 65 Y MAS | K94: Adultos mayores | L94: 908 | M94: 908
A95: 0 | B95: Estatal | C95: 0 | D95: Estatal | E95: 21 Puebla | F95: Total | G95: 92 años | H95: 90-94 años | I95: HOMBRES | J95: 0 A 14 Y 65 Y MAS | K95: Adultos mayores | L95: 1033 | M95: 1033
A96: 0 | B96: Estatal | C96: 0 | D96: Estatal | E96: 21 Puebla | F96: Total | G96: 93 años | H96: 90-94 años | I96: HOMBRES | J96: 0 A 14 Y 65 Y MAS | K96: Adultos mayores | L96: 983 | M96: 983
A97: 0 | B97: Estatal | C97: 0 | D97: Estatal | E97: 21 Puebla | F97: Total | G97: 94 años | H97: 90-94 años | I97: HOMBRES | J97: 0 A 14 Y 65 Y MAS | K97: Adultos mayores | L97: 818 | M97: 818
A98: 0 | B98: Estatal | C98: 0 | D98: Estatal | E98: 21 Puebla | F98: Total | G98: 95 años | H98: 95-99 años | I98: HOMBRES | J98: 0 A 14 Y 65 Y MAS | K98: Adultos mayores | L98: 652 | M98: 652
A99: 0 | B99: Estatal | C99: 0 | D99: Estatal | E99: 21 Puebla | F99: Total | G99: 96 años | H99: 95-99 años | I99: HOMBRES | J99: 0 A 14 Y 65 Y MAS | K99: Adultos mayores | L99: 511 | M99: 511
A100: 0 | B100: Estatal | C100: 0 | D100: Estatal | E100: 21 Puebla | F100: Total | G100: 97 años | H100: 95-99 años | I100: HOMBRES | J100: 0 A 14 Y 65 Y MAS | K100: Adultos mayores | L100: 342 | M100: 342
A101: 0 | B101: Estatal | C101: 0 | D101: Estatal | E101: 21 Puebla | F101: Total | G101: 98 años | H101: 95-99 años | I101: HOMBRES | J101: 0 A 14 Y 65 Y MAS | K101: Adultos mayores | L101: 334 | M101: 334
A102: 0 | B102: Estatal | C102: 0 | D102: Estatal | E102: 21 Puebla | F102: Total | G102: 99 años | H102: 95-99 años | I102: HOMBRES | J102: 0 A 14 Y 65 Y MAS | K102: Adultos mayores | L102: 238 | M102: 238
A103: 0 | B103: Estatal | C103: 0 | D103: Estatal | E103: 21 Puebla | F103: Total | G103: 100 años y más | H103: 100 años | I103: HOMBRES | J103: 0 A 14 Y 65 Y MAS | K103: Adultos mayores | L103: 335 | M103: 335
A104: 0 | B104: Estatal | C104: 0 | D104: Estatal | E104: 21 Puebla | F104: Total | G104: No especificado | I104: HOMBRES | K104: No especificado | L104: 2822 | M104: 2822
A105: 32 | B105: 32 Tepeaca | C105: 1 | D105: Acajete | E105: 21 Puebla | F105: 001 Acajete | G105: Total | I105: HOMBRES | L105: 35139 | M105: 35139
A106: 32 | B106: 32 Tepeaca | C106: 1 | D106: Acajete | E106: 21 Puebla | F106: 001 Acajete | G106: 00 años | H106: 00-04 años | I106: HOMBRES | J106: 0 A 14 Y 65 Y MAS | K106: Niñas y niños | L106: 789 | M106: 789
A107: 32 | B107: 32 Tepeaca | C107: 1 | D107: Acajete | E107: 21 Puebla | F107: 001 Acajete | G107: 01 años | H107: 00-04 años | I107: HOMBRES | J107: 0 A 14 Y 65 Y MAS | K107: Niñas y niños | L107: 842 | M107: 842
A108: 32 | B108: 32 Tepeaca | C108: 1 | D108: Acajete | E108: 21 Puebla | F108: 001 Acajete | G108: 02 años | H108: 00-04 años | I108: HOMBRES | J108: 0 A 14 Y 65 Y MAS | K108: Niñas y niños | L108: 888 | M108: 888
A109: 32 | B109: 32 Tepeaca | C109: 1 | D109: Acajete | E109: 21 Puebla | F109: 001 Acajete | G109: 03 años | H109: 00-04 años | I109: HOMBRES | J109: 0 A 14 Y 65 Y MAS | K109: Niñas y niños | L109: 840 | M109: 840
A110: 32 | B110: 32 Tepeaca | C110: 1 | D110: Acajete | E110: 21 Puebla | F110: 001 Acajete | G110: 04 años | H110: 00-04 años | I110: HOMBRES | J110: 0 A 14 Y 65 Y MAS | K110: Niñas y niños | L110: 798 | M110: 798
A111: 32 | B111: 32 Tepeaca | C111: 1 | D111: Acajete | E111: 21 Puebla | F111: 001 Acajete | G111: 05 años | H111: 05-09 años | I111: HOMBRES | J111: 0 A 14 Y 65 Y MAS | K111: Niñas y niños | L111: 797 | M111: 797
A112: 32 | B112: 32 Tepeaca | C112: 1 | D112: Acajete | E112: 21 Puebla | F112: 001 Acajete | G112: 06 años | H112: 05-09 años | I112: HOMBRES | J112: 0 A 14 Y 65 Y MAS | K112: Niñas y niños | L112: 826 | M112: 826
A113: 32 | B113: 32 Tepeaca | C113: 1 | D113: Acajete | E113: 21 Puebla | F113: 001 Acajete | G113: 07 años | H113: 05-09 años | I113: HOMBRES | J113: 0 A 14 Y 65 Y MAS | K113: Niñas y niños | L113: 782 | M113: 782
A114: 32 | B114: 32 Tepeaca | C114: 1 | D114: Acajete | E114: 21 Puebla | F114: 001 Acajete | G114: 08 años | H114: 05-09 años | I114: HOMBRES | J114: 0 A 14 Y 65 Y MAS | K114: Niñas y niños | L114: 814 | M114: 814
A115: 32 | B115: 32 Tepeaca | C115: 1 | D115: Acajete | E115: 21 Puebla | F115: 001 Acajete | G115: 09 años | H115: 05-09 años | I115: HOMBRES | J115: 0 A 14 Y 65 Y MAS | K115: Niñas y niños | L115: 780 | M115: 780
A116: 32 | B116: 32 Tepeaca | C116: 1 | D116: Acajete | E116: 21 Puebla | F116: 001 Acajete | G116: 10 años | H116: 10-14 años | I116: HOMBRES | J116: 0 A 14 Y 65 Y MAS | K116: Niñas y niños | L116: 856 | M116: 856
A117: 32 | B117: 32 Tepeaca | C117: 1 | D117: Acajete | E117: 21 Puebla | F117: 001 Acajete | G117: 11 años | H117: 10-14 años | I117: HOMBRES | J117: 0 A 14 Y 65 Y MAS | K117: Niñas y niños | L117: 752 | M117: 752
A118: 32 | B118: 32 Tepeaca | C118: 1 | D118: Acajete | E118: 21 Puebla | F118: 001 Acajete | G118: 12 años | H118: 10-14 años | I118: HOMBRES | J118: 0 A 14 Y 65 Y MAS | K118: Niñas y niños | L118: 739 | M118: 739
A119: 32 | B119: 32 Tepeaca | C119: 1 | D119: Acajete | E119: 21 Puebla | F119: 001 Acajete | G119: 13 años | H119: 10-14 años | I119: HOMBRES | J119: 0 A 14 Y 65 Y MAS | K119: Adolescentes | L119: 727 | M119: 727
A120: 32 | B120: 32 Tepeaca | C120: 1 | D120: Acajete | E120: 21 Puebla | F120: 001 Acajete | G120: 14 años | H120: 10-14 años | I120: HOMBRES | J120: 0 A 14 Y 65 Y MAS | K120: Adolescentes | L120: 765 | M120: 765
A121: 32 | B121: 32 Tepeaca | C121: 1 | D121: Acajete | E121: 21 Puebla | F121: 001 Acajete | G121: 15 años | H121: 15-19 años | I121: HOMBRES | J121: 15 A 64 | K121: Adolescentes | L121: 742 | M121: 742
A122: 32 | B122: 32 Tepeaca | C122: 1 | D122: Acajete | E122: 21 Puebla | F122: 001 Acajete | G122: 16 años | H122: 15-19 años | I122: HOMBRES | J122: 15 A 64 | K122: Adolescentes | L122: 711 | M122: 711
A123: 32 | B123: 32 Tepeaca | C123: 1 | D123: Acajete | E123: 21 Puebla | F123: 001 Acajete | G123: 17 años | H123: 15-19 años | I123: HOMBRES | J123: 15 A 64 | K123: Adolescentes | L123: 853 | M123: 853
A124: 32 | B124: 32 Tepeaca | C124: 1 | D124: Acajete | E124: 21 Puebla | F124: 001 Acajete | G124: 18 años | H124: 15-19 años | I124: HOMBRES | J124: 15 A 64 | K124: Adultos | L124: 779 | M124: 779
A125: 32 | B125: 32 Tepeaca | C125: 1 | D125: Acajete | E125: 21 Puebla | F125: 001 Acajete | G125: 19 años | H125: 15-19 años | I125: HOMBRES | J125: 15 A 64 | K125: Adultos | L125: 618 | M125: 618
A126: 32 | B126: 32 Tepeaca | C126: 1 | D126: Acajete | E126: 21 Puebla | F126: 001 Acajete | G126: 20 años | H126: 20-24 años | I126: HOMBRES | J126: 15 A 64 | K126: Adultos | L126: 740 | M126: 740
A127: 32 | B127: 32 Tepeaca | C127: 1 | D127: Acajete | E127: 21 Puebla | F127: 001 Acajete | G127: 21 años | H127: 20-24 años | I127: HOMBRES | J127: 15 A 64 | K127: Adultos | L127: 571 | M127: 571
A128: 32 | B128: 32 Tepeaca | C128: 1 | D128: Acajete | E128: 21 Puebla | F128: 001 Acajete | G128: 22 años | H128: 20-24 años | I128: HOMBRES | J128: 15 A 64 | K128: Adultos | L128: 644 | M128: 644
A129: 32 | B129: 32 Tepeaca | C129: 1 | D129: Acajete | E129: 21 Puebla | F129: 001 Acajete | G129: 23 años | H129: 20-24 años | I129: HOMBRES | J129: 15 A 64 | K129: Adultos | L129: 610 | M129: 610
A130: 32 | B130: 32 Tepeaca | C130: 1 | D130: Acajete | E130: 21 Puebla | F130: 001 Acajete | G130: 24 años | H130: 20-24 años | I130: HOMBRES | J130: 15 A 64 | K130: Adultos | L130: 602 | M130: 602
A131: 32 | B131: 32 Tepeaca | C131: 1 | D131: Acajete | E131: 21 Puebla | F131: 001 Acajete | G131: 25 años | H131: 25-29 años | I131: HOMBRES | J131: 15 A 64 | K131: Adultos | L131: 638 | M131: =L131 -> 638
A132: 32 | B132: 32 Tepeaca | C132: 1 | D132: Acajete | E132: 21 Puebla | F132: 001 Acajete | G132: 26 años | H132: 25-29 años | I132: HOMBRES | J132: 15 A 64 | K132: Adultos | L132: 557 | M132: 557
A133: 32 | B133: 32 Tepeaca | C133: 1 | D133: Acajete | E133: 21 Puebla | F133: 001 Acajete | G133: 27 años | H133: 25-29 años | I133: HOMBRES | J133: 15 A 64 | K133: Adultos | L133: 583 | M133: 583
A134: 32 | B134: 32 Tepeaca | C134: 1 | D134: Acajete | E134: 21 Puebla | F134: 001 Acajete | G134: 28 años | H134: 25-29 años | I134: HOMBRES | J134: 15 A 64 | K134: Adultos | L134: 615 | M134: 615
A135: 32 | B135: 32 Tepeaca | C135: 1 | D135: Acajete | E135: 21 Puebla | F135: 001 Acajete | G135: 29 años | H135: 25-29 años | I135: HOMBRES | J135: 15 A 64 | K135: Adultos | L135: 537 | M135: 537
A136: 32 | B136: 32 Tepeaca | C136: 1 | D136: Acajete | E136: 21 Puebla | F136: 001 Acajete | G136: 30 años | H136: 30-34 años | I136: HOMBRES | J136: 15 A 64 | K136: Adultos | L136: 593 | M136: 593
A137: 32 | B137: 32 Tepeaca | C137: 1 | D137: Acajete | E137: 21 Puebla | F137: 001 Acajete | G137: 31 años | H137: 30-34 años | I137: HOMBRES | J137: 15 A 64 | K137: Adultos | L137: 417 | M137: 417
A138: 32 | B138: 32 Tepeaca | C138: 1 | D138: Acajete | E138: 21 Puebla | F138: 001 Acajete | G138: 32 años | H138: 30-34 años | I138: HOMBRES | J138: 15 A 64 | K138: Adultos | L138: 536 | M138: 536
A139: 32 | B139: 32 Tepeaca | C139: 1 | D139: Acajete | E139: 21 Puebla | F139: 001 Acajete | G139: 33 años | H139: 30-34 años | I139: HOMBRES | J139: 15 A 64 | K139: Adultos | L139: 423 | M139: 423
A140: 32 | B140: 32 Tepeaca | C140: 1 | D140: Acajete | E140: 21 Puebla | F140: 001 Acajete | G140: 34 años | H140: 30-34 años | I140: HOMBRES | J140: 15 A 64 | K140: Adultos | L140: 442 | M140: 442
A141: 32 | B141: 32 Tepeaca | C141: 1 | D141: Acajete | E141: 21 Puebla | F141: 001 Acajete | G141: 35 años | H141: 35-39 años | I141: HOMBRES | J141: 15 A 64 | K141: Adultos | L141: 439 | M141: 439
A142: 32 | B142: 32 Tepeaca | C142: 1 | D142: Acajete | E142: 21 Puebla | F142: 001 Acajete | G142: 36 años | H142: 35-39 años | I142: HOMBRES | J142: 15 A 64 | K142: Adultos | L142: 443 | M142: 443
A143: 32 | B143: 32 Tepeaca | C143: 1 | D143: Acajete | E143: 21 Puebla | F143: 001 Acajete | G143: 37 años | H143: 35-39 años | I143: HOMBRES | J143: 15 A 64 | K143: Adultos | L143: 378 | M143: 378
A144: 32 | B144: 32 Tepeaca | C144: 1 | D144: Acajete | E144: 21 Puebla | F144: 001 Acajete | G144: 38 años | H144: 35-39 años | I144: HOMBRES | J144: 15 A 64 | K144: Adultos | L144: 513 | M144: 513
A145: 32 | B145: 32 Tepeaca | C145: 1 | D145: Acajete | E145: 21 Puebla | F145: 001 Acajete | G145: 39 años | H145: 35-39 años | I145: HOMBRES | J145: 15 A 64 | K145: Adultos | L145: 425 | M145: 425
A146: 32 | B146: 32 Tepeaca | C146: 1 | D146: Acajete | E146: 21 Puebla | F146: 001 Acajete | G146: 40 años | H146: 40-44 años | I146: HOMBRES | J146: 15 A 64 | K146: Adultos | L146: 495 | M146: 495
A147: 32 | B147: 32 Tepeaca | C147: 1 | D147: Acajete | E147: 21 Puebla | F147: 001 Acajete | G147: 41 años | H147: 40-44 años | I147: HOMBRES | J147: 15 A 64 | K147: Adultos | L147: 250 | M147: 250
A148: 32 | B148: 32 Tepeaca | C148: 1 | D148: Acajete | E148: 21 Puebla | F148: 001 Acajete | G148: 42 años | H148: 40-44 años | I148: HOMBRES | J148: 15 A 64 | K148: Adultos | L148: 428 | M148: 428
A149: 32 | B149: 32 Tepeaca | C149: 1 | D149: Acajete | E149: 21 Puebla | F149: 001 Acajete | G149: 43 años | H149: 40-44 años | I149: HOMBRES | J149: 15 A 64 | K149: Adultos | L149: 354 | M149: 354
A150: 32 | B150: 32 Tepeaca | C150: 1 | D150: Acajete | E150: 21 Puebla | F150: 001 Acajete | G150: 44 años | H150: 40-44 años | I150: HOMBRES | J150: 15 A 64 | K150: Adultos | L150: 327 | M150: 327
A151: 32 | B151: 32 Tepeaca | C151: 1 | D151: Acajete | E151: 21 Puebla | F151: 001 Acajete | G151: 45 años | H151: 45-49 años | I151: HOMBRES | J151: 15 A 64 | K151: Adultos | L151: 353 | M151: 353
A152: 32 | B152: 32 Tepeaca | C152: 1 | D152: Acajete | E152: 21 Puebla | F152: 001 Acajete | G152: 46 años | H152: 45-49 años | I152: HOMBRES | J152: 15 A 64 | K152: Adultos | L152: 344 | M152: 344
A153: 32 | B153: 32 Tepeaca | C153: 1 | D153: Acajete | E153: 21 Puebla | F153: 001 Acajete | G153: 47 años | H153: 45-49 años | I153: HOMBRES | J153: 15 A 64 | K153: Adultos | L153: 309 | M153: 309
A154: 32 | B154: 32 Tepeaca | C154: 1 | D154: Acajete | E154: 21 Puebla | F154: 001 Acajete | G154: 48 años | H154: 45-49 años | I154: HOMBRES | J154: 15 A 64 | K154: Adultos | L154: 330 | M154: 330
A155: 32 | B155: 32 Tepeaca | C155: 1 | D155: Acajete | E155: 21 Puebla | F155: 001 Acajete | G155: 49 años | H155: 45-49 años | I155: HOMBRES | J155: 15 A 64 | K155: Adultos | L155: 302 | M155: 302
A156: 32 | B156: 32 Tepeaca | C156: 1 | D156: Acajete | E156: 21 Puebla | F156: 001 Acajete | G156: 50 años | H156: 50-54 años | I156: HOMBRES | J156: 15 A 64 | K156: Adultos | L156: 349 | M156: 349
A157: 32 | B157: 32 Tepeaca | C157: 1 | D157: Acajete | E157: 21 Puebla | F157: 001 Acajete | G157: 51 años | H157: 50-54 años | I157: HOMBRES | J157: 15 A 64 | K157: Adultos | L157: 180 | M157: 180
A158: 32 | B158: 32 Tepeaca | C158: 1 | D158: Acajete | E158: 21 Puebla | F158: 001 Acajete | G158: 52 años | H158: 50-54 años | I158: HOMBRES | J158: 15 A 64 | K158: Adultos | L158: 297 | M158: 297
A159: 32 | B159: 32 Tepeaca | C159: 1 | D159: Acajete | E159: 21 Puebla | F159: 001 Acajete | G159: 53 años | H159: 50-54 años | I159: HOMBRES | J159: 15 A 64 | K159: Adultos | L159: 271 | M159: 271
A160: 32 | B160: 32 Tepeaca | C160: 1 | D160: Acajete | E160: 21 Puebla | F160: 001 Acajete | G160: 54 años | H160: 50-54 años | I160: HOMBRES | J160: 15 A 64 | K160: Adultos | L160: 276 | M160: 276
A161: 32 | B161: 32 Tepeaca | C161: 1 | D161: Acajete | E161: 21 Puebla | F161: 001 Acajete | G161: 55 años | H161: 55-59 años | I161: HOMBRES | J161: 15 A 64 | K161: Adultos | L161: 243 | M161: 243
A162: 32 | B162: 32 Tepeaca | C162: 1 | D162: Acajete | E162: 21 Puebla | F162: 001 Acajete | G162: 56 años | H162: 55-59 años | I162: HOMBRES | J162: 15 A 64 | K162: Adultos | L162: 230 | M162: 230
A163: 32 | B163: 32 Tepeaca | C163: 1 | D163: Acajete | E163: 21 Puebla | F163: 001 Acajete | G163: 57 años | H163: 55-59 años | I163: HOMBRES | J163: 15 A 64 | K163: Adultos | L163: 190 | M163: 190
A164: 32 | B164: 32 Tepeaca | C164: 1 | D164: Acajete | E164: 21 Puebla | F164: 001 Acajete | G164: 58 años | H164: 55-59 años | I164: HOMBRES | J164: 15 A 64 | K164: Adultos | L164: 225 | M164: 225
A165: 32 | B165: 32 Tepeaca | C165: 1 | D165: Acajete | E165: 21 Puebla | F165: 001 Acajete | G165: 59 años | H165: 55-59 años | I165: HOMBRES | J165: 15 A 64 | K165: Adultos | L165: 201 | M165: 201
A166: 32 | B166: 32 Tepeaca | C166: 1 | D166: Acajete | E166: 21 Puebla | F166: 001 Acajete | G166: 60 años | H166: 60-64 años | I166: HOMBRES | J166: 15 A 64 | K166: Adultos mayores | L166: 254 | M166: 254
A167: 32 | B167: 32 Tepeaca | C167: 1 | D167: Acajete | E167: 21 Puebla | F167: 001 Acajete | G167: 61 años | H167: 60-64 años | I167: HOMBRES | J167: 15 A 64 | K167: Adultos mayores | L167: 143 | M167: 143
A168: 32 | B168: 32 Tepeaca | C168: 1 | D168: Acajete | E168: 21 Puebla | F168: 001 Acajete | G168: 62 años | H168: 60-64 años | I168: HOMBRES | J168: 15 A 64 | K168: Adultos mayores | L168: 170 | M168: 170
A169: 32 | B169: 32 Tepeaca | C169: 1 | D169: Acajete | E169: 21 Puebla | F169: 001 Acajete | G169: 63 años | H169: 60-64 años | I169: HOMBRES | J169: 15 A 64 | K169: Adultos mayores | L169: 162 | M169: 162
A170: 32 | B170: 32 Tepeaca | C170: 1 | D170: Acajete | E170: 21 Puebla | F170: 001 Acajete | G170: 64 años | H170: 60-64 años | I170: HOMBRES | J170: 15 A 64 | K170: Adultos mayores | L170: 162 | M170: 162
A171: 32 | B171: 32 Tepeaca | C171: 1 | D171: Acajete | E171: 21 Puebla | F171: 001 Acajete | G171: 65 años | H171: 65-69 años | I171: HOMBRES | J171: 0 A 14 Y 65 Y MAS | K171: Adultos mayores | L171: 173 | M171: 173
A172: 32 | B172: 32 Tepeaca | C172: 1 | D172: Acajete | E172: 21 Puebla | F172: 001 Acajete | G172: 66 años | H172: 65-69 años | I172: HOMBRES | J172: 0 A 14 Y 65 Y MAS | K172: Adultos mayores | L172: 124 | M172: 124
A173: 32 | B173: 32 Tepeaca | C173: 1 | D173: Acajete | E173: 21 Puebla | F173: 001 Acajete | G173: 67 años | H173: 65-69 años | I173: HOMBRES | J173: 0 A 14 Y 65 Y MAS | K173: Adultos mayores | L173: 132 | M173: 132
A174: 32 | B174: 32 Tepeaca | C174: 1 | D174: Acajete | E174: 21 Puebla | F174: 001 Acajete | G174: 68 años | H174: 65-69 años | I174: HOMBRES | J174: 0 A 14 Y 65 Y MAS | K174: Adultos mayores | L174: 147 | M174: 147
A175: 32 | B175: 32 Tepeaca | C175: 1 | D175: Acajete | E175: 21 Puebla | F175: 001 Acajete | G175: 69 años | H175: 65-69 años | I175: HOMBRES | J175: 0 A 14 Y 65 Y MAS | K175: Adultos mayores | L175: 104 | M175: 104
A176: 32 | B176: 32 Tepeaca | C176: 1 | D176: Acajete | E176: 21 Puebla | F176: 001 Acajete | G176: 70 años | H176: 70-74 años | I176: HOMBRES | J176: 0 A 14 Y 65 Y MAS | K176: Adultos mayores | L176: 126 | M176: 126
A177: 32 | B177: 32 Tepeaca | C177: 1 | D177: Acajete | E177: 21 Puebla | F177: 001 Acajete | G177: 71 años | H177: 70-74 años | I177: HOMBRES | J177: 0 A 14 Y 65 Y MAS | K177: Adultos mayores | L177: 76 | M177: 76
A178: 32 | B178: 32 Tepeaca | C178: 1 | D178: Acajete | E178: 21 Puebla | F178: 001 Acajete | G178: 72 años | H178: 70-74 años | I178: HOMBRES | J178: 0 A 14 Y 65 Y MAS | K178: Adultos mayores | L178: 92 | M178: 92
A179: 32 | B179: 32 Tepeaca | C179: 1 | D179: Acajete | E179: 21 Puebla | F179: 001 Acajete | G179: 73 años | H179: 70-74 años | I179: HOMBRES | J179: 0 A 14 Y 65 Y MAS | K179: Adultos mayores | L179: 90 | M179: 90
A180: 32 | B180: 32 Tepeaca | C180: 1 | D180: Acajete | E180: 21 Puebla | F180: 001 Acajete | G180: 74 años | H180: 70-74 años | I180: HOMBRES | J180: 0 A 14 Y 65 Y MAS | K180: Adultos mayores | L180: 86 | M180: 86
A181: 32 | B181: 32 Tepeaca | C181: 1 | D181: Acajete | E181: 21 Puebla | F181: 001 Acajete | G181: 75 años | H181: 75-79 años | I181: HOMBRES | J181: 0 A 14 Y 65 Y MAS | K181: Adultos mayores | L181: 87 | M181: 87
A182: 32 | B182: 32 Tepeaca | C182: 1 | D182: Acajete | E182: 21 Puebla | F182: 001 Acajete | G182: 76 años | H182: 75-79 años | I182: HOMBRES | J182: 0 A 14 Y 65 Y MAS | K182: Adultos mayores | L182: 78 | M182: 78
A183: 32 | B183: 32 Tepeaca | C183: 1 | D183: Acajete | E183: 21 Puebla | F183: 001 Acajete | G183: 77 años | H183: 75-79 años | I183: HOMBRES | J183: 0 A 14 Y 65 Y MAS | K183: Adultos mayores | L183: 54 | M183: 54
A184: 32 | B184: 32 Tepeaca | C184: 1 | D184: Acajete | E184: 21 Puebla | F184: 001 Acajete | G184: 78 años | H184: 75-79 años | I184: HOMBRES | J184: 0 A 14 Y 65 Y MAS | K184: Adultos mayores | L184: 78 | M184: 78
A185: 32 | B185: 32 Tepeaca | C185: 1 | D185: Acajete | E185: 21 Puebla | F185: 001 Acajete | G185: 79 años | H185: 75-79 años | I185: HOMBRES | J185: 0 A 14 Y 65 Y MAS | K185: Adultos mayores | L185: 47 | M185: 47
A186: 32 | B186: 32 Tepeaca | C186: 1 | D186: Acajete | E186: 21 Puebla | F186: 001 Acajete | G186: 80 años | H186: 80-84 años | I186: HOMBRES | J186: 0 A 14 Y 65 Y MAS | K186: Adultos mayores | L186: 47 | M186: 47
A187: 32 | B187: 32 Tepeaca | C187: 1 | D187: Acajete | E187: 21 Puebla | F187: 001 Acajete | G187: 81 años | H187: 80-84 años | I187: HOMBRES | J187: 0 A 14 Y 65 Y MAS | K187: Adultos mayores | L187: 27 | M187: 27
A188: 32 | B188: 32 Tepeaca | C188: 1 | D188: Acajete | E188: 21 Puebla | F188: 001 Acajete | G188: 82 años | H188: 80-84 años | I188: HOMBRES | J188: 0 A 14 Y 65 Y MAS | K188: Adultos mayores | L188: 33 | M188: 33
A189: 32 | B189: 32 Tepeaca | C189: 1 | D189: Acajete | E189: 21 Puebla | F189: 001 Acajete | G189: 83 años | H189: 80-84 años | I189: HOMBRES | J189: 0 A 14 Y 65 Y MAS | K189: Adultos mayores | L189: 34 | M189: 34
A190: 32 | B190: 32 Tepeaca | C190: 1 | D190: Acajete | E190: 21 Puebla | F190: 001 Acajete | G190: 84 años | H190: 80-84 años | I190: HOMBRES | J190: 0 A 14 Y 65 Y MAS | K190: Adultos mayores | L190: 40 | M190: 40
A191: 32 | B191: 32 Tepeaca | C191: 1 | D191: Acajete | E191: 21 Puebla | F191: 001 Acajete | G191: 85 años | H191: 85-89 años | I191: HOMBRES | J191: 0 A 14 Y 65 Y MAS | K191: Adultos mayores | L191: 44 | M191: 44
A192: 32 | B192: 32 Tepeaca | C192: 1 | D192: Acajete | E192: 21 Puebla | F192: 001 Acajete | G192: 86 años | H192: 85-89 años | I192: HOMBRES | J192: 0 A 14 Y 65 Y MAS | K192: Adultos mayores | L192: 26 | M192: 26
A193: 32 | B193: 32 Tepeaca | C193: 1 | D193: Acajete | E193: 21 Puebla | F193: 001 Acajete | G193: 87 años | H193: 85-89 años | I193: HOMBRES | J193: 0 A 14 Y 65 Y MAS | K193: Adultos mayores | L193: 29 | M193: 29
A194: 32 | B194: 32 Tepeaca | C194: 1 | D194: Acajete | E194: 21 Puebla | F194: 001 Acajete | G194: 88 años | H194: 85-89 años | I194: HOMBRES | J194: 0 A 14 Y 65 Y MAS | K194: Adultos mayores | L194: 16 | M194: 16
A195: 32 | B195: 32 Tepeaca | C195: 1 | D195: Acajete | E195: 21 Puebla | F195: 001 Acajete | G195: 89 años | H195: 85-89 años | I195: HOMBRES | J195: 0 A 14 Y 65 Y MAS | K195: Adultos mayores | L195: 16 | M195: =L195 -> 16
A196: 32 | B196: 32 Tepeaca | C196: 1 | D196: Acajete | E196: 21 Puebla | F196: 001 Acajete | G196: 90 años | H196: 90-94 años | I196: HOMBRES | J196: 0 A 14 Y 65 Y MAS | K196: Adultos mayores | L196: 20 | M196: 20
A197: 32 | B197: 32 Tepeaca | C197: 1 | D197: Acajete | E197: 21 Puebla | F197: 001 Acajete | G197: 91 años | H197: 90-94 años | I197: HOMBRES | J197: 0 A 14 Y 65 Y MAS | K197: Adultos mayores | L197: 10 | M197: 10
A198: 32 | B198: 32 Tepeaca | C198: 1 | D198: Acajete | E198: 21 Puebla | F198: 001 Acajete | G198: 92 años | H198: 90-94 años | I198: HOMBRES | J198: 0 A 14 Y 65 Y MAS | K198: Adultos mayores | L198: 3 | M198: 3
A199: 32 | B199: 32 Tepeaca | C199: 1 | D199: Acajete | E199: 21 Puebla | F199: 001 Acajete | G199: 93 años | H199: 90-94 años | I199: HOMBRES | J199: 0 A 14 Y 65 Y MAS | K199: Adultos mayores | L199: 5 | M199: 5
A200: 32 | B200: 32 Tepeaca | C200: 1 | D200: Acajete | E200: 21 Puebla | F200: 001 Acajete | G200: 94 años | H200: 90-94 años | I200: HOMBRES | J200: 0 A 14 Y 65 Y MAS | K200: Adultos mayores | L200: 8 | M200: 8
... 4300 more rows

Sheet base lengua (hidden)
A1: ID_Reg | B1: REG | C1: ID_MUN | D1: MUN | E1: Sexo | F1: Grupos quinquenales de edad | G1: Población de 3 años y más | H1: Habla lengua indígena total | I1: Habla lengua indígena y Habla español | J1: Habla lengua indígena y No habla español | K1: No especificado | L1: No habla lengua indígena | M1: No especificado
A2: 32 | B2: 32 Tepeaca | C2: 1 | D2: Acajete | E2: Total | F2: 03-04 años | G2: 3272 | H2: 23 | I2: 19 | J2: 1 | K2: 3 | L2: 3244 | M2: 5
A3: 32 | B3: 32 Tepeaca | C3: 1 | D3: Acajete | E3: Total | F3: 05-09 años | G3: 8084 | H3: 141 | I3: 139 | J3: 0 | K3: 2 | L3: 7942 | M3: 1
A4: 32 | B4: 32 Tepeaca | C4: 1 | D4: Acajete | E4: Total | F4: 10-14 años | G4: 7692 | H4: 201 | I4: 199 | J4: 2 | K4: 0 | L4: 7491 | M4: 0
A5: 32 | B5: 32 Tepeaca | C5: 1 | D5: Acajete | E5: Total | F5: 15-19 años | G5: 7434 | H5: 223 | I5: 219 | J5: 2 | K5: 2 | L5: 7210 | M5: 1
A6: 32 | B6: 32 Tepeaca | C6: 1 | D6: Acajete | E6: Total | F6: 20-24 años | G6: 6550 | H6: 269 | I6: 261 | J6: 4 | K6: 4 | L6: 6280 | M6: 1
A7: 32 | B7: 32 Tepeaca | C7: 1 | D7: Acajete | E7: Total | F7: 25-29 años | G7: 6050 | H7: 360 | I7: 349 | J7: 6 | K7: 5 | L7: 5686 | M7: 4
A8: 32 | B8: 32 Tepeaca | C8: 1 | D8: Acajete | E8: Total | F8: 30-34 años | G8: 5160 | H8: 374 | I8: 369 | J8: 2 | K8: 3 | L8: 4786 | M8: 0
A9: 32 | B9: 32 Tepeaca | C9: 1 | D9: Acajete | E9: Total | F9: 35-39 años | G9: 4695 | H9: 396 | I9: 384 | J9: 11 | K9: 1 | L9: 4297 | M9: 2
A10: 32 | B10: 32 Tepeaca | C10: 1 | D10: Acajete | E10: Total | F10: 40-44 años | G10: 3984 | H10: 356 | I10: 347 | J10: 5 | K10: 4 | L10: 3628 | M10: 0
A11: 32 | B11: 32 Tepeaca | C11: 1 | D11: Acajete | E11: Total | F11: 45-49 años | G11: 3410 | H11: 339 | I11: 332 | J11: 7 | K11: 0 | L11: 3071 | M11: 0
A12: 32 | B12: 32 Tepeaca | C12: 1 | D12: Acajete | E12: Total | F12: 50-54 años | G12: 3031 | H12: 283 | I12: 272 | J12: 10 | K12: 1 | L12: 2748 | M12: 0
A13: 32 | B13: 32 Tepeaca | C13: 1 | D13: Acajete | E13: Total | F13: 55-59 años | G13: 2373 | H13: 245 | I13: 240 | J13: 3 | K13: 2 | L13: 2127 | M13: 1
A14: 32 | B14: 32 Tepeaca | C14: 1 | D14: Acajete | E14: Total | F14: 60-64 años | G14: 1948 | H14: 183 | I14: 175 | J14: 8 | K14: 0 | L14: 1765 | M14: 0
A15: 32 | B15: 32 Tepeaca | C15: 1 | D15: Acajete | E15: Total | F15: 65-69 años | G15: 1406 | H15: 150 | I15: 143 | J15: 6 | K15: 1 | L15: 1256 | M15: 0
A16: 32 | B16: 32 Tepeaca | C16: 1 | D16: Acajete | E16: Total | F16: 70-74 años | G16: 1039 | H16: 122 | I16: 122 | J16: 0 | K16: 0 | L16: 917 | M16: 0
A17: 32 | B17: 32 Tepeaca | C17: 1 | D17: Acajete | E17: Total | F17: 75-79 años | G17: 755 | H17: 105 | I17: 102 | J17: 3 | K17: 0 | L17: 650 | M17: 0
A18: 32 | B18: 32 Tepeaca | C18: 1 | D18: Acajete | E18: Total | F18: 80-84 años | G18: 460 | H18: 74 | I18: 73 | J18: 1 | K18: 0 | L18: 386 | M18: 0
A19: 32 | B19: 32 Tepeaca | C19: 1 | D19: Acajete | E19: Total | F19: 85 años y más | G19: 468 | H19: 90 | I19: 86 | J19: 4 | K19: 0 | L19: 378 | M19: 0
A20: 32 | B20: 32 Tepeaca | C20: 1 | D20: Acajete | E20: Hombres | F20: 03-04 años | G20: 1638 | H20: 9 | I20: 9 | J20: 0 | K20: 0 | L20: 1627 | M20: 2
A21: 32 | B21: 32 Tepeaca | C21: 1 | D21: Acajete | E21: Hombres | F21: 05-09 años | G21: 3999 | H21: 69 | I21: 67 | J21: 0 | K21: 2 | L21: 3930 | M21: 0
A22: 32 | B22: 32 Tepeaca | C22: 1 | D22: Acajete | E22: Hombres | F22: 10-14 años | G22: 3839 | H22: 95 | I22: 95 | J22: 0 | K22: 0 | L22: 3744 | M22: 0
A23: 32 | B23: 32 Tepeaca | C23: 1 | D23: Acajete | E23: Hombres | F23: 15-19 años | G23: 3703 | H23: 114 | I23: 112 | J23: 1 | K23: 1 | L23: 3588 | M23: 1
A24: 32 | B24: 32 Tepeaca | C24: 1 | D24: Acajete | E24: Hombres | F24: 20-24 años | G24: 3167 | H24: 126 | I24: 121 | J24: 2 | K24: 3 | L24: 3040 | M24: 1
A25: 32 | B25: 32 Tepeaca | C25: 1 | D25: Acajete | E25: Hombres | F25: 25-29 años | G25: 2930 | H25: 187 | I25: 179 | J25: 5 | K25: 3 | L25: 2741 | M25: 2
A26: 32 | B26: 32 Tepeaca | C26: 1 | D26: Acajete | E26: Hombres | F26: 30-34 años | G26: 2411 | H26: 169 | I26: 168 | J26: 1 | K26: 0 | L26: 2242 | M26: 0
A27: 32 | B27: 32 Tepeaca | C27: 1 | D27: Acajete | E27: Hombres | F27: 35-39 años | G27: 2198 | H27: 181 | I27: 174 | J27: 7 | K27: 0 | L27: 2016 | M27: 1
A28: 32 | B28: 32 Tepeaca | C28: 1 | D28: Acajete | E28: Hombres | F28: 40-44 años | G28: 1854 | H28: 165 | I28: 161 | J28: 2 | K28: 2 | L28: 1689 | M28: 0
A29: 32 | B29: 32 Tepeaca | C29: 1 | D29: Acajete | E29: Hombres | F29: 45-49 años | G29: 1638 | H29: 161 | I29: 159 | J29: 2 | K29: 0 | L29: 1477 | M29: 0
A30: 32 | B30: 32 Tepeaca | C30: 1 | D30: Acajete | E30: Hombres | F30: 50-54 años | G30: 1373 | H30: 133 | I30: 127 | J30: 6 | K30: 0 | L30: 1240 | M30: 0
A31: 32 | B31: 32 Tepeaca | C31: 1 | D31: Acajete | E31: Hombres | F31: 55-59 años | G31: 1089 | H31: 114 | I31: 113 | J31: 1 | K31: 0 | L31: 974 | M31: 1
A32: 32 | B32: 32 Tepeaca | C32: 1 | D32: Acajete | E32: Hombres | F32: 60-64 años | G32: 891 | H32: 91 | I32: 89 | J32: 2 | K32: 0 | L32: 800 | M32: 0
A33: 32 | B33: 32 Tepeaca | C33: 1 | D33: Acajete | E33: Hombres | F33: 65-69 años | G33: 680 | H33: 78 | I33: 74 | J33: 3 | K33: 1 | L33: 602 | M33: 0
A34: 32 | B34: 32 Tepeaca | C34: 1 | D34: Acajete | E34: Hombres | F34: 70-74 años | G34: 470 | H34: 57 | I34: 57 | J34: 0 | K34: 0 | L34: 413 | M34: 0
A35: 32 | B35: 32 Tepeaca | C35: 1 | D35: Acajete | E35: Hombres | F35: 75-79 años | G35: 344 | H35: 50 | I35: 50 | J35: 0 | K35: 0 | L35: 294 | M35: 0
A36: 32 | B36: 32 Tepeaca | C36: 1 | D36: Acajete | E36: Hombres | F36: 80-84 años | G36: 181 | H36: 34 | I36: 34 | J36: 0 | K36: 0 | L36: 147 | M36: 0
A37: 32 | B37: 32 Tepeaca | C37: 1 | D37: Acajete | E37: Hombres | F37: 85 años y más | G37: 192 | H37: 35 | I37: 33 | J37: 2 | K37: 0 | L37: 157 | M37: 0
A38: 32 | B38: 32 Tepeaca | C38: 1 | D38: Acajete | E38: Mujeres | F38: 03-04 años | G38: 1634 | H38: 14 | I38: 10 | J38: 1 | K38: 3 | L38: 1617 | M38: 3
A39: 32 | B39: 32 Tepeaca | C39: 1 | D39: Acajete | E39: Mujeres | F39: 05-09 años | G39: 4085 | H39: 72 | I39: 72 | J39: 0 | K39: 0 | L39: 4012 | M39: 1
A40: 32 | B40: 32 Tepeaca | C40: 1 | D40: Acajete | E40: Mujeres | F40: 10-14 años | G40: 3853 | H40: 106 | I40: 104 | J40: 2 | K40: 0 | L40: 3747 | M40: 0
A41: 32 | B41: 32 Tepeaca | C41: 1 | D41: Acajete | E41: Mujeres | F41: 15-19 años | G41: 3731 | H41: 109 | I41: 107 | J41: 1 | K41: 1 | L41: 3622 | M41: 0
A42: 32 | B42: 32 Tepeaca | C42: 1 | D42: Acajete | E42: Mujeres | F42: 20-24 años | G42: 3383 | H42: 143 | I42: 140 | J42: 2 | K42: 1 | L42: 3240 | M42: 0
A43: 32 | B43: 32 Tepeaca | C43: 1 | D43: Acajete | E43: Mujeres | F43: 25-29 años | G43: 3120 | H43: 173 | I43: 170 | J43: 1 | K43: 2 | L43: 2945 | M43: 2
A44: 32 | B44: 32 Tepeaca | C44: 1 | D44: Acajete | E44: Mujeres | F44: 30-34 años | G44: 2749 | H44: 205 | I44: 201 | J44: 1 | K44: 3 | L44: 2544 | M44: 0
A45: 32 | B45: 32 Tepeaca | C45: 1 | D45: Acajete | E45: Mujeres | F45: 35-39 años | G45: 2497 | H45: 215 | I45: 210 | J45: 4 | K45: 1 | L45: 2281 | M45: 1
A46: 32 | B46: 32 Tepeaca | C46: 1 | D46: Acajete | E46: Mujeres | F46: 40-44 años | G46: 2130 | H46: 191 | I46: 186 | J46: 3 | K46: 2 | L46: 1939 | M46: 0
A47: 32 | B47: 32 Tepeaca | C47: 1 | D47: Acajete | E47: Mujeres | F47: 45-49 años | G47: 1772 | H47: 178 | I47: 173 | J47: 5 | K47: 0 | L47: 1594 | M47: 0
A48: 32 | B48: 32 Tepeaca | C48: 1 | D48: Acajete | E48: Mujeres | F48: 50-54 años | G48: 1658 | H48: 150 | I48: 145 | J48: 4 | K48: 1 | L48: 1508 | M48: 0
A49: 32 | B49: 32 Tepeaca | C49: 1 | D49: Acajete | E49: Mujeres | F49: 55-59 años | G49: 1284 | H49: 131 | I49: 127 | J49: 2 | K49: 2 | L49: 1153 | M49: 0
A50: 32 | B50: 32 Tepeaca | C50: 1 | D50: Acajete | E50: Mujeres | F50: 60-64 años | G50: 1057 | H50: 92 | I50: 86 | J50: 6 | K50: 0 | L50: 965 | M50: 0
A51: 32 | B51: 32 Tepeaca | C51: 1 | D51: Acajete | E51: Mujeres | F51: 65-69 años | G51: 726 | H51: 72 | I51: 69 | J51: 3 | K51: 0 | L51: 654 | M51: 0
A52: 32 | B52: 32 Tepeaca | C52: 1 | D52: Acajete | E52: Mujeres | F52: 70-74 años | G52: 569 | H52: 65 | I52: 65 | J52: 0 | K52: 0 | L52: 504 | M52: 0
A53: 32 | B53: 32 Tepeaca | C53: 1 | D53: Acajete | E53: Mujeres | F53: 75-79 años | G53: 411 | H53: 55 | I53: 52 | J53: 3 | K53: 0 | L53: 356 | M53: 0
A54: 32 | B54: 32 Tepeaca | C54: 1 | D54: Acajete | E54: Mujeres | F54: 80-84 años | G54: 279 | H54: 40 | I54: 39 | J54: 1 | K54: 0 | L54: 239 | M54: 0
A55: 32 | B55: 32 Tepeaca | C55: 1 | D55: Acajete | E55: Mujeres | F55: 85 años y más | G55: 276 | H55: 55 | I55: 53 | J55: 2 | K55: 0 | L55: 221 | M55: 0
A56: 6 | B56: 6 Teziutlán | C56: 2 | D56: Acateno | E56: Total | F56: 03-04 años | G56: 306 | H56: 0 | I56: 0 | J56: 0 | K56: 0 | L56: 306 | M56: 0
A57: 6 | B57: 6 Teziutlán | C57: 2 | D57: Acateno | E57: Total | F57: 05-09 años | G57: 771 | H57: 6 | I57: 6 | J57: 0 | K57: 0 | L57: 765 | M57: 0
A58: 6 | B58: 6 Teziutlán | C58: 2 | D58: Acateno | E58: Total | F58: 10-14 años | G58: 808 | H58: 8 | I58: 8 | J58: 0 | K58: 0 | L58: 800 | M58: 0
A59: 6 | B59: 6 Teziutlán | C59: 2 | D59: Acateno | E59: Total | F59: 15-19 años | G59: 802 | H59: 5 | I59: 5 | J59: 0 | K59: 0 | L59: 797 | M59: 0
A60: 6 | B60: 6 Teziutlán | C60: 2 | D60: Acateno | E60: Total | F60: 20-24 años | G60: 701 | H60: 11 | I60: 11 | J60: 0 | K60: 0 | L60: 690 | M60: 0
A61: 6 | B61: 6 Teziutlán | C61: 2 | D61: Acateno | E61: Total | F61: 25-29 años | G61: 629 | H61: 8 | I61: 8 | J61: 0 | K61: 0 | L61: 621 | M61: 0
A62: 6 | B62: 6 Teziutlán | C62: 2 | D62: Acateno | E62: Total | F62: 30-34 años | G62: 625 | H62: 13 | I62: 13 | J62: 0 | K62: 0 | L62: 612 | M62: 0
A63: 6 | B63: 6 Teziutlán | C63: 2 | D63: Acateno | E63: Total | F63: 35-39 años | G63: 608 | H63: 7 | I63: 7 | J63: 0 | K63: 0 | L63: 601 | M63: 0
A64: 6 | B64: 6 Teziutlán | C64: 2 | D64: Acateno | E64: Total | F64: 40-44 años | G64: 587 | H64: 9 | I64: 9 | J64: 0 | K64: 0 | L64: 578 | M64: 0
A65: 6 | B65: 6 Teziutlán | C65: 2 | D65: Acateno | E65: Total | F65: 45-49 años | G65: 543 | H65: 17 | I65: 17 | J65: 0 | K65: 0 | L65: 526 | M65: 0
A66: 6 | B66: 6 Teziutlán | C66: 2 | D66: Acateno | E66: Total | F66: 50-54 años | G66: 505 | H66: 20 | I66: 20 | J66: 0 | K66: 0 | L66: 485 | M66: 0
A67: 6 | B67: 6 Teziutlán | C67: 2 | D67: Acateno | E67: Total | F67: 55-59 años | G67: 417 | H67: 16 | I67: 16 | J67: 0 | K67: 0 | L67: 401 | M67: 0
A68: 6 | B68: 6 Teziutlán | C68: 2 | D68: Acateno | E68: Total | F68: 60-64 años | G68: 345 | H68: 7 | I68: 7 | J68: 0 | K68: 0 | L68: 338 | M68: 0
A69: 6 | B69: 6 Teziutlán | C69: 2 | D69: Acateno | E69: Total | F69: 65-69 años | G69: 275 | H69: 15 | I69: 15 | J69: 0 | K69: 0 | L69: 260 | M69: 0
A70: 6 | B70: 6 Teziutlán | C70: 2 | D70: Acateno | E70: Total | F70: 70-74 años | G70: 267 | H70: 12 | I70: 12 | J70: 0 | K70: 0 | L70: 255 | M70: 0
A71: 6 | B71: 6 Teziutlán | C71: 2 | D71: Acateno | E71: Total | F71: 75-79 años | G71: 228 | H71: 16 | I71: 16 | J71: 0 | K71: 0 | L71: 212 | M71: 0
A72: 6 | B72: 6 Teziutlán | C72: 2 | D72: Acateno | E72: Total | F72: 80-84 años | G72: 153 | H72: 10 | I72: 10 | J72: 0 | K72: 0 | L72: 143 | M72: 0
A73: 6 | B73: 6 Teziutlán | C73: 2 | D73: Acateno | E73: Total | F73: 85 años y más | G73: 119 | H73: 16 | I73: 16 | J73: 0 | K73: 0 | L73: 103 | M73: 0
A74: 6 | B74: 6 Teziutlán | C74: 2 | D74: Acateno | E74: Hombres | F74: 03-04 años | G74: 166 | H74: 0 | I74: 0 | J74: 0 | K74: 0 | L74: 166 | M74: 0
A75: 6 | B75: 6 Teziutlán | C75: 2 | D75: Acateno | E75: Hombres | F75: 05-09 años | G75: 369 | H75: 1 | I75: 1 | J75: 0 | K75: 0 | L75: 368 | M75: 0
A76: 6 | B76: 6 Teziutlán | C76: 2 | D76: Acateno | E76: Hombres | F76: 10-14 años | G76: 413 | H76: 4 | I76: 4 | J76: 0 | K76: 0 | L76: 409 | M76: 0
A77: 6 | B77: 6 Teziutlán | C77: 2 | D77: Acateno | E77: Hombres | F77: 15-19 años | G77: 390 | H77: 2 | I77: 2 | J77: 0 | K77: 0 | L77: 388 | M77: 0
A78: 6 | B78: 6 Teziutlán | C78: 2 | D78: Acateno | E78: Hombres | F78: 20-24 años | G78: 363 | H78: 6 | I78: 6 | J78: 0 | K78: 0 | L78: 357 | M78: 0
A79: 6 | B79: 6 Teziutlán | C79: 2 | D79: Acateno | E79: Hombres | F79: 25-29 años | G79: 306 | H79: 4 | I79: 4 | J79: 0 | K79: 0 | L79: 302 | M79: 0
A80: 6 | B80: 6 Teziutlán | C80: 2 | D80: Acateno | E80: Hombres | F80: 30-34 años | G80: 294 | H80: 8 | I80: 8 | J80: 0 | K80: 0 | L80: 286 | M80: 0
A81: 6 | B81: 6 Teziutlán | C81: 2 | D81: Acateno | E81: Hombres | F81: 35-39 años | G81: 304 | H81: 4 | I81: 4 | J81: 0 | K81: 0 | L81: 300 | M81: 0
A82: 6 | B82: 6 Teziutlán | C82: 2 | D82: Acateno | E82: Hombres | F82: 40-44 años | G82: 296 | H82: 6 | I82: 6 | J82: 0 | K82: 0 | L82: 290 | M82: 0
A83: 6 | B83: 6 Teziutlán | C83: 2 | D83: Acateno | E83: Hombres | F83: 45-49 años | G83: 260 | H83: 8 | I83: 8 | J83: 0 | K83: 0 | L83: 252 | M83: 0
A84: 6 | B84: 6 Teziutlán | C84: 2 | D84: Acateno | E84: Hombres | F84: 50-54 años | G84: 251 | H84: 8 | I84: 8 | J84: 0 | K84: 0 | L84: 243 | M84: 0
A85: 6 | B85: 6 Teziutlán | C85: 2 | D85: Acateno | E85: Hombres | F85: 55-59 años | G85: 208 | H85: 11 | I85: 11 | J85: 0 | K85: 0 | L85: 197 | M85: 0
A86: 6 | B86: 6 Teziutlán | C86: 2 | D86: Acateno | E86: Hombres | F86: 60-64 años | G86: 163 | H86: 2 | I86: 2 | J86: 0 | K86: 0 | L86: 161 | M86: 0
A87: 6 | B87: 6 Teziutlán | C87: 2 | D87: Acateno | E87: Hombres | F87: 65-69 años | G87: 136 | H87: 8 | I87: 8 | J87: 0 | K87: 0 | L87: 128 | M87: 0
A88: 6 | B88: 6 Teziutlán | C88: 2 | D88: Acateno | E88: Hombres | F88: 70-74 años | G88: 127 | H88: 5 | I88: 5 | J88: 0 | K88: 0 | L88: 122 | M88: 0
A89: 6 | B89: 6 Teziutlán | C89: 2 | D89: Acateno | E89: Hombres | F89: 75-79 años | G89: 134 | H89: 8 | I89: 8 | J89: 0 | K89: 0 | L89: 126 | M89: 0
A90: 6 | B90: 6 Teziutlán | C90: 2 | D90: Acateno | E90: Hombres | F90: 80-84 años | G90: 76 | H90: 3 | I90: 3 | J90: 0 | K90: 0 | L90: 73 | M90: 0
A91: 6 | B91: 6 Teziutlán | C91: 2 | D91: Acateno | E91: Hombres | F91: 85 años y más | G91: 76 | H91: 11 | I91: 11 | J91: 0 | K91: 0 | L91: 65 | M91: 0
A92: 6 | B92: 6 Teziutlán | C92: 2 | D92: Acateno | E92: Mujeres | F92: 03-04 años | G92: 140 | H92: 0 | I92: 0 | J92: 0 | K92: 0 | L92: 140 | M92: 0
A93: 6 | B93: 6 Teziutlán | C93: 2 | D93: Acateno | E93: Mujeres | F93: 05-09 años | G93: 402 | H93: 5 | I93: 5 | J93: 0 | K93: 0 | L93: 397 | M93: 0
A94: 6 | B94: 6 Teziutlán | C94: 2 | D94: Acateno | E94: Mujeres | F94: 10-14 años | G94: 395 | H94: 4 | I94: 4 | J94: 0 | K94: 0 | L94: 391 | M94: 0
A95: 6 | B95: 6 Teziutlán | C95: 2 | D95: Acateno | E95: Mujeres | F95: 15-19 años | G95: 412 | H95: 3 | I95: 3 | J95: 0 | K95: 0 | L95: 409 | M95: 0
A96: 6 | B96: 6 Teziutlán | C96: 2 | D96: Acateno | E96: Mujeres | F96: 20-24 años | G96: 338 | H96: 5 | I96: 5 | J96: 0 | K96: 0 | L96: 333 | M96: 0
A97: 6 | B97: 6 Teziutlán | C97: 2 | D97: Acateno | E97: Mujeres | F97: 25-29 años | G97: 323 | H97: 4 | I97: 4 | J97: 0 | K97: 0 | L97: 319 | M97: 0
A98: 6 | B98: 6 Teziutlán | C98: 2 | D98: Acateno | E98: Mujeres | F98: 30-34 años | G98: 331 | H98: 5 | I98: 5 | J98: 0 | K98: 0 | L98: 326 | M98: 0
A99: 6 | B99: 6 Teziutlán | C99: 2 | D99: Acateno | E99: Mujeres | F99: 35-39 años | G99: 304 | H99: 3 | I99: 3 | J99: 0 | K99: 0 | L99: 301 | M99: 0
A100: 6 | B100: 6 Teziutlán | C100: 2 | D100: Acateno | E100: Mujeres | F100: 40-44 años | G100: 291 | H100: 3 | I100: 3 | J100: 0 | K100: 0 | L100: 288 | M100: 0
A101: 6 | B101: 6 Teziutlán | C101: 2 | D101: Acateno | E101: Mujeres | F101: 45-49 años | G101: 283 | H101: 9 | I101: 9 | J101: 0 | K101: 0 | L101: 274 | M101: 0
A102: 6 | B102: 6 Teziutlán | C102: 2 | D102: Acateno | E102: Mujeres | F102: 50-54 años | G102: 254 | H102: 12 | I102: 12 | J102: 0 | K102: 0 | L102: 242 | M102: 0
A103: 6 | B103: 6 Teziutlán | C103: 2 | D103: Acateno | E103: Mujeres | F103: 55-59 años | G103: 209 | H103: 5 | I103: 5 | J103: 0 | K103: 0 | L103: 204 | M103: 0
A104: 6 | B104: 6 Teziutlán | C104: 2 | D104: Acateno | E104: Mujeres | F104: 60-64 años | G104: 182 | H104: 5 | I104: 5 | J104: 0 | K104: 0 | L104: 177 | M104: 0
A105: 6 | B105: 6 Teziutlán | C105: 2 | D105: Acateno | E105: Mujeres | F105: 65-69 años | G105: 139 | H105: 7 | I105: 7 | J105: 0 | K105: 0 | L105: 132 | M105: 0
A106: 6 | B106: 6 Teziutlán | C106: 2 | D106: Acateno | E106: Mujeres | F106: 70-74 años | G106: 140 | H106: 7 | I106: 7 | J106: 0 | K106: 0 | L106: 133 | M106: 0
A107: 6 | B107: 6 Teziutlán | C107: 2 | D107: Acateno | E107: Mujeres | F107: 75-79 años | G107: 94 | H107: 8 | I107: 8 | J107: 0 | K107: 0 | L107: 86 | M107: 0
A108: 6 | B108: 6 Teziutlán | C108: 2 | D108: Acateno | E108: Mujeres | F108: 80-84 años | G108: 77 | H108: 7 | I108: 7 | J108: 0 | K108: 0 | L108: 70 | M108: 0
A109: 6 | B109: 6 Teziutlán | C109: 2 | D109: Acateno | E109: Mujeres | F109: 85 años y más | G109: 43 | H109: 5 | I109: 5 | J109: 0 | K109: 0 | L109: 38 | M109: 0
A110: 17 | B110: 17 Acatlán | C110: 3 | D110: Acatlán | E110: Total | F110: 03-04 años | G110: 1439 | H110: 0 | I110: 0 | J110: 0 | K110: 0 | L110: 1438 | M110: 1
A111: 17 | B111: 17 Acatlán | C111: 3 | D111: Acatlán | E111: Total | F111: 05-09 años | G111: 3642 | H111: 5 | I111: 5 | J111: 0 | K111: 0 | L111: 3636 | M111: 1
A112: 17 | B112: 17 Acatlán | C112: 3 | D112: Acatlán | E112: Total | F112: 10-14 años | G112: 3417 | H112: 10 | I112: 10 | J112: 0 | K112: 0 | L112: 3402 | M112: 5
A113: 17 | B113: 17 Acatlán | C113: 3 | D113: Acatlán | E113: Total | F113: 15-19 años | G113: 3180 | H113: 11 | I113: 11 | J113: 0 | K113: 0 | L113: 3167 | M113: 2
A114: 17 | B114: 17 Acatlán | C114: 3 | D114: Acatlán | E114: Total | F114: 20-24 años | G114: 2991 | H114: 16 | I114: 16 | J114: 0 | K114: 0 | L114: 2975 | M114: 0
A115: 17 | B115: 17 Acatlán | C115: 3 | D115: Acatlán | E115: Total | F115: 25-29 años | G115: 2906 | H115: 30 | I115: 29 | J115: 0 | K115: 1 | L115: 2875 | M115: 1
A116: 17 | B116: 17 Acatlán | C116: 3 | D116: Acatlán | E116: Total | F116: 30-34 años | G116: 2661 | H116: 34 | I116: 31 | J116: 0 | K116: 3 | L116: 2627 | M116: 0
A117: 17 | B117: 17 Acatlán | C117: 3 | D117: Acatlán | E117: Total | F117: 35-39 años | G117: 2307 | H117: 41 | I117: 40 | J117: 1 | K117: 0 | L117: 2265 | M117: 1
A118: 17 | B118: 17 Acatlán | C118: 3 | D118: Acatlán | E118: Total | F118: 40-44 años | G118: 2075 | H118: 38 | I118: 37 | J118: 0 | K118: 1 | L118: 2037 | M118: 0
A119: 17 | B119: 17 Acatlán | C119: 3 | D119: Acatlán | E119: Total | F119: 45-49 años | G119: 1875 | H119: 35 | I119: 35 | J119: 0 | K119: 0 | L119: 1839 | M119: 1
A120: 17 | B120: 17 Acatlán | C120: 3 | D120: Acatlán | E120: Total | F120: 50-54 años | G120: 1838 | H120: 37 | I120: 37 | J120: 0 | K120: 0 | L120: 1799 | M120: 2
A121: 17 | B121: 17 Acatlán | C121: 3 | D121: Acatlán | E121: Total | F121: 55-59 años | G121: 1583 | H121: 32 | I121: 32 | J121: 0 | K121: 0 | L121: 1551 | M121: 0
A122: 17 | B122: 17 Acatlán | C122: 3 | D122: Acatlán | E122: Total | F122: 60-64 años | G122: 1561 | H122: 44 | I122: 42 | J122: 0 | K122: 2 | L122: 1517 | M122: 0
A123: 17 | B123: 17 Acatlán | C123: 3 | D123: Acatlán | E123: Total | F123: 65-69 años | G123: 1179 | H123: 23 | I123: 23 | J123: 0 | K123: 0 | L123: 1155 | M123: 1
A124: 17 | B124: 17 Acatlán | C124: 3 | D124: Acatlán | E124: Total | F124: 70-74 años | G124: 979 | H124: 17 | I124: 17 | J124: 0 | K124: 0 | L124: 962 | M124: 0
A125: 17 | B125: 17 Acatlán | C125: 3 | D125: Acatlán | E125: Total | F125: 75-79 años | G125: 792 | H125: 10 | I125: 10 | J125: 0 | K125: 0 | L125: 782 | M125: 0
A126: 17 | B126: 17 Acatlán | C126: 3 | D126: Acatlán | E126: Total | F126: 80-84 años | G126: 612 | H126: 10 | I126: 9 | J126: 1 | K126: 0 | L126: 601 | M126: 1
A127: 17 | B127: 17 Acatlán | C127: 3 | D127: Acatlán | E127: Total | F127: 85 años y más | G127: 797 | H127: 18 | I127: 16 | J127: 2 | K127: 0 | L127: 779 | M127: 0
A128: 17 | B128: 17 Acatlán | C128: 3 | D128: Acatlán | E128: Hombres | F128: 03-04 años | G128: 735 | H128: 0 | I128: 0 | J128: 0 | K128: 0 | L128: 735 | M128: 0
A129: 17 | B129: 17 Acatlán | C129: 3 | D129: Acatlán | E129: Hombres | F129: 05-09 años | G129: 1856 | H129: 3 | I129: 3 | J129: 0 | K129: 0 | L129: 1852 | M129: 1
A130: 17 | B130: 17 Acatlán | C130: 3 | D130: Acatlán | E130: Hombres | F130: 10-14 años | G130: 1702 | H130: 3 | I130: 3 | J130: 0 | K130: 0 | L130: 1697 | M130: 2
A131: 17 | B131: 17 Acatlán | C131: 3 | D131: Acatlán | E131: Hombres | F131: 15-19 años | G131: 1592 | H131: 5 | I131: 5 | J131: 0 | K131: 0 | L131: 1585 | M131: 2
A132: 17 | B132: 17 Acatlán | C132: 3 | D132: Acatlán | E132: Hombres | F132: 20-24 años | G132: 1405 | H132: 6 | I132: 6 | J132: 0 | K132: 0 | L132: 1399 | M132: 0
A133: 17 | B133: 17 Acatlán | C133: 3 | D133: Acatlán | E133: Hombres | F133: 25-29 años | G133: 1360 | H133: 12 | I133: 12 | J133: 0 | K133: 0 | L133: 1348 | M133: 0
A134: 17 | B134: 17 Acatlán | C134: 3 | D134: Acatlán | E134: Hombres | F134: 30-34 años | G134: 1166 | H134: 15 | I134: 12 | J134: 0 | K134: 3 | L134: 1151 | M134: 0
A135: 17 | B135: 17 Acatlán | C135: 3 | D135: Acatlán | E135: Hombres | F135: 35-39 años | G135: 1028 | H135: 17 | I135: 17 | J135: 0 | K135: 0 | L135: 1010 | M135: 1
A136: 17 | B136: 17 Acatlán | C136: 3 | D136: Acatlán | E136: Hombres | F136: 40-44 años | G136: 942 | H136: 15 | I136: 14 | J136: 0 | K136: 1 | L136: 927 | M136: 0
A137: 17 | B137: 17 Acatlán | C137: 3 | D137: Acatlán | E137: Hombres | F137: 45-49 años | G137: 835 | H137: 12 | I137: 12 | J137: 0 | K137: 0 | L137: 822 | M137: 1
A138: 17 | B138: 17 Acatlán | C138: 3 | D138: Acatlán | E138: Hombres | F138: 50-54 años | G138: 812 | H138: 17 | I138: 17 | J138: 0 | K138: 0 | L138: 794 | M138: 1
A139: 17 | B139: 17 Acatlán | C139: 3 | D139: Acatlán | E139: Hombres | F139: 55-59 años | G139: 659 | H139: 16 | I139: 16 | J139: 0 | K139: 0 | L139: 643 | M139: 0
A140: 17 | B140: 17 Acatlán | C140: 3 | D140: Acatlán | E140: Hombres | F140: 60-64 años | G140: 729 | H140: 17 | I140: 15 | J140: 0 | K140: 2 | L140: 712 | M140: 0
A141: 17 | B141: 17 Acatlán | C141: 3 | D141: Acatlán | E141: Hombres | F141: 65-69 años | G141: 513 | H141: 12 | I141: 12 | J141: 0 | K141: 0 | L141: 500 | M141: 1
A142: 17 | B142: 17 Acatlán | C142: 3 | D142: Acatlán | E142: Hombres | F142: 70-74 años | G142: 433 | H142: 9 | I142: 9 | J142: 0 | K142: 0 | L142: 424 | M142: 0
A143: 17 | B143: 17 Acatlán | C143: 3 | D143: Acatlán | E143: Hombres | F143: 75-79 años | G143: 358 | H143: 4 | I143: 4 | J143: 0 | K143: 0 | L143: 354 | M143: 0
A144: 17 | B144: 17 Acatlán | C144: 3 | D144: Acatlán | E144: Hombres | F144: 80-84 años | G144: 266 | H144: 3 | I144: 3 | J144: 0 | K144: 0 | L144: 263 | M144: 0
A145: 17 | B145: 17 Acatlán | C145: 3 | D145: Acatlán | E145: Hombres | F145: 85 años y más | G145: 352 | H145: 9 | I145: 9 | J145: 0 | K145: 0 | L145: 343 | M145: 0
A146: 17 | B146: 17 Acatlán | C146: 3 | D146: Acatlán | E146: Mujeres | F146: 03-04 años | G146: 704 | H146: 0 | I146: 0 | J146: 0 | K146: 0 | L146: 703 | M146: 1
A147: 17 | B147: 17 Acatlán | C147: 3 | D147: Acatlán | E147: Mujeres | F147: 05-09 años | G147: 1786 | H147: 2 | I147: 2 | J147: 0 | K147: 0 | L147: 1784 | M147: 0
A148: 17 | B148: 17 Acatlán | C148: 3 | D148: Acatlán | E148: Mujeres | F148: 10-14 años | G148: 1715 | H148: 7 | I148: 7 | J148: 0 | K148: 0 | L148: 1705 | M148: 3
A149: 17 | B149: 17 Acatlán | C149: 3 | D149: Acatlán | E149: Mujeres | F149: 15-19 años | G149: 1588 | H149: 6 | I149: 6 | J149: 0 | K149: 0 | L149: 1582 | M149: 0
A150: 17 | B150: 17 Acatlán | C150: 3 | D150: Acatlán | E150: Mujeres | F150: 20-24 años | G150: 1586 | H150: 10 | I150: 10 | J150: 0 | K150: 0 | L150: 1576 | M150: 0
A151: 17 | B151: 17 Acatlán | C151: 3 | D151: Acatlán | E151: Mujeres | F151: 25-29 años | G151: 1546 | H151: 18 | I151: 17 | J151: 0 | K151: 1 | L151: 1527 | M151: 1
A152: 17 | B152: 17 Acatlán | C152: 3 | D152: Acatlán | E152: Mujeres | F152: 30-34 años | G152: 1495 | H152: 19 | I152: 19 | J152: 0 | K152: 0 | L152: 1476 | M152: 0
A153: 17 | B153: 17 Acatlán | C153: 3 | D153: Acatlán | E153: Mujeres | F153: 35-39 años | G153: 1279 | H153: 24 | I153: 23 | J153: 1 | K153: 0 | L153: 1255 | M153: 0
A154: 17 | B154: 17 Acatlán | C154: 3 | D154: Acatlán | E154: Mujeres | F154: 40-44 años | G154: 1133 | H154: 23 | I154: 23 | J154: 0 | K154: 0 | L154: 1110 | M154: 0
A155: 17 | B155: 17 Acatlán | C155: 3 | D155: Acatlán | E155: Mujeres | F155: 45-49 años | G155: 1040 | H155: 23 | I155: 23 | J155: 0 | K155: 0 | L155: 1017 | M155: 0
A156: 17 | B156: 17 Acatlán | C156: 3 | D156: Acatlán | E156: Mujeres | F156: 50-54 años | G156: 1026 | H156: 20 | I156: 20 | J156: 0 | K156: 0 | L156: 1005 | M156: 1
A157: 17 | B157: 17 Acatlán | C157: 3 | D157: Acatlán | E157: Mujeres | F157: 55-59 años | G157: 924 | H157: 16 | I157: 16 | J157: 0 | K157: 0 | L157: 908 | M157: 0
A158: 17 | B158: 17 Acatlán | C158: 3 | D158: Acatlán | E158: Mujeres | F158: 60-64 años | G158: 832 | H158: 27 | I158: 27 | J158: 0 | K158: 0 | L158: 805 | M158: 0
A159: 17 | B159: 17 Acatlán | C159: 3 | D159: Acatlán | E159: Mujeres | F159: 65-69 años | G159: 666 | H159: 11 | I159: 11 | J159: 0 | K159: 0 | L159: 655 | M159: 0
A160: 17 | B160: 17 Acatlán | C160: 3 | D160: Acatlán | E160: Mujeres | F160: 70-74 años | G160: 546 | H160: 8 | I160: 8 | J160: 0 | K160: 0 | L160: 538 | M160: 0
A161: 17 | B161: 17 Acatlán | C161: 3 | D161: Acatlán | E161: Mujeres | F161: 75-79 años | G161: 434 | H161: 6 | I161: 6 | J161: 0 | K161: 0 | L161: 428 | M161: 0
A162: 17 | B162: 17 Acatlán | C162: 3 | D162: Acatlán | E162: Mujeres | F162: 80-84 años | G162: 346 | H162: 7 | I162: 6 | J162: 1 | K162: 0 | L162: 338 | M162: 1
A163: 17 | B163: 17 Acatlán | C163: 3 | D163: Acatlán | E163: Mujeres | F163: 85 años y más | G163: 445 | H163: 9 | I163: 7 | J163: 2 | K163: 0 | L163: 436 | M163: 0
A164: 10 | B164: 10 Acatzingo | C164: 4 | D164: Acatzingo | E164: Total | F164: 03-04 años | G164: 2868 | H164: 2 | I164: 1 | J164: 1 | K164: 0 | L164: 2866 | M164: 0
A165: 10 | B165: 10 Acatzingo | C165: 4 | D165: Acatzingo | E165: Total | F165: 05-09 años | G165: 7140 | H165: 5 | I165: 5 | J165: 0 | K165: 0 | L165: 7135 | M165: 0
A166: 10 | B166: 10 Acatzingo | C166: 4 | D166: Acatzingo | E166: Total | F166: 10-14 años | G166: 6642 | H166: 9 | I166: 9 | J166: 0 | K166: 0 | L166: 6633 | M166: 0
A167: 10 | B167: 10 Acatzingo | C167: 4 | D167: Acatzingo | E167: Total | F167: 15-19 años | G167: 6640 | H167: 6 | I167: 6 | J167: 0 | K167: 0 | L167: 6634 | M167: 0
A168: 10 | B168: 10 Acatzingo | C168: 4 | D168: Acatzingo | E168: Total | F168: 20-24 años | G168: 6029 | H168: 11 | I168: 11 | J168: 0 | K168: 0 | L168: 6018 | M168: 0
A169: 10 | B169: 10 Acatzingo | C169: 4 | D169: Acatzingo | E169: Total | F169: 25-29 años | G169: 5383 | H169: 9 | I169: 9 | J169: 0 | K169: 0 | L169: 5374 | M169: 0
A170: 10 | B170: 10 Acatzingo | C170: 4 | D170: Acatzingo | E170: Total | F170: 30-34 años | G170: 4472 | H170: 16 | I170: 16 | J170: 0 | K170: 0 | L170: 4456 | M170: 0
A171: 10 | B171: 10 Acatzingo | C171: 4 | D171: Acatzingo | E171: Total | F171: 35-39 años | G171: 4316 | H171: 21 | I171: 21 | J171: 0 | K171: 0 | L171: 4294 | M171: 1
A172: 10 | B172: 10 Acatzingo | C172: 4 | D172: Acatzingo | E172: Total | F172: 40-44 años | G172: 3705 | H172: 11 | I172: 10 | J172: 1 | K172: 0 | L172: 3694 | M172: 0
A173: 10 | B173: 10 Acatzingo | C173: 4 | D173: Acatzingo | E173: Total | F173: 45-49 años | G173: 3078 | H173: 9 | I173: 9 | J173: 0 | K173: 0 | L173: 3069 | M173: 0
A174: 10 | B174: 10 Acatzingo | C174: 4 | D174: Acatzingo | E174: Total | F174: 50-54 años | G174: 2569 | H174: 11 | I174: 11 | J174: 0 | K174: 0 | L174: 2558 | M174: 0
A175: 10 | B175: 10 Acatzingo | C175: 4 | D175: Acatzingo | E175: Total | F175: 55-59 años | G175: 1989 | H175: 3 | I175: 3 | J175: 0 | K175: 0 | L175: 1986 | M175: 0
A176: 10 | B176: 10 Acatzingo | C176: 4 | D176: Acatzingo | E176: Total | F176: 60-64 años | G176: 1506 | H176: 13 | I176: 13 | J176: 0 | K176: 0 | L176: 1492 | M176: 1
A177: 10 | B177: 10 Acatzingo | C177: 4 | D177: Acatzingo | E177: Total | F177: 65-69 años | G177: 1106 | H177: 4 | I177: 3 | J177: 1 | K177: 0 | L177: 1102 | M177: 0
A178: 10 | B178: 10 Acatzingo | C178: 4 | D178: Acatzingo | E178: Total | F178: 70-74 años | G178: 765 | H178: 7 | I178: 7 | J178: 0 | K178: 0 | L178: 758 | M178: 0
A179: 10 | B179: 10 Acatzingo | C179: 4 | D179: Acatzingo | E179: Total | F179: 75-79 años | G179: 509 | H179: 7 | I179: 7 | J179: 0 | K179: 0 | L179: 502 | M179: 0
A180: 10 | B180: 10 Acatzingo | C180: 4 | D180: Acatzingo | E180: Total | F180: 80-84 años | G180: 345 | H180: 5 | I180: 5 | J180: 0 | K180: 0 | L180: 340 | M180: 0
A181: 10 | B181: 10 Acatzingo | C181: 4 | D181: Acatzingo | E181: Total | F181: 85 años y más | G181: 394 | H181: 14 | I181: 14 | J181: 0 | K181: 0 | L181: 380 | M181: 0
A182: 10 | B182: 10 Acatzingo | C182: 4 | D182: Acatzingo | E182: Hombres | F182: 03-04 años | G182: 1455 | H182: 0 | I182: 0 | J182: 0 | K182: 0 | L182: 1455 | M182: 0
A183: 10 | B183: 10 Acatzingo | C183: 4 | D183: Acatzingo | E183: Hombres | F183: 05-09 años | G183: 3503 | H183: 3 | I183: 3 | J183: 0 | K183: 0 | L183: 3500 | M183: 0
A184: 10 | B184: 10 Acatzingo | C184: 4 | D184: Acatzingo | E184: Hombres | F184: 10-14 años | G184: 3372 | H184: 4 | I184: 4 | J184: 0 | K184: 0 | L184: 3368 | M184: 0
A185: 10 | B185: 10 Acatzingo | C185: 4 | D185: Acatzingo | E185: Hombres | F185: 15-19 años | G185: 3337 | H185: 4 | I185: 4 | J185: 0 | K185: 0 | L185: 3333 | M185: 0
A186: 10 | B186: 10 Acatzingo | C186: 4 | D186: Acatzingo | E186: Hombres | F186: 20-24 años | G186: 2976 | H186: 2 | I186: 2 | J186: 0 | K186: 0 | L186: 2974 | M186: 0
A187: 10 | B187: 10 Acatzingo | C187: 4 | D187: Acatzingo | E187: Hombres | F187: 25-29 años | G187: 2575 | H187: 6 | I187: 6 | J187: 0 | K187: 0 | L187: 2569 | M187: 0
A188: 10 | B188: 10 Acatzingo | C188: 4 | D188: Acatzingo | E188: Hombres | F188: 30-34 años | G188: 2093 | H188: 9 | I188: 9 | J188: 0 | K188: 0 | L188: 2084 | M188: 0
A189: 10 | B189: 10 Acatzingo | C189: 4 | D189: Acatzingo | E189: Hombres | F189: 35-39 años | G189: 2046 | H189: 12 | I189: 12 | J189: 0 | K189: 0 | L189: 2034 | M189: 0
A190: 10 | B190: 10 Acatzingo | C190: 4 | D190: Acatzingo | E190: Hombres | F190: 40-44 años | G190: 1720 | H190: 7 | I190: 7 | J190: 0 | K190: 0 | L190: 1713 | M190: 0
A191: 10 | B191: 10 Acatzingo | C191: 4 | D191: Acatzingo | E191: Hombres | F191: 45-49 años | G191: 1455 | H191: 5 | I191: 5 | J191: 0 | K191: 0 | L191: 1450 | M191: 0
A192: 10 | B192: 10 Acatzingo | C192: 4 | D192: Acatzingo | E192: Hombres | F192: 50-54 años | G192: 1186 | H192: 6 | I192: 6 | J192: 0 | K192: 0 | L192: 1180 | M192: 0
A193: 10 | B193: 10 Acatzingo | C193: 4 | D193: Acatzingo | E193: Hombres | F193: 55-59 años | G193: 956 | H193: 2 | I193: 2 | J193: 0 | K193: 0 | L193: 954 | M193: 0
A194: 10 | B194: 10 Acatzingo | C194: 4 | D194: Acatzingo | E194: Hombres | F194: 60-64 años | G194: 718 | H194: 7 | I194: 7 | J194: 0 | K194: 0 | L194: 710 | M194: 1
A195: 10 | B195: 10 Acatzingo | C195: 4 | D195: Acatzingo | E195: Hombres | F195: 65-69 años | G195: 497 | H195: 3 | I195: 2 | J195: 1 | K195: 0 | L195: 494 | M195: 0
A196: 10 | B196: 10 Acatzingo | C196: 4 | D196: Acatzingo | E196: Hombres | F196: 70-74 años | G196: 357 | H196: 4 | I196: 4 | J196: 0 | K196: 0 | L196: 353 | M196: 0
A197: 10 | B197: 10 Acatzingo | C197: 4 | D197: Acatzingo | E197: Hombres | F197: 75-79 años | G197: 249 | H197: 6 | I197: 6 | J197: 0 | K197: 0 | L197: 243 | M197: 0
A198: 10 | B198: 10 Acatzingo | C198: 4 | D198: Acatzingo | E198: Hombres | F198: 80-84 años | G198: 152 | H198: 3 | I198: 3 | J198: 0 | K198: 0 | L198: 149 | M198: 0
A199: 10 | B199: 10 Acatzingo | C199: 4 | D199: Acatzingo | E199: Hombres | F199: 85 años y más | G199: 149 | H199: 1 | I199: 1 | J199: 0 | K199: 0 | L199: 148 | M199: 0
A200: 10 | B200: 10 Acatzingo | C200: 4 | D200: Acatzingo | E200: Mujeres | F200: 03-04 años | G200: 1413 | H200: 2 | I200: 1 | J200: 1 | K200: 0 | L200: 1411 | M200: 0
... 4300 more rows

Sheet base discapacidad (hidden)
A1: ID_REG | B1: REG | C1: ID_MUN | D1: MUN | E1: Sexo | F1: Grupos quinquenales de edad | G1: agrupado | H1: Población total1 | I1: Población con discapacidad, limitación o con algún problema o condición mental2 | J1: DISCAPACIDAD | K1: Ver aun usando lentes | L1: Oír aun usando aparato auditivo | M1: Caminar, subir o bajar | N1: Recordar o concentrarse | O1: Bañarse, vestirse o comer | P1: Hablar o comunicarse | Q1: Grupos quinquenales de edad | R1: Sexo | S1: LIMITACION | T1: Ver aun usando lentes | U1: Oír aun usando aparato auditivo | V1: Caminar, subir o bajar | W1: Recordar o concentrarse | X1: Bañarse, vestirse o comer | Y1: Hablar o comunicarse | Z1: MENTAL
A2: 32 | B2: 32 Tepeaca | C2: 1 | D2: Acajete | E2: Total | F2: 00-04 años | G2: 0 a 14 años | H2: 8308 | I2: 365 | J2: 173 | K2: 40 | L2: 22 | M2: 67 | N2: 53 | O2: 122 | P2: 143 | Q2: 00-04 años | R2: Total | S2: 162 | T2: 12 | U2: 8 | V2: 34 | W2: 3 | X2: 2 | Y2: 116 | Z2: 60 | AB2: 7933 | AC2: 10
A3: 32 | B3: 32 Tepeaca | C3: 1 | D3: Acajete | E3: Total | F3: 05-09 años | G3: 0 a 14 años | H3: 8084 | I3: 497 | J3: 162 | K3: 31 | L3: 11 | M3: 36 | N3: 37 | O3: 59 | P3: 63 | Q3: 05-09 años | R3: Total | S3: 310 | T3: 104 | U3: 32 | V3: 49 | W3: 53 | X3: 37 | Y3: 82 | Z3: 72 | AB3: 7586 | AC3: 1
A4: 32 | B4: 32 Tepeaca | C4: 1 | D4: Acajete | E4: Total | F4: 10-14 años | G4: 0 a 14 años | H4: 7692 | I4: 518 | J4: 128 | K4: 49 | L4: 21 | M4: 27 | N4: 50 | O4: 33 | P4: 43 | Q4: 10-14 años | R4: Total | S4: 368 | T4: 214 | U4: 41 | V4: 33 | W4: 68 | X4: 16 | Y4: 60 | Z4: 69 | AB4: 7174 | AC4: 0
A5: 32 | B5: 32 Tepeaca | C5: 1 | D5: Acajete | E5: Total | F5: 15-19 años | G5: 15 a 29 años | H5: 7434 | I5: 611 | J5: 143 | K5: 60 | L5: 15 | M5: 29 | N5: 32 | O5: 24 | P5: 45 | Q5: 15-19 años | R5: Total | S5: 437 | T5: 289 | U5: 52 | V5: 41 | W5: 54 | X5: 13 | Y5: 47 | Z5: 79 | AB5: 6823 | AC5: 0
A6: 32 | B6: 32 Tepeaca | C6: 1 | D6: Acajete | E6: Total | F6: 20-24 años | G6: 15 a 29 años | H6: 6550 | I6: 536 | J6: 116 | K6: 48 | L6: 17 | M6: 26 | N6: 27 | O6: 17 | P6: 43 | Q6: 20-24 años | R6: Total | S6: 388 | T6: 272 | U6: 22 | V6: 40 | W6: 36 | X6: 16 | Y6: 29 | Z6: 80 | AB6: 6013 | AC6: 1
A7: 32 | B7: 32 Tepeaca | C7: 1 | D7: Acajete | E7: Total | F7: 25-29 años | G7: 15 a 29 años | H7: 6050 | I7: 501 | J7: 114 | K7: 56 | L7: 19 | M7: 27 | N7: 29 | O7: 17 | P7: 27 | Q7: 25-29 años | R7: Total | S7: 361 | T7: 240 | U7: 42 | V7: 49 | W7: 40 | X7: 16 | Y7: 21 | Z7: 58 | AB7: 5549 | AC7: 0
A8: 32 | B8: 32 Tepeaca | C8: 1 | D8: Acajete | E8: Total | F8: 30-34 años | G8: 30 a 59 años | H8: 5160 | I8: 472 | J8: 108 | K8: 56 | L8: 14 | M8: 26 | N8: 18 | O8: 12 | P8: 23 | Q8: 30-34 años | R8: Total | S8: 344 | T8: 236 | U8: 43 | V8: 54 | W8: 47 | X8: 13 | Y8: 10 | Z8: 42 | AB8: 4688 | AC8: 0
A9: 32 | B9: 32 Tepeaca | C9: 1 | D9: Acajete | E9: Total | F9: 35-39 años | G9: 30 a 59 años | H9: 4695 | I9: 529 | J9: 111 | K9: 46 | L9: 17 | M9: 46 | N9: 14 | O9: 11 | P9: 22 | Q9: 35-39 años | R9: Total | S9: 391 | T9: 238 | U9: 54 | V9: 81 | W9: 79 | X9: 9 | Y9: 18 | Z9: 51 | AB9: 4166 | AC9: 0
A10: 32 | B10: 32 Tepeaca | C10: 1 | D10: Acajete | E10: Total | F10: 40-44 años | G10: 30 a 59 años | H10: 3984 | I10: 603 | J10: 140 | K10: 55 | L10: 28 | M10: 37 | N10: 28 | O10: 19 | P10: 25 | Q10: 40-44 años | R10: Total | S10: 447 | T10: 265 | U10: 74 | V10: 100 | W10: 105 | X10: 19 | Y10: 21 | Z10: 45 | AB10: 3381 | AC10: 0
A11: 32 | B11: 32 Tepeaca | C11: 1 | D11: Acajete | E11: Total | F11: 45-49 años | G11: 30 a 59 años | H11: 3410 | I11: 730 | J11: 141 | K11: 63 | L11: 23 | M11: 49 | N11: 18 | O11: 13 | P11: 14 | Q11: 45-49 años | R11: Total | S11: 576 | T11: 378 | U11: 117 | V11: 168 | W11: 112 | X11: 21 | Y11: 18 | Z11: 34 | AB11: 2680 | AC11: 0
A12: 32 | B12: 32 Tepeaca | C12: 1 | D12: Acajete | E12: Total | F12: 50-54 años | G12: 30 a 59 años | H12: 3031 | I12: 851 | J12: 186 | K12: 89 | L12: 33 | M12: 85 | N12: 20 | O12: 22 | P12: 11 | Q12: 50-54 años | R12: Total | S12: 658 | T12: 457 | U12: 151 | V12: 210 | W12: 141 | X12: 15 | Y12: 11 | Z12: 28 | AB12: 2180 | AC12: 0
A13: 32 | B13: 32 Tepeaca | C13: 1 | D13: Acajete | E13: Total | F13: 55-59 años | G13: 30 a 59 años | H13: 2373 | I13: 788 | J13: 194 | K13: 89 | L13: 38 | M13: 94 | N13: 21 | O13: 22 | P13: 12 | Q13: 55-59 años | R13: Total | S13: 586 | T13: 364 | U13: 145 | V13: 242 | W13: 143 | X13: 26 | Y13: 23 | Z13: 25 | AB13: 1585 | AC13: 0
A14: 32 | B14: 32 Tepeaca | C14: 1 | D14: Acajete | E14: Total | F14: 60-64 años | G14: 60 años y más | H14: 1948 | I14: 825 | J14: 219 | K14: 106 | L14: 45 | M14: 111 | N14: 27 | O14: 24 | P14: 11 | Q14: 60-64 años | R14: Total | S14: 598 | T14: 382 | U14: 159 | V14: 289 | W14: 164 | X14: 35 | Y14: 13 | Z14: 25 | AB14: 1123 | AC14: 0
A15: 32 | B15: 32 Tepeaca | C15: 1 | D15: Acajete | E15: Total | F15: 65-69 años | G15: 60 años y más | H15: 1406 | I15: 714 | J15: 225 | K15: 92 | L15: 46 | M15: 133 | N15: 19 | O15: 24 | P15: 9 | Q15: 65-69 años | R15: Total | S15: 481 | T15: 287 | U15: 160 | V15: 251 | W15: 131 | X15: 33 | Y15: 24 | Z15: 18 | AB15: 692 | AC15: 0
A16: 32 | B16: 32 Tepeaca | C16: 1 | D16: Acajete | E16: Total | F16: 70-74 años | G16: 60 años y más | H16: 1039 | I16: 624 | J16: 215 | K16: 88 | L16: 50 | M16: 136 | N16: 39 | O16: 38 | P16: 15 | Q16: 70-74 años | R16: Total | S16: 405 | T16: 236 | U16: 152 | V16: 248 | W16: 147 | X16: 35 | Y16: 24 | Z16: 8 | AB16: 415 | AC16: 0
A17: 32 | B17: 32 Tepeaca | C17: 1 | D17: Acajete | E17: Total | F17: 75-79 años | G17: 60 años y más | H17: 755 | I17: 516 | J17: 224 | K17: 90 | L17: 77 | M17: 146 | N17: 37 | O17: 45 | P17: 12 | Q17: 75-79 años | R17: Total | S17: 291 | T17: 173 | U17: 124 | V17: 194 | W17: 99 | X17: 33 | Y17: 24 | Z17: 7 | AB17: 239 | AC17: 0
A18: 32 | B18: 32 Tepeaca | C18: 1 | D18: Acajete | E18: Total | F18: 80-84 años | G18: 60 años y más | H18: 460 | I18: 344 | J18: 161 | K18: 49 | L18: 65 | M18: 99 | N18: 38 | O18: 37 | P18: 12 | Q18: 80-84 años | R18: Total | S18: 183 | T18: 87 | U18: 101 | V18: 126 | W18: 79 | X18: 35 | Y18: 16 | Z18: 2 | AB18: 116 | AC18: 0
A19: 32 | B19: 32 Tepeaca | C19: 1 | D19: Acajete | E19: Total | F19: 85 años y más | G19: 60 años y más | H19: 468 | I19: 412 | J19: 264 | K19: 127 | L19: 131 | M19: 175 | N19: 90 | O19: 99 | P19: 41 | Q19: 85 años y más | R19: Total | S19: 147 | T19: 84 | U19: 82 | V19: 108 | W19: 66 | X19: 41 | Y19: 22 | Z19: 6 | AB19: 56 | AC19: 0
A20: 32 | B20: 32 Tepeaca | C20: 1 | D20: Acajete | E20: Total | F20: No especificado | H20: 47 | I20: 0 | J20: 0 | K20: 0 | L20: 0 | M20: 0 | N20: 0 | O20: 0 | P20: 0 | Q20: No especificado | R20: Total | S20: 0 | T20: 0 | U20: 0 | V20: 0 | W20: 0 | X20: 0 | Y20: 0 | Z20: 0 | AB20: 4 | AC20: 43
A21: 32 | B21: 32 Tepeaca | C21: 1 | D21: Acajete | E21: Hombres | F21: 00-04 años | G21: 0 a 14 años | H21: 4157 | I21: 202 | J21: 107 | K21: 26 | L21: 17 | M21: 43 | N21: 35 | O21: 75 | P21: 90 | Q21: 00-04 años | R21: Hombres | S21: 79 | T21: 6 | U21: 6 | V21: 17 | W21: 1 | X21: 1 | Y21: 54 | Z21: 35 | AB21: 3951 | AC21: 4
A22: 32 | B22: 32 Tepeaca | C22: 1 | D22: Acajete | E22: Hombres | F22: 05-09 años | G22: 0 a 14 años | H22: 3999 | I22: 256 | J22: 72 | K22: 12 | L22: 2 | M22: 16 | N22: 20 | O22: 19 | P22: 27 | Q22: 05-09 años | R22: Hombres | S22: 172 | T22: 52 | U22: 19 | V22: 27 | W22: 38 | X22: 19 | Y22: 45 | Z22: 36 | AB22: 3743 | AC22: 0
A23: 32 | B23: 32 Tepeaca | C23: 1 | D23: Acajete | E23: Hombres | F23: 10-14 años | G23: 0 a 14 años | H23: 3839 | I23: 277 | J23: 66 | K23: 21 | L23: 13 | M23: 14 | N23: 28 | O23: 18 | P23: 28 | Q23: 10-14 años | R23: Hombres | S23: 197 | T23: 106 | U23: 24 | V23: 19 | W23: 44 | X23: 7 | Y23: 42 | Z23: 43 | AB23: 3562 | AC23: 0
A24: 32 | B24: 32 Tepeaca | C24: 1 | D24: Acajete | E24: Hombres | F24: 15-19 años | G24: 15 a 29 años | H24: 3703 | I24: 285 | J24: 81 | K24: 28 | L24: 12 | M24: 17 | N24: 16 | O24: 16 | P24: 32 | Q24: 15-19 años | R24: Hombres | S24: 190 | T24: 111 | U24: 25 | V24: 18 | W24: 29 | X24: 5 | Y24: 23 | Z24: 43 | AB24: 3418 | AC24: 0
A25: 32 | B25: 32 Tepeaca | C25: 1 | D25: Acajete | E25: Hombres | F25: 20-24 años | G25: 15 a 29 años | H25: 3167 | I25: 266 | J25: 62 | K25: 19 | L25: 11 | M25: 16 | N25: 16 | O25: 12 | P25: 28 | Q25: 20-24 años | R25: Hombres | S25: 189 | T25: 125 | U25: 11 | V25: 21 | W25: 23 | X25: 6 | Y25: 18 | Z25: 42 | AB25: 2900 | AC25: 1
A26: 32 | B26: 32 Tepeaca | C26: 1 | D26: Acajete | E26: Hombres | F26: 25-29 años | G26: 15 a 29 años | H26: 2930 | I26: 259 | J26: 62 | K26: 28 | L26: 12 | M26: 20 | N26: 13 | O26: 13 | P26: 17 | Q26: 25-29 años | R26: Hombres | S26: 187 | T26: 118 | U26: 24 | V26: 31 | W26: 25 | X26: 8 | Y26: 12 | Z26: 32 | AB26: 2671 | AC26: 0
A27: 32 | B27: 32 Tepeaca | C27: 1 | D27: Acajete | E27: Hombres | F27: 30-34 años | G27: 30 a 59 años | H27: 2411 | I27: 231 | J27: 55 | K27: 26 | L27: 5 | M27: 16 | N27: 7 | O27: 6 | P27: 9 | Q27: 30-34 años | R27: Hombres | S27: 165 | T27: 117 | U27: 14 | V27: 29 | W27: 18 | X27: 4 | Y27: 4 | Z27: 19 | AB27: 2180 | AC27: 0
A28: 32 | B28: 32 Tepeaca | C28: 1 | D28: Acajete | E28: Hombres | F28: 35-39 años | G28: 30 a 59 años | H28: 2198 | I28: 254 | J28: 58 | K28: 23 | L28: 10 | M28: 28 | N28: 8 | O28: 7 | P28: 13 | Q28: 35-39 años | R28: Hombres | S28: 185 | T28: 106 | U28: 27 | V28: 43 | W28: 31 | X28: 4 | Y28: 9 | Z28: 24 | AB28: 1944 | AC28: 0
A29: 32 | B29: 32 Tepeaca | C29: 1 | D29: Acajete | E29: Hombres | F29: 40-44 años | G29: 30 a 59 años | H29: 1854 | I29: 289 | J29: 70 | K29: 27 | L29: 12 | M29: 20 | N29: 13 | O29: 6 | P29: 11 | Q29: 40-44 años | R29: Hombres | S29: 210 | T29: 130 | U29: 34 | V29: 45 | W29: 36 | X29: 9 | Y29: 9 | Z29: 22 | AB29: 1565 | AC29: 0
A30: 32 | B30: 32 Tepeaca | C30: 1 | D30: Acajete | E30: Hombres | F30: 45-49 años | G30: 30 a 59 años | H30: 1638 | I30: 356 | J30: 71 | K30: 30 | L30: 9 | M30: 28 | N30: 7 | O30: 8 | P30: 10 | Q30: 45-49 años | R30: Hombres | S30: 278 | T30: 178 | U30: 57 | V30: 75 | W30: 47 | X30: 11 | Y30: 10 | Z30: 19 | AB30: 1282 | AC30: 0
A31: 32 | B31: 32 Tepeaca | C31: 1 | D31: Acajete | E31: Hombres | F31: 50-54 años | G31: 30 a 59 años | H31: 1373 | I31: 389 | J31: 92 | K31: 40 | L31: 19 | M31: 42 | N31: 13 | O31: 11 | P31: 7 | Q31: 50-54 años | R31: Hombres | S31: 292 | T31: 203 | U31: 68 | V31: 85 | W31: 46 | X31: 5 | Y31: 3 | Z31: 13 | AB31: 984 | AC31: 0
A32: 32 | B32: 32 Tepeaca | C32: 1 | D32: Acajete | E32: Hombres | F32: 55-59 años | G32: 30 a 59 años | H32: 1089 | I32: 345 | J32: 92 | K32: 41 | L32: 21 | M32: 41 | N32: 9 | O32: 10 | P32: 6 | Q32: 55-59 años | R32: Hombres | S32: 250 | T32: 165 | U32: 67 | V32: 94 | W32: 60 | X32: 8 | Y32: 10 | Z32: 10 | AB32: 744 | AC32: 0
A33: 32 | B33: 32 Tepeaca | C33: 1 | D33: Acajete | E33: Hombres | F33: 60-64 años | G33: 60 años y más | H33: 891 | I33: 365 | J33: 113 | K33: 51 | L33: 27 | M33: 55 | N33: 16 | O33: 12 | P33: 8 | Q33: 60-64 años | R33: Hombres | S33: 248 | T33: 153 | U33: 78 | V33: 114 | W33: 51 | X33: 15 | Y33: 3 | Z33: 16 | AB33: 526 | AC33: 0
A34: 32 | B34: 32 Tepeaca | C34: 1 | D34: Acajete | E34: Hombres | F34: 65-69 años | G34: 60 años y más | H34: 680 | I34: 347 | J34: 110 | K34: 52 | L34: 32 | M34: 60 | N34: 7 | O34: 12 | P34: 3 | Q34: 65-69 años | R34: Hombres | S34: 232 | T34: 136 | U34: 82 | V34: 110 | W34: 58 | X34: 14 | Y34: 12 | Z34: 9 | AB34: 333 | AC34: 0
A35: 32 | B35: 32 Tepeaca | C35: 1 | D35: Acajete | E35: Hombres | F35: 70-74 años | G35: 60 años y más | H35: 470 | I35: 284 | J35: 89 | K35: 35 | L35: 16 | M35: 58 | N35: 16 | O35: 14 | P35: 6 | Q35: 70-74 años | R35: Hombres | S35: 194 | T35: 101 | U35: 88 | V35: 105 | W35: 69 | X35: 12 | Y35: 10 | Z35: 2 | AB35: 186 | AC35: 0
A36: 32 | B36: 32 Tepeaca | C36: 1 | D36: Acajete | E36: Hombres | F36: 75-79 años | G36: 60 años y más | H36: 344 | I36: 228 | J36: 96 | K36: 39 | L36: 32 | M36: 54 | N36: 9 | O36: 11 | P36: 2 | Q36: 75-79 años | R36: Hombres | S36: 132 | T36: 75 | U36: 66 | V36: 81 | W36: 48 | X36: 9 | Y36: 8 | Z36: 2 | AB36: 116 | AC36: 0
A37: 32 | B37: 32 Tepeaca | C37: 1 | D37: Acajete | E37: Hombres | F37: 80-84 años | G37: 60 años y más | H37: 181 | I37: 133 | J37: 61 | K37: 17 | L37: 25 | M37: 32 | N37: 15 | O37: 10 | P37: 4 | Q37: 80-84 años | R37: Hombres | S37: 72 | T37: 32 | U37: 39 | V37: 43 | W37: 31 | X37: 10 | Y37: 5 | Z37: 0 | AB37: 48 | AC37: 0
A38: 32 | B38: 32 Tepeaca | C38: 1 | D38: Acajete | E38: Hombres | F38: 85 años y más | G38: 60 años y más | H38: 192 | I38: 165 | J38: 102 | K38: 49 | L38: 48 | M38: 67 | N38: 34 | O38: 35 | P38: 16 | Q38: 85 años y más | R38: Hombres | S38: 62 | T38: 28 | U38: 36 | V38: 43 | W38: 23 | X38: 14 | Y38: 4 | Z38: 2 | AB38: 27 | AC38: 0
A39: 32 | B39: 32 Tepeaca | C39: 1 | D39: Acajete | E39: Hombres | F39: No especificado | H39: 23 | I39: 0 | J39: 0 | K39: 0 | L39: 0 | M39: 0 | N39: 0 | O39: 0 | P39: 0 | Q39: No especificado | R39: Hombres | S39: 0 | T39: 0 | U39: 0 | V39: 0 | W39: 0 | X39: 0 | Y39: 0 | Z39: 0 | AB39: 2 | AC39: 21
A40: 32 | B40: 32 Tepeaca | C40: 1 | D40: Acajete | E40: Mujeres | F40: 00-04 años | G40: 0 a 14 años | H40: 4151 | I40: 163 | J40: 66 | K40: 14 | L40: 5 | M40: 24 | N40: 18 | O40: 47 | P40: 53 | Q40: 00-04 años | R40: Mujeres | S40: 83 | T40: 6 | U40: 2 | V40: 17 | W40: 2 | X40: 1 | Y40: 62 | Z40: 25 | AB40: 3982 | AC40: 6
A41: 32 | B41: 32 Tepeaca | C41: 1 | D41: Acajete | E41: Mujeres | F41: 05-09 años | G41: 0 a 14 años | H41: 4085 | I41: 241 | J41: 90 | K41: 19 | L41: 9 | M41: 20 | N41: 17 | O41: 40 | P41: 36 | Q41: 05-09 años | R41: Mujeres | S41: 138 | T41: 52 | U41: 13 | V41: 22 | W41: 15 | X41: 18 | Y41: 37 | Z41: 36 | AB41: 3843 | AC41: 1
A42: 32 | B42: 32 Tepeaca | C42: 1 | D42: Acajete | E42: Mujeres | F42: 10-14 años | G42: 0 a 14 años | H42: 3853 | I42: 241 | J42: 62 | K42: 28 | L42: 8 | M42: 13 | N42: 22 | O42: 15 | P42: 15 | Q42: 10-14 años | R42: Mujeres | S42: 171 | T42: 108 | U42: 17 | V42: 14 | W42: 24 | X42: 9 | Y42: 18 | Z42: 26 | AB42: 3612 | AC42: 0
A43: 32 | B43: 32 Tepeaca | C43: 1 | D43: Acajete | E43: Mujeres | F43: 15-19 años | G43: 15 a 29 años | H43: 3731 | I43: 326 | J43: 62 | K43: 32 | L43: 3 | M43: 12 | N43: 16 | O43: 8 | P43: 13 | Q43: 15-19 años | R43: Mujeres | S43: 247 | T43: 178 | U43: 27 | V43: 23 | W43: 25 | X43: 8 | Y43: 24 | Z43: 36 | AB43: 3405 | AC43: 0
A44: 32 | B44: 32 Tepeaca | C44: 1 | D44: Acajete | E44: Mujeres | F44: 20-24 años | G44: 15 a 29 años | H44: 3383 | I44: 270 | J44: 54 | K44: 29 | L44: 6 | M44: 10 | N44: 11 | O44: 5 | P44: 15 | Q44: 20-24 años | R44: Mujeres | S44: 199 | T44: 147 | U44: 11 | V44: 19 | W44: 13 | X44: 10 | Y44: 11 | Z44: 38 | AB44: 3113 | AC44: 0
A45: 32 | B45: 32 Tepeaca | C45: 1 | D45: Acajete | E45: Mujeres | F45: 25-29 años | G45: 15 a 29 años | H45: 3120 | I45: 242 | J45: 52 | K45: 28 | L45: 7 | M45: 7 | N45: 16 | O45: 4 | P45: 10 | Q45: 25-29 años | R45: Mujeres | S45: 174 | T45: 122 | U45: 18 | V45: 18 | W45: 15 | X45: 8 | Y45: 9 | Z45: 26 | AB45: 2878 | AC45: 0
A46: 32 | B46: 32 Tepeaca | C46: 1 | D46: Acajete | E46: Mujeres | F46: 30-34 años | G46: 30 a 59 años | H46: 2749 | I46: 241 | J46: 53 | K46: 30 | L46: 9 | M46: 10 | N46: 11 | O46: 6 | P46: 14 | Q46: 30-34 años | R46: Mujeres | S46: 179 | T46: 119 | U46: 29 | V46: 25 | W46: 29 | X46: 9 | Y46: 6 | Z46: 23 | AB46: 2508 | AC46: 0
A47: 32 | B47: 32 Tepeaca | C47: 1 | D47: Acajete | E47: Mujeres | F47: 35-39 años | G47: 30 a 59 años | H47: 2497 | I47: 275 | J47: 53 | K47: 23 | L47: 7 | M47: 18 | N47: 6 | O47: 4 | P47: 9 | Q47: 35-39 años | R47: Mujeres | S47: 206 | T47: 132 | U47: 27 | V47: 38 | W47: 48 | X47: 5 | Y47: 9 | Z47: 27 | AB47: 2222 | AC47: 0
A48: 32 | B48: 32 Tepeaca | C48: 1 | D48: Acajete | E48: Mujeres | F48: 40-44 años | G48: 30 a 59 años | H48: 2130 | I48: 314 | J48: 70 | K48: 28 | L48: 16 | M48: 17 | N48: 15 | O48: 13 | P48: 14 | Q48: 40-44 años | R48: Mujeres | S48: 237 | T48: 135 | U48: 40 | V48: 55 | W48: 69 | X48: 10 | Y48: 12 | Z48: 23 | AB48: 1816 | AC48: 0
A49: 32 | B49: 32 Tepeaca | C49: 1 | D49: Acajete | E49: Mujeres | F49: 45-49 años | G49: 30 a 59 años | H49: 1772 | I49: 374 | J49: 70 | K49: 33 | L49: 14 | M49: 21 | N49: 11 | O49: 5 | P49: 4 | Q49: 45-49 años | R49: Mujeres | S49: 298 | T49: 200 | U49: 60 | V49: 93 | W49: 65 | X49: 10 | Y49: 8 | Z49: 15 | AB49: 1398 | AC49: 0
A50: 32 | B50: 32 Tepeaca | C50: 1 | D50: Acajete | E50: Mujeres | F50: 50-54 años | G50: 30 a 59 años | H50: 1658 | I50: 462 | J50: 94 | K50: 49 | L50: 14 | M50: 43 | N50: 7 | O50: 11 | P50: 4 | Q50: 50-54 años | R50: Mujeres | S50: 366 | T50: 254 | U50: 83 | V50: 125 | W50: 95 | X50: 10 | Y50: 8 | Z50: 15 | AB50: 1196 | AC50: 0
A51: 32 | B51: 32 Tepeaca | C51: 1 | D51: Acajete | E51: Mujeres | F51: 55-59 años | G51: 30 a 59 años | H51: 1284 | I51: 443 | J51: 102 | K51: 48 | L51: 17 | M51: 53 | N51: 12 | O51: 12 | P51: 6 | Q51: 55-59 años | R51: Mujeres | S51: 336 | T51: 199 | U51: 78 | V51: 148 | W51: 83 | X51: 18 | Y51: 13 | Z51: 15 | AB51: 841 | AC51: 0
A52: 32 | B52: 32 Tepeaca | C52: 1 | D52: Acajete | E52: Mujeres | F52: 60-64 años | G52: 60 años y más | H52: 1057 | I52: 460 | J52: 106 | K52: 55 | L52: 18 | M52: 56 | N52: 11 | O52: 12 | P52: 3 | Q52: 60-64 años | R52: Mujeres | S52: 350 | T52: 229 | U52: 81 | V52: 175 | W52: 113 | X52: 20 | Y52: 10 | Z52: 9 | AB52: 597 | AC52: 0
A53: 32 | B53: 32 Tepeaca | C53: 1 | D53: Acajete | E53: Mujeres | F53: 65-69 años | G53: 60 años y más | H53: 726 | I53: 367 | J53: 115 | K53: 40 | L53: 14 | M53: 73 | N53: 12 | O53: 12 | P53: 6 | Q53: 65-69 años | R53: Mujeres | S53: 249 | T53: 151 | U53: 78 | V53: 141 | W53: 73 | X53: 19 | Y53: 12 | Z53: 9 | AB53: 359 | AC53: 0
A54: 32 | B54: 32 Tepeaca | C54: 1 | D54: Acajete | E54: Mujeres | F54: 70-74 años | G54: 60 años y más | H54: 569 | I54: 340 | J54: 126 | K54: 53 | L54: 34 | M54: 78 | N54: 23 | O54: 24 | P54: 9 | Q54: 70-74 años | R54: Mujeres | S54: 211 | T54: 135 | U54: 64 | V54: 143 | W54: 78 | X54: 23 | Y54: 14 | Z54: 6 | AB54: 229 | AC54: 0
A55: 32 | B55: 32 Tepeaca | C55: 1 | D55: Acajete | E55: Mujeres | F55: 75-79 años | G55: 60 años y más | H55: 411 | I55: 288 | J55: 128 | K55: 51 | L55: 45 | M55: 92 | N55: 28 | O55: 34 | P55: 10 | Q55: 75-79 años | R55: Mujeres | S55: 159 | T55: 98 | U55: 58 | V55: 113 | W55: 51 | X55: 24 | Y55: 16 | Z55: 5 | AB55: 123 | AC55: 0
A56: 32 | B56: 32 Tepeaca | C56: 1 | D56: Acajete | E56: Mujeres | F56: 80-84 años | G56: 60 años y más | H56: 279 | I56: 211 | J56: 100 | K56: 32 | L56: 40 | M56: 67 | N56: 23 | O56: 27 | P56: 8 | Q56: 80-84 años | R56: Mujeres | S56: 111 | T56: 55 | U56: 62 | V56: 83 | W56: 48 | X56: 25 | Y56: 11 | Z56: 2 | AB56: 68 | AC56: 0
A57: 32 | B57: 32 Tepeaca | C57: 1 | D57: Acajete | E57: Mujeres | F57: 85 años y más | G57: 60 años y más | H57: 276 | I57: 247 | J57: 162 | K57: 78 | L57: 83 | M57: 108 | N57: 56 | O57: 64 | P57: 25 | Q57: 85 años y más | R57: Mujeres | S57: 85 | T57: 56 | U57: 46 | V57: 65 | W57: 43 | X57: 27 | Y57: 18 | Z57: 4 | AB57: 29 | AC57: 0
A58: 32 | B58: 32 Tepeaca | C58: 1 | D58: Acajete | E58: Mujeres | F58: No especificado | H58: 24 | I58: 0 | J58: 0 | K58: 0 | L58: 0 | M58: 0 | N58: 0 | O58: 0 | P58: 0 | Q58: No especificado | R58: Mujeres | S58: 0 | T58: 0 | U58: 0 | V58: 0 | W58: 0 | X58: 0 | Y58: 0 | Z58: 0 | AB58: 2 | AC58: 22
A59: 6 | B59: 6 Teziutlán | C59: 2 | D59: Acateno | E59: Total | F59: 00-04 años | G59: 0 a 14 años | H59: 787 | I59: 108 | J59: 65 | K59: 15 | L59: 17 | M59: 31 | N59: 53 | O59: 58 | P59: 63 | Q59: 00-04 años | R59: Total | S59: 41 | T59: 2 | U59: 1 | V59: 10 | W59: 2 | X59: 3 | Y59: 35 | Z59: 7 | AB59: 679 | AC59: 0
A60: 6 | B60: 6 Teziutlán | C60: 2 | D60: Acateno | E60: Total | F60: 05-09 años | G60: 0 a 14 años | H60: 771 | I60: 83 | J60: 22 | K60: 9 | L60: 3 | M60: 4 | N60: 5 | O60: 4 | P60: 8 | Q60: 05-09 años | R60: Total | S60: 59 | T60: 11 | U60: 8 | V60: 10 | W60: 15 | X60: 19 | Y60: 15 | Z60: 6 | AB60: 688 | AC60: 0
A61: 6 | B61: 6 Teziutlán | C61: 2 | D61: Acateno | E61: Total | F61: 10-14 años | G61: 0 a 14 años | H61: 808 | I61: 64 | J61: 21 | K61: 3 | L61: 4 | M61: 6 | N61: 7 | O61: 1 | P61: 8 | Q61: 10-14 años | R61: Total | S61: 38 | T61: 22 | U61: 4 | V61: 2 | W61: 8 | X61: 3 | Y61: 8 | Z61: 9 | AB61: 744 | AC61: 0
A62: 6 | B62: 6 Teziutlán | C62: 2 | D62: Acateno | E62: Total | F62: 15-19 años | G62: 15 a 29 años | H62: 802 | I62: 64 | J62: 23 | K62: 2 | L62: 6 | M62: 6 | N62: 7 | O62: 4 | P62: 8 | Q62: 15-19 años | R62: Total | S62: 37 | T62: 24 | U62: 3 | V62: 7 | W62: 2 | X62: 3 | Y62: 4 | Z62: 14 | AB62: 738 | AC62: 0
A63: 6 | B63: 6 Teziutlán | C63: 2 | D63: Acateno | E63: Total | F63: 20-24 años | G63: 15 a 29 años | H63: 701 | I63: 55 | J63: 19 | K63: 5 | L63: 7 | M63: 7 | N63: 4 | O63: 3 | P63: 8 | Q63: 20-24 años | R63: Total | S63: 34 | T63: 17 | U63: 7 | V63: 8 | W63: 1 | X63: 2 | Y63: 3 | Z63: 8 | AB63: 646 | AC63: 0
A64: 6 | B64: 6 Teziutlán | C64: 2 | D64: Acateno | E64: Total | F64: 25-29 años | G64: 15 a 29 años | H64: 629 | I64: 43 | J64: 17 | K64: 6 | L64: 1 | M64: 3 | N64: 5 | O64: 3 | P64: 7 | Q64: 25-29 años | R64: Total | S64: 26 | T64: 17 | U64: 4 | V64: 4 | W64: 4 | X64: 2 | Y64: 1 | Z64: 5 | AB64: 586 | AC64: 0
A65: 6 | B65: 6 Teziutlán | C65: 2 | D65: Acateno | E65: Total | F65: 30-34 años | G65: 30 a 59 años | H65: 625 | I65: 54 | J65: 20 | K65: 4 | L65: 6 | M65: 6 | N65: 5 | O65: 2 | P65: 6 | Q65: 30-34 años | R65: Total | S65: 33 | T65: 21 | U65: 7 | V65: 10 | W65: 3 | X65: 1 | Y65: 1 | Z65: 6 | AB65: 571 | AC65: 0
A66: 6 | B66: 6 Teziutlán | C66: 2 | D66: Acateno | E66: Total | F66: 35-39 años | G66: 30 a 59 años | H66: 608 | I66: 68 | J66: 23 | K66: 7 | L66: 5 | M66: 6 | N66: 2 | O66: 0 | P66: 6 | Q66: 35-39 años | R66: Total | S66: 42 | T66: 19 | U66: 10 | V66: 12 | W66: 6 | X66: 1 | Y66: 1 | Z66: 9 | AB66: 540 | AC66: 0
A67: 6 | B67: 6 Teziutlán | C67: 2 | D67: Acateno | E67: Total | F67: 40-44 años | G67: 30 a 59 años | H67: 587 | I67: 90 | J67: 23 | K67: 10 | L67: 0 | M67: 10 | N67: 2 | O67: 4 | P67: 2 | Q67: 40-44 años | R67: Total | S67: 64 | T67: 45 | U67: 11 | V67: 12 | W67: 13 | X67: 4 | Y67: 7 | Z67: 6 | AB67: 497 | AC67: 0
A68: 6 | B68: 6 Teziutlán | C68: 2 | D68: Acateno | E68: Total | F68: 45-49 años | G68: 30 a 59 años | H68: 543 | I68: 147 | J68: 31 | K68: 19 | L68: 7 | M68: 5 | N68: 2 | O68: 1 | P68: 2 | Q68: 45-49 años | R68: Total | S68: 113 | T68: 86 | U68: 15 | V68: 21 | W68: 9 | X68: 5 | Y68: 2 | Z68: 4 | AB68: 396 | AC68: 0
A69: 6 | B69: 6 Teziutlán | C69: 2 | D69: Acateno | E69: Total | F69: 50-54 años | G69: 30 a 59 años | H69: 505 | I69: 157 | J69: 40 | K69: 23 | L69: 7 | M69: 13 | N69: 4 | O69: 4 | P69: 1 | Q69: 50-54 años | R69: Total | S69: 115 | T69: 77 | U69: 18 | V69: 31 | W69: 17 | X69: 4 | Y69: 4 | Z69: 5 | AB69: 348 | AC69: 0
A70: 6 | B70: 6 Teziutlán | C70: 2 | D70: Acateno | E70: Total | F70: 55-59 años | G70: 30 a 59 años | H70: 417 | I70: 164 | J70: 52 | K70: 31 | L70: 8 | M70: 27 | N70: 5 | O70: 6 | P70: 3 | Q70: 55-59 años | R70: Total | S70: 112 | T70: 83 | U70: 21 | V70: 31 | W70: 13 | X70: 3 | Y70: 3 | Z70: 1 | AB70: 253 | AC70: 0
A71: 6 | B71: 6 Teziutlán | C71: 2 | D71: Acateno | E71: Total | F71: 60-64 años | G71: 60 años y más | H71: 345 | I71: 170 | J71: 66 | K71: 26 | L71: 13 | M71: 38 | N71: 7 | O71: 4 | P71: 2 | Q71: 60-64 años | R71: Total | S71: 104 | T71: 61 | U71: 37 | V71: 54 | W71: 20 | X71: 5 | Y71: 5 | Z71: 3 | AB71: 175 | AC71: 0
A72: 6 | B72: 6 Teziutlán | C72: 2 | D72: Acateno | E72: Total | F72: 65-69 años | G72: 60 años y más | H72: 275 | I72: 152 | J72: 45 | K72: 20 | L72: 11 | M72: 27 | N72: 4 | O72: 5 | P72: 2 | Q72: 65-69 años | R72: Total | S72: 107 | T72: 68 | U72: 21 | V72: 47 | W72: 25 | X72: 8 | Y72: 6 | Z72: 5 | AB72: 123 | AC72: 0
A73: 6 | B73: 6 Teziutlán | C73: 2 | D73: Acateno | E73: Total | F73: 70-74 años | G73: 60 años y más | H73: 267 | I73: 163 | J73: 75 | K73: 26 | L73: 27 | M73: 37 | N73: 10 | O73: 9 | P73: 8 | Q73: 70-74 años | R73: Total | S73: 87 | T73: 56 | U73: 27 | V73: 43 | W73: 26 | X73: 10 | Y73: 9 | Z73: 2 | AB73: 104 | AC73: 0
A74: 6 | B74: 6 Teziutlán | C74: 2 | D74: Acateno | E74: Total | F74: 75-79 años | G74: 60 años y más | H74: 228 | I74: 154 | J74: 70 | K74: 35 | L74: 26 | M74: 38 | N74: 11 | O74: 17 | P74: 5 | Q74: 75-79 años | R74: Total | S74: 84 | T74: 48 | U74: 36 | V74: 48 | W74: 20 | X74: 9 | Y74: 8 | Z74: 3 | AB74: 74 | AC74: 0
A75: 6 | B75: 6 Teziutlán | C75: 2 | D75: Acateno | E75: Total | F75: 80-84 años | G75: 60 años y más | H75: 153 | I75: 126 | J75: 67 | K75: 30 | L75: 26 | M75: 42 | N75: 15 | O75: 14 | P75: 8 | Q75: 80-84 años | R75: Total | S75: 59 | T75: 31 | U75: 34 | V75: 30 | W75: 14 | X75: 7 | Y75: 6 | Z75: 3 | AB75: 27 | AC75: 0
A76: 6 | B76: 6 Teziutlán | C76: 2 | D76: Acateno | E76: Total | F76: 85 años y más | G76: 60 años y más | H76: 119 | I76: 100 | J76: 75 | K76: 46 | L76: 47 | M76: 50 | N76: 30 | O76: 27 | P76: 18 | Q76: 85 años y más | R76: Total | S76: 25 | T76: 17 | U76: 17 | V76: 15 | W76: 11 | X76: 5 | Y76: 6 | Z76: 4 | AB76: 19 | AC76: 0
A77: 6 | B77: 6 Teziutlán | C77: 2 | D77: Acateno | E77: Hombres | F77: 00-04 años | G77: 0 a 14 años | H77: 420 | I77: 65 | J77: 41 | K77: 9 | L77: 11 | M77: 22 | N77: 33 | O77: 35 | P77: 40 | Q77: 00-04 años | R77: Hombres | S77: 22 | T77: 2 | U77: 1 | V77: 7 | W77: 0 | X77: 0 | Y77: 18 | Z77: 6 | AB77: 355 | AC77: 0
A78: 6 | B78: 6 Teziutlán | C78: 2 | D78: Acateno | E78: Hombres | F78: 05-09 años | G78: 0 a 14 años | H78: 369 | I78: 41 | J78: 12 | K78: 4 | L78: 1 | M78: 2 | N78: 3 | O78: 4 | P78: 7 | Q78: 05-09 años | R78: Hombres | S78: 27 | T78: 4 | U78: 1 | V78: 4 | W78: 9 | X78: 7 | Y78: 14 | Z78: 5 | AB78: 328 | AC78: 0
A79: 6 | B79: 6 Teziutlán | C79: 2 | D79: Acateno | E79: Hombres | F79: 10-14 años | G79: 0 a 14 años | H79: 413 | I79: 30 | J79: 11 | K79: 2 | L79: 2 | M79: 2 | N79: 4 | O79: 1 | P79: 7 | Q79: 10-14 años | R79: Hombres | S79: 17 | T79: 7 | U79: 2 | V79: 2 | W79: 6 | X79: 2 | Y79: 5 | Z79: 6 | AB79: 383 | AC79: 0
A80: 6 | B80: 6 Teziutlán | C80: 2 | D80: Acateno | E80: Hombres | F80: 15-19 años | G80: 15 a 29 años | H80: 390 | I80: 36 | J80: 16 | K80: 1 | L80: 5 | M80: 4 | N80: 3 | O80: 2 | P80: 6 | Q80: 15-19 años | R80: Hombres | S80: 18 | T80: 9 | U80: 3 | V80: 4 | W80: 1 | X80: 1 | Y80: 3 | Z80: 6 | AB80: 354 | AC80: 0
A81: 6 | B81: 6 Teziutlán | C81: 2 | D81: Acateno | E81: Hombres | F81: 20-24 años | G81: 15 a 29 años | H81: 363 | I81: 32 | J81: 11 | K81: 1 | L81: 5 | M81: 5 | N81: 2 | O81: 1 | P81: 5 | Q81: 20-24 años | R81: Hombres | S81: 19 | T81: 6 | U81: 5 | V81: 6 | W81: 1 | X81: 2 | Y81: 3 | Z81: 7 | AB81: 331 | AC81: 0
A82: 6 | B82: 6 Teziutlán | C82: 2 | D82: Acateno | E82: Hombres | F82: 25-29 años | G82: 15 a 29 años | H82: 306 | I82: 24 | J82: 9 | K82: 2 | L82: 1 | M82: 3 | N82: 4 | O82: 2 | P82: 4 | Q82: 25-29 años | R82: Hombres | S82: 15 | T82: 9 | U82: 3 | V82: 3 | W82: 3 | X82: 2 | Y82: 1 | Z82: 3 | AB82: 282 | AC82: 0
A83: 6 | B83: 6 Teziutlán | C83: 2 | D83: Acateno | E83: Hombres | F83: 30-34 años | G83: 30 a 59 años | H83: 294 | I83: 30 | J83: 11 | K83: 1 | L83: 3 | M83: 4 | N83: 3 | O83: 2 | P83: 4 | Q83: 30-34 años | R83: Hombres | S83: 18 | T83: 9 | U83: 6 | V83: 7 | W83: 2 | X83: 1 | Y83: 1 | Z83: 5 | AB83: 264 | AC83: 0
A84: 6 | B84: 6 Teziutlán | C84: 2 | D84: Acateno | E84: Hombres | F84: 35-39 años | G84: 30 a 59 años | H84: 304 | I84: 32 | J84: 14 | K84: 4 | L84: 4 | M84: 4 | N84: 0 | O84: 0 | P84: 3 | Q84: 35-39 años | R84: Hombres | S84: 18 | T84: 8 | U84: 3 | V84: 8 | W84: 2 | X84: 0 | Y84: 1 | Z84: 4 | AB84: 272 | AC84: 0
A85: 6 | B85: 6 Teziutlán | C85: 2 | D85: Acateno | E85: Hombres | F85: 40-44 años | G85: 30 a 59 años | H85: 296 | I85: 38 | J85: 11 | K85: 4 | L85: 0 | M85: 6 | N85: 1 | O85: 1 | P85: 0 | Q85: 40-44 años | R85: Hombres | S85: 27 | T85: 19 | U85: 4 | V85: 7 | W85: 1 | X85: 1 | Y85: 2 | Z85: 0 | AB85: 258 | AC85: 0
A86: 6 | B86: 6 Teziutlán | C86: 2 | D86: Acateno | E86: Hombres | F86: 45-49 años | G86: 30 a 59 años | H86: 260 | I86: 65 | J86: 15 | K86: 7 | L86: 6 | M86: 2 | N86: 1 | O86: 0 | P86: 1 | Q86: 45-49 años | R86: Hombres | S86: 48 | T86: 31 | U86: 6 | V86: 9 | W86: 4 | X86: 1 | Y86: 2 | Z86: 2 | AB86: 195 | AC86: 0
A87: 6 | B87: 6 Teziutlán | C87: 2 | D87: Acateno | E87: Hombres | F87: 50-54 años | G87: 30 a 59 años | H87: 251 | I87: 77 | J87: 17 | K87: 9 | L87: 4 | M87: 3 | N87: 2 | O87: 2 | P87: 1 | Q87: 50-54 años | R87: Hombres | S87: 59 | T87: 44 | U87: 9 | V87: 11 | W87: 8 | X87: 2 | Y87: 2 | Z87: 3 | AB87: 174 | AC87: 0
A88: 6 | B88: 6 Teziutlán | C88: 2 | D88: Acateno | E88: Hombres | F88: 55-59 años | G88: 30 a 59 años | H88: 208 | I88: 78 | J88: 24 | K88: 16 | L88: 6 | M88: 12 | N88: 4 | O88: 4 | P88: 3 | Q88: 55-59 años | R88: Hombres | S88: 54 | T88: 39 | U88: 11 | V88: 11 | W88: 7 | X88: 1 | Y88: 0 | Z88: 1 | AB88: 130 | AC88: 0
A89: 6 | B89: 6 Teziutlán | C89: 2 | D89: Acateno | E89: Hombres | F89: 60-64 años | G89: 60 años y más | H89: 163 | I89: 83 | J89: 34 | K89: 9 | L89: 7 | M89: 21 | N89: 2 | O89: 2 | P89: 1 | Q89: 60-64 años | R89: Hombres | S89: 49 | T89: 34 | U89: 15 | V89: 25 | W89: 8 | X89: 1 | Y89: 2 | Z89: 3 | AB89: 80 | AC89: 0
A90: 6 | B90: 6 Teziutlán | C90: 2 | D90: Acateno | E90: Hombres | F90: 65-69 años | G90: 60 años y más | H90: 136 | I90: 80 | J90: 20 | K90: 6 | L90: 5 | M90: 11 | N90: 1 | O90: 3 | P90: 1 | Q90: 65-69 años | R90: Hombres | S90: 60 | T90: 36 | U90: 12 | V90: 29 | W90: 13 | X90: 4 | Y90: 2 | Z90: 3 | AB90: 56 | AC90: 0
A91: 6 | B91: 6 Teziutlán | C91: 2 | D91: Acateno | E91: Hombres | F91: 70-74 años | G91: 60 años y más | H91: 127 | I91: 79 | J91: 41 | K91: 10 | L91: 16 | M91: 20 | N91: 6 | O91: 5 | P91: 6 | Q91: 70-74 años | R91: Hombres | S91: 37 | T91: 26 | U91: 13 | V91: 19 | W91: 8 | X91: 5 | Y91: 5 | Z91: 2 | AB91: 48 | AC91: 0
A92: 6 | B92: 6 Teziutlán | C92: 2 | D92: Acateno | E92: Hombres | F92: 75-79 años | G92: 60 años y más | H92: 134 | I92: 88 | J92: 39 | K92: 17 | L92: 19 | M92: 18 | N92: 7 | O92: 11 | P92: 5 | Q92: 75-79 años | R92: Hombres | S92: 49 | T92: 29 | U92: 24 | V92: 23 | W92: 8 | X92: 6 | Y92: 5 | Z92: 2 | AB92: 46 | AC92: 0
A93: 6 | B93: 6 Teziutlán | C93: 2 | D93: Acateno | E93: Hombres | F93: 80-84 años | G93: 60 años y más | H93: 76 | I93: 61 | J93: 30 | K93: 12 | L93: 14 | M93: 15 | N93: 5 | O93: 5 | P93: 0 | Q93: 80-84 años | R93: Hombres | S93: 31 | T93: 17 | U93: 20 | V93: 15 | W93: 7 | X93: 3 | Y93: 3 | Z93: 0 | AB93: 15 | AC93: 0
A94: 6 | B94: 6 Teziutlán | C94: 2 | D94: Acateno | E94: Hombres | F94: 85 años y más | G94: 60 años y más | H94: 76 | I94: 59 | J94: 40 | K94: 23 | L94: 26 | M94: 25 | N94: 16 | O94: 12 | P94: 9 | Q94: 85 años y más | R94: Hombres | S94: 19 | T94: 15 | U94: 15 | V94: 12 | W94: 8 | X94: 4 | Y94: 6 | Z94: 2 | AB94: 17 | AC94: 0
A95: 6 | B95: 6 Teziutlán | C95: 2 | D95: Acateno | E95: Mujeres | F95: 00-04 años | G95: 0 a 14 años | H95: 367 | I95: 43 | J95: 24 | K95: 6 | L95: 6 | M95: 9 | N95: 20 | O95: 23 | P95: 23 | Q95: 00-04 años | R95: Mujeres | S95: 19 | T95: 0 | U95: 0 | V95: 3 | W95: 2 | X95: 3 | Y95: 17 | Z95: 1 | AB95: 324 | AC95: 0
A96: 6 | B96: 6 Teziutlán | C96: 2 | D96: Acateno | E96: Mujeres | F96: 05-09 años | G96: 0 a 14 años | H96: 402 | I96: 42 | J96: 10 | K96: 5 | L96: 2 | M96: 2 | N96: 2 | O96: 0 | P96: 1 | Q96: 05-09 años | R96: Mujeres | S96: 32 | T96: 7 | U96: 7 | V96: 6 | W96: 6 | X96: 12 | Y96: 1 | Z96: 1 | AB96: 360 | AC96: 0
A97: 6 | B97: 6 Teziutlán | C97: 2 | D97: Acateno | E97: Mujeres | F97: 10-14 años | G97: 0 a 14 años | H97: 395 | I97: 34 | J97: 10 | K97: 1 | L97: 2 | M97: 4 | N97: 3 | O97: 0 | P97: 1 | Q97: 10-14 años | R97: Mujeres | S97: 21 | T97: 15 | U97: 2 | V97: 0 | W97: 2 | X97: 1 | Y97: 3 | Z97: 3 | AB97: 361 | AC97: 0
A98: 6 | B98: 6 Teziutlán | C98: 2 | D98: Acateno | E98: Mujeres | F98: 15-19 años | G98: 15 a 29 años | H98: 412 | I98: 28 | J98: 7 | K98: 1 | L98: 1 | M98: 2 | N98: 4 | O98: 2 | P98: 2 | Q98: 15-19 años | R98: Mujeres | S98: 19 | T98: 15 | U98: 0 | V98: 3 | W98: 1 | X98: 2 | Y98: 1 | Z98: 8 | AB98: 384 | AC98: 0
A99: 6 | B99: 6 Teziutlán | C99: 2 | D99: Acateno | E99: Mujeres | F99: 20-24 años | G99: 15 a 29 años | H99: 338 | I99: 23 | J99: 8 | K99: 4 | L99: 2 | M99: 2 | N99: 2 | O99: 2 | P99: 3 | Q99: 20-24 años | R99: Mujeres | S99: 15 | T99: 11 | U99: 2 | V99: 2 | W99: 0 | X99: 0 | Y99: 0 | Z99: 1 | AB99: 315 | AC99: 0
A100: 6 | B100: 6 Teziutlán | C100: 2 | D100: Acateno | E100: Mujeres | F100: 25-29 años | G100: 15 a 29 años | H100: 323 | I100: 19 | J100: 8 | K100: 4 | L100: 0 | M100: 0 | N100: 1 | O100: 1 | P100: 3 | Q100: 25-29 años | R100: Mujeres | S100: 11 | T100: 8 | U100: 1 | V100: 1 | W100: 1 | X100: 0 | Y100: 0 | Z100: 2 | AB100: 304 | AC100: 0
A101: 6 | B101: 6 Teziutlán | C101: 2 | D101: Acateno | E101: Mujeres | F101: 30-34 años | G101: 30 a 59 años | H101: 331 | I101: 24 | J101: 9 | K101: 3 | L101: 3 | M101: 2 | N101: 2 | O101: 0 | P101: 2 | Q101: 30-34 años | R101: Mujeres | S101: 15 | T101: 12 | U101: 1 | V101: 3 | W101: 1 | X101: 0 | Y101: 0 | Z101: 1 | AB101: 307 | AC101: 0
A102: 6 | B102: 6 Teziutlán | C102: 2 | D102: Acateno | E102: Mujeres | F102: 35-39 años | G102: 30 a 59 años | H102: 304 | I102: 36 | J102: 9 | K102: 3 | L102: 1 | M102: 2 | N102: 2 | O102: 0 | P102: 3 | Q102: 35-39 años | R102: Mujeres | S102: 24 | T102: 11 | U102: 7 | V102: 4 | W102: 4 | X102: 1 | Y102: 0 | Z102: 5 | AB102: 268 | AC102: 0
A103: 6 | B103: 6 Teziutlán | C103: 2 | D103: Acateno | E103: Mujeres | F103: 40-44 años | G103: 30 a 59 años | H103: 291 | I103: 52 | J103: 12 | K103: 6 | L103: 0 | M103: 4 | N103: 1 | O103: 3 | P103: 2 | Q103: 40-44 años | R103: Mujeres | S103: 37 | T103: 26 | U103: 7 | V103: 5 | W103: 12 | X103: 3 | Y103: 5 | Z103: 6 | AB103: 239 | AC103: 0
A104: 6 | B104: 6 Teziutlán | C104: 2 | D104: Acateno | E104: Mujeres | F104: 45-49 años | G104: 30 a 59 años | H104: 283 | I104: 82 | J104: 16 | K104: 12 | L104: 1 | M104: 3 | N104: 1 | O104: 1 | P104: 1 | Q104: 45-49 años | R104: Mujeres | S104: 65 | T104: 55 | U104: 9 | V104: 12 | W104: 5 | X104: 4 | Y104: 0 | Z104: 2 | AB104: 201 | AC104: 0
A105: 6 | B105: 6 Teziutlán | C105: 2 | D105: Acateno | E105: Mujeres | F105: 50-54 años | G105: 30 a 59 años | H105: 254 | I105: 80 | J105: 23 | K105: 14 | L105: 3 | M105: 10 | N105: 2 | O105: 2 | P105: 0 | Q105: 50-54 años | R105: Mujeres | S105: 56 | T105: 33 | U105: 9 | V105: 20 | W105: 9 | X105: 2 | Y105: 2 | Z105: 2 | AB105: 174 | AC105: 0
A106: 6 | B106: 6 Teziutlán | C106: 2 | D106: Acateno | E106: Mujeres | F106: 55-59 años | G106: 30 a 59 años | H106: 209 | I106: 86 | J106: 28 | K106: 15 | L106: 2 | M106: 15 | N106: 1 | O106: 2 | P106: 0 | Q106: 55-59 años | R106: Mujeres | S106: 58 | T106: 44 | U106: 10 | V106: 20 | W106: 6 | X106: 2 | Y106: 3 | Z106: 0 | AB106: 123 | AC106: 0
A107: 6 | B107: 6 Teziutlán | C107: 2 | D107: Acateno | E107: Mujeres | F107: 60-64 años | G107: 60 años y más | H107: 182 | I107: 87 | J107: 32 | K107: 17 | L107: 6 | M107: 17 | N107: 5 | O107: 2 | P107: 1 | Q107: 60-64 años | R107: Mujeres | S107: 55 | T107: 27 | U107: 22 | V107: 29 | W107: 12 | X107: 4 | Y107: 3 | Z107: 0 | AB107: 95 | AC107: 0
A108: 6 | B108: 6 Teziutlán | C108: 2 | D108: Acateno | E108: Mujeres | F108: 65-69 años | G108: 60 años y más | H108: 139 | I108: 72 | J108: 25 | K108: 14 | L108: 6 | M108: 16 | N108: 3 | O108: 2 | P108: 1 | Q108: 65-69 años | R108: Mujeres | S108: 47 | T108: 32 | U108: 9 | V108: 18 | W108: 12 | X108: 4 | Y108: 4 | Z108: 2 | AB108: 67 | AC108: 0
